Workbook

Sheet Home
B1: =uxb_works!$B$92 -> SAFE CITIES INDEX: 2021 | C1: =uxb_works!$B$92 -> SAFE CITIES INDEX: 2021 | BA1: 0 | BB1: 0

Sheet Summary
D1: =uxb_works!B92 -> SAFE CITIES INDEX: 2021 | BA1: 1 | BB1: 0 | BP1: 1 | BQ1: 0
A4: =uxb_works!B111 -> 1
D6: =uxb_works!$C$5 -> The active weight profile has been changed from its default setting
D8: =uxb_works!D67 -> Active filter group: All regions in all income levels with all population sizes
B13: =COUNTIF(B15:B75,"<>0") -> 61 | D13: =iSummary!R6 -> OVERALL SCORE | H13: r | I13: Score | J13: r | K13: Rank | O13: =iSummary!AL6 -> 1) DIGITAL SECURITY | S13: r | T13: Score | U13: r | V13: Rank | Z13: =iSummary!BF6 -> 2) HEALTH SECURITY | AD13: r | AE13: Score | AF13: r | AG13: Rank | AK13: =iSummary!BZ6 -> 3) INFRASTRUCTURE SECURITY | AO13: r | AP13: Score | AQ13: r | AR13: Rank | AV13: =iSummary!CT6 -> 4) PERSONAL SECURITY | AZ13: r | BA13: Score | BB13: r | BC13: Rank | BD13: r | BE13: Score | BF13: r | BG13: Rank | BK13: =iSummary!DN6 -> 5) ENVIRONMENTAL SECURITY | BO13: r | BP13: Score | BQ13: r | BR13: Rank | BS13: r | BT13: Score | BU13: r | BV13: Rank
B15: =iSummary!Q8 -> 1 | C15: =IF(B15=0,0,IF(G15<=uxb_works!$B$122,1,IF(G15<=uxb_works!$B$121,2,IF(G15<=uxb_works!$B$120,3,4)))) -> 4 | E15: =iSummary!R8 -> 1 | F15: =iSummary!S8 -> Copenhagen | G15: =IF(ISNUMBER(iSummary!T8),ROUND(iSummary!T8,1),"") -> 82.4 | H15: =iSummary!W8 -> = | I15: =iSummary!X8 ->  | J15: =IF(iSummary!Y8=0,"",iSummary!Y8) ->  | K15: =iSummary!Z8 -> 1 | M15: =iSummary!AK8 -> 1 | N15: =IF(M15=0,0,IF(R15<=uxb_works!$B$122,1,IF(R15<=uxb_works!$B$121,2,IF(R15<=uxb_works!$B$120,3,4)))) -> 4 | P15: =iSummary!AL8 -> 1 | Q15: =iSummary!AM8 -> Sydney | R15: =iSummary!AN8 -> 83.2 | S15: =iSummary!AQ8 -> = | T15: =iSummary!AR8 ->  | U15: =iSummary!AS8 -> 0 | V15: =iSummary!AT8 -> 1 | X15: =iSummary!BE8 -> 1 | Y15: =IF(X15=0,0,IF(AC15<=uxb_works!$B$122,1,IF(AC15<=uxb_works!$B$121,2,IF(AC15<=uxb_works!$B$120,3,4)))) -> 4 | AA15: =iSummary!BF8 -> 1 | AB15: =iSummary!BG8 -> Tokyo | AC15: =iSummary!BH8 -> 87.7 | AD15: =iSummary!BK8 -> = | AE15: =iSummary!BL8 ->  | AF15: =iSummary!BM8 -> 0 | AG15: =iSummary!BN8 -> 1 | AI15: =iSummary!BY8 -> 1 | AJ15: =IF(AI15=0,0,IF(AN15<=uxb_works!$B$122,1,IF(AN15<=uxb_works!$B$121,2,IF(AN15<=uxb_works!$B$120,3,4)))) -> 4 | AL15: =iSummary!BZ8 -> 1 | AM15: =iSummary!CA8 -> Hong Kong | AN15: =iSummary!CB8 -> 93.4 | AO15: =iSummary!CE8 -> = | AP15: =iSummary!CF8 ->  | AQ15: =iSummary!CG8 -> 0 | AR15: =iSummary!CH8 -> 1 | AT15: =iSummary!CS8 -> 1 | AU15: =IF(AT15=0,0,IF(AY15<=uxb_works!$B$122,1,IF(AY15<=uxb_works!$B$121,2,IF(AY15<=uxb_works!$B$120,3,4)))) -> 4 | AW15: =iSummary!CT8 -> 1 | AX15: =iSummary!CU8 -> Copenhagen | AY15: =iSummary!CV8 -> 86.4 | AZ15: =iSummary!CY8 -> = | BA15: =iSummary!CZ8 ->  | BB15: =iSummary!DA8 -> 0 | BC15: =iSummary!DB8 -> 1 | BD15: =iSummary!#REF! ->  | BE15: =iSummary!#REF! ->  | BF15: =iSummary!#REF! ->  | BG15: =iSummary!#REF! ->  | BI15: =iSummary!DM8 -> 1 | BJ15: =IF(BI15=0,0,IF(BN15<=uxb_works!$B$122,1,IF(BN15<=uxb_works!$B$121,2,IF(BN15<=uxb_works!$B$120,3,4)))) -> 4 | BL15: =iSummary!DN8 -> 1 | BM15: =iSummary!DO8 -> Wellington | BN15: =iSummary!DP8 -> 91.7 | BO15: =iSummary!DN8 -> 1 | BP15: =iSummary!DO8 -> Wellington | BQ15: =iSummary!DP8 -> 91.7 | BR15: =iSummary!DQ8 -> 91.7 | BS15: =iSummary!#REF! ->  | BT15: =iSummary!#REF! ->  | BU15: =iSummary!#REF! ->  | BV15: =iSummary!#REF! -> 
B16: =iSummary!Q9 -> 1 | C16: =IF(B16=0,0,IF(G16<=uxb_works!$B$122,1,IF(G16<=uxb_works!$B$121,2,IF(G16<=uxb_works!$B$120,3,4)))) -> 4 | E16: =iSummary!R9 -> 2 | F16: =iSummary!S9 -> Toronto | G16: =IF(ISNUMBER(iSummary!T9),ROUND(iSummary!T9,1),"") -> 82.2 | H16: =iSummary!W9 -> = | I16: =iSummary!X9 ->  | J16: =IF(iSummary!Y9=0,"",iSummary!Y9) ->  | K16: =iSummary!Z9 -> 1 | M16: =iSummary!AK9 -> 1 | N16: =IF(M16=0,0,IF(R16<=uxb_works!$B$122,1,IF(R16<=uxb_works!$B$121,2,IF(R16<=uxb_works!$B$120,3,4)))) -> 4 | P16: =iSummary!AL9 -> 2 | Q16: =iSummary!AM9 -> Singapore | R16: =iSummary!AN9 -> 82.8 | S16: =iSummary!AQ9 -> = | T16: =iSummary!AR9 ->  | U16: =iSummary!AS9 -> 0 | V16: =iSummary!AT9 -> 1 | X16: =iSummary!BE9 -> 1 | Y16: =IF(X16=0,0,IF(AC16<=uxb_works!$B$122,1,IF(AC16<=uxb_works!$B$121,2,IF(AC16<=uxb_works!$B$120,3,4)))) -> 4 | AA16: =iSummary!BF9 -> 2 | AB16: =iSummary!BG9 -> Singapore | AC16: =iSummary!BH9 -> 84.1 | AD16: =iSummary!BK9 -> = | AE16: =iSummary!BL9 ->  | AF16: =iSummary!BM9 -> 0 | AG16: =iSummary!BN9 -> 1 | AI16: =iSummary!BY9 -> 1 | AJ16: =IF(AI16=0,0,IF(AN16<=uxb_works!$B$122,1,IF(AN16<=uxb_works!$B$121,2,IF(AN16<=uxb_works!$B$120,3,4)))) -> 4 | AL16: =iSummary!BZ9 -> 2 | AM16: =iSummary!CA9 -> Singapore | AN16: =iSummary!CB9 -> 92.1 | AO16: =iSummary!CE9 -> = | AP16: =iSummary!CF9 ->  | AQ16: =iSummary!CG9 -> 0 | AR16: =iSummary!CH9 -> 1 | AT16: =iSummary!CS9 -> 1 | AU16: =IF(AT16=0,0,IF(AY16<=uxb_works!$B$122,1,IF(AY16<=uxb_works!$B$121,2,IF(AY16<=uxb_works!$B$120,3,4)))) -> 4 | AW16: =iSummary!CT9 -> 2 | AX16: =iSummary!CU9 -> Amsterdam | AY16: =iSummary!CV9 -> 80.5 | AZ16: =iSummary!CY9 -> = | BA16: =iSummary!CZ9 ->  | BB16: =iSummary!DA9 -> 0 | BC16: =iSummary!DB9 -> 1 | BD16: =iSummary!#REF! ->  | BE16: =iSummary!#REF! ->  | BF16: =iSummary!#REF! ->  | BG16: =iSummary!#REF! ->  | BI16: =iSummary!DM9 -> 1 | BJ16: =IF(BI16=0,0,IF(BN16<=uxb_works!$B$122,1,IF(BN16<=uxb_works!$B$121,2,IF(BN16<=uxb_works!$B$120,3,4)))) -> 4 | BL16: =iSummary!DN9 -> 2 | BM16: =iSummary!DO9 -> Toronto | BN16: =iSummary!DP9 -> 90.3 | BO16: =iSummary!DN9 -> 2 | BP16: =iSummary!DO9 -> Toronto | BQ16: =iSummary!DP9 -> 90.3 | BR16: =iSummary!DQ9 -> 90.3 | BS16: =iSummary!#REF! ->  | BT16: =iSummary!#REF! ->  | BU16: =iSummary!#REF! ->  | BV16: =iSummary!#REF! -> 
B17: =iSummary!Q10 -> 1 | C17: =IF(B17=0,0,IF(G17<=uxb_works!$B$122,1,IF(G17<=uxb_works!$B$121,2,IF(G17<=uxb_works!$B$120,3,4)))) -> 4 | E17: =iSummary!R10 -> 3 | F17: =iSummary!S10 -> Singapore | G17: =IF(ISNUMBER(iSummary!T10),ROUND(iSummary!T10,1),"") -> 80.7 | H17: =iSummary!W10 -> = | I17: =iSummary!X10 ->  | J17: =IF(iSummary!Y10=0,"",iSummary!Y10) ->  | K17: =iSummary!Z10 -> 1 | M17: =iSummary!AK10 -> 1 | N17: =IF(M17=0,0,IF(R17<=uxb_works!$B$122,1,IF(R17<=uxb_works!$B$121,2,IF(R17<=uxb_works!$B$120,3,4)))) -> 4 | P17: =iSummary!AL10 -> 3 | Q17: =iSummary!AM10 -> Copenhagen | R17: =iSummary!AN10 -> 82.2 | S17: =iSummary!AQ10 -> = | T17: =iSummary!AR10 ->  | U17: =iSummary!AS10 -> 0 | V17: =iSummary!AT10 -> 1 | X17: =iSummary!BE10 -> 1 | Y17: =IF(X17=0,0,IF(AC17<=uxb_works!$B$122,1,IF(AC17<=uxb_works!$B$121,2,IF(AC17<=uxb_works!$B$120,3,4)))) -> 4 | AA17: =iSummary!BF10 -> 3 | AB17: =iSummary!BG10 -> Hong Kong | AC17: =iSummary!BH10 -> 84 | AD17: =iSummary!BK10 -> = | AE17: =iSummary!BL10 ->  | AF17: =iSummary!BM10 -> 0 | AG17: =iSummary!BN10 -> 1 | AI17: =iSummary!BY10 -> 1 | AJ17: =IF(AI17=0,0,IF(AN17<=uxb_works!$B$122,1,IF(AN17<=uxb_works!$B$121,2,IF(AN17<=uxb_works!$B$120,3,4)))) -> 4 | AL17: =iSummary!BZ10 -> 3 | AM17: =iSummary!CA10 -> Copenhagen | AN17: =iSummary!CB10 -> 89 | AO17: =iSummary!CE10 -> = | AP17: =iSummary!CF10 ->  | AQ17: =iSummary!CG10 -> 0 | AR17: =iSummary!CH10 -> 1 | AT17: =iSummary!CS10 -> 1 | AU17: =IF(AT17=0,0,IF(AY17<=uxb_works!$B$122,1,IF(AY17<=uxb_works!$B$121,2,IF(AY17<=uxb_works!$B$120,3,4)))) -> 4 | AW17: =iSummary!CT10 -> 3 | AX17: =iSummary!CU10 -> Frankfurt | AY17: =iSummary!CV10 -> 80.3 | AZ17: =iSummary!CY10 -> = | BA17: =iSummary!CZ10 ->  | BB17: =iSummary!DA10 -> 0 | BC17: =iSummary!DB10 -> 1 | BD17: =iSummary!#REF! ->  | BE17: =iSummary!#REF! ->  | BF17: =iSummary!#REF! ->  | BG17: =iSummary!#REF! ->  | BI17: =iSummary!DM10 -> 1 | BJ17: =IF(BI17=0,0,IF(BN17<=uxb_works!$B$122,1,IF(BN17<=uxb_works!$B$121,2,IF(BN17<=uxb_works!$B$120,3,4)))) -> 4 | BL17: =iSummary!DN10 -> 3 | BM17: =iSummary!DO10 -> Washington DC | BN17: =iSummary!DP10 -> 87.6 | BO17: =iSummary!DN10 -> 3 | BP17: =iSummary!DO10 -> Washington DC | BQ17: =iSummary!DP10 -> 87.6 | BR17: =iSummary!DQ10 -> 87.6 | BS17: =iSummary!#REF! ->  | BT17: =iSummary!#REF! ->  | BU17: =iSummary!#REF! ->  | BV17: =iSummary!#REF! -> 
B18: =iSummary!Q11 -> 1 | C18: =IF(B18=0,0,IF(G18<=uxb_works!$B$122,1,IF(G18<=uxb_works!$B$121,2,IF(G18<=uxb_works!$B$120,3,4)))) -> 4 | E18: =iSummary!R11 -> 4 | F18: =iSummary!S11 -> Sydney | G18: =IF(ISNUMBER(iSummary!T11),ROUND(iSummary!T11,1),"") -> 80.1 | H18: =iSummary!W11 -> = | I18: =iSummary!X11 ->  | J18: =IF(iSummary!Y11=0,"",iSummary!Y11) ->  | K18: =iSummary!Z11 -> 1 | M18: =iSummary!AK11 -> 1 | N18: =IF(M18=0,0,IF(R18<=uxb_works!$B$122,1,IF(R18<=uxb_works!$B$121,2,IF(R18<=uxb_works!$B$120,3,4)))) -> 4 | P18: =iSummary!AL11 -> =4 | Q18: =iSummary!AM11 -> Los Angeles | R18: =iSummary!AN11 -> 82 | S18: =iSummary!AQ11 -> = | T18: =iSummary!AR11 ->  | U18: =iSummary!AS11 -> 0 | V18: =iSummary!AT11 -> 1 | X18: =iSummary!BE11 -> 1 | Y18: =IF(X18=0,0,IF(AC18<=uxb_works!$B$122,1,IF(AC18<=uxb_works!$B$121,2,IF(AC18<=uxb_works!$B$120,3,4)))) -> 4 | AA18: =iSummary!BF11 -> 4 | AB18: =iSummary!BG11 -> Melbourne | AC18: =iSummary!BH11 -> 81.9 | AD18: =iSummary!BK11 -> = | AE18: =iSummary!BL11 ->  | AF18: =iSummary!BM11 -> 0 | AG18: =iSummary!BN11 -> 1 | AI18: =iSummary!BY11 -> 1 | AJ18: =IF(AI18=0,0,IF(AN18<=uxb_works!$B$122,1,IF(AN18<=uxb_works!$B$121,2,IF(AN18<=uxb_works!$B$120,3,4)))) -> 4 | AL18: =iSummary!BZ11 -> 4 | AM18: =iSummary!CA11 -> Toronto | AN18: =iSummary!CB11 -> 88.6 | AO18: =iSummary!CE11 -> = | AP18: =iSummary!CF11 ->  | AQ18: =iSummary!CG11 -> 0 | AR18: =iSummary!CH11 -> 1 | AT18: =iSummary!CS11 -> 1 | AU18: =IF(AT18=0,0,IF(AY18<=uxb_works!$B$122,1,IF(AY18<=uxb_works!$B$121,2,IF(AY18<=uxb_works!$B$120,3,4)))) -> 4 | AW18: =iSummary!CT11 -> 4 | AX18: =iSummary!CU11 -> Stockholm | AY18: =iSummary!CV11 -> 79.7 | AZ18: =iSummary!CY11 -> = | BA18: =iSummary!CZ11 ->  | BB18: =iSummary!DA11 -> 0 | BC18: =iSummary!DB11 -> 1 | BD18: =iSummary!#REF! ->  | BE18: =iSummary!#REF! ->  | BF18: =iSummary!#REF! ->  | BG18: =iSummary!#REF! ->  | BI18: =iSummary!DM11 -> 1 | BJ18: =IF(BI18=0,0,IF(BN18<=uxb_works!$B$122,1,IF(BN18<=uxb_works!$B$121,2,IF(BN18<=uxb_works!$B$120,3,4)))) -> 4 | BL18: =iSummary!DN11 -> 4 | BM18: =iSummary!DO11 -> Bogota | BN18: =iSummary!DP11 -> 85.5 | BO18: =iSummary!DN11 -> 4 | BP18: =iSummary!DO11 -> Bogota | BQ18: =iSummary!DP11 -> 85.5 | BR18: =iSummary!DQ11 -> 85.5 | BS18: =iSummary!#REF! ->  | BT18: =iSummary!#REF! ->  | BU18: =iSummary!#REF! ->  | BV18: =iSummary!#REF! -> 
B19: =iSummary!Q12 -> 1 | C19: =IF(B19=0,0,IF(G19<=uxb_works!$B$122,1,IF(G19<=uxb_works!$B$121,2,IF(G19<=uxb_works!$B$120,3,4)))) -> 4 | E19: =iSummary!R12 -> 5 | F19: =iSummary!S12 -> Tokyo | G19: =IF(ISNUMBER(iSummary!T12),ROUND(iSummary!T12,1),"") -> 80 | H19: =iSummary!W12 -> = | I19: =iSummary!X12 ->  | J19: =IF(iSummary!Y12=0,"",iSummary!Y12) ->  | K19: =iSummary!Z12 -> 1 | M19: =iSummary!AK12 -> 1 | N19: =IF(M19=0,0,IF(R19<=uxb_works!$B$122,1,IF(R19<=uxb_works!$B$121,2,IF(R19<=uxb_works!$B$120,3,4)))) -> 4 | P19: =iSummary!AL12 -> =4 | Q19: =iSummary!AM12 -> San Francisco | R19: =iSummary!AN12 -> 82 | S19: =iSummary!AQ12 -> = | T19: =iSummary!AR12 ->  | U19: =iSummary!AS12 -> 0 | V19: =iSummary!AT12 -> 1 | X19: =iSummary!BE12 -> 1 | Y19: =IF(X19=0,0,IF(AC19<=uxb_works!$B$122,1,IF(AC19<=uxb_works!$B$121,2,IF(AC19<=uxb_works!$B$120,3,4)))) -> 4 | AA19: =iSummary!BF12 -> 5 | AB19: =iSummary!BG12 -> Osaka | AC19: =iSummary!BH12 -> 81.8 | AD19: =iSummary!BK12 -> = | AE19: =iSummary!BL12 ->  | AF19: =iSummary!BM12 -> 0 | AG19: =iSummary!BN12 -> 1 | AI19: =iSummary!BY12 -> 1 | AJ19: =IF(AI19=0,0,IF(AN19<=uxb_works!$B$122,1,IF(AN19<=uxb_works!$B$121,2,IF(AN19<=uxb_works!$B$120,3,4)))) -> 4 | AL19: =iSummary!BZ12 -> 5 | AM19: =iSummary!CA12 -> Tokyo | AN19: =iSummary!CB12 -> 87.7 | AO19: =iSummary!CE12 -> = | AP19: =iSummary!CF12 ->  | AQ19: =iSummary!CG12 -> 0 | AR19: =iSummary!CH12 -> 1 | AT19: =iSummary!CS12 -> 1 | AU19: =IF(AT19=0,0,IF(AY19<=uxb_works!$B$122,1,IF(AY19<=uxb_works!$B$121,2,IF(AY19<=uxb_works!$B$120,3,4)))) -> 4 | AW19: =iSummary!CT12 -> 5 | AX19: =iSummary!CU12 -> Brussels | AY19: =iSummary!CV12 -> 79.2 | AZ19: =iSummary!CY12 -> = | BA19: =iSummary!CZ12 ->  | BB19: =iSummary!DA12 -> 0 | BC19: =iSummary!DB12 -> 1 | BD19: =iSummary!#REF! ->  | BE19: =iSummary!#REF! ->  | BF19: =iSummary!#REF! ->  | BG19: =iSummary!#REF! ->  | BI19: =iSummary!DM12 -> 1 | BJ19: =IF(BI19=0,0,IF(BN19<=uxb_works!$B$122,1,IF(BN19<=uxb_works!$B$121,2,IF(BN19<=uxb_works!$B$120,3,4)))) -> 4 | BL19: =iSummary!DN12 -> 5 | BM19: =iSummary!DO12 -> Milan | BN19: =iSummary!DP12 -> 84.9 | BO19: =iSummary!DN12 -> 5 | BP19: =iSummary!DO12 -> Milan | BQ19: =iSummary!DP12 -> 84.9 | BR19: =iSummary!DQ12 -> 84.9 | BS19: =iSummary!#REF! ->  | BT19: =iSummary!#REF! ->  | BU19: =iSummary!#REF! ->  | BV19: =iSummary!#REF! -> 
B20: =iSummary!Q13 -> 1 | C20: =IF(B20=0,0,IF(G20<=uxb_works!$B$122,1,IF(G20<=uxb_works!$B$121,2,IF(G20<=uxb_works!$B$120,3,4)))) -> 4 | E20: =iSummary!R13 -> 6 | F20: =iSummary!S13 -> Amsterdam | G20: =IF(ISNUMBER(iSummary!T13),ROUND(iSummary!T13,1),"") -> 79.3 | H20: =iSummary!W13 -> = | I20: =iSummary!X13 ->  | J20: =IF(iSummary!Y13=0,"",iSummary!Y13) ->  | K20: =iSummary!Z13 -> 1 | M20: =iSummary!AK13 -> 1 | N20: =IF(M20=0,0,IF(R20<=uxb_works!$B$122,1,IF(R20<=uxb_works!$B$121,2,IF(R20<=uxb_works!$B$120,3,4)))) -> 4 | P20: =iSummary!AL13 -> 6 | Q20: =iSummary!AM13 -> New York | R20: =iSummary!AN13 -> 81.6 | S20: =iSummary!AQ13 -> = | T20: =iSummary!AR13 ->  | U20: =iSummary!AS13 -> 0 | V20: =iSummary!AT13 -> 1 | X20: =iSummary!BE13 -> 1 | Y20: =IF(X20=0,0,IF(AC20<=uxb_works!$B$122,1,IF(AC20<=uxb_works!$B$121,2,IF(AC20<=uxb_works!$B$120,3,4)))) -> 4 | AA20: =iSummary!BF13 -> 6 | AB20: =iSummary!BG13 -> Seoul | AC20: =iSummary!BH13 -> 81.1 | AD20: =iSummary!BK13 -> = | AE20: =iSummary!BL13 ->  | AF20: =iSummary!BM13 -> 0 | AG20: =iSummary!BN13 -> 1 | AI20: =iSummary!BY13 -> 1 | AJ20: =IF(AI20=0,0,IF(AN20<=uxb_works!$B$122,1,IF(AN20<=uxb_works!$B$121,2,IF(AN20<=uxb_works!$B$120,3,4)))) -> 4 | AL20: =iSummary!BZ13 -> 6 | AM20: =iSummary!CA13 -> Stockholm | AN20: =iSummary!CB13 -> 87.3 | AO20: =iSummary!CE13 -> = | AP20: =iSummary!CF13 ->  | AQ20: =iSummary!CG13 -> 0 | AR20: =iSummary!CH13 -> 1 | AT20: =iSummary!CS13 -> 1 | AU20: =IF(AT20=0,0,IF(AY20<=uxb_works!$B$122,1,IF(AY20<=uxb_works!$B$121,2,IF(AY20<=uxb_works!$B$120,3,4)))) -> 4 | AW20: =iSummary!CT13 -> 6 | AX20: =iSummary!CU13 -> Paris | AY20: =iSummary!CV13 -> 79 | AZ20: =iSummary!CY13 -> = | BA20: =iSummary!CZ13 ->  | BB20: =iSummary!DA13 -> 0 | BC20: =iSummary!DB13 -> 1 | BD20: =iSummary!#REF! ->  | BE20: =iSummary!#REF! ->  | BF20: =iSummary!#REF! ->  | BG20: =iSummary!#REF! ->  | BI20: =iSummary!DM13 -> 1 | BJ20: =IF(BI20=0,0,IF(BN20<=uxb_works!$B$122,1,IF(BN20<=uxb_works!$B$121,2,IF(BN20<=uxb_works!$B$120,3,4)))) -> 4 | BL20: =iSummary!DN13 -> 6 | BM20: =iSummary!DO13 -> Copenhagen | BN20: =iSummary!DP13 -> 84.5 | BO20: =iSummary!DN13 -> 6 | BP20: =iSummary!DO13 -> Copenhagen | BQ20: =iSummary!DP13 -> 84.5 | BR20: =iSummary!DQ13 -> 84.5 | BS20: =iSummary!#REF! ->  | BT20: =iSummary!#REF! ->  | BU20: =iSummary!#REF! ->  | BV20: =iSummary!#REF! -> 
B21: =iSummary!Q14 -> 1 | C21: =IF(B21=0,0,IF(G21<=uxb_works!$B$122,1,IF(G21<=uxb_works!$B$121,2,IF(G21<=uxb_works!$B$120,3,4)))) -> 4 | E21: =iSummary!R14 -> 7 | F21: =iSummary!S14 -> Wellington | G21: =IF(ISNUMBER(iSummary!T14),ROUND(iSummary!T14,1),"") -> 79 | H21: =iSummary!W14 -> = | I21: =iSummary!X14 ->  | J21: =IF(iSummary!Y14=0,"",iSummary!Y14) ->  | K21: =iSummary!Z14 -> 1 | M21: =iSummary!AK14 -> 1 | N21: =IF(M21=0,0,IF(R21<=uxb_works!$B$122,1,IF(R21<=uxb_works!$B$121,2,IF(R21<=uxb_works!$B$120,3,4)))) -> 4 | P21: =iSummary!AL14 -> 7 | Q21: =iSummary!AM14 -> Amsterdam | R21: =iSummary!AN14 -> 79.3 | S21: =iSummary!AQ14 -> = | T21: =iSummary!AR14 ->  | U21: =iSummary!AS14 -> 0 | V21: =iSummary!AT14 -> 1 | X21: =iSummary!BE14 -> 1 | Y21: =IF(X21=0,0,IF(AC21<=uxb_works!$B$122,1,IF(AC21<=uxb_works!$B$121,2,IF(AC21<=uxb_works!$B$120,3,4)))) -> 4 | AA21: =iSummary!BF14 -> 7 | AB21: =iSummary!BG14 -> Toronto | AC21: =iSummary!BH14 -> 80 | AD21: =iSummary!BK14 -> = | AE21: =iSummary!BL14 ->  | AF21: =iSummary!BM14 -> 0 | AG21: =iSummary!BN14 -> 1 | AI21: =iSummary!BY14 -> 1 | AJ21: =IF(AI21=0,0,IF(AN21<=uxb_works!$B$122,1,IF(AN21<=uxb_works!$B$121,2,IF(AN21<=uxb_works!$B$120,3,4)))) -> 4 | AL21: =iSummary!BZ14 -> 7 | AM21: =iSummary!CA14 -> Osaka | AN21: =iSummary!CB14 -> 86.6 | AO21: =iSummary!CE14 -> = | AP21: =iSummary!CF14 ->  | AQ21: =iSummary!CG14 -> 0 | AR21: =iSummary!CH14 -> 1 | AT21: =iSummary!CS14 -> 1 | AU21: =IF(AT21=0,0,IF(AY21<=uxb_works!$B$122,1,IF(AY21<=uxb_works!$B$121,2,IF(AY21<=uxb_works!$B$120,3,4)))) -> 4 | AW21: =iSummary!CT14 -> 7 | AX21: =iSummary!CU14 -> Wellington | AY21: =iSummary!CV14 -> 78.3 | AZ21: =iSummary!CY14 -> = | BA21: =iSummary!CZ14 ->  | BB21: =iSummary!DA14 -> 0 | BC21: =iSummary!DB14 -> 1 | BD21: =iSummary!#REF! ->  | BE21: =iSummary!#REF! ->  | BF21: =iSummary!#REF! ->  | BG21: =iSummary!#REF! ->  | BI21: =iSummary!DM14 -> 1 | BJ21: =IF(BI21=0,0,IF(BN21<=uxb_works!$B$122,1,IF(BN21<=uxb_works!$B$121,2,IF(BN21<=uxb_works!$B$120,3,4)))) -> 4 | BL21: =iSummary!DN14 -> 7 | BM21: =iSummary!DO14 -> Stockholm | BN21: =iSummary!DP14 -> 83.7 | BO21: =iSummary!DN14 -> 7 | BP21: =iSummary!DO14 -> Stockholm | BQ21: =iSummary!DP14 -> 83.7 | BR21: =iSummary!DQ14 -> 83.7 | BS21: =iSummary!#REF! ->  | BT21: =iSummary!#REF! ->  | BU21: =iSummary!#REF! ->  | BV21: =iSummary!#REF! -> 
B22: =iSummary!Q15 -> 1 | C22: =IF(B22=0,0,IF(G22<=uxb_works!$B$122,1,IF(G22<=uxb_works!$B$121,2,IF(G22<=uxb_works!$B$120,3,4)))) -> 4 | E22: =iSummary!R15 -> =8 | F22: =iSummary!S15 -> Hong Kong | G22: =IF(ISNUMBER(iSummary!T15),ROUND(iSummary!T15,1),"") -> 78.6 | H22: =iSummary!W15 -> = | I22: =iSummary!X15 ->  | J22: =IF(iSummary!Y15=0,"",iSummary!Y15) ->  | K22: =iSummary!Z15 -> 1 | M22: =iSummary!AK15 -> 1 | N22: =IF(M22=0,0,IF(R22<=uxb_works!$B$122,1,IF(R22<=uxb_works!$B$121,2,IF(R22<=uxb_works!$B$120,3,4)))) -> 4 | P22: =iSummary!AL15 -> 8 | Q22: =iSummary!AM15 -> Melbourne | R22: =iSummary!AN15 -> 78.3 | S22: =iSummary!AQ15 -> = | T22: =iSummary!AR15 ->  | U22: =iSummary!AS15 -> 0 | V22: =iSummary!AT15 -> 1 | X22: =iSummary!BE15 -> 1 | Y22: =IF(X22=0,0,IF(AC22<=uxb_works!$B$122,1,IF(AC22<=uxb_works!$B$121,2,IF(AC22<=uxb_works!$B$120,3,4)))) -> 4 | AA22: =iSummary!BF15 -> 8 | AB22: =iSummary!BG15 -> London | AC22: =iSummary!BH15 -> 78.8 | AD22: =iSummary!BK15 -> = | AE22: =iSummary!BL15 ->  | AF22: =iSummary!BM15 -> 0 | AG22: =iSummary!BN15 -> 1 | AI22: =iSummary!BY15 -> 1 | AJ22: =IF(AI22=0,0,IF(AN22<=uxb_works!$B$122,1,IF(AN22<=uxb_works!$B$121,2,IF(AN22<=uxb_works!$B$120,3,4)))) -> 4 | AL22: =iSummary!BZ15 -> 8 | AM22: =iSummary!CA15 -> Washington DC | AN22: =iSummary!CB15 -> 86.5 | AO22: =iSummary!CE15 -> = | AP22: =iSummary!CF15 ->  | AQ22: =iSummary!CG15 -> 0 | AR22: =iSummary!CH15 -> 1 | AT22: =iSummary!CS15 -> 1 | AU22: =IF(AT22=0,0,IF(AY22<=uxb_works!$B$122,1,IF(AY22<=uxb_works!$B$121,2,IF(AY22<=uxb_works!$B$120,3,4)))) -> 4 | AW22: =iSummary!CT15 -> 8 | AX22: =iSummary!CU15 -> Toronto | AY22: =iSummary!CV15 -> 77.2 | AZ22: =iSummary!CY15 -> = | BA22: =iSummary!CZ15 ->  | BB22: =iSummary!DA15 -> 0 | BC22: =iSummary!DB15 -> 1 | BD22: =iSummary!#REF! ->  | BE22: =iSummary!#REF! ->  | BF22: =iSummary!#REF! ->  | BG22: =iSummary!#REF! ->  | BI22: =iSummary!DM15 -> 1 | BJ22: =IF(BI22=0,0,IF(BN22<=uxb_works!$B$122,1,IF(BN22<=uxb_works!$B$121,2,IF(BN22<=uxb_works!$B$120,3,4)))) -> 4 | BL22: =iSummary!DN15 -> 8 | BM22: =iSummary!DO15 -> Rio de Janeiro | BN22: =iSummary!DP15 -> 83.3 | BO22: =iSummary!DN15 -> 8 | BP22: =iSummary!DO15 -> Rio de Janeiro | BQ22: =iSummary!DP15 -> 83.3 | BR22: =iSummary!DQ15 -> 83.3 | BS22: =iSummary!#REF! ->  | BT22: =iSummary!#REF! ->  | BU22: =iSummary!#REF! ->  | BV22: =iSummary!#REF! -> 
B23: =iSummary!Q16 -> 1 | C23: =IF(B23=0,0,IF(G23<=uxb_works!$B$122,1,IF(G23<=uxb_works!$B$121,2,IF(G23<=uxb_works!$B$120,3,4)))) -> 4 | E23: =iSummary!R16 -> =8 | F23: =iSummary!S16 -> Melbourne | G23: =IF(ISNUMBER(iSummary!T16),ROUND(iSummary!T16,1),"") -> 78.6 | H23: =iSummary!W16 -> = | I23: =iSummary!X16 ->  | J23: =IF(iSummary!Y16=0,"",iSummary!Y16) ->  | K23: =iSummary!Z16 -> 1 | M23: =iSummary!AK16 -> 1 | N23: =IF(M23=0,0,IF(R23<=uxb_works!$B$122,1,IF(R23<=uxb_works!$B$121,2,IF(R23<=uxb_works!$B$120,3,4)))) -> 4 | P23: =iSummary!AL16 -> 9 | Q23: =iSummary!AM16 -> Wellington | R23: =iSummary!AN16 -> 77.3 | S23: =iSummary!AQ16 -> = | T23: =iSummary!AR16 ->  | U23: =iSummary!AS16 -> 0 | V23: =iSummary!AT16 -> 1 | X23: =iSummary!BE16 -> 1 | Y23: =IF(X23=0,0,IF(AC23<=uxb_works!$B$122,1,IF(AC23<=uxb_works!$B$121,2,IF(AC23<=uxb_works!$B$120,3,4)))) -> 4 | AA23: =iSummary!BF16 -> 9 | AB23: =iSummary!BG16 -> Barcelona | AC23: =iSummary!BH16 -> 78.1 | AD23: =iSummary!BK16 -> = | AE23: =iSummary!BL16 ->  | AF23: =iSummary!BM16 -> 0 | AG23: =iSummary!BN16 -> 1 | AI23: =iSummary!BY16 -> 1 | AJ23: =IF(AI23=0,0,IF(AN23<=uxb_works!$B$122,1,IF(AN23<=uxb_works!$B$121,2,IF(AN23<=uxb_works!$B$120,3,4)))) -> 4 | AL23: =iSummary!BZ16 -> =9 | AM23: =iSummary!CA16 -> Chicago | AN23: =iSummary!CB16 -> 84.5 | AO23: =iSummary!CE16 -> = | AP23: =iSummary!CF16 ->  | AQ23: =iSummary!CG16 -> 0 | AR23: =iSummary!CH16 -> 1 | AT23: =iSummary!CS16 -> 1 | AU23: =IF(AT23=0,0,IF(AY23<=uxb_works!$B$122,1,IF(AY23<=uxb_works!$B$121,2,IF(AY23<=uxb_works!$B$120,3,4)))) -> 4 | AW23: =iSummary!CT16 -> 9 | AX23: =iSummary!CU16 -> Lisbon | AY23: =iSummary!CV16 -> 76.9 | AZ23: =iSummary!CY16 -> = | BA23: =iSummary!CZ16 ->  | BB23: =iSummary!DA16 -> 0 | BC23: =iSummary!DB16 -> 1 | BD23: =iSummary!#REF! ->  | BE23: =iSummary!#REF! ->  | BF23: =iSummary!#REF! ->  | BG23: =iSummary!#REF! ->  | BI23: =iSummary!DM16 -> 1 | BJ23: =IF(BI23=0,0,IF(BN23<=uxb_works!$B$122,1,IF(BN23<=uxb_works!$B$121,2,IF(BN23<=uxb_works!$B$120,3,4)))) -> 4 | BL23: =iSummary!DN16 -> 9 | BM23: =iSummary!DO16 -> Zurich | BN23: =iSummary!DP16 -> 82.3 | BO23: =iSummary!DN16 -> 9 | BP23: =iSummary!DO16 -> Zurich | BQ23: =iSummary!DP16 -> 82.3 | BR23: =iSummary!DQ16 -> 82.3 | BS23: =iSummary!#REF! ->  | BT23: =iSummary!#REF! ->  | BU23: =iSummary!#REF! ->  | BV23: =iSummary!#REF! -> 
B24: =iSummary!Q17 -> 1 | C24: =IF(B24=0,0,IF(G24<=uxb_works!$B$122,1,IF(G24<=uxb_works!$B$121,2,IF(G24<=uxb_works!$B$120,3,4)))) -> 4 | E24: =iSummary!R17 -> 10 | F24: =iSummary!S17 -> Stockholm | G24: =IF(ISNUMBER(iSummary!T17),ROUND(iSummary!T17,1),"") -> 78 | H24: =iSummary!W17 -> = | I24: =iSummary!X17 ->  | J24: =IF(iSummary!Y17=0,"",iSummary!Y17) ->  | K24: =iSummary!Z17 -> 1 | M24: =iSummary!AK17 -> 1 | N24: =IF(M24=0,0,IF(R24<=uxb_works!$B$122,1,IF(R24<=uxb_works!$B$121,2,IF(R24<=uxb_works!$B$120,3,4)))) -> 4 | P24: =iSummary!AL17 -> =10 | Q24: =iSummary!AM17 -> Chicago | R24: =iSummary!AN17 -> 76.7 | S24: =iSummary!AQ17 -> = | T24: =iSummary!AR17 ->  | U24: =iSummary!AS17 -> 0 | V24: =iSummary!AT17 -> 1 | X24: =iSummary!BE17 -> 1 | Y24: =IF(X24=0,0,IF(AC24<=uxb_works!$B$122,1,IF(AC24<=uxb_works!$B$121,2,IF(AC24<=uxb_works!$B$120,3,4)))) -> 4 | AA24: =iSummary!BF17 -> 10 | AB24: =iSummary!BG17 -> Sydney | AC24: =iSummary!BH17 -> 77.7 | AD24: =iSummary!BK17 -> = | AE24: =iSummary!BL17 ->  | AF24: =iSummary!BM17 -> 0 | AG24: =iSummary!BN17 -> 1 | AI24: =iSummary!BY17 -> 1 | AJ24: =IF(AI24=0,0,IF(AN24<=uxb_works!$B$122,1,IF(AN24<=uxb_works!$B$121,2,IF(AN24<=uxb_works!$B$120,3,4)))) -> 4 | AL24: =iSummary!BZ17 -> =9 | AM24: =iSummary!CA17 -> Sydney | AN24: =iSummary!CB17 -> 84.5 | AO24: =iSummary!CE17 -> = | AP24: =iSummary!CF17 ->  | AQ24: =iSummary!CG17 -> 0 | AR24: =iSummary!CH17 -> 1 | AT24: =iSummary!CS17 -> 1 | AU24: =IF(AT24=0,0,IF(AY24<=uxb_works!$B$122,1,IF(AY24<=uxb_works!$B$121,2,IF(AY24<=uxb_works!$B$120,3,4)))) -> 4 | AW24: =iSummary!CT17 -> 10 | AX24: =iSummary!CU17 -> Madrid | AY24: =iSummary!CV17 -> 76.6 | AZ24: =iSummary!CY17 -> = | BA24: =iSummary!CZ17 ->  | BB24: =iSummary!DA17 -> 0 | BC24: =iSummary!DB17 -> 1 | BD24: =iSummary!#REF! ->  | BE24: =iSummary!#REF! ->  | BF24: =iSummary!#REF! ->  | BG24: =iSummary!#REF! ->  | BI24: =iSummary!DM17 -> 1 | BJ24: =IF(BI24=0,0,IF(BN24<=uxb_works!$B$122,1,IF(BN24<=uxb_works!$B$121,2,IF(BN24<=uxb_works!$B$120,3,4)))) -> 4 | BL24: =iSummary!DN17 -> 10 | BM24: =iSummary!DO17 -> Kuala Lumpur | BN24: =iSummary!DP17 -> 81 | BO24: =iSummary!DN17 -> 10 | BP24: =iSummary!DO17 -> Kuala Lumpur | BQ24: =iSummary!DP17 -> 81 | BR24: =iSummary!DQ17 -> 81 | BS24: =iSummary!#REF! ->  | BT24: =iSummary!#REF! ->  | BU24: =iSummary!#REF! ->  | BV24: =iSummary!#REF! -> 
B25: =iSummary!Q18 -> 1 | C25: =IF(B25=0,0,IF(G25<=uxb_works!$B$122,1,IF(G25<=uxb_works!$B$121,2,IF(G25<=uxb_works!$B$120,3,4)))) -> 4 | E25: =iSummary!R18 -> =11 | F25: =iSummary!S18 -> Barcelona | G25: =IF(ISNUMBER(iSummary!T18),ROUND(iSummary!T18,1),"") -> 77.8 | H25: =iSummary!W18 -> = | I25: =iSummary!X18 ->  | J25: =IF(iSummary!Y18=0,"",iSummary!Y18) ->  | K25: =iSummary!Z18 -> 1 | M25: =iSummary!AK18 -> 1 | N25: =IF(M25=0,0,IF(R25<=uxb_works!$B$122,1,IF(R25<=uxb_works!$B$121,2,IF(R25<=uxb_works!$B$120,3,4)))) -> 4 | P25: =iSummary!AL18 -> =10 | Q25: =iSummary!AM18 -> Frankfurt | R25: =iSummary!AN18 -> 76.7 | S25: =iSummary!AQ18 -> = | T25: =iSummary!AR18 ->  | U25: =iSummary!AS18 -> 0 | V25: =iSummary!AT18 -> 1 | X25: =iSummary!BE18 -> 1 | Y25: =IF(X25=0,0,IF(AC25<=uxb_works!$B$122,1,IF(AC25<=uxb_works!$B$121,2,IF(AC25<=uxb_works!$B$120,3,4)))) -> 4 | AA25: =iSummary!BF18 -> 11 | AB25: =iSummary!BG18 -> San Francisco | AC25: =iSummary!BH18 -> 77.3 | AD25: =iSummary!BK18 -> = | AE25: =iSummary!BL18 ->  | AF25: =iSummary!BM18 -> 0 | AG25: =iSummary!BN18 -> 1 | AI25: =iSummary!BY18 -> 1 | AJ25: =IF(AI25=0,0,IF(AN25<=uxb_works!$B$122,1,IF(AN25<=uxb_works!$B$121,2,IF(AN25<=uxb_works!$B$120,3,4)))) -> 4 | AL25: =iSummary!BZ18 -> 11 | AM25: =iSummary!CA18 -> New York | AN25: =iSummary!CB18 -> 84.4 | AO25: =iSummary!CE18 -> = | AP25: =iSummary!CF18 ->  | AQ25: =iSummary!CG18 -> 0 | AR25: =iSummary!CH18 -> 1 | AT25: =iSummary!CS18 -> 1 | AU25: =IF(AT25=0,0,IF(AY25<=uxb_works!$B$122,1,IF(AY25<=uxb_works!$B$121,2,IF(AY25<=uxb_works!$B$120,3,4)))) -> 4 | AW25: =iSummary!CT18 -> 11 | AX25: =iSummary!CU18 -> Sydney | AY25: =iSummary!CV18 -> 76.3 | AZ25: =iSummary!CY18 -> = | BA25: =iSummary!CZ18 ->  | BB25: =iSummary!DA18 -> 0 | BC25: =iSummary!DB18 -> 1 | BD25: =iSummary!#REF! ->  | BE25: =iSummary!#REF! ->  | BF25: =iSummary!#REF! ->  | BG25: =iSummary!#REF! ->  | BI25: =iSummary!DM18 -> 1 | BJ25: =IF(BI25=0,0,IF(BN25<=uxb_works!$B$122,1,IF(BN25<=uxb_works!$B$121,2,IF(BN25<=uxb_works!$B$120,3,4)))) -> 4 | BL25: =iSummary!DN18 -> =11 | BM25: =iSummary!DO18 -> Amsterdam | BN25: =iSummary!DP18 -> 80.9 | BO25: =iSummary!DN18 -> =11 | BP25: =iSummary!DO18 -> Amsterdam | BQ25: =iSummary!DP18 -> 80.9 | BR25: =iSummary!DQ18 -> 80.9 | BS25: =iSummary!#REF! ->  | BT25: =iSummary!#REF! ->  | BU25: =iSummary!#REF! ->  | BV25: =iSummary!#REF! -> 
B26: =iSummary!Q19 -> 1 | C26: =IF(B26=0,0,IF(G26<=uxb_works!$B$122,1,IF(G26<=uxb_works!$B$121,2,IF(G26<=uxb_works!$B$120,3,4)))) -> 4 | E26: =iSummary!R19 -> =11 | F26: =iSummary!S19 -> New York | G26: =IF(ISNUMBER(iSummary!T19),ROUND(iSummary!T19,1),"") -> 77.8 | H26: =iSummary!W19 -> = | I26: =iSummary!X19 ->  | J26: =IF(iSummary!Y19=0,"",iSummary!Y19) ->  | K26: =iSummary!Z19 -> 1 | M26: =iSummary!AK19 -> 1 | N26: =IF(M26=0,0,IF(R26<=uxb_works!$B$122,1,IF(R26<=uxb_works!$B$121,2,IF(R26<=uxb_works!$B$120,3,4)))) -> 4 | P26: =iSummary!AL19 -> 12 | Q26: =iSummary!AM19 -> London | R26: =iSummary!AN19 -> 76.6 | S26: =iSummary!AQ19 -> = | T26: =iSummary!AR19 ->  | U26: =iSummary!AS19 -> 0 | V26: =iSummary!AT19 -> 1 | X26: =iSummary!BE19 -> 1 | Y26: =IF(X26=0,0,IF(AC26<=uxb_works!$B$122,1,IF(AC26<=uxb_works!$B$121,2,IF(AC26<=uxb_works!$B$120,3,4)))) -> 4 | AA26: =iSummary!BF19 -> 12 | AB26: =iSummary!BG19 -> Abu Dhabi | AC26: =iSummary!BH19 -> 76.5 | AD26: =iSummary!BK19 -> = | AE26: =iSummary!BL19 ->  | AF26: =iSummary!BM19 -> 0 | AG26: =iSummary!BN19 -> 1 | AI26: =iSummary!BY19 -> 1 | AJ26: =IF(AI26=0,0,IF(AN26<=uxb_works!$B$122,1,IF(AN26<=uxb_works!$B$121,2,IF(AN26<=uxb_works!$B$120,3,4)))) -> 4 | AL26: =iSummary!BZ19 -> =12 | AM26: =iSummary!CA19 -> Wellington | AN26: =iSummary!CB19 -> 84.2 | AO26: =iSummary!CE19 -> = | AP26: =iSummary!CF19 ->  | AQ26: =iSummary!CG19 -> 0 | AR26: =iSummary!CH19 -> 1 | AT26: =iSummary!CS19 -> 1 | AU26: =IF(AT26=0,0,IF(AY26<=uxb_works!$B$122,1,IF(AY26<=uxb_works!$B$121,2,IF(AY26<=uxb_works!$B$120,3,4)))) -> 4 | AW26: =iSummary!CT19 -> 12 | AX26: =iSummary!CU19 -> Barcelona | AY26: =iSummary!CV19 -> 75.8 | AZ26: =iSummary!CY19 -> = | BA26: =iSummary!CZ19 ->  | BB26: =iSummary!DA19 -> 0 | BC26: =iSummary!DB19 -> 1 | BD26: =iSummary!#REF! ->  | BE26: =iSummary!#REF! ->  | BF26: =iSummary!#REF! ->  | BG26: =iSummary!#REF! ->  | BI26: =iSummary!DM19 -> 1 | BJ26: =IF(BI26=0,0,IF(BN26<=uxb_works!$B$122,1,IF(BN26<=uxb_works!$B$121,2,IF(BN26<=uxb_works!$B$120,3,4)))) -> 4 | BL26: =iSummary!DN19 -> =11 | BM26: =iSummary!DO19 -> New York | BN26: =iSummary!DP19 -> 80.9 | BO26: =iSummary!DN19 -> =11 | BP26: =iSummary!DO19 -> New York | BQ26: =iSummary!DP19 -> 80.9 | BR26: =iSummary!DQ19 -> 80.9 | BS26: =iSummary!#REF! ->  | BT26: =iSummary!#REF! ->  | BU26: =iSummary!#REF! ->  | BV26: =iSummary!#REF! -> 
B27: =iSummary!Q20 -> 1 | C27: =IF(B27=0,0,IF(G27<=uxb_works!$B$122,1,IF(G27<=uxb_works!$B$121,2,IF(G27<=uxb_works!$B$120,3,4)))) -> 4 | E27: =iSummary!R20 -> 13 | F27: =iSummary!S20 -> Frankfurt | G27: =IF(ISNUMBER(iSummary!T20),ROUND(iSummary!T20,1),"") -> 77.7 | H27: =iSummary!W20 -> = | I27: =iSummary!X20 ->  | J27: =IF(iSummary!Y20=0,"",iSummary!Y20) ->  | K27: =iSummary!Z20 -> 1 | M27: =iSummary!AK20 -> 1 | N27: =IF(M27=0,0,IF(R27<=uxb_works!$B$122,1,IF(R27<=uxb_works!$B$121,2,IF(R27<=uxb_works!$B$120,3,4)))) -> 4 | P27: =iSummary!AL20 -> 13 | Q27: =iSummary!AM20 -> Dallas | R27: =iSummary!AN20 -> 76.5 | S27: =iSummary!AQ20 -> = | T27: =iSummary!AR20 ->  | U27: =iSummary!AS20 -> 0 | V27: =iSummary!AT20 -> 1 | X27: =iSummary!BE20 -> 1 | Y27: =IF(X27=0,0,IF(AC27<=uxb_works!$B$122,1,IF(AC27<=uxb_works!$B$121,2,IF(AC27<=uxb_works!$B$120,3,4)))) -> 4 | AA27: =iSummary!BF20 -> 13 | AB27: =iSummary!BG20 -> Dubai | AC27: =iSummary!BH20 -> 75.5 | AD27: =iSummary!BK20 -> = | AE27: =iSummary!BL20 ->  | AF27: =iSummary!BM20 -> 0 | AG27: =iSummary!BN20 -> 1 | AI27: =iSummary!BY20 -> 1 | AJ27: =IF(AI27=0,0,IF(AN27<=uxb_works!$B$122,1,IF(AN27<=uxb_works!$B$121,2,IF(AN27<=uxb_works!$B$120,3,4)))) -> 4 | AL27: =iSummary!BZ20 -> =12 | AM27: =iSummary!CA20 -> Zurich | AN27: =iSummary!CB20 -> 84.2 | AO27: =iSummary!CE20 -> = | AP27: =iSummary!CF20 ->  | AQ27: =iSummary!CG20 -> 0 | AR27: =iSummary!CH20 -> 1 | AT27: =iSummary!CS20 -> 1 | AU27: =IF(AT27=0,0,IF(AY27<=uxb_works!$B$122,1,IF(AY27<=uxb_works!$B$121,2,IF(AY27<=uxb_works!$B$120,3,4)))) -> 3 | AW27: =iSummary!CT20 -> 13 | AX27: =iSummary!CU20 -> Singapore | AY27: =iSummary!CV20 -> 74.5 | AZ27: =iSummary!CY20 -> = | BA27: =iSummary!CZ20 ->  | BB27: =iSummary!DA20 -> 0 | BC27: =iSummary!DB20 -> 1 | BD27: =iSummary!#REF! ->  | BE27: =iSummary!#REF! ->  | BF27: =iSummary!#REF! ->  | BG27: =iSummary!#REF! ->  | BI27: =iSummary!DM20 -> 1 | BJ27: =IF(BI27=0,0,IF(BN27<=uxb_works!$B$122,1,IF(BN27<=uxb_works!$B$121,2,IF(BN27<=uxb_works!$B$120,3,4)))) -> 4 | BL27: =iSummary!DN20 -> 13 | BM27: =iSummary!DO20 -> Tokyo | BN27: =iSummary!DP20 -> 80.6 | BO27: =iSummary!DN20 -> 13 | BP27: =iSummary!DO20 -> Tokyo | BQ27: =iSummary!DP20 -> 80.6 | BR27: =iSummary!DQ20 -> 80.6 | BS27: =iSummary!#REF! ->  | BT27: =iSummary!#REF! ->  | BU27: =iSummary!#REF! ->  | BV27: =iSummary!#REF! -> 
B28: =iSummary!Q21 -> 1 | C28: =IF(B28=0,0,IF(G28<=uxb_works!$B$122,1,IF(G28<=uxb_works!$B$121,2,IF(G28<=uxb_works!$B$120,3,4)))) -> 4 | E28: =iSummary!R21 -> 14 | F28: =iSummary!S21 -> Washington DC | G28: =IF(ISNUMBER(iSummary!T21),ROUND(iSummary!T21,1),"") -> 77.4 | H28: =iSummary!W21 -> = | I28: =iSummary!X21 ->  | J28: =IF(iSummary!Y21=0,"",iSummary!Y21) ->  | K28: =iSummary!Z21 -> 1 | M28: =iSummary!AK21 -> 1 | N28: =IF(M28=0,0,IF(R28<=uxb_works!$B$122,1,IF(R28<=uxb_works!$B$121,2,IF(R28<=uxb_works!$B$120,3,4)))) -> 3 | P28: =iSummary!AL21 -> 14 | Q28: =iSummary!AM21 -> Toronto | R28: =iSummary!AN21 -> 75 | S28: =iSummary!AQ21 -> = | T28: =iSummary!AR21 ->  | U28: =iSummary!AS21 -> 0 | V28: =iSummary!AT21 -> 1 | X28: =iSummary!BE21 -> 1 | Y28: =IF(X28=0,0,IF(AC28<=uxb_works!$B$122,1,IF(AC28<=uxb_works!$B$121,2,IF(AC28<=uxb_works!$B$120,3,4)))) -> 4 | AA28: =iSummary!BF21 -> 14 | AB28: =iSummary!BG21 -> New York | AC28: =iSummary!BH21 -> 75.2 | AD28: =iSummary!BK21 -> = | AE28: =iSummary!BL21 ->  | AF28: =iSummary!BM21 -> 0 | AG28: =iSummary!BN21 -> 1 | AI28: =iSummary!BY21 -> 1 | AJ28: =IF(AI28=0,0,IF(AN28<=uxb_works!$B$122,1,IF(AN28<=uxb_works!$B$121,2,IF(AN28<=uxb_works!$B$120,3,4)))) -> 4 | AL28: =iSummary!BZ21 -> 14 | AM28: =iSummary!CA21 -> Frankfurt | AN28: =iSummary!CB21 -> 84.1 | AO28: =iSummary!CE21 -> = | AP28: =iSummary!CF21 ->  | AQ28: =iSummary!CG21 -> 0 | AR28: =iSummary!CH21 -> 1 | AT28: =iSummary!CS21 -> 1 | AU28: =IF(AT28=0,0,IF(AY28<=uxb_works!$B$122,1,IF(AY28<=uxb_works!$B$121,2,IF(AY28<=uxb_works!$B$120,3,4)))) -> 3 | AW28: =iSummary!CT21 -> 14 | AX28: =iSummary!CU21 -> London | AY28: =iSummary!CV21 -> 74.4 | AZ28: =iSummary!CY21 -> = | BA28: =iSummary!CZ21 ->  | BB28: =iSummary!DA21 -> 0 | BC28: =iSummary!DB21 -> 1 | BD28: =iSummary!#REF! ->  | BE28: =iSummary!#REF! ->  | BF28: =iSummary!#REF! ->  | BG28: =iSummary!#REF! ->  | BI28: =iSummary!DM21 -> 1 | BJ28: =IF(BI28=0,0,IF(BN28<=uxb_works!$B$122,1,IF(BN28<=uxb_works!$B$121,2,IF(BN28<=uxb_works!$B$120,3,4)))) -> 4 | BL28: =iSummary!DN21 -> 14 | BM28: =iSummary!DO21 -> Taipei | BN28: =iSummary!DP21 -> 80.3 | BO28: =iSummary!DN21 -> 14 | BP28: =iSummary!DO21 -> Taipei | BQ28: =iSummary!DP21 -> 80.3 | BR28: =iSummary!DQ21 -> 80.3 | BS28: =iSummary!#REF! ->  | BT28: =iSummary!#REF! ->  | BU28: =iSummary!#REF! ->  | BV28: =iSummary!#REF! -> 
B29: =iSummary!Q22 -> 1 | C29: =IF(B29=0,0,IF(G29<=uxb_works!$B$122,1,IF(G29<=uxb_works!$B$121,2,IF(G29<=uxb_works!$B$120,3,4)))) -> 4 | E29: =iSummary!R22 -> =15 | F29: =iSummary!S22 -> London | G29: =IF(ISNUMBER(iSummary!T22),ROUND(iSummary!T22,1),"") -> 77.2 | H29: =iSummary!W22 -> = | I29: =iSummary!X22 ->  | J29: =IF(iSummary!Y22=0,"",iSummary!Y22) ->  | K29: =iSummary!Z22 -> 1 | M29: =iSummary!AK22 -> 1 | N29: =IF(M29=0,0,IF(R29<=uxb_works!$B$122,1,IF(R29<=uxb_works!$B$121,2,IF(R29<=uxb_works!$B$120,3,4)))) -> 3 | P29: =iSummary!AL22 -> 15 | Q29: =iSummary!AM22 -> Zurich | R29: =iSummary!AN22 -> 74.8 | S29: =iSummary!AQ22 -> = | T29: =iSummary!AR22 ->  | U29: =iSummary!AS22 -> 0 | V29: =iSummary!AT22 -> 1 | X29: =iSummary!BE22 -> 1 | Y29: =IF(X29=0,0,IF(AC29<=uxb_works!$B$122,1,IF(AC29<=uxb_works!$B$121,2,IF(AC29<=uxb_works!$B$120,3,4)))) -> 3 | AA29: =iSummary!BF22 -> =15 | AB29: =iSummary!BG22 -> Chicago | AC29: =iSummary!BH22 -> 74.8 | AD29: =iSummary!BK22 -> = | AE29: =iSummary!BL22 ->  | AF29: =iSummary!BM22 -> 0 | AG29: =iSummary!BN22 -> 1 | AI29: =iSummary!BY22 -> 1 | AJ29: =IF(AI29=0,0,IF(AN29<=uxb_works!$B$122,1,IF(AN29<=uxb_works!$B$121,2,IF(AN29<=uxb_works!$B$120,3,4)))) -> 4 | AL29: =iSummary!BZ22 -> =15 | AM29: =iSummary!CA22 -> Madrid | AN29: =iSummary!CB22 -> 84 | AO29: =iSummary!CE22 -> = | AP29: =iSummary!CF22 ->  | AQ29: =iSummary!CG22 -> 0 | AR29: =iSummary!CH22 -> 1 | AT29: =iSummary!CS22 -> 1 | AU29: =IF(AT29=0,0,IF(AY29<=uxb_works!$B$122,1,IF(AY29<=uxb_works!$B$121,2,IF(AY29<=uxb_works!$B$120,3,4)))) -> 3 | AW29: =iSummary!CT22 -> 15 | AX29: =iSummary!CU22 -> Zurich | AY29: =iSummary!CV22 -> 73.4 | AZ29: =iSummary!CY22 -> = | BA29: =iSummary!CZ22 ->  | BB29: =iSummary!DA22 -> 0 | BC29: =iSummary!DB22 -> 1 | BD29: =iSummary!#REF! ->  | BE29: =iSummary!#REF! ->  | BF29: =iSummary!#REF! ->  | BG29: =iSummary!#REF! ->  | BI29: =iSummary!DM22 -> 1 | BJ29: =IF(BI29=0,0,IF(BN29<=uxb_works!$B$122,1,IF(BN29<=uxb_works!$B$121,2,IF(BN29<=uxb_works!$B$120,3,4)))) -> 4 | BL29: =iSummary!DN22 -> 15 | BM29: =iSummary!DO22 -> Quito | BN29: =iSummary!DP22 -> 80.1 | BO29: =iSummary!DN22 -> 15 | BP29: =iSummary!DO22 -> Quito | BQ29: =iSummary!DP22 -> 80.1 | BR29: =iSummary!DQ22 -> 80.1 | BS29: =iSummary!#REF! ->  | BT29: =iSummary!#REF! ->  | BU29: =iSummary!#REF! ->  | BV29: =iSummary!#REF! -> 
B30: =iSummary!Q23 -> 1 | C30: =IF(B30=0,0,IF(G30<=uxb_works!$B$122,1,IF(G30<=uxb_works!$B$121,2,IF(G30<=uxb_works!$B$120,3,4)))) -> 4 | E30: =iSummary!R23 -> =15 | F30: =iSummary!S23 -> San Francisco | G30: =IF(ISNUMBER(iSummary!T23),ROUND(iSummary!T23,1),"") -> 77.2 | H30: =iSummary!W23 -> = | I30: =iSummary!X23 ->  | J30: =IF(iSummary!Y23=0,"",iSummary!Y23) ->  | K30: =iSummary!Z23 -> 1 | M30: =iSummary!AK23 -> 1 | N30: =IF(M30=0,0,IF(R30<=uxb_works!$B$122,1,IF(R30<=uxb_works!$B$121,2,IF(R30<=uxb_works!$B$120,3,4)))) -> 3 | P30: =iSummary!AL23 -> =16 | Q30: =iSummary!AM23 -> Barcelona | R30: =iSummary!AN23 -> 72.9 | S30: =iSummary!AQ23 -> = | T30: =iSummary!AR23 ->  | U30: =iSummary!AS23 -> 0 | V30: =iSummary!AT23 -> 1 | X30: =iSummary!BE23 -> 1 | Y30: =IF(X30=0,0,IF(AC30<=uxb_works!$B$122,1,IF(AC30<=uxb_works!$B$121,2,IF(AC30<=uxb_works!$B$120,3,4)))) -> 3 | AA30: =iSummary!BF23 -> =15 | AB30: =iSummary!BG23 -> Los Angeles | AC30: =iSummary!BH23 -> 74.8 | AD30: =iSummary!BK23 -> = | AE30: =iSummary!BL23 ->  | AF30: =iSummary!BM23 -> 0 | AG30: =iSummary!BN23 -> 1 | AI30: =iSummary!BY23 -> 1 | AJ30: =IF(AI30=0,0,IF(AN30<=uxb_works!$B$122,1,IF(AN30<=uxb_works!$B$121,2,IF(AN30<=uxb_works!$B$120,3,4)))) -> 4 | AL30: =iSummary!BZ23 -> =15 | AM30: =iSummary!CA23 -> Melbourne | AN30: =iSummary!CB23 -> 84 | AO30: =iSummary!CE23 -> = | AP30: =iSummary!CF23 ->  | AQ30: =iSummary!CG23 -> 0 | AR30: =iSummary!CH23 -> 1 | AT30: =iSummary!CS23 -> 1 | AU30: =IF(AT30=0,0,IF(AY30<=uxb_works!$B$122,1,IF(AY30<=uxb_works!$B$121,2,IF(AY30<=uxb_works!$B$120,3,4)))) -> 3 | AW30: =iSummary!CT23 -> 16 | AX30: =iSummary!CU23 -> Tokyo | AY30: =iSummary!CV23 -> 73.3 | AZ30: =iSummary!CY23 -> = | BA30: =iSummary!CZ23 ->  | BB30: =iSummary!DA23 -> 0 | BC30: =iSummary!DB23 -> 1 | BD30: =iSummary!#REF! ->  | BE30: =iSummary!#REF! ->  | BF30: =iSummary!#REF! ->  | BG30: =iSummary!#REF! ->  | BI30: =iSummary!DM23 -> 1 | BJ30: =IF(BI30=0,0,IF(BN30<=uxb_works!$B$122,1,IF(BN30<=uxb_works!$B$121,2,IF(BN30<=uxb_works!$B$120,3,4)))) -> 4 | BL30: =iSummary!DN23 -> 16 | BM30: =iSummary!DO23 -> Sydney | BN30: =iSummary!DP23 -> 79 | BO30: =iSummary!DN23 -> 16 | BP30: =iSummary!DO23 -> Sydney | BQ30: =iSummary!DP23 -> 79 | BR30: =iSummary!DQ23 -> 79 | BS30: =iSummary!#REF! ->  | BT30: =iSummary!#REF! ->  | BU30: =iSummary!#REF! ->  | BV30: =iSummary!#REF! -> 
B31: =iSummary!Q24 -> 1 | C31: =IF(B31=0,0,IF(G31<=uxb_works!$B$122,1,IF(G31<=uxb_works!$B$121,2,IF(G31<=uxb_works!$B$120,3,4)))) -> 4 | E31: =iSummary!R24 -> 17 | F31: =iSummary!S24 -> Osaka | G31: =IF(ISNUMBER(iSummary!T24),ROUND(iSummary!T24,1),"") -> 76.7 | H31: =iSummary!W24 -> = | I31: =iSummary!X24 ->  | J31: =IF(iSummary!Y24=0,"",iSummary!Y24) ->  | K31: =iSummary!Z24 -> 1 | M31: =iSummary!AK24 -> 1 | N31: =IF(M31=0,0,IF(R31<=uxb_works!$B$122,1,IF(R31<=uxb_works!$B$121,2,IF(R31<=uxb_works!$B$120,3,4)))) -> 3 | P31: =iSummary!AL24 -> =16 | Q31: =iSummary!AM24 -> Madrid | R31: =iSummary!AN24 -> 72.9 | S31: =iSummary!AQ24 -> = | T31: =iSummary!AR24 ->  | U31: =iSummary!AS24 -> 0 | V31: =iSummary!AT24 -> 1 | X31: =iSummary!BE24 -> 1 | Y31: =IF(X31=0,0,IF(AC31<=uxb_works!$B$122,1,IF(AC31<=uxb_works!$B$121,2,IF(AC31<=uxb_works!$B$120,3,4)))) -> 3 | AA31: =iSummary!BF24 -> 17 | AB31: =iSummary!BG24 -> Dallas | AC31: =iSummary!BH24 -> 74.6 | AD31: =iSummary!BK24 -> = | AE31: =iSummary!BL24 ->  | AF31: =iSummary!BM24 -> 0 | AG31: =iSummary!BN24 -> 1 | AI31: =iSummary!BY24 -> 1 | AJ31: =IF(AI31=0,0,IF(AN31<=uxb_works!$B$122,1,IF(AN31<=uxb_works!$B$121,2,IF(AN31<=uxb_works!$B$120,3,4)))) -> 4 | AL31: =iSummary!BZ24 -> 17 | AM31: =iSummary!CA24 -> Barcelona | AN31: =iSummary!CB24 -> 83.7 | AO31: =iSummary!CE24 -> = | AP31: =iSummary!CF24 ->  | AQ31: =iSummary!CG24 -> 0 | AR31: =iSummary!CH24 -> 1 | AT31: =iSummary!CS24 -> 1 | AU31: =IF(AT31=0,0,IF(AY31<=uxb_works!$B$122,1,IF(AY31<=uxb_works!$B$121,2,IF(AY31<=uxb_works!$B$120,3,4)))) -> 3 | AW31: =iSummary!CT24 -> 17 | AX31: =iSummary!CU24 -> Osaka | AY31: =iSummary!CV24 -> 73.2 | AZ31: =iSummary!CY24 -> = | BA31: =iSummary!CZ24 ->  | BB31: =iSummary!DA24 -> 0 | BC31: =iSummary!DB24 -> 1 | BD31: =iSummary!#REF! ->  | BE31: =iSummary!#REF! ->  | BF31: =iSummary!#REF! ->  | BG31: =iSummary!#REF! ->  | BI31: =iSummary!DM24 -> 1 | BJ31: =IF(BI31=0,0,IF(BN31<=uxb_works!$B$122,1,IF(BN31<=uxb_works!$B$121,2,IF(BN31<=uxb_works!$B$120,3,4)))) -> 4 | BL31: =iSummary!DN24 -> 17 | BM31: =iSummary!DO24 -> Buenos Aires | BN31: =iSummary!DP24 -> 78.8 | BO31: =iSummary!DN24 -> 17 | BP31: =iSummary!DO24 -> Buenos Aires | BQ31: =iSummary!DP24 -> 78.8 | BR31: =iSummary!DQ24 -> 78.8 | BS31: =iSummary!#REF! ->  | BT31: =iSummary!#REF! ->  | BU31: =iSummary!#REF! ->  | BV31: =iSummary!#REF! -> 
B32: =iSummary!Q25 -> 1 | C32: =IF(B32=0,0,IF(G32<=uxb_works!$B$122,1,IF(G32<=uxb_works!$B$121,2,IF(G32<=uxb_works!$B$120,3,4)))) -> 4 | E32: =iSummary!R25 -> 18 | F32: =iSummary!S25 -> Los Angeles | G32: =IF(ISNUMBER(iSummary!T25),ROUND(iSummary!T25,1),"") -> 76.5 | H32: =iSummary!W25 -> = | I32: =iSummary!X25 ->  | J32: =IF(iSummary!Y25=0,"",iSummary!Y25) ->  | K32: =iSummary!Z25 -> 1 | M32: =iSummary!AK25 -> 1 | N32: =IF(M32=0,0,IF(R32<=uxb_works!$B$122,1,IF(R32<=uxb_works!$B$121,2,IF(R32<=uxb_works!$B$120,3,4)))) -> 3 | P32: =iSummary!AL25 -> 18 | Q32: =iSummary!AM25 -> Stockholm | R32: =iSummary!AN25 -> 72.6 | S32: =iSummary!AQ25 -> = | T32: =iSummary!AR25 ->  | U32: =iSummary!AS25 -> 0 | V32: =iSummary!AT25 -> 1 | X32: =iSummary!BE25 -> 1 | Y32: =IF(X32=0,0,IF(AC32<=uxb_works!$B$122,1,IF(AC32<=uxb_works!$B$121,2,IF(AC32<=uxb_works!$B$120,3,4)))) -> 3 | AA32: =iSummary!BF25 -> 18 | AB32: =iSummary!BG25 -> Washington DC | AC32: =iSummary!BH25 -> 74 | AD32: =iSummary!BK25 -> = | AE32: =iSummary!BL25 ->  | AF32: =iSummary!BM25 -> 0 | AG32: =iSummary!BN25 -> 1 | AI32: =iSummary!BY25 -> 1 | AJ32: =IF(AI32=0,0,IF(AN32<=uxb_works!$B$122,1,IF(AN32<=uxb_works!$B$121,2,IF(AN32<=uxb_works!$B$120,3,4)))) -> 4 | AL32: =iSummary!BZ25 -> 18 | AM32: =iSummary!CA25 -> San Francisco | AN32: =iSummary!CB25 -> 83.6 | AO32: =iSummary!CE25 -> = | AP32: =iSummary!CF25 ->  | AQ32: =iSummary!CG25 -> 0 | AR32: =iSummary!CH25 -> 1 | AT32: =iSummary!CS25 -> 1 | AU32: =IF(AT32=0,0,IF(AY32<=uxb_works!$B$122,1,IF(AY32<=uxb_works!$B$121,2,IF(AY32<=uxb_works!$B$120,3,4)))) -> 3 | AW32: =iSummary!CT25 -> 18 | AX32: =iSummary!CU25 -> Melbourne | AY32: =iSummary!CV25 -> 73 | AZ32: =iSummary!CY25 -> = | BA32: =iSummary!CZ25 ->  | BB32: =iSummary!DA25 -> 0 | BC32: =iSummary!DB25 -> 1 | BD32: =iSummary!#REF! ->  | BE32: =iSummary!#REF! ->  | BF32: =iSummary!#REF! ->  | BG32: =iSummary!#REF! ->  | BI32: =iSummary!DM25 -> 1 | BJ32: =IF(BI32=0,0,IF(BN32<=uxb_works!$B$122,1,IF(BN32<=uxb_works!$B$121,2,IF(BN32<=uxb_works!$B$120,3,4)))) -> 4 | BL32: =iSummary!DN25 -> 18 | BM32: =iSummary!DO25 -> Barcelona | BN32: =iSummary!DP25 -> 78.4 | BO32: =iSummary!DN25 -> 18 | BP32: =iSummary!DO25 -> Barcelona | BQ32: =iSummary!DP25 -> 78.4 | BR32: =iSummary!DQ25 -> 78.4 | BS32: =iSummary!#REF! ->  | BT32: =iSummary!#REF! ->  | BU32: =iSummary!#REF! ->  | BV32: =iSummary!#REF! -> 
B33: =iSummary!Q26 -> 1 | C33: =IF(B33=0,0,IF(G33<=uxb_works!$B$122,1,IF(G33<=uxb_works!$B$121,2,IF(G33<=uxb_works!$B$120,3,4)))) -> 4 | E33: =iSummary!R26 -> 19 | F33: =iSummary!S26 -> Zurich | G33: =IF(ISNUMBER(iSummary!T26),ROUND(iSummary!T26,1),"") -> 76.3 | H33: =iSummary!W26 -> = | I33: =iSummary!X26 ->  | J33: =IF(iSummary!Y26=0,"",iSummary!Y26) ->  | K33: =iSummary!Z26 -> 1 | M33: =iSummary!AK26 -> 1 | N33: =IF(M33=0,0,IF(R33<=uxb_works!$B$122,1,IF(R33<=uxb_works!$B$121,2,IF(R33<=uxb_works!$B$120,3,4)))) -> 3 | P33: =iSummary!AL26 -> 19 | Q33: =iSummary!AM26 -> Washington DC | R33: =iSummary!AN26 -> 72.1 | S33: =iSummary!AQ26 -> = | T33: =iSummary!AR26 ->  | U33: =iSummary!AS26 -> 0 | V33: =iSummary!AT26 -> 1 | X33: =iSummary!BE26 -> 1 | Y33: =IF(X33=0,0,IF(AC33<=uxb_works!$B$122,1,IF(AC33<=uxb_works!$B$121,2,IF(AC33<=uxb_works!$B$120,3,4)))) -> 3 | AA33: =iSummary!BF26 -> =19 | AB33: =iSummary!BG26 -> Beijing | AC33: =iSummary!BH26 -> 73.6 | AD33: =iSummary!BK26 -> = | AE33: =iSummary!BL26 ->  | AF33: =iSummary!BM26 -> 0 | AG33: =iSummary!BN26 -> 1 | AI33: =iSummary!BY26 -> 1 | AJ33: =IF(AI33=0,0,IF(AN33<=uxb_works!$B$122,1,IF(AN33<=uxb_works!$B$121,2,IF(AN33<=uxb_works!$B$120,3,4)))) -> 4 | AL33: =iSummary!BZ26 -> 19 | AM33: =iSummary!CA26 -> Amsterdam | AN33: =iSummary!CB26 -> 83.5 | AO33: =iSummary!CE26 -> = | AP33: =iSummary!CF26 ->  | AQ33: =iSummary!CG26 -> 0 | AR33: =iSummary!CH26 -> 1 | AT33: =iSummary!CS26 -> 1 | AU33: =IF(AT33=0,0,IF(AY33<=uxb_works!$B$122,1,IF(AY33<=uxb_works!$B$121,2,IF(AY33<=uxb_works!$B$120,3,4)))) -> 3 | AW33: =iSummary!CT26 -> 19 | AX33: =iSummary!CU26 -> Taipei | AY33: =iSummary!CV26 -> 70.9 | AZ33: =iSummary!CY26 -> = | BA33: =iSummary!CZ26 ->  | BB33: =iSummary!DA26 -> 0 | BC33: =iSummary!DB26 -> 1 | BD33: =iSummary!#REF! ->  | BE33: =iSummary!#REF! ->  | BF33: =iSummary!#REF! ->  | BG33: =iSummary!#REF! ->  | BI33: =iSummary!DM26 -> 1 | BJ33: =IF(BI33=0,0,IF(BN33<=uxb_works!$B$122,1,IF(BN33<=uxb_works!$B$121,2,IF(BN33<=uxb_works!$B$120,3,4)))) -> 4 | BL33: =iSummary!DN26 -> 19 | BM33: =iSummary!DO26 -> San Francisco | BN33: =iSummary!DP26 -> 78.3 | BO33: =iSummary!DN26 -> 19 | BP33: =iSummary!DO26 -> San Francisco | BQ33: =iSummary!DP26 -> 78.3 | BR33: =iSummary!DQ26 -> 78.3 | BS33: =iSummary!#REF! ->  | BT33: =iSummary!#REF! ->  | BU33: =iSummary!#REF! ->  | BV33: =iSummary!#REF! -> 
B34: =iSummary!Q27 -> 1 | C34: =IF(B34=0,0,IF(G34<=uxb_works!$B$122,1,IF(G34<=uxb_works!$B$121,2,IF(G34<=uxb_works!$B$120,3,4)))) -> 3 | E34: =iSummary!R27 -> 20 | F34: =iSummary!S27 -> Chicago | G34: =IF(ISNUMBER(iSummary!T27),ROUND(iSummary!T27,1),"") -> 75 | H34: =iSummary!W27 -> = | I34: =iSummary!X27 ->  | J34: =IF(iSummary!Y27=0,"",iSummary!Y27) ->  | K34: =iSummary!Z27 -> 1 | M34: =iSummary!AK27 -> 1 | N34: =IF(M34=0,0,IF(R34<=uxb_works!$B$122,1,IF(R34<=uxb_works!$B$121,2,IF(R34<=uxb_works!$B$120,3,4)))) -> 3 | P34: =iSummary!AL27 -> 20 | Q34: =iSummary!AM27 -> Tokyo | R34: =iSummary!AN27 -> 71 | S34: =iSummary!AQ27 -> = | T34: =iSummary!AR27 ->  | U34: =iSummary!AS27 -> 0 | V34: =iSummary!AT27 -> 1 | X34: =iSummary!BE27 -> 1 | Y34: =IF(X34=0,0,IF(AC34<=uxb_works!$B$122,1,IF(AC34<=uxb_works!$B$121,2,IF(AC34<=uxb_works!$B$120,3,4)))) -> 3 | AA34: =iSummary!BF27 -> =19 | AB34: =iSummary!BG27 -> Shanghai | AC34: =iSummary!BH27 -> 73.6 | AD34: =iSummary!BK27 -> = | AE34: =iSummary!BL27 ->  | AF34: =iSummary!BM27 -> 0 | AG34: =iSummary!BN27 -> 1 | AI34: =iSummary!BY27 -> 1 | AJ34: =IF(AI34=0,0,IF(AN34<=uxb_works!$B$122,1,IF(AN34<=uxb_works!$B$121,2,IF(AN34<=uxb_works!$B$120,3,4)))) -> 4 | AL34: =iSummary!BZ27 -> 20 | AM34: =iSummary!CA27 -> Seoul | AN34: =iSummary!CB27 -> 83 | AO34: =iSummary!CE27 -> = | AP34: =iSummary!CF27 ->  | AQ34: =iSummary!CG27 -> 0 | AR34: =iSummary!CH27 -> 1 | AT34: =iSummary!CS27 -> 1 | AU34: =IF(AT34=0,0,IF(AY34<=uxb_works!$B$122,1,IF(AY34<=uxb_works!$B$121,2,IF(AY34<=uxb_works!$B$120,3,4)))) -> 3 | AW34: =iSummary!CT27 -> 20 | AX34: =iSummary!CU27 -> Santiago | AY34: =iSummary!CV27 -> 70.7 | AZ34: =iSummary!CY27 -> = | BA34: =iSummary!CZ27 ->  | BB34: =iSummary!DA27 -> 0 | BC34: =iSummary!DB27 -> 1 | BD34: =iSummary!#REF! ->  | BE34: =iSummary!#REF! ->  | BF34: =iSummary!#REF! ->  | BG34: =iSummary!#REF! ->  | BI34: =iSummary!DM27 -> 1 | BJ34: =IF(BI34=0,0,IF(BN34<=uxb_works!$B$122,1,IF(BN34<=uxb_works!$B$121,2,IF(BN34<=uxb_works!$B$120,3,4)))) -> 4 | BL34: =iSummary!DN27 -> 20 | BM34: =iSummary!DO27 -> Rome | BN34: =iSummary!DP27 -> 78 | BO34: =iSummary!DN27 -> 20 | BP34: =iSummary!DO27 -> Rome | BQ34: =iSummary!DP27 -> 78 | BR34: =iSummary!DQ27 -> 78 | BS34: =iSummary!#REF! ->  | BT34: =iSummary!#REF! ->  | BU34: =iSummary!#REF! ->  | BV34: =iSummary!#REF! -> 
B35: =iSummary!Q28 -> 1 | C35: =IF(B35=0,0,IF(G35<=uxb_works!$B$122,1,IF(G35<=uxb_works!$B$121,2,IF(G35<=uxb_works!$B$120,3,4)))) -> 3 | E35: =iSummary!R28 -> 21 | F35: =iSummary!S28 -> Madrid | G35: =IF(ISNUMBER(iSummary!T28),ROUND(iSummary!T28,1),"") -> 74.7 | H35: =iSummary!W28 -> = | I35: =iSummary!X28 ->  | J35: =IF(iSummary!Y28=0,"",iSummary!Y28) ->  | K35: =iSummary!Z28 -> 1 | M35: =iSummary!AK28 -> 1 | N35: =IF(M35=0,0,IF(R35<=uxb_works!$B$122,1,IF(R35<=uxb_works!$B$121,2,IF(R35<=uxb_works!$B$120,3,4)))) -> 3 | P35: =iSummary!AL28 -> 21 | Q35: =iSummary!AM28 -> Hong Kong | R35: =iSummary!AN28 -> 70.1 | S35: =iSummary!AQ28 -> = | T35: =iSummary!AR28 ->  | U35: =iSummary!AS28 -> 0 | V35: =iSummary!AT28 -> 1 | X35: =iSummary!BE28 -> 1 | Y35: =IF(X35=0,0,IF(AC35<=uxb_works!$B$122,1,IF(AC35<=uxb_works!$B$121,2,IF(AC35<=uxb_works!$B$120,3,4)))) -> 3 | AA35: =iSummary!BF28 -> 21 | AB35: =iSummary!BG28 -> Taipei | AC35: =iSummary!BH28 -> 73.5 | AD35: =iSummary!BK28 -> = | AE35: =iSummary!BL28 ->  | AF35: =iSummary!BM28 -> 0 | AG35: =iSummary!BN28 -> 1 | AI35: =iSummary!BY28 -> 1 | AJ35: =IF(AI35=0,0,IF(AN35<=uxb_works!$B$122,1,IF(AN35<=uxb_works!$B$121,2,IF(AN35<=uxb_works!$B$120,3,4)))) -> 4 | AL35: =iSummary!BZ28 -> =21 | AM35: =iSummary!CA28 -> Dallas | AN35: =iSummary!CB28 -> 82.9 | AO35: =iSummary!CE28 -> = | AP35: =iSummary!CF28 ->  | AQ35: =iSummary!CG28 -> 0 | AR35: =iSummary!CH28 -> 1 | AT35: =iSummary!CS28 -> 1 | AU35: =IF(AT35=0,0,IF(AY35<=uxb_works!$B$122,1,IF(AY35<=uxb_works!$B$121,2,IF(AY35<=uxb_works!$B$120,3,4)))) -> 3 | AW35: =iSummary!CT28 -> 21 | AX35: =iSummary!CU28 -> Hong Kong | AY35: =iSummary!CV28 -> 70.4 | AZ35: =iSummary!CY28 -> = | BA35: =iSummary!CZ28 ->  | BB35: =iSummary!DA28 -> 0 | BC35: =iSummary!DB28 -> 1 | BD35: =iSummary!#REF! ->  | BE35: =iSummary!#REF! ->  | BF35: =iSummary!#REF! ->  | BG35: =iSummary!#REF! ->  | BI35: =iSummary!DM28 -> 1 | BJ35: =IF(BI35=0,0,IF(BN35<=uxb_works!$B$122,1,IF(BN35<=uxb_works!$B$121,2,IF(BN35<=uxb_works!$B$120,3,4)))) -> 4 | BL35: =iSummary!DN28 -> 21 | BM35: =iSummary!DO28 -> Dallas | BN35: =iSummary!DP28 -> 77.2 | BO35: =iSummary!DN28 -> 21 | BP35: =iSummary!DO28 -> Dallas | BQ35: =iSummary!DP28 -> 77.2 | BR35: =iSummary!DQ28 -> 77.2 | BS35: =iSummary!#REF! ->  | BT35: =iSummary!#REF! ->  | BU35: =iSummary!#REF! ->  | BV35: =iSummary!#REF! -> 
B36: =iSummary!Q29 -> 1 | C36: =IF(B36=0,0,IF(G36<=uxb_works!$B$122,1,IF(G36<=uxb_works!$B$121,2,IF(G36<=uxb_works!$B$120,3,4)))) -> 3 | E36: =iSummary!R29 -> 22 | F36: =iSummary!S29 -> Dallas | G36: =IF(ISNUMBER(iSummary!T29),ROUND(iSummary!T29,1),"") -> 74.5 | H36: =iSummary!W29 -> = | I36: =iSummary!X29 ->  | J36: =IF(iSummary!Y29=0,"",iSummary!Y29) ->  | K36: =iSummary!Z29 -> 1 | M36: =iSummary!AK29 -> 1 | N36: =IF(M36=0,0,IF(R36<=uxb_works!$B$122,1,IF(R36<=uxb_works!$B$121,2,IF(R36<=uxb_works!$B$120,3,4)))) -> 3 | P36: =iSummary!AL29 -> 22 | Q36: =iSummary!AM29 -> Paris | R36: =iSummary!AN29 -> 69.4 | S36: =iSummary!AQ29 -> = | T36: =iSummary!AR29 ->  | U36: =iSummary!AS29 -> 0 | V36: =iSummary!AT29 -> 1 | X36: =iSummary!BE29 -> 1 | Y36: =IF(X36=0,0,IF(AC36<=uxb_works!$B$122,1,IF(AC36<=uxb_works!$B$121,2,IF(AC36<=uxb_works!$B$120,3,4)))) -> 3 | AA36: =iSummary!BF29 -> 22 | AB36: =iSummary!BG29 -> Bangkok | AC36: =iSummary!BH29 -> 73.1 | AD36: =iSummary!BK29 -> = | AE36: =iSummary!BL29 ->  | AF36: =iSummary!BM29 -> 0 | AG36: =iSummary!BN29 -> 1 | AI36: =iSummary!BY29 -> 1 | AJ36: =IF(AI36=0,0,IF(AN36<=uxb_works!$B$122,1,IF(AN36<=uxb_works!$B$121,2,IF(AN36<=uxb_works!$B$120,3,4)))) -> 4 | AL36: =iSummary!BZ29 -> =21 | AM36: =iSummary!CA29 -> Los Angeles | AN36: =iSummary!CB29 -> 82.9 | AO36: =iSummary!CE29 -> = | AP36: =iSummary!CF29 ->  | AQ36: =iSummary!CG29 -> 0 | AR36: =iSummary!CH29 -> 1 | AT36: =iSummary!CS29 -> 1 | AU36: =IF(AT36=0,0,IF(AY36<=uxb_works!$B$122,1,IF(AY36<=uxb_works!$B$121,2,IF(AY36<=uxb_works!$B$120,3,4)))) -> 3 | AW36: =iSummary!CT29 -> 22 | AX36: =iSummary!CU29 -> Seoul | AY36: =iSummary!CV29 -> 69.9 | AZ36: =iSummary!CY29 -> = | BA36: =iSummary!CZ29 ->  | BB36: =iSummary!DA29 -> 0 | BC36: =iSummary!DB29 -> 1 | BD36: =iSummary!#REF! ->  | BE36: =iSummary!#REF! ->  | BF36: =iSummary!#REF! ->  | BG36: =iSummary!#REF! ->  | BI36: =iSummary!DM29 -> 1 | BJ36: =IF(BI36=0,0,IF(BN36<=uxb_works!$B$122,1,IF(BN36<=uxb_works!$B$121,2,IF(BN36<=uxb_works!$B$120,3,4)))) -> 4 | BL36: =iSummary!DN29 -> 22 | BM36: =iSummary!DO29 -> Osaka | BN36: =iSummary!DP29 -> 77 | BO36: =iSummary!DN29 -> 22 | BP36: =iSummary!DO29 -> Osaka | BQ36: =iSummary!DP29 -> 77 | BR36: =iSummary!DQ29 -> 77 | BS36: =iSummary!#REF! ->  | BT36: =iSummary!#REF! ->  | BU36: =iSummary!#REF! ->  | BV36: =iSummary!#REF! -> 
B37: =iSummary!Q30 -> 1 | C37: =IF(B37=0,0,IF(G37<=uxb_works!$B$122,1,IF(G37<=uxb_works!$B$121,2,IF(G37<=uxb_works!$B$120,3,4)))) -> 3 | E37: =iSummary!R30 -> 23 | F37: =iSummary!S30 -> Paris | G37: =IF(ISNUMBER(iSummary!T30),ROUND(iSummary!T30,1),"") -> 74.3 | H37: =iSummary!W30 -> = | I37: =iSummary!X30 ->  | J37: =IF(iSummary!Y30=0,"",iSummary!Y30) ->  | K37: =iSummary!Z30 -> 1 | M37: =iSummary!AK30 -> 1 | N37: =IF(M37=0,0,IF(R37<=uxb_works!$B$122,1,IF(R37<=uxb_works!$B$121,2,IF(R37<=uxb_works!$B$120,3,4)))) -> 3 | P37: =iSummary!AL30 -> 23 | Q37: =iSummary!AM30 -> Brussels | R37: =iSummary!AN30 -> 68.5 | S37: =iSummary!AQ30 -> = | T37: =iSummary!AR30 ->  | U37: =iSummary!AS30 -> 0 | V37: =iSummary!AT30 -> 1 | X37: =iSummary!BE30 -> 1 | Y37: =IF(X37=0,0,IF(AC37<=uxb_works!$B$122,1,IF(AC37<=uxb_works!$B$121,2,IF(AC37<=uxb_works!$B$120,3,4)))) -> 3 | AA37: =iSummary!BF30 -> 23 | AB37: =iSummary!BG30 -> Amsterdam | AC37: =iSummary!BH30 -> 72.5 | AD37: =iSummary!BK30 -> = | AE37: =iSummary!BL30 ->  | AF37: =iSummary!BM30 -> 0 | AG37: =iSummary!BN30 -> 1 | AI37: =iSummary!BY30 -> 1 | AJ37: =IF(AI37=0,0,IF(AN37<=uxb_works!$B$122,1,IF(AN37<=uxb_works!$B$121,2,IF(AN37<=uxb_works!$B$120,3,4)))) -> 4 | AL37: =iSummary!BZ30 -> 23 | AM37: =iSummary!CA30 -> London | AN37: =iSummary!CB30 -> 82.7 | AO37: =iSummary!CE30 -> = | AP37: =iSummary!CF30 ->  | AQ37: =iSummary!CG30 -> 0 | AR37: =iSummary!CH30 -> 1 | AT37: =iSummary!CS30 -> 1 | AU37: =IF(AT37=0,0,IF(AY37<=uxb_works!$B$122,1,IF(AY37<=uxb_works!$B$121,2,IF(AY37<=uxb_works!$B$120,3,4)))) -> 3 | AW37: =iSummary!CT30 -> 23 | AX37: =iSummary!CU30 -> Rome | AY37: =iSummary!CV30 -> 69.4 | AZ37: =iSummary!CY30 -> = | BA37: =iSummary!CZ30 ->  | BB37: =iSummary!DA30 -> 0 | BC37: =iSummary!DB30 -> 1 | BD37: =iSummary!#REF! ->  | BE37: =iSummary!#REF! ->  | BF37: =iSummary!#REF! ->  | BG37: =iSummary!#REF! ->  | BI37: =iSummary!DM30 -> 1 | BJ37: =IF(BI37=0,0,IF(BN37<=uxb_works!$B$122,1,IF(BN37<=uxb_works!$B$121,2,IF(BN37<=uxb_works!$B$120,3,4)))) -> 4 | BL37: =iSummary!DN30 -> 23 | BM37: =iSummary!DO30 -> Sao Paulo | BN37: =iSummary!DP30 -> 76.7 | BO37: =iSummary!DN30 -> 23 | BP37: =iSummary!DO30 -> Sao Paulo | BQ37: =iSummary!DP30 -> 76.7 | BR37: =iSummary!DQ30 -> 76.7 | BS37: =iSummary!#REF! ->  | BT37: =iSummary!#REF! ->  | BU37: =iSummary!#REF! ->  | BV37: =iSummary!#REF! -> 
B38: =iSummary!Q31 -> 1 | C38: =IF(B38=0,0,IF(G38<=uxb_works!$B$122,1,IF(G38<=uxb_works!$B$121,2,IF(G38<=uxb_works!$B$120,3,4)))) -> 3 | E38: =iSummary!R31 -> 24 | F38: =iSummary!S31 -> Taipei | G38: =IF(ISNUMBER(iSummary!T31),ROUND(iSummary!T31,1),"") -> 74 | H38: =iSummary!W31 -> = | I38: =iSummary!X31 ->  | J38: =IF(iSummary!Y31=0,"",iSummary!Y31) ->  | K38: =iSummary!Z31 -> 1 | M38: =iSummary!AK31 -> 1 | N38: =IF(M38=0,0,IF(R38<=uxb_works!$B$122,1,IF(R38<=uxb_works!$B$121,2,IF(R38<=uxb_works!$B$120,3,4)))) -> 3 | P38: =iSummary!AL31 -> =24 | Q38: =iSummary!AM31 -> Abu Dhabi | R38: =iSummary!AN31 -> 66.8 | S38: =iSummary!AQ31 -> = | T38: =iSummary!AR31 ->  | U38: =iSummary!AS31 -> 0 | V38: =iSummary!AT31 -> 1 | X38: =iSummary!BE31 -> 1 | Y38: =IF(X38=0,0,IF(AC38<=uxb_works!$B$122,1,IF(AC38<=uxb_works!$B$121,2,IF(AC38<=uxb_works!$B$120,3,4)))) -> 3 | AA38: =iSummary!BF31 -> 24 | AB38: =iSummary!BG31 -> Frankfurt | AC38: =iSummary!BH31 -> 72.3 | AD38: =iSummary!BK31 -> = | AE38: =iSummary!BL31 ->  | AF38: =iSummary!BM31 -> 0 | AG38: =iSummary!BN31 -> 1 | AI38: =iSummary!BY31 -> 1 | AJ38: =IF(AI38=0,0,IF(AN38<=uxb_works!$B$122,1,IF(AN38<=uxb_works!$B$121,2,IF(AN38<=uxb_works!$B$120,3,4)))) -> 4 | AL38: =iSummary!BZ31 -> 24 | AM38: =iSummary!CA31 -> Paris | AN38: =iSummary!CB31 -> 82.6 | AO38: =iSummary!CE31 -> = | AP38: =iSummary!CF31 ->  | AQ38: =iSummary!CG31 -> 0 | AR38: =iSummary!CH31 -> 1 | AT38: =iSummary!CS31 -> 1 | AU38: =IF(AT38=0,0,IF(AY38<=uxb_works!$B$122,1,IF(AY38<=uxb_works!$B$121,2,IF(AY38<=uxb_works!$B$120,3,4)))) -> 3 | AW38: =iSummary!CT31 -> 24 | AX38: =iSummary!CU31 -> Milan | AY38: =iSummary!CV31 -> 68.7 | AZ38: =iSummary!CY31 -> = | BA38: =iSummary!CZ31 ->  | BB38: =iSummary!DA31 -> 0 | BC38: =iSummary!DB31 -> 1 | BD38: =iSummary!#REF! ->  | BE38: =iSummary!#REF! ->  | BF38: =iSummary!#REF! ->  | BG38: =iSummary!#REF! ->  | BI38: =iSummary!DM31 -> 1 | BJ38: =IF(BI38=0,0,IF(BN38<=uxb_works!$B$122,1,IF(BN38<=uxb_works!$B$121,2,IF(BN38<=uxb_works!$B$120,3,4)))) -> 4 | BL38: =iSummary!DN31 -> 24 | BM38: =iSummary!DO31 -> Los Angeles | BN38: =iSummary!DP31 -> 76.3 | BO38: =iSummary!DN31 -> 24 | BP38: =iSummary!DO31 -> Los Angeles | BQ38: =iSummary!DP31 -> 76.3 | BR38: =iSummary!DQ31 -> 76.3 | BS38: =iSummary!#REF! ->  | BT38: =iSummary!#REF! ->  | BU38: =iSummary!#REF! ->  | BV38: =iSummary!#REF! -> 
B39: =iSummary!Q32 -> 1 | C39: =IF(B39=0,0,IF(G39<=uxb_works!$B$122,1,IF(G39<=uxb_works!$B$121,2,IF(G39<=uxb_works!$B$120,3,4)))) -> 3 | E39: =iSummary!R32 -> 25 | F39: =iSummary!S32 -> Seoul | G39: =IF(ISNUMBER(iSummary!T32),ROUND(iSummary!T32,1),"") -> 73.8 | H39: =iSummary!W32 -> = | I39: =iSummary!X32 ->  | J39: =IF(iSummary!Y32=0,"",iSummary!Y32) ->  | K39: =iSummary!Z32 -> 1 | M39: =iSummary!AK32 -> 1 | N39: =IF(M39=0,0,IF(R39<=uxb_works!$B$122,1,IF(R39<=uxb_works!$B$121,2,IF(R39<=uxb_works!$B$120,3,4)))) -> 3 | P39: =iSummary!AL32 -> =24 | Q39: =iSummary!AM32 -> Dubai | R39: =iSummary!AN32 -> 66.8 | S39: =iSummary!AQ32 -> = | T39: =iSummary!AR32 ->  | U39: =iSummary!AS32 -> 0 | V39: =iSummary!AT32 -> 1 | X39: =iSummary!BE32 -> 1 | Y39: =IF(X39=0,0,IF(AC39<=uxb_works!$B$122,1,IF(AC39<=uxb_works!$B$121,2,IF(AC39<=uxb_works!$B$120,3,4)))) -> 3 | AA39: =iSummary!BF32 -> 25 | AB39: =iSummary!BG32 -> Istanbul | AC39: =iSummary!BH32 -> 71.9 | AD39: =iSummary!BK32 -> = | AE39: =iSummary!BL32 ->  | AF39: =iSummary!BM32 -> 0 | AG39: =iSummary!BN32 -> 1 | AI39: =iSummary!BY32 -> 1 | AJ39: =IF(AI39=0,0,IF(AN39<=uxb_works!$B$122,1,IF(AN39<=uxb_works!$B$121,2,IF(AN39<=uxb_works!$B$120,3,4)))) -> 4 | AL39: =iSummary!BZ32 -> 25 | AM39: =iSummary!CA32 -> Taipei | AN39: =iSummary!CB32 -> 82.4 | AO39: =iSummary!CE32 -> = | AP39: =iSummary!CF32 ->  | AQ39: =iSummary!CG32 -> 0 | AR39: =iSummary!CH32 -> 1 | AT39: =iSummary!CS32 -> 1 | AU39: =IF(AT39=0,0,IF(AY39<=uxb_works!$B$122,1,IF(AY39<=uxb_works!$B$121,2,IF(AY39<=uxb_works!$B$120,3,4)))) -> 3 | AW39: =iSummary!CT32 -> =25 | AX39: =iSummary!CU32 -> Abu Dhabi | AY39: =iSummary!CV32 -> 67 | AZ39: =iSummary!CY32 -> = | BA39: =iSummary!CZ32 ->  | BB39: =iSummary!DA32 -> 0 | BC39: =iSummary!DB32 -> 1 | BD39: =iSummary!#REF! ->  | BE39: =iSummary!#REF! ->  | BF39: =iSummary!#REF! ->  | BG39: =iSummary!#REF! ->  | BI39: =iSummary!DM32 -> 1 | BJ39: =IF(BI39=0,0,IF(BN39<=uxb_works!$B$122,1,IF(BN39<=uxb_works!$B$121,2,IF(BN39<=uxb_works!$B$120,3,4)))) -> 4 | BL39: =iSummary!DN32 -> 25 | BM39: =iSummary!DO32 -> Melbourne | BN39: =iSummary!DP32 -> 76.1 | BO39: =iSummary!DN32 -> 25 | BP39: =iSummary!DO32 -> Melbourne | BQ39: =iSummary!DP32 -> 76.1 | BR39: =iSummary!DQ32 -> 76.1 | BS39: =iSummary!#REF! ->  | BT39: =iSummary!#REF! ->  | BU39: =iSummary!#REF! ->  | BV39: =iSummary!#REF! -> 
B40: =iSummary!Q33 -> 1 | C40: =IF(B40=0,0,IF(G40<=uxb_works!$B$122,1,IF(G40<=uxb_works!$B$121,2,IF(G40<=uxb_works!$B$120,3,4)))) -> 3 | E40: =iSummary!R33 -> 26 | F40: =iSummary!S33 -> Brussels | G40: =IF(ISNUMBER(iSummary!T33),ROUND(iSummary!T33,1),"") -> 73.6 | H40: =iSummary!W33 -> = | I40: =iSummary!X33 ->  | J40: =IF(iSummary!Y33=0,"",iSummary!Y33) ->  | K40: =iSummary!Z33 -> 1 | M40: =iSummary!AK33 -> 1 | N40: =IF(M40=0,0,IF(R40<=uxb_works!$B$122,1,IF(R40<=uxb_works!$B$121,2,IF(R40<=uxb_works!$B$120,3,4)))) -> 3 | P40: =iSummary!AL33 -> 26 | Q40: =iSummary!AM33 -> Milan | R40: =iSummary!AN33 -> 65.1 | S40: =iSummary!AQ33 -> = | T40: =iSummary!AR33 ->  | U40: =iSummary!AS33 -> 0 | V40: =iSummary!AT33 -> 1 | X40: =iSummary!BE33 -> 1 | Y40: =IF(X40=0,0,IF(AC40<=uxb_works!$B$122,1,IF(AC40<=uxb_works!$B$121,2,IF(AC40<=uxb_works!$B$120,3,4)))) -> 3 | AA40: =iSummary!BF33 -> 26 | AB40: =iSummary!BG33 -> Copenhagen | AC40: =iSummary!BH33 -> 70 | AD40: =iSummary!BK33 -> = | AE40: =iSummary!BL33 ->  | AF40: =iSummary!BM33 -> 0 | AG40: =iSummary!BN33 -> 1 | AI40: =iSummary!BY33 -> 1 | AJ40: =IF(AI40=0,0,IF(AN40<=uxb_works!$B$122,1,IF(AN40<=uxb_works!$B$121,2,IF(AN40<=uxb_works!$B$120,3,4)))) -> 4 | AL40: =iSummary!BZ33 -> 26 | AM40: =iSummary!CA33 -> Brussels | AN40: =iSummary!CB33 -> 82.3 | AO40: =iSummary!CE33 -> = | AP40: =iSummary!CF33 ->  | AQ40: =iSummary!CG33 -> 0 | AR40: =iSummary!CH33 -> 1 | AT40: =iSummary!CS33 -> 1 | AU40: =IF(AT40=0,0,IF(AY40<=uxb_works!$B$122,1,IF(AY40<=uxb_works!$B$121,2,IF(AY40<=uxb_works!$B$120,3,4)))) -> 3 | AW40: =iSummary!CT33 -> =25 | AX40: =iSummary!CU33 -> Dubai | AY40: =iSummary!CV33 -> 67 | AZ40: =iSummary!CY33 -> = | BA40: =iSummary!CZ33 ->  | BB40: =iSummary!DA33 -> 0 | BC40: =iSummary!DB33 -> 1 | BD40: =iSummary!#REF! ->  | BE40: =iSummary!#REF! ->  | BF40: =iSummary!#REF! ->  | BG40: =iSummary!#REF! ->  | BI40: =iSummary!DM33 -> 1 | BJ40: =IF(BI40=0,0,IF(BN40<=uxb_works!$B$122,1,IF(BN40<=uxb_works!$B$121,2,IF(BN40<=uxb_works!$B$120,3,4)))) -> 3 | BL40: =iSummary!DN33 -> 26 | BM40: =iSummary!DO33 -> Frankfurt | BN40: =iSummary!DP33 -> 74.9 | BO40: =iSummary!DN33 -> 26 | BP40: =iSummary!DO33 -> Frankfurt | BQ40: =iSummary!DP33 -> 74.9 | BR40: =iSummary!DQ33 -> 74.9 | BS40: =iSummary!#REF! ->  | BT40: =iSummary!#REF! ->  | BU40: =iSummary!#REF! ->  | BV40: =iSummary!#REF! -> 
B41: =iSummary!Q34 -> 1 | C41: =IF(B41=0,0,IF(G41<=uxb_works!$B$122,1,IF(G41<=uxb_works!$B$121,2,IF(G41<=uxb_works!$B$120,3,4)))) -> 3 | E41: =iSummary!R34 -> 27 | F41: =iSummary!S34 -> Milan | G41: =IF(ISNUMBER(iSummary!T34),ROUND(iSummary!T34,1),"") -> 71.3 | H41: =iSummary!W34 -> = | I41: =iSummary!X34 ->  | J41: =IF(iSummary!Y34=0,"",iSummary!Y34) ->  | K41: =iSummary!Z34 -> 1 | M41: =iSummary!AK34 -> 1 | N41: =IF(M41=0,0,IF(R41<=uxb_works!$B$122,1,IF(R41<=uxb_works!$B$121,2,IF(R41<=uxb_works!$B$120,3,4)))) -> 3 | P41: =iSummary!AL34 -> 27 | Q41: =iSummary!AM34 -> Osaka | R41: =iSummary!AN34 -> 64.8 | S41: =iSummary!AQ34 -> = | T41: =iSummary!AR34 ->  | U41: =iSummary!AS34 -> 0 | V41: =iSummary!AT34 -> 1 | X41: =iSummary!BE34 -> 1 | Y41: =IF(X41=0,0,IF(AC41<=uxb_works!$B$122,1,IF(AC41<=uxb_works!$B$121,2,IF(AC41<=uxb_works!$B$120,3,4)))) -> 3 | AA41: =iSummary!BF34 -> 27 | AB41: =iSummary!BG34 -> Kuwait city | AC41: =iSummary!BH34 -> 69.7 | AD41: =iSummary!BK34 -> = | AE41: =iSummary!BL34 ->  | AF41: =iSummary!BM34 -> 0 | AG41: =iSummary!BN34 -> 1 | AI41: =iSummary!BY34 -> 1 | AJ41: =IF(AI41=0,0,IF(AN41<=uxb_works!$B$122,1,IF(AN41<=uxb_works!$B$121,2,IF(AN41<=uxb_works!$B$120,3,4)))) -> 4 | AL41: =iSummary!BZ34 -> 27 | AM41: =iSummary!CA34 -> Shanghai | AN41: =iSummary!CB34 -> 80.3 | AO41: =iSummary!CE34 -> = | AP41: =iSummary!CF34 ->  | AQ41: =iSummary!CG34 -> 0 | AR41: =iSummary!CH34 -> 1 | AT41: =iSummary!CS34 -> 1 | AU41: =IF(AT41=0,0,IF(AY41<=uxb_works!$B$122,1,IF(AY41<=uxb_works!$B$121,2,IF(AY41<=uxb_works!$B$120,3,4)))) -> 3 | AW41: =iSummary!CT34 -> 27 | AX41: =iSummary!CU34 -> New York | AY41: =iSummary!CV34 -> 66.9 | AZ41: =iSummary!CY34 -> = | BA41: =iSummary!CZ34 ->  | BB41: =iSummary!DA34 -> 0 | BC41: =iSummary!DB34 -> 1 | BD41: =iSummary!#REF! ->  | BE41: =iSummary!#REF! ->  | BF41: =iSummary!#REF! ->  | BG41: =iSummary!#REF! ->  | BI41: =iSummary!DM34 -> 1 | BJ41: =IF(BI41=0,0,IF(BN41<=uxb_works!$B$122,1,IF(BN41<=uxb_works!$B$121,2,IF(BN41<=uxb_works!$B$120,3,4)))) -> 3 | BL41: =iSummary!DN34 -> 27 | BM41: =iSummary!DO34 -> Hong Kong | BN41: =iSummary!DP34 -> 74.8 | BO41: =iSummary!DN34 -> 27 | BP41: =iSummary!DO34 -> Hong Kong | BQ41: =iSummary!DP34 -> 74.8 | BR41: =iSummary!DQ34 -> 74.8 | BS41: =iSummary!#REF! ->  | BT41: =iSummary!#REF! ->  | BU41: =iSummary!#REF! ->  | BV41: =iSummary!#REF! -> 
B42: =iSummary!Q35 -> 1 | C42: =IF(B42=0,0,IF(G42<=uxb_works!$B$122,1,IF(G42<=uxb_works!$B$121,2,IF(G42<=uxb_works!$B$120,3,4)))) -> 3 | E42: =iSummary!R35 -> 28 | F42: =iSummary!S35 -> Lisbon | G42: =IF(ISNUMBER(iSummary!T35),ROUND(iSummary!T35,1),"") -> 70.1 | H42: =iSummary!W35 -> = | I42: =iSummary!X35 ->  | J42: =IF(iSummary!Y35=0,"",iSummary!Y35) ->  | K42: =iSummary!Z35 -> 1 | M42: =iSummary!AK35 -> 1 | N42: =IF(M42=0,0,IF(R42<=uxb_works!$B$122,1,IF(R42<=uxb_works!$B$121,2,IF(R42<=uxb_works!$B$120,3,4)))) -> 3 | P42: =iSummary!AL35 -> 28 | Q42: =iSummary!AM35 -> Lisbon | R42: =iSummary!AN35 -> 64.3 | S42: =iSummary!AQ35 -> = | T42: =iSummary!AR35 ->  | U42: =iSummary!AS35 -> 0 | V42: =iSummary!AT35 -> 1 | X42: =iSummary!BE35 -> 1 | Y42: =IF(X42=0,0,IF(AC42<=uxb_works!$B$122,1,IF(AC42<=uxb_works!$B$121,2,IF(AC42<=uxb_works!$B$120,3,4)))) -> 3 | AA42: =iSummary!BF35 -> =28 | AB42: =iSummary!BG35 -> Moscow | AC42: =iSummary!BH35 -> 68.6 | AD42: =iSummary!BK35 -> = | AE42: =iSummary!BL35 ->  | AF42: =iSummary!BM35 -> 0 | AG42: =iSummary!BN35 -> 1 | AI42: =iSummary!BY35 -> 1 | AJ42: =IF(AI42=0,0,IF(AN42<=uxb_works!$B$122,1,IF(AN42<=uxb_works!$B$121,2,IF(AN42<=uxb_works!$B$120,3,4)))) -> 4 | AL42: =iSummary!BZ35 -> 28 | AM42: =iSummary!CA35 -> Lisbon | AN42: =iSummary!CB35 -> 77.4 | AO42: =iSummary!CE35 -> = | AP42: =iSummary!CF35 ->  | AQ42: =iSummary!CG35 -> 0 | AR42: =iSummary!CH35 -> 1 | AT42: =iSummary!CS35 -> 1 | AU42: =IF(AT42=0,0,IF(AY42<=uxb_works!$B$122,1,IF(AY42<=uxb_works!$B$121,2,IF(AY42<=uxb_works!$B$120,3,4)))) -> 3 | AW42: =iSummary!CT35 -> 28 | AX42: =iSummary!CU35 -> Washington DC | AY42: =iSummary!CV35 -> 66.8 | AZ42: =iSummary!CY35 -> = | BA42: =iSummary!CZ35 ->  | BB42: =iSummary!DA35 -> 0 | BC42: =iSummary!DB35 -> 1 | BD42: =iSummary!#REF! ->  | BE42: =iSummary!#REF! ->  | BF42: =iSummary!#REF! ->  | BG42: =iSummary!#REF! ->  | BI42: =iSummary!DM35 -> 1 | BJ42: =IF(BI42=0,0,IF(BN42<=uxb_works!$B$122,1,IF(BN42<=uxb_works!$B$121,2,IF(BN42<=uxb_works!$B$120,3,4)))) -> 3 | BL42: =iSummary!DN35 -> 28 | BM42: =iSummary!DO35 -> Lisbon | BN42: =iSummary!DP35 -> 74.3 | BO42: =iSummary!DN35 -> 28 | BP42: =iSummary!DO35 -> Lisbon | BQ42: =iSummary!DP35 -> 74.3 | BR42: =iSummary!DQ35 -> 74.3 | BS42: =iSummary!#REF! ->  | BT42: =iSummary!#REF! ->  | BU42: =iSummary!#REF! ->  | BV42: =iSummary!#REF! -> 
B43: =iSummary!Q36 -> 1 | C43: =IF(B43=0,0,IF(G43<=uxb_works!$B$122,1,IF(G43<=uxb_works!$B$121,2,IF(G43<=uxb_works!$B$120,3,4)))) -> 3 | E43: =iSummary!R36 -> 29 | F43: =iSummary!S36 -> Rome | G43: =IF(ISNUMBER(iSummary!T36),ROUND(iSummary!T36,1),"") -> 69.4 | H43: =iSummary!W36 -> = | I43: =iSummary!X36 ->  | J43: =IF(iSummary!Y36=0,"",iSummary!Y36) ->  | K43: =iSummary!Z36 -> 1 | M43: =iSummary!AK36 -> 1 | N43: =IF(M43=0,0,IF(R43<=uxb_works!$B$122,1,IF(R43<=uxb_works!$B$121,2,IF(R43<=uxb_works!$B$120,3,4)))) -> 3 | P43: =iSummary!AL36 -> 29 | Q43: =iSummary!AM36 -> Santiago | R43: =iSummary!AN36 -> 64.2 | S43: =iSummary!AQ36 -> = | T43: =iSummary!AR36 ->  | U43: =iSummary!AS36 -> 0 | V43: =iSummary!AT36 -> 1 | X43: =iSummary!BE36 -> 1 | Y43: =IF(X43=0,0,IF(AC43<=uxb_works!$B$122,1,IF(AC43<=uxb_works!$B$121,2,IF(AC43<=uxb_works!$B$120,3,4)))) -> 3 | AA43: =iSummary!BF36 -> =28 | AB43: =iSummary!BG36 -> Paris | AC43: =iSummary!BH36 -> 68.6 | AD43: =iSummary!BK36 -> = | AE43: =iSummary!BL36 ->  | AF43: =iSummary!BM36 -> 0 | AG43: =iSummary!BN36 -> 1 | AI43: =iSummary!BY36 -> 1 | AJ43: =IF(AI43=0,0,IF(AN43<=uxb_works!$B$122,1,IF(AN43<=uxb_works!$B$121,2,IF(AN43<=uxb_works!$B$120,3,4)))) -> 4 | AL43: =iSummary!BZ36 -> 29 | AM43: =iSummary!CA36 -> Abu Dhabi | AN43: =iSummary!CB36 -> 77.3 | AO43: =iSummary!CE36 -> = | AP43: =iSummary!CF36 ->  | AQ43: =iSummary!CG36 -> 0 | AR43: =iSummary!CH36 -> 1 | AT43: =iSummary!CS36 -> 1 | AU43: =IF(AT43=0,0,IF(AY43<=uxb_works!$B$122,1,IF(AY43<=uxb_works!$B$121,2,IF(AY43<=uxb_works!$B$120,3,4)))) -> 3 | AW43: =iSummary!CT36 -> 29 | AX43: =iSummary!CU36 -> Los Angeles | AY43: =iSummary!CV36 -> 66.6 | AZ43: =iSummary!CY36 -> = | BA43: =iSummary!CZ36 ->  | BB43: =iSummary!DA36 -> 0 | BC43: =iSummary!DB36 -> 1 | BD43: =iSummary!#REF! ->  | BE43: =iSummary!#REF! ->  | BF43: =iSummary!#REF! ->  | BG43: =iSummary!#REF! ->  | BI43: =iSummary!DM36 -> 1 | BJ43: =IF(BI43=0,0,IF(BN43<=uxb_works!$B$122,1,IF(BN43<=uxb_works!$B$121,2,IF(BN43<=uxb_works!$B$120,3,4)))) -> 3 | BL43: =iSummary!DN36 -> 29 | BM43: =iSummary!DO36 -> Chicago | BN43: =iSummary!DP36 -> 74 | BO43: =iSummary!DN36 -> 29 | BP43: =iSummary!DO36 -> Chicago | BQ43: =iSummary!DP36 -> 74 | BR43: =iSummary!DQ36 -> 74 | BS43: =iSummary!#REF! ->  | BT43: =iSummary!#REF! ->  | BU43: =iSummary!#REF! ->  | BV43: =iSummary!#REF! -> 
B44: =iSummary!Q37 -> 1 | C44: =IF(B44=0,0,IF(G44<=uxb_works!$B$122,1,IF(G44<=uxb_works!$B$121,2,IF(G44<=uxb_works!$B$120,3,4)))) -> 3 | E44: =iSummary!R37 -> 30 | F44: =iSummary!S37 -> Shanghai | G44: =IF(ISNUMBER(iSummary!T37),ROUND(iSummary!T37,1),"") -> 67.9 | H44: =iSummary!W37 -> = | I44: =iSummary!X37 ->  | J44: =IF(iSummary!Y37=0,"",iSummary!Y37) ->  | K44: =iSummary!Z37 -> 1 | M44: =iSummary!AK37 -> 1 | N44: =IF(M44=0,0,IF(R44<=uxb_works!$B$122,1,IF(R44<=uxb_works!$B$121,2,IF(R44<=uxb_works!$B$120,3,4)))) -> 3 | P44: =iSummary!AL37 -> 30 | Q44: =iSummary!AM37 -> Taipei | R44: =iSummary!AN37 -> 63.2 | S44: =iSummary!AQ37 -> = | T44: =iSummary!AR37 ->  | U44: =iSummary!AS37 -> 0 | V44: =iSummary!AT37 -> 1 | X44: =iSummary!BE37 -> 1 | Y44: =IF(X44=0,0,IF(AC44<=uxb_works!$B$122,1,IF(AC44<=uxb_works!$B$121,2,IF(AC44<=uxb_works!$B$120,3,4)))) -> 3 | AA44: =iSummary!BF37 -> =28 | AB44: =iSummary!BG37 -> Riyadh | AC44: =iSummary!BH37 -> 68.6 | AD44: =iSummary!BK37 -> = | AE44: =iSummary!BL37 ->  | AF44: =iSummary!BM37 -> 0 | AG44: =iSummary!BN37 -> 1 | AI44: =iSummary!BY37 -> 1 | AJ44: =IF(AI44=0,0,IF(AN44<=uxb_works!$B$122,1,IF(AN44<=uxb_works!$B$121,2,IF(AN44<=uxb_works!$B$120,3,4)))) -> 4 | AL44: =iSummary!BZ37 -> 30 | AM44: =iSummary!CA37 -> Milan | AN44: =iSummary!CB37 -> 76.6 | AO44: =iSummary!CE37 -> = | AP44: =iSummary!CF37 ->  | AQ44: =iSummary!CG37 -> 0 | AR44: =iSummary!CH37 -> 1 | AT44: =iSummary!CS37 -> 1 | AU44: =IF(AT44=0,0,IF(AY44<=uxb_works!$B$122,1,IF(AY44<=uxb_works!$B$121,2,IF(AY44<=uxb_works!$B$120,3,4)))) -> 3 | AW44: =iSummary!CT37 -> =30 | AX44: =iSummary!CU37 -> Chicago | AY44: =iSummary!CV37 -> 64.9 | AZ44: =iSummary!CY37 -> = | BA44: =iSummary!CZ37 ->  | BB44: =iSummary!DA37 -> 0 | BC44: =iSummary!DB37 -> 1 | BD44: =iSummary!#REF! ->  | BE44: =iSummary!#REF! ->  | BF44: =iSummary!#REF! ->  | BG44: =iSummary!#REF! ->  | BI44: =iSummary!DM37 -> 1 | BJ44: =IF(BI44=0,0,IF(BN44<=uxb_works!$B$122,1,IF(BN44<=uxb_works!$B$121,2,IF(BN44<=uxb_works!$B$120,3,4)))) -> 3 | BL44: =iSummary!DN37 -> 30 | BM44: =iSummary!DO37 -> Jakarta | BN44: =iSummary!DP37 -> 73.8 | BO44: =iSummary!DN37 -> 30 | BP44: =iSummary!DO37 -> Jakarta | BQ44: =iSummary!DP37 -> 73.8 | BR44: =iSummary!DQ37 -> 73.8 | BS44: =iSummary!#REF! ->  | BT44: =iSummary!#REF! ->  | BU44: =iSummary!#REF! ->  | BV44: =iSummary!#REF! -> 
B45: =iSummary!Q38 -> 1 | C45: =IF(B45=0,0,IF(G45<=uxb_works!$B$122,1,IF(G45<=uxb_works!$B$121,2,IF(G45<=uxb_works!$B$120,3,4)))) -> 3 | E45: =iSummary!R38 -> 31 | F45: =iSummary!S38 -> Abu Dhabi | G45: =IF(ISNUMBER(iSummary!T38),ROUND(iSummary!T38,1),"") -> 66.9 | H45: =iSummary!W38 -> = | I45: =iSummary!X38 ->  | J45: =IF(iSummary!Y38=0,"",iSummary!Y38) ->  | K45: =iSummary!Z38 -> 1 | M45: =iSummary!AK38 -> 1 | N45: =IF(M45=0,0,IF(R45<=uxb_works!$B$122,1,IF(R45<=uxb_works!$B$121,2,IF(R45<=uxb_works!$B$120,3,4)))) -> 3 | P45: =iSummary!AL38 -> 31 | Q45: =iSummary!AM38 -> Seoul | R45: =iSummary!AN38 -> 62.1 | S45: =iSummary!AQ38 -> = | T45: =iSummary!AR38 ->  | U45: =iSummary!AS38 -> 0 | V45: =iSummary!AT38 -> 1 | X45: =iSummary!BE38 -> 1 | Y45: =IF(X45=0,0,IF(AC45<=uxb_works!$B$122,1,IF(AC45<=uxb_works!$B$121,2,IF(AC45<=uxb_works!$B$120,3,4)))) -> 3 | AA45: =iSummary!BF38 -> 31 | AB45: =iSummary!BG38 -> Brussels | AC45: =iSummary!BH38 -> 67.8 | AD45: =iSummary!BK38 -> = | AE45: =iSummary!BL38 ->  | AF45: =iSummary!BM38 -> 0 | AG45: =iSummary!BN38 -> 1 | AI45: =iSummary!BY38 -> 1 | AJ45: =IF(AI45=0,0,IF(AN45<=uxb_works!$B$122,1,IF(AN45<=uxb_works!$B$121,2,IF(AN45<=uxb_works!$B$120,3,4)))) -> 4 | AL45: =iSummary!BZ38 -> 31 | AM45: =iSummary!CA38 -> Beijing | AN45: =iSummary!CB38 -> 76.5 | AO45: =iSummary!CE38 -> = | AP45: =iSummary!CF38 ->  | AQ45: =iSummary!CG38 -> 0 | AR45: =iSummary!CH38 -> 1 | AT45: =iSummary!CS38 -> 1 | AU45: =IF(AT45=0,0,IF(AY45<=uxb_works!$B$122,1,IF(AY45<=uxb_works!$B$121,2,IF(AY45<=uxb_works!$B$120,3,4)))) -> 3 | AW45: =iSummary!CT38 -> =30 | AX45: =iSummary!CU38 -> San Francisco | AY45: =iSummary!CV38 -> 64.9 | AZ45: =iSummary!CY38 -> = | BA45: =iSummary!CZ38 ->  | BB45: =iSummary!DA38 -> 0 | BC45: =iSummary!DB38 -> 1 | BD45: =iSummary!#REF! ->  | BE45: =iSummary!#REF! ->  | BF45: =iSummary!#REF! ->  | BG45: =iSummary!#REF! ->  | BI45: =iSummary!DM38 -> 1 | BJ45: =IF(BI45=0,0,IF(BN45<=uxb_works!$B$122,1,IF(BN45<=uxb_works!$B$121,2,IF(BN45<=uxb_works!$B$120,3,4)))) -> 3 | BL45: =iSummary!DN38 -> 31 | BM45: =iSummary!DO38 -> London | BN45: =iSummary!DP38 -> 73.7 | BO45: =iSummary!DN38 -> 31 | BP45: =iSummary!DO38 -> London | BQ45: =iSummary!DP38 -> 73.7 | BR45: =iSummary!DQ38 -> 73.7 | BS45: =iSummary!#REF! ->  | BT45: =iSummary!#REF! ->  | BU45: =iSummary!#REF! ->  | BV45: =iSummary!#REF! -> 
B46: =iSummary!Q39 -> 1 | C46: =IF(B46=0,0,IF(G46<=uxb_works!$B$122,1,IF(G46<=uxb_works!$B$121,2,IF(G46<=uxb_works!$B$120,3,4)))) -> 3 | E46: =iSummary!R39 -> 32 | F46: =iSummary!S39 -> Kuala Lumpur | G46: =IF(ISNUMBER(iSummary!T39),ROUND(iSummary!T39,1),"") -> 66.6 | H46: =iSummary!W39 -> = | I46: =iSummary!X39 ->  | J46: =IF(iSummary!Y39=0,"",iSummary!Y39) ->  | K46: =iSummary!Z39 -> 1 | M46: =iSummary!AK39 -> 4 | N46: =IF(M46=0,0,IF(R46<=uxb_works!$B$122,1,IF(R46<=uxb_works!$B$121,2,IF(R46<=uxb_works!$B$120,3,4)))) -> 3 | P46: =iSummary!AL39 ->  | Q46: =iSummary!AM39 -> AVERAGE | R46: =iSummary!AN39 -> 61.7 | S46: =iSummary!AQ39 ->  | T46: =iSummary!AR39 ->  | U46: =iSummary!AS39 ->  | V46: =iSummary!AT39 ->  | X46: =iSummary!BE39 -> 1 | Y46: =IF(X46=0,0,IF(AC46<=uxb_works!$B$122,1,IF(AC46<=uxb_works!$B$121,2,IF(AC46<=uxb_works!$B$120,3,4)))) -> 3 | AA46: =iSummary!BF39 -> 32 | AB46: =iSummary!BG39 -> Buenos Aires | AC46: =iSummary!BH39 -> 67.4 | AD46: =iSummary!BK39 -> = | AE46: =iSummary!BL39 ->  | AF46: =iSummary!BM39 -> 0 | AG46: =iSummary!BN39 -> 1 | AI46: =iSummary!BY39 -> 1 | AJ46: =IF(AI46=0,0,IF(AN46<=uxb_works!$B$122,1,IF(AN46<=uxb_works!$B$121,2,IF(AN46<=uxb_works!$B$120,3,4)))) -> 4 | AL46: =iSummary!BZ39 -> 32 | AM46: =iSummary!CA39 -> Dubai | AN46: =iSummary!CB39 -> 76 | AO46: =iSummary!CE39 -> = | AP46: =iSummary!CF39 ->  | AQ46: =iSummary!CG39 -> 0 | AR46: =iSummary!CH39 -> 1 | AT46: =iSummary!CS39 -> 4 | AU46: =IF(AT46=0,0,IF(AY46<=uxb_works!$B$122,1,IF(AY46<=uxb_works!$B$121,2,IF(AY46<=uxb_works!$B$120,3,4)))) -> 3 | AW46: =iSummary!CT39 ->  | AX46: =iSummary!CU39 -> AVERAGE | AY46: =iSummary!CV39 -> 62.3 | AZ46: =iSummary!CY39 ->  | BA46: =iSummary!CZ39 ->  | BB46: =iSummary!DA39 ->  | BC46: =iSummary!DB39 ->  | BD46: =iSummary!#REF! ->  | BE46: =iSummary!#REF! ->  | BF46: =iSummary!#REF! ->  | BG46: =iSummary!#REF! ->  | BI46: =iSummary!DM39 -> 1 | BJ46: =IF(BI46=0,0,IF(BN46<=uxb_works!$B$122,1,IF(BN46<=uxb_works!$B$121,2,IF(BN46<=uxb_works!$B$120,3,4)))) -> 3 | BL46: =iSummary!DN39 -> 32 | BM46: =iSummary!DO39 -> Madrid | BN46: =iSummary!DP39 -> 73.1 | BO46: =iSummary!DN39 -> 32 | BP46: =iSummary!DO39 -> Madrid | BQ46: =iSummary!DP39 -> 73.1 | BR46: =iSummary!DQ39 -> 73.1 | BS46: =iSummary!#REF! ->  | BT46: =iSummary!#REF! ->  | BU46: =iSummary!#REF! ->  | BV46: =iSummary!#REF! -> 
B47: =iSummary!Q40 -> 4 | C47: =IF(B47=0,0,IF(G47<=uxb_works!$B$122,1,IF(G47<=uxb_works!$B$121,2,IF(G47<=uxb_works!$B$120,3,4)))) -> 3 | E47: =iSummary!R40 ->  | F47: =iSummary!S40 -> AVERAGE | G47: =IF(ISNUMBER(iSummary!T40),ROUND(iSummary!T40,1),"") -> 66.1 | H47: =iSummary!W40 ->  | I47: =iSummary!X40 ->  | J47: =IF(iSummary!Y40=0,"",iSummary!Y40) ->  | K47: =iSummary!Z40 ->  | M47: =iSummary!AK40 -> 1 | N47: =IF(M47=0,0,IF(R47<=uxb_works!$B$122,1,IF(R47<=uxb_works!$B$121,2,IF(R47<=uxb_works!$B$120,3,4)))) -> 3 | P47: =iSummary!AL40 -> 32 | Q47: =iSummary!AM40 -> Rome | R47: =iSummary!AN40 -> 60.1 | S47: =iSummary!AQ40 -> = | T47: =iSummary!AR40 ->  | U47: =iSummary!AS40 -> 0 | V47: =iSummary!AT40 -> 1 | X47: =iSummary!BE40 -> 1 | Y47: =IF(X47=0,0,IF(AC47<=uxb_works!$B$122,1,IF(AC47<=uxb_works!$B$121,2,IF(AC47<=uxb_works!$B$120,3,4)))) -> 3 | AA47: =iSummary!BF40 -> 33 | AB47: =iSummary!BG40 -> Madrid | AC47: =iSummary!BH40 -> 67 | AD47: =iSummary!BK40 -> = | AE47: =iSummary!BL40 ->  | AF47: =iSummary!BM40 -> 0 | AG47: =iSummary!BN40 -> 1 | AI47: =iSummary!BY40 -> 1 | AJ47: =IF(AI47=0,0,IF(AN47<=uxb_works!$B$122,1,IF(AN47<=uxb_works!$B$121,2,IF(AN47<=uxb_works!$B$120,3,4)))) -> 3 | AL47: =iSummary!BZ40 -> 33 | AM47: =iSummary!CA40 -> Rome | AN47: =iSummary!CB40 -> 74.5 | AO47: =iSummary!CE40 -> = | AP47: =iSummary!CF40 ->  | AQ47: =iSummary!CG40 -> 0 | AR47: =iSummary!CH40 -> 1 | AT47: =iSummary!CS40 -> 1 | AU47: =IF(AT47=0,0,IF(AY47<=uxb_works!$B$122,1,IF(AY47<=uxb_works!$B$121,2,IF(AY47<=uxb_works!$B$120,3,4)))) -> 3 | AW47: =iSummary!CT40 -> 32 | AX47: =iSummary!CU40 -> Dallas | AY47: =iSummary!CV40 -> 61.4 | AZ47: =iSummary!CY40 -> = | BA47: =iSummary!CZ40 ->  | BB47: =iSummary!DA40 -> 0 | BC47: =iSummary!DB40 -> 1 | BD47: =iSummary!#REF! ->  | BE47: =iSummary!#REF! ->  | BF47: =iSummary!#REF! ->  | BG47: =iSummary!#REF! ->  | BI47: =iSummary!DM40 -> 1 | BJ47: =IF(BI47=0,0,IF(BN47<=uxb_works!$B$122,1,IF(BN47<=uxb_works!$B$121,2,IF(BN47<=uxb_works!$B$120,3,4)))) -> 3 | BL47: =iSummary!DN40 -> 33 | BM47: =iSummary!DO40 -> Seoul | BN47: =iSummary!DP40 -> 72.9 | BO47: =iSummary!DN40 -> 33 | BP47: =iSummary!DO40 -> Seoul | BQ47: =iSummary!DP40 -> 72.9 | BR47: =iSummary!DQ40 -> 72.9 | BS47: =iSummary!#REF! ->  | BT47: =iSummary!#REF! ->  | BU47: =iSummary!#REF! ->  | BV47: =iSummary!#REF! -> 
B48: =iSummary!Q41 -> 1 | C48: =IF(B48=0,0,IF(G48<=uxb_works!$B$122,1,IF(G48<=uxb_works!$B$121,2,IF(G48<=uxb_works!$B$120,3,4)))) -> 3 | E48: =iSummary!R41 -> 33 | F48: =iSummary!S41 -> Santiago | G48: =IF(ISNUMBER(iSummary!T41),ROUND(iSummary!T41,1),"") -> 65.3 | H48: =iSummary!W41 -> = | I48: =iSummary!X41 ->  | J48: =IF(iSummary!Y41=0,"",iSummary!Y41) ->  | K48: =iSummary!Z41 -> 1 | M48: =iSummary!AK41 -> 1 | N48: =IF(M48=0,0,IF(R48<=uxb_works!$B$122,1,IF(R48<=uxb_works!$B$121,2,IF(R48<=uxb_works!$B$120,3,4)))) -> 3 | P48: =iSummary!AL41 -> 33 | Q48: =iSummary!AM41 -> Buenos Aires | R48: =iSummary!AN41 -> 60 | S48: =iSummary!AQ41 -> = | T48: =iSummary!AR41 ->  | U48: =iSummary!AS41 -> 0 | V48: =iSummary!AT41 -> 1 | X48: =iSummary!BE41 -> 4 | Y48: =IF(X48=0,0,IF(AC48<=uxb_works!$B$122,1,IF(AC48<=uxb_works!$B$121,2,IF(AC48<=uxb_works!$B$120,3,4)))) -> 3 | AA48: =iSummary!BF41 ->  | AB48: =iSummary!BG41 -> AVERAGE | AC48: =iSummary!BH41 -> 66.7 | AD48: =iSummary!BK41 ->  | AE48: =iSummary!BL41 ->  | AF48: =iSummary!BM41 ->  | AG48: =iSummary!BN41 ->  | AI48: =iSummary!BY41 -> 1 | AJ48: =IF(AI48=0,0,IF(AN48<=uxb_works!$B$122,1,IF(AN48<=uxb_works!$B$121,2,IF(AN48<=uxb_works!$B$120,3,4)))) -> 3 | AL48: =iSummary!BZ41 -> 34 | AM48: =iSummary!CA41 -> Moscow | AN48: =iSummary!CB41 -> 74.2 | AO48: =iSummary!CE41 -> = | AP48: =iSummary!CF41 ->  | AQ48: =iSummary!CG41 -> 0 | AR48: =iSummary!CH41 -> 1 | AT48: =iSummary!CS41 -> 1 | AU48: =IF(AT48=0,0,IF(AY48<=uxb_works!$B$122,1,IF(AY48<=uxb_works!$B$121,2,IF(AY48<=uxb_works!$B$120,3,4)))) -> 3 | AW48: =iSummary!CT41 -> 33 | AX48: =iSummary!CU41 -> Kuala Lumpur | AY48: =iSummary!CV41 -> 60.1 | AZ48: =iSummary!CY41 -> = | BA48: =iSummary!CZ41 ->  | BB48: =iSummary!DA41 -> 0 | BC48: =iSummary!DB41 -> 1 | BD48: =iSummary!#REF! ->  | BE48: =iSummary!#REF! ->  | BF48: =iSummary!#REF! ->  | BG48: =iSummary!#REF! ->  | BI48: =iSummary!DM41 -> 1 | BJ48: =IF(BI48=0,0,IF(BN48<=uxb_works!$B$122,1,IF(BN48<=uxb_works!$B$121,2,IF(BN48<=uxb_works!$B$120,3,4)))) -> 3 | BL48: =iSummary!DN41 -> 34 | BM48: =iSummary!DO41 -> Mexico City | BN48: =iSummary!DP41 -> 72.1 | BO48: =iSummary!DN41 -> 34 | BP48: =iSummary!DO41 -> Mexico City | BQ48: =iSummary!DP41 -> 72.1 | BR48: =iSummary!DQ41 -> 72.1 | BS48: =iSummary!#REF! ->  | BT48: =iSummary!#REF! ->  | BU48: =iSummary!#REF! ->  | BV48: =iSummary!#REF! -> 
B49: =iSummary!Q42 -> 1 | C49: =IF(B49=0,0,IF(G49<=uxb_works!$B$122,1,IF(G49<=uxb_works!$B$121,2,IF(G49<=uxb_works!$B$120,3,4)))) -> 3 | E49: =iSummary!R42 -> 34 | F49: =iSummary!S42 -> Buenos Aires | G49: =IF(ISNUMBER(iSummary!T42),ROUND(iSummary!T42,1),"") -> 64.9 | H49: =iSummary!W42 -> = | I49: =iSummary!X42 ->  | J49: =IF(iSummary!Y42=0,"",iSummary!Y42) ->  | K49: =iSummary!Z42 -> 1 | M49: =iSummary!AK42 -> 1 | N49: =IF(M49=0,0,IF(R49<=uxb_works!$B$122,1,IF(R49<=uxb_works!$B$121,2,IF(R49<=uxb_works!$B$120,3,4)))) -> 3 | P49: =iSummary!AL42 -> 34 | Q49: =iSummary!AM42 -> Moscow | R49: =iSummary!AN42 -> 59.4 | S49: =iSummary!AQ42 -> = | T49: =iSummary!AR42 ->  | U49: =iSummary!AS42 -> 0 | V49: =iSummary!AT42 -> 1 | X49: =iSummary!BE42 -> 1 | Y49: =IF(X49=0,0,IF(AC49<=uxb_works!$B$122,1,IF(AC49<=uxb_works!$B$121,2,IF(AC49<=uxb_works!$B$120,3,4)))) -> 3 | AA49: =iSummary!BF42 -> 34 | AB49: =iSummary!BG42 -> Zurich | AC49: =iSummary!BH42 -> 66.6 | AD49: =iSummary!BK42 -> = | AE49: =iSummary!BL42 ->  | AF49: =iSummary!BM42 -> 0 | AG49: =iSummary!BN42 -> 1 | AI49: =iSummary!BY42 -> 1 | AJ49: =IF(AI49=0,0,IF(AN49<=uxb_works!$B$122,1,IF(AN49<=uxb_works!$B$121,2,IF(AN49<=uxb_works!$B$120,3,4)))) -> 3 | AL49: =iSummary!BZ42 -> 35 | AM49: =iSummary!CA42 -> Istanbul | AN49: =iSummary!CB42 -> 72.1 | AO49: =iSummary!CE42 -> = | AP49: =iSummary!CF42 ->  | AQ49: =iSummary!CG42 -> 0 | AR49: =iSummary!CH42 -> 1 | AT49: =iSummary!CS42 -> 1 | AU49: =IF(AT49=0,0,IF(AY49<=uxb_works!$B$122,1,IF(AY49<=uxb_works!$B$121,2,IF(AY49<=uxb_works!$B$120,3,4)))) -> 3 | AW49: =iSummary!CT42 -> 34 | AX49: =iSummary!CU42 -> Beijing | AY49: =iSummary!CV42 -> 59.5 | AZ49: =iSummary!CY42 -> = | BA49: =iSummary!CZ42 ->  | BB49: =iSummary!DA42 -> 0 | BC49: =iSummary!DB42 -> 1 | BD49: =iSummary!#REF! ->  | BE49: =iSummary!#REF! ->  | BF49: =iSummary!#REF! ->  | BG49: =iSummary!#REF! ->  | BI49: =iSummary!DM42 -> 1 | BJ49: =IF(BI49=0,0,IF(BN49<=uxb_works!$B$122,1,IF(BN49<=uxb_works!$B$121,2,IF(BN49<=uxb_works!$B$120,3,4)))) -> 3 | BL49: =iSummary!DN42 -> 35 | BM49: =iSummary!DO42 -> Paris | BN49: =iSummary!DP42 -> 71.7 | BO49: =iSummary!DN42 -> 35 | BP49: =iSummary!DO42 -> Paris | BQ49: =iSummary!DP42 -> 71.7 | BR49: =iSummary!DQ42 -> 71.7 | BS49: =iSummary!#REF! ->  | BT49: =iSummary!#REF! ->  | BU49: =iSummary!#REF! ->  | BV49: =iSummary!#REF! -> 
B50: =iSummary!Q43 -> 1 | C50: =IF(B50=0,0,IF(G50<=uxb_works!$B$122,1,IF(G50<=uxb_works!$B$121,2,IF(G50<=uxb_works!$B$120,3,4)))) -> 3 | E50: =iSummary!R43 -> 35 | F50: =iSummary!S43 -> Dubai | G50: =IF(ISNUMBER(iSummary!T43),ROUND(iSummary!T43,1),"") -> 64.6 | H50: =iSummary!W43 -> = | I50: =iSummary!X43 ->  | J50: =IF(iSummary!Y43=0,"",iSummary!Y43) ->  | K50: =iSummary!Z43 -> 1 | M50: =iSummary!AK43 -> 1 | N50: =IF(M50=0,0,IF(R50<=uxb_works!$B$122,1,IF(R50<=uxb_works!$B$121,2,IF(R50<=uxb_works!$B$120,3,4)))) -> 3 | P50: =iSummary!AL43 -> 35 | Q50: =iSummary!AM43 -> Kuala Lumpur | R50: =iSummary!AN43 -> 59.1 | S50: =iSummary!AQ43 -> = | T50: =iSummary!AR43 ->  | U50: =iSummary!AS43 -> 0 | V50: =iSummary!AT43 -> 1 | X50: =iSummary!BE43 -> 1 | Y50: =IF(X50=0,0,IF(AC50<=uxb_works!$B$122,1,IF(AC50<=uxb_works!$B$121,2,IF(AC50<=uxb_works!$B$120,3,4)))) -> 3 | AA50: =iSummary!BF43 -> =35 | AB50: =iSummary!BG43 -> Santiago | AC50: =iSummary!BH43 -> 66.5 | AD50: =iSummary!BK43 -> = | AE50: =iSummary!BL43 ->  | AF50: =iSummary!BM43 -> 0 | AG50: =iSummary!BN43 -> 1 | AI50: =iSummary!BY43 -> 4 | AJ50: =IF(AI50=0,0,IF(AN50<=uxb_works!$B$122,1,IF(AN50<=uxb_works!$B$121,2,IF(AN50<=uxb_works!$B$120,3,4)))) -> 3 | AL50: =iSummary!BZ43 ->  | AM50: =iSummary!CA43 -> AVERAGE | AN50: =iSummary!CB43 -> 71.5 | AO50: =iSummary!CE43 ->  | AP50: =iSummary!CF43 ->  | AQ50: =iSummary!CG43 ->  | AR50: =iSummary!CH43 ->  | AT50: =iSummary!CS43 -> 1 | AU50: =IF(AT50=0,0,IF(AY50<=uxb_works!$B$122,1,IF(AY50<=uxb_works!$B$121,2,IF(AY50<=uxb_works!$B$120,3,4)))) -> 3 | AW50: =iSummary!CT43 -> 35 | AX50: =iSummary!CU43 -> Shanghai | AY50: =iSummary!CV43 -> 59 | AZ50: =iSummary!CY43 -> = | BA50: =iSummary!CZ43 ->  | BB50: =iSummary!DA43 -> 0 | BC50: =iSummary!DB43 -> 1 | BD50: =iSummary!#REF! ->  | BE50: =iSummary!#REF! ->  | BF50: =iSummary!#REF! ->  | BG50: =iSummary!#REF! ->  | BI50: =iSummary!DM43 -> 1 | BJ50: =IF(BI50=0,0,IF(BN50<=uxb_works!$B$122,1,IF(BN50<=uxb_works!$B$121,2,IF(BN50<=uxb_works!$B$120,3,4)))) -> 3 | BL50: =iSummary!DN43 -> 36 | BM50: =iSummary!DO43 -> Brussels | BN50: =iSummary!DP43 -> 70.4 | BO50: =iSummary!DN43 -> 36 | BP50: =iSummary!DO43 -> Brussels | BQ50: =iSummary!DP43 -> 70.4 | BR50: =iSummary!DQ43 -> 70.4 | BS50: =iSummary!#REF! ->  | BT50: =iSummary!#REF! ->  | BU50: =iSummary!#REF! ->  | BV50: =iSummary!#REF! -> 
B51: =iSummary!Q44 -> 1 | C51: =IF(B51=0,0,IF(G51<=uxb_works!$B$122,1,IF(G51<=uxb_works!$B$121,2,IF(G51<=uxb_works!$B$120,3,4)))) -> 3 | E51: =iSummary!R44 -> 36 | F51: =iSummary!S44 -> Beijing | G51: =IF(ISNUMBER(iSummary!T44),ROUND(iSummary!T44,1),"") -> 63.8 | H51: =iSummary!W44 -> = | I51: =iSummary!X44 ->  | J51: =IF(iSummary!Y44=0,"",iSummary!Y44) ->  | K51: =iSummary!Z44 -> 1 | M51: =iSummary!AK44 -> 1 | N51: =IF(M51=0,0,IF(R51<=uxb_works!$B$122,1,IF(R51<=uxb_works!$B$121,2,IF(R51<=uxb_works!$B$120,3,4)))) -> 3 | P51: =iSummary!AL44 -> 36 | Q51: =iSummary!AM44 -> Istanbul | R51: =iSummary!AN44 -> 58.7 | S51: =iSummary!AQ44 -> = | T51: =iSummary!AR44 ->  | U51: =iSummary!AS44 -> 0 | V51: =iSummary!AT44 -> 1 | X51: =iSummary!BE44 -> 1 | Y51: =IF(X51=0,0,IF(AC51<=uxb_works!$B$122,1,IF(AC51<=uxb_works!$B$121,2,IF(AC51<=uxb_works!$B$120,3,4)))) -> 3 | AA51: =iSummary!BF44 -> =35 | AB51: =iSummary!BG44 -> Stockholm | AC51: =iSummary!BH44 -> 66.5 | AD51: =iSummary!BK44 -> = | AE51: =iSummary!BL44 ->  | AF51: =iSummary!BM44 -> 0 | AG51: =iSummary!BN44 -> 1 | AI51: =iSummary!BY44 -> 1 | AJ51: =IF(AI51=0,0,IF(AN51<=uxb_works!$B$122,1,IF(AN51<=uxb_works!$B$121,2,IF(AN51<=uxb_works!$B$120,3,4)))) -> 3 | AL51: =iSummary!BZ44 -> 36 | AM51: =iSummary!CA44 -> Santiago | AN51: =iSummary!CB44 -> 70.8 | AO51: =iSummary!CE44 -> = | AP51: =iSummary!CF44 ->  | AQ51: =iSummary!CG44 -> 0 | AR51: =iSummary!CH44 -> 1 | AT51: =iSummary!CS44 -> 1 | AU51: =IF(AT51=0,0,IF(AY51<=uxb_works!$B$122,1,IF(AY51<=uxb_works!$B$121,2,IF(AY51<=uxb_works!$B$120,3,4)))) -> 3 | AW51: =iSummary!CT44 -> 36 | AX51: =iSummary!CU44 -> Rio de Janeiro | AY51: =iSummary!CV44 -> 58.4 | AZ51: =iSummary!CY44 -> = | BA51: =iSummary!CZ44 ->  | BB51: =iSummary!DA44 -> 0 | BC51: =iSummary!DB44 -> 1 | BD51: =iSummary!#REF! ->  | BE51: =iSummary!#REF! ->  | BF51: =iSummary!#REF! ->  | BG51: =iSummary!#REF! ->  | BI51: =iSummary!DM44 -> 1 | BJ51: =IF(BI51=0,0,IF(BN51<=uxb_works!$B$122,1,IF(BN51<=uxb_works!$B$121,2,IF(BN51<=uxb_works!$B$120,3,4)))) -> 3 | BL51: =iSummary!DN44 -> 37 | BM51: =iSummary!DO44 -> Singapore | BN51: =iSummary!DP44 -> 69.9 | BO51: =iSummary!DN44 -> 37 | BP51: =iSummary!DO44 -> Singapore | BQ51: =iSummary!DP44 -> 69.9 | BR51: =iSummary!DQ44 -> 69.9 | BS51: =iSummary!#REF! ->  | BT51: =iSummary!#REF! ->  | BU51: =iSummary!#REF! ->  | BV51: =iSummary!#REF! -> 
B52: =iSummary!Q45 -> 1 | C52: =IF(B52=0,0,IF(G52<=uxb_works!$B$122,1,IF(G52<=uxb_works!$B$121,2,IF(G52<=uxb_works!$B$120,3,4)))) -> 3 | E52: =iSummary!R45 -> 37 | F52: =iSummary!S45 -> Istanbul | G52: =IF(ISNUMBER(iSummary!T45),ROUND(iSummary!T45,1),"") -> 62.9 | H52: =iSummary!W45 -> = | I52: =iSummary!X45 ->  | J52: =IF(iSummary!Y45=0,"",iSummary!Y45) ->  | K52: =iSummary!Z45 -> 1 | M52: =iSummary!AK45 -> 1 | N52: =IF(M52=0,0,IF(R52<=uxb_works!$B$122,1,IF(R52<=uxb_works!$B$121,2,IF(R52<=uxb_works!$B$120,3,4)))) -> 3 | P52: =iSummary!AL45 -> =37 | Q52: =iSummary!AM45 -> Mexico City | R52: =iSummary!AN45 -> 57.2 | S52: =iSummary!AQ45 -> = | T52: =iSummary!AR45 ->  | U52: =iSummary!AS45 -> 0 | V52: =iSummary!AT45 -> 1 | X52: =iSummary!BE45 -> 1 | Y52: =IF(X52=0,0,IF(AC52<=uxb_works!$B$122,1,IF(AC52<=uxb_works!$B$121,2,IF(AC52<=uxb_works!$B$120,3,4)))) -> 3 | AA52: =iSummary!BF45 -> 37 | AB52: =iSummary!BG45 -> Rome | AC52: =iSummary!BH45 -> 65.2 | AD52: =iSummary!BK45 -> = | AE52: =iSummary!BL45 ->  | AF52: =iSummary!BM45 -> 0 | AG52: =iSummary!BN45 -> 1 | AI52: =iSummary!BY45 -> 1 | AJ52: =IF(AI52=0,0,IF(AN52<=uxb_works!$B$122,1,IF(AN52<=uxb_works!$B$121,2,IF(AN52<=uxb_works!$B$120,3,4)))) -> 3 | AL52: =iSummary!BZ45 -> 37 | AM52: =iSummary!CA45 -> Kuala Lumpur | AN52: =iSummary!CB45 -> 69 | AO52: =iSummary!CE45 -> = | AP52: =iSummary!CF45 ->  | AQ52: =iSummary!CG45 -> 0 | AR52: =iSummary!CH45 -> 1 | AT52: =iSummary!CS45 -> 1 | AU52: =IF(AT52=0,0,IF(AY52<=uxb_works!$B$122,1,IF(AY52<=uxb_works!$B$121,2,IF(AY52<=uxb_works!$B$120,3,4)))) -> 3 | AW52: =iSummary!CT45 -> 37 | AX52: =iSummary!CU45 -> Kuwait city | AY52: =iSummary!CV45 -> 58 | AZ52: =iSummary!CY45 -> = | BA52: =iSummary!CZ45 ->  | BB52: =iSummary!DA45 -> 0 | BC52: =iSummary!DB45 -> 1 | BD52: =iSummary!#REF! ->  | BE52: =iSummary!#REF! ->  | BF52: =iSummary!#REF! ->  | BG52: =iSummary!#REF! ->  | BI52: =iSummary!DM45 -> 1 | BJ52: =IF(BI52=0,0,IF(BN52<=uxb_works!$B$122,1,IF(BN52<=uxb_works!$B$121,2,IF(BN52<=uxb_works!$B$120,3,4)))) -> 3 | BL52: =iSummary!DN45 -> 38 | BM52: =iSummary!DO45 -> Shanghai | BN52: =iSummary!DP45 -> 69.3 | BO52: =iSummary!DN45 -> 38 | BP52: =iSummary!DO45 -> Shanghai | BQ52: =iSummary!DP45 -> 69.3 | BR52: =iSummary!DQ45 -> 69.3 | BS52: =iSummary!#REF! ->  | BT52: =iSummary!#REF! ->  | BU52: =iSummary!#REF! ->  | BV52: =iSummary!#REF! -> 
B53: =iSummary!Q46 -> 1 | C53: =IF(B53=0,0,IF(G53<=uxb_works!$B$122,1,IF(G53<=uxb_works!$B$121,2,IF(G53<=uxb_works!$B$120,3,4)))) -> 3 | E53: =iSummary!R46 -> 38 | F53: =iSummary!S46 -> Moscow | G53: =IF(ISNUMBER(iSummary!T46),ROUND(iSummary!T46,1),"") -> 62.5 | H53: =iSummary!W46 -> = | I53: =iSummary!X46 ->  | J53: =IF(iSummary!Y46=0,"",iSummary!Y46) ->  | K53: =iSummary!Z46 -> 1 | M53: =iSummary!AK46 -> 1 | N53: =IF(M53=0,0,IF(R53<=uxb_works!$B$122,1,IF(R53<=uxb_works!$B$121,2,IF(R53<=uxb_works!$B$120,3,4)))) -> 3 | P53: =iSummary!AL46 -> =37 | Q53: =iSummary!AM46 -> Shanghai | R53: =iSummary!AN46 -> 57.2 | S53: =iSummary!AQ46 -> = | T53: =iSummary!AR46 ->  | U53: =iSummary!AS46 -> 0 | V53: =iSummary!AT46 -> 1 | X53: =iSummary!BE46 -> 1 | Y53: =IF(X53=0,0,IF(AC53<=uxb_works!$B$122,1,IF(AC53<=uxb_works!$B$121,2,IF(AC53<=uxb_works!$B$120,3,4)))) -> 3 | AA53: =iSummary!BF46 -> 38 | AB53: =iSummary!BG46 -> Kuala Lumpur | AC53: =iSummary!BH46 -> 64 | AD53: =iSummary!BK46 -> = | AE53: =iSummary!BL46 ->  | AF53: =iSummary!BM46 -> 0 | AG53: =iSummary!BN46 -> 1 | AI53: =iSummary!BY46 -> 1 | AJ53: =IF(AI53=0,0,IF(AN53<=uxb_works!$B$122,1,IF(AN53<=uxb_works!$B$121,2,IF(AN53<=uxb_works!$B$120,3,4)))) -> 3 | AL53: =iSummary!BZ46 -> 38 | AM53: =iSummary!CA46 -> Sao Paulo | AN53: =iSummary!CB46 -> 66.5 | AO53: =iSummary!CE46 -> = | AP53: =iSummary!CF46 ->  | AQ53: =iSummary!CG46 -> 0 | AR53: =iSummary!CH46 -> 1 | AT53: =iSummary!CS46 -> 1 | AU53: =IF(AT53=0,0,IF(AY53<=uxb_works!$B$122,1,IF(AY53<=uxb_works!$B$121,2,IF(AY53<=uxb_works!$B$120,3,4)))) -> 3 | AW53: =iSummary!CT46 -> 38 | AX53: =iSummary!CU46 -> Ho Chi Minh City | AY53: =iSummary!CV46 -> 56.5 | AZ53: =iSummary!CY46 -> = | BA53: =iSummary!CZ46 ->  | BB53: =iSummary!DA46 -> 0 | BC53: =iSummary!DB46 -> 1 | BD53: =iSummary!#REF! ->  | BE53: =iSummary!#REF! ->  | BF53: =iSummary!#REF! ->  | BG53: =iSummary!#REF! ->  | BI53: =iSummary!DM46 -> 1 | BJ53: =IF(BI53=0,0,IF(BN53<=uxb_works!$B$122,1,IF(BN53<=uxb_works!$B$121,2,IF(BN53<=uxb_works!$B$120,3,4)))) -> 3 | BL53: =iSummary!DN46 -> 39 | BM53: =iSummary!DO46 -> Lagos | BN53: =iSummary!DP46 -> 68.8 | BO53: =iSummary!DN46 -> 39 | BP53: =iSummary!DO46 -> Lagos | BQ53: =iSummary!DP46 -> 68.8 | BR53: =iSummary!DQ46 -> 68.8 | BS53: =iSummary!#REF! ->  | BT53: =iSummary!#REF! ->  | BU53: =iSummary!#REF! ->  | BV53: =iSummary!#REF! -> 
B54: =iSummary!Q47 -> 1 | C54: =IF(B54=0,0,IF(G54<=uxb_works!$B$122,1,IF(G54<=uxb_works!$B$121,2,IF(G54<=uxb_works!$B$120,3,4)))) -> 3 | E54: =iSummary!R47 -> 39 | F54: =iSummary!S47 -> Rio de Janeiro | G54: =IF(ISNUMBER(iSummary!T47),ROUND(iSummary!T47,1),"") -> 61.8 | H54: =iSummary!W47 -> = | I54: =iSummary!X47 ->  | J54: =IF(iSummary!Y47=0,"",iSummary!Y47) ->  | K54: =iSummary!Z47 -> 1 | M54: =iSummary!AK47 -> 1 | N54: =IF(M54=0,0,IF(R54<=uxb_works!$B$122,1,IF(R54<=uxb_works!$B$121,2,IF(R54<=uxb_works!$B$120,3,4)))) -> 3 | P54: =iSummary!AL47 -> =39 | Q54: =iSummary!AM47 -> Rio de Janeiro | R54: =iSummary!AN47 -> 53.8 | S54: =iSummary!AQ47 -> = | T54: =iSummary!AR47 ->  | U54: =iSummary!AS47 -> 0 | V54: =iSummary!AT47 -> 1 | X54: =iSummary!BE47 -> 1 | Y54: =IF(X54=0,0,IF(AC54<=uxb_works!$B$122,1,IF(AC54<=uxb_works!$B$121,2,IF(AC54<=uxb_works!$B$120,3,4)))) -> 3 | AA54: =iSummary!BF47 -> 39 | AB54: =iSummary!BG47 -> Ho Chi Minh City | AC54: =iSummary!BH47 -> 63.9 | AD54: =iSummary!BK47 -> = | AE54: =iSummary!BL47 ->  | AF54: =iSummary!BM47 -> 0 | AG54: =iSummary!BN47 -> 1 | AI54: =iSummary!BY47 -> 1 | AJ54: =IF(AI54=0,0,IF(AN54<=uxb_works!$B$122,1,IF(AN54<=uxb_works!$B$121,2,IF(AN54<=uxb_works!$B$120,3,4)))) -> 3 | AL54: =iSummary!BZ47 -> 39 | AM54: =iSummary!CA47 -> Bangkok | AN54: =iSummary!CB47 -> 65.7 | AO54: =iSummary!CE47 -> = | AP54: =iSummary!CF47 ->  | AQ54: =iSummary!CG47 -> 0 | AR54: =iSummary!CH47 -> 1 | AT54: =iSummary!CS47 -> 1 | AU54: =IF(AT54=0,0,IF(AY54<=uxb_works!$B$122,1,IF(AY54<=uxb_works!$B$121,2,IF(AY54<=uxb_works!$B$120,3,4)))) -> 3 | AW54: =iSummary!CT47 -> 39 | AX54: =iSummary!CU47 -> Buenos Aires | AY54: =iSummary!CV47 -> 55.9 | AZ54: =iSummary!CY47 -> = | BA54: =iSummary!CZ47 ->  | BB54: =iSummary!DA47 -> 0 | BC54: =iSummary!DB47 -> 1 | BD54: =iSummary!#REF! ->  | BE54: =iSummary!#REF! ->  | BF54: =iSummary!#REF! ->  | BG54: =iSummary!#REF! ->  | BI54: =iSummary!DM47 -> 4 | BJ54: =IF(BI54=0,0,IF(BN54<=uxb_works!$B$122,1,IF(BN54<=uxb_works!$B$121,2,IF(BN54<=uxb_works!$B$120,3,4)))) -> 3 | BL54: =iSummary!DN47 ->  | BM54: =iSummary!DO47 -> AVERAGE | BN54: =iSummary!DP47 -> 68.5 | BO54: =iSummary!DN47 ->  | BP54: =iSummary!DO47 -> AVERAGE | BQ54: =iSummary!DP47 -> 68.5 | BR54: =iSummary!DQ47 ->  | BS54: =iSummary!#REF! ->  | BT54: =iSummary!#REF! ->  | BU54: =iSummary!#REF! ->  | BV54: =iSummary!#REF! -> 
B55: =iSummary!Q48 -> 1 | C55: =IF(B55=0,0,IF(G55<=uxb_works!$B$122,1,IF(G55<=uxb_works!$B$121,2,IF(G55<=uxb_works!$B$120,3,4)))) -> 3 | E55: =iSummary!R48 -> 40 | F55: =iSummary!S48 -> Sao Paulo | G55: =IF(ISNUMBER(iSummary!T48),ROUND(iSummary!T48,1),"") -> 61.7 | H55: =iSummary!W48 -> = | I55: =iSummary!X48 ->  | J55: =IF(iSummary!Y48=0,"",iSummary!Y48) ->  | K55: =iSummary!Z48 -> 1 | M55: =iSummary!AK48 -> 1 | N55: =IF(M55=0,0,IF(R55<=uxb_works!$B$122,1,IF(R55<=uxb_works!$B$121,2,IF(R55<=uxb_works!$B$120,3,4)))) -> 3 | P55: =iSummary!AL48 -> =39 | Q55: =iSummary!AM48 -> Sao Paulo | R55: =iSummary!AN48 -> 53.8 | S55: =iSummary!AQ48 -> = | T55: =iSummary!AR48 ->  | U55: =iSummary!AS48 -> 0 | V55: =iSummary!AT48 -> 1 | X55: =iSummary!BE48 -> 1 | Y55: =IF(X55=0,0,IF(AC55<=uxb_works!$B$122,1,IF(AC55<=uxb_works!$B$121,2,IF(AC55<=uxb_works!$B$120,3,4)))) -> 3 | AA55: =iSummary!BF48 -> 40 | AB55: =iSummary!BG48 -> New Delhi | AC55: =iSummary!BH48 -> 63.6 | AD55: =iSummary!BK48 -> = | AE55: =iSummary!BL48 ->  | AF55: =iSummary!BM48 -> 0 | AG55: =iSummary!BN48 -> 1 | AI55: =iSummary!BY48 -> 1 | AJ55: =IF(AI55=0,0,IF(AN55<=uxb_works!$B$122,1,IF(AN55<=uxb_works!$B$121,2,IF(AN55<=uxb_works!$B$120,3,4)))) -> 3 | AL55: =iSummary!BZ48 -> 40 | AM55: =iSummary!CA48 -> Jakarta | AN55: =iSummary!CB48 -> 63.7 | AO55: =iSummary!CE48 -> = | AP55: =iSummary!CF48 ->  | AQ55: =iSummary!CG48 -> 0 | AR55: =iSummary!CH48 -> 1 | AT55: =iSummary!CS48 -> 1 | AU55: =IF(AT55=0,0,IF(AY55<=uxb_works!$B$122,1,IF(AY55<=uxb_works!$B$121,2,IF(AY55<=uxb_works!$B$120,3,4)))) -> 3 | AW55: =iSummary!CT48 -> 40 | AX55: =iSummary!CU48 -> Sao Paulo | AY55: =iSummary!CV48 -> 53.9 | AZ55: =iSummary!CY48 -> = | BA55: =iSummary!CZ48 ->  | BB55: =iSummary!DA48 -> 0 | BC55: =iSummary!DB48 -> 1 | BD55: =iSummary!#REF! ->  | BE55: =iSummary!#REF! ->  | BF55: =iSummary!#REF! ->  | BG55: =iSummary!#REF! ->  | BI55: =iSummary!DM48 -> 1 | BJ55: =IF(BI55=0,0,IF(BN55<=uxb_works!$B$122,1,IF(BN55<=uxb_works!$B$121,2,IF(BN55<=uxb_works!$B$120,3,4)))) -> 3 | BL55: =iSummary!DN48 -> 40 | BM55: =iSummary!DO48 -> Ho Chi Minh City | BN55: =iSummary!DP48 -> 66.4 | BO55: =iSummary!DN48 -> 40 | BP55: =iSummary!DO48 -> Ho Chi Minh City | BQ55: =iSummary!DP48 -> 66.4 | BR55: =iSummary!DQ48 -> 66.4 | BS55: =iSummary!#REF! ->  | BT55: =iSummary!#REF! ->  | BU55: =iSummary!#REF! ->  | BV55: =iSummary!#REF! -> 
B56: =iSummary!Q49 -> 1 | C56: =IF(B56=0,0,IF(G56<=uxb_works!$B$122,1,IF(G56<=uxb_works!$B$121,2,IF(G56<=uxb_works!$B$120,3,4)))) -> 3 | E56: =iSummary!R49 -> 41 | F56: =iSummary!S49 -> Bogota | G56: =IF(ISNUMBER(iSummary!T49),ROUND(iSummary!T49,1),"") -> 60.8 | H56: =iSummary!W49 -> = | I56: =iSummary!X49 ->  | J56: =IF(iSummary!Y49=0,"",iSummary!Y49) ->  | K56: =iSummary!Z49 -> 1 | M56: =iSummary!AK49 -> 1 | N56: =IF(M56=0,0,IF(R56<=uxb_works!$B$122,1,IF(R56<=uxb_works!$B$121,2,IF(R56<=uxb_works!$B$120,3,4)))) -> 3 | P56: =iSummary!AL49 -> 41 | Q56: =iSummary!AM49 -> Casablanca | R56: =iSummary!AN49 -> 53.7 | S56: =iSummary!AQ49 -> = | T56: =iSummary!AR49 ->  | U56: =iSummary!AS49 -> 0 | V56: =iSummary!AT49 -> 1 | X56: =iSummary!BE49 -> 1 | Y56: =IF(X56=0,0,IF(AC56<=uxb_works!$B$122,1,IF(AC56<=uxb_works!$B$121,2,IF(AC56<=uxb_works!$B$120,3,4)))) -> 3 | AA56: =iSummary!BF49 -> 41 | AB56: =iSummary!BG49 -> Wellington | AC56: =iSummary!BH49 -> 63.4 | AD56: =iSummary!BK49 -> = | AE56: =iSummary!BL49 ->  | AF56: =iSummary!BM49 -> 0 | AG56: =iSummary!BN49 -> 1 | AI56: =iSummary!BY49 -> 1 | AJ56: =IF(AI56=0,0,IF(AN56<=uxb_works!$B$122,1,IF(AN56<=uxb_works!$B$121,2,IF(AN56<=uxb_works!$B$120,3,4)))) -> 3 | AL56: =iSummary!BZ49 -> 41 | AM56: =iSummary!CA49 -> Rio de Janeiro | AN56: =iSummary!CB49 -> 62.9 | AO56: =iSummary!CE49 -> = | AP56: =iSummary!CF49 ->  | AQ56: =iSummary!CG49 -> 0 | AR56: =iSummary!CH49 -> 1 | AT56: =iSummary!CS49 -> 1 | AU56: =IF(AT56=0,0,IF(AY56<=uxb_works!$B$122,1,IF(AY56<=uxb_works!$B$121,2,IF(AY56<=uxb_works!$B$120,3,4)))) -> 3 | AW56: =iSummary!CT49 -> 41 | AX56: =iSummary!CU49 -> New Delhi | AY56: =iSummary!CV49 -> 52.8 | AZ56: =iSummary!CY49 -> = | BA56: =iSummary!CZ49 ->  | BB56: =iSummary!DA49 -> 0 | BC56: =iSummary!DB49 -> 1 | BD56: =iSummary!#REF! ->  | BE56: =iSummary!#REF! ->  | BF56: =iSummary!#REF! ->  | BG56: =iSummary!#REF! ->  | BI56: =iSummary!DM49 -> 1 | BJ56: =IF(BI56=0,0,IF(BN56<=uxb_works!$B$122,1,IF(BN56<=uxb_works!$B$121,2,IF(BN56<=uxb_works!$B$120,3,4)))) -> 3 | BL56: =iSummary!DN49 -> 41 | BM56: =iSummary!DO49 -> Manila | BN56: =iSummary!DP49 -> 65.9 | BO56: =iSummary!DN49 -> 41 | BP56: =iSummary!DO49 -> Manila | BQ56: =iSummary!DP49 -> 65.9 | BR56: =iSummary!DQ49 -> 65.9 | BS56: =iSummary!#REF! ->  | BT56: =iSummary!#REF! ->  | BU56: =iSummary!#REF! ->  | BV56: =iSummary!#REF! -> 
B57: =iSummary!Q50 -> 1 | C57: =IF(B57=0,0,IF(G57<=uxb_works!$B$122,1,IF(G57<=uxb_works!$B$121,2,IF(G57<=uxb_works!$B$120,3,4)))) -> 3 | E57: =iSummary!R50 -> 42 | F57: =iSummary!S50 -> Mexico City | G57: =IF(ISNUMBER(iSummary!T50),ROUND(iSummary!T50,1),"") -> 60.3 | H57: =iSummary!W50 -> = | I57: =iSummary!X50 ->  | J57: =IF(iSummary!Y50=0,"",iSummary!Y50) ->  | K57: =iSummary!Z50 -> 1 | M57: =iSummary!AK50 -> 1 | N57: =IF(M57=0,0,IF(R57<=uxb_works!$B$122,1,IF(R57<=uxb_works!$B$121,2,IF(R57<=uxb_works!$B$120,3,4)))) -> 3 | P57: =iSummary!AL50 -> =42 | Q57: =iSummary!AM50 -> Johannesburg | R57: =iSummary!AN50 -> 53.1 | S57: =iSummary!AQ50 -> = | T57: =iSummary!AR50 ->  | U57: =iSummary!AS50 -> 0 | V57: =iSummary!AT50 -> 1 | X57: =iSummary!BE50 -> 1 | Y57: =IF(X57=0,0,IF(AC57<=uxb_works!$B$122,1,IF(AC57<=uxb_works!$B$121,2,IF(AC57<=uxb_works!$B$120,3,4)))) -> 3 | AA57: =iSummary!BF50 -> 42 | AB57: =iSummary!BG50 -> Milan | AC57: =iSummary!BH50 -> 61.3 | AD57: =iSummary!BK50 -> = | AE57: =iSummary!BL50 ->  | AF57: =iSummary!BM50 -> 0 | AG57: =iSummary!BN50 -> 1 | AI57: =iSummary!BY50 -> 1 | AJ57: =IF(AI57=0,0,IF(AN57<=uxb_works!$B$122,1,IF(AN57<=uxb_works!$B$121,2,IF(AN57<=uxb_works!$B$120,3,4)))) -> 3 | AL57: =iSummary!BZ50 -> 42 | AM57: =iSummary!CA50 -> Buenos Aires | AN57: =iSummary!CB50 -> 62.6 | AO57: =iSummary!CE50 -> = | AP57: =iSummary!CF50 ->  | AQ57: =iSummary!CG50 -> 0 | AR57: =iSummary!CH50 -> 1 | AT57: =iSummary!CS50 -> 1 | AU57: =IF(AT57=0,0,IF(AY57<=uxb_works!$B$122,1,IF(AY57<=uxb_works!$B$121,2,IF(AY57<=uxb_works!$B$120,3,4)))) -> 3 | AW57: =iSummary!CT50 -> 42 | AX57: =iSummary!CU50 -> Mexico City | AY57: =iSummary!CV50 -> 52.5 | AZ57: =iSummary!CY50 -> = | BA57: =iSummary!CZ50 ->  | BB57: =iSummary!DA50 -> 0 | BC57: =iSummary!DB50 -> 1 | BD57: =iSummary!#REF! ->  | BE57: =iSummary!#REF! ->  | BF57: =iSummary!#REF! ->  | BG57: =iSummary!#REF! ->  | BI57: =iSummary!DM50 -> 1 | BJ57: =IF(BI57=0,0,IF(BN57<=uxb_works!$B$122,1,IF(BN57<=uxb_works!$B$121,2,IF(BN57<=uxb_works!$B$120,3,4)))) -> 3 | BL57: =iSummary!DN50 -> 42 | BM57: =iSummary!DO50 -> Johannesburg | BN57: =iSummary!DP50 -> 65.6 | BO57: =iSummary!DN50 -> 42 | BP57: =iSummary!DO50 -> Johannesburg | BQ57: =iSummary!DP50 -> 65.6 | BR57: =iSummary!DQ50 -> 65.6 | BS57: =iSummary!#REF! ->  | BT57: =iSummary!#REF! ->  | BU57: =iSummary!#REF! ->  | BV57: =iSummary!#REF! -> 
B58: =iSummary!Q51 -> 1 | C58: =IF(B58=0,0,IF(G58<=uxb_works!$B$122,1,IF(G58<=uxb_works!$B$121,2,IF(G58<=uxb_works!$B$120,3,4)))) -> 3 | E58: =iSummary!R51 -> 43 | F58: =iSummary!S51 -> Bangkok | G58: =IF(ISNUMBER(iSummary!T51),ROUND(iSummary!T51,1),"") -> 60.2 | H58: =iSummary!W51 -> = | I58: =iSummary!X51 ->  | J58: =IF(iSummary!Y51=0,"",iSummary!Y51) ->  | K58: =iSummary!Z51 -> 1 | M58: =iSummary!AK51 -> 1 | N58: =IF(M58=0,0,IF(R58<=uxb_works!$B$122,1,IF(R58<=uxb_works!$B$121,2,IF(R58<=uxb_works!$B$120,3,4)))) -> 3 | P58: =iSummary!AL51 -> =42 | Q58: =iSummary!AM51 -> Riyadh | R58: =iSummary!AN51 -> 53.1 | S58: =iSummary!AQ51 -> = | T58: =iSummary!AR51 ->  | U58: =iSummary!AS51 -> 0 | V58: =iSummary!AT51 -> 1 | X58: =iSummary!BE51 -> 1 | Y58: =IF(X58=0,0,IF(AC58<=uxb_works!$B$122,1,IF(AC58<=uxb_works!$B$121,2,IF(AC58<=uxb_works!$B$120,3,4)))) -> 3 | AA58: =iSummary!BF51 -> 43 | AB58: =iSummary!BG51 -> Johannesburg | AC58: =iSummary!BH51 -> 61 | AD58: =iSummary!BK51 -> = | AE58: =iSummary!BL51 ->  | AF58: =iSummary!BM51 -> 0 | AG58: =iSummary!BN51 -> 1 | AI58: =iSummary!BY51 -> 1 | AJ58: =IF(AI58=0,0,IF(AN58<=uxb_works!$B$122,1,IF(AN58<=uxb_works!$B$121,2,IF(AN58<=uxb_works!$B$120,3,4)))) -> 3 | AL58: =iSummary!BZ51 -> 43 | AM58: =iSummary!CA51 -> Mexico City | AN58: =iSummary!CB51 -> 62.1 | AO58: =iSummary!CE51 -> = | AP58: =iSummary!CF51 ->  | AQ58: =iSummary!CG51 -> 0 | AR58: =iSummary!CH51 -> 1 | AT58: =iSummary!CS51 -> 1 | AU58: =IF(AT58=0,0,IF(AY58<=uxb_works!$B$122,1,IF(AY58<=uxb_works!$B$121,2,IF(AY58<=uxb_works!$B$120,3,4)))) -> 3 | AW58: =iSummary!CT51 -> 43 | AX58: =iSummary!CU51 -> Riyadh | AY58: =iSummary!CV51 -> 51.8 | AZ58: =iSummary!CY51 -> = | BA58: =iSummary!CZ51 ->  | BB58: =iSummary!DA51 -> 0 | BC58: =iSummary!DB51 -> 1 | BD58: =iSummary!#REF! ->  | BE58: =iSummary!#REF! ->  | BF58: =iSummary!#REF! ->  | BG58: =iSummary!#REF! ->  | BI58: =iSummary!DM51 -> 1 | BJ58: =IF(BI58=0,0,IF(BN58<=uxb_works!$B$122,1,IF(BN58<=uxb_works!$B$121,2,IF(BN58<=uxb_works!$B$120,3,4)))) -> 3 | BL58: =iSummary!DN51 -> 43 | BM58: =iSummary!DO51 -> Bangkok | BN58: =iSummary!DP51 -> 62.9 | BO58: =iSummary!DN51 -> 43 | BP58: =iSummary!DO51 -> Bangkok | BQ58: =iSummary!DP51 -> 62.9 | BR58: =iSummary!DQ51 -> 62.9 | BS58: =iSummary!#REF! ->  | BT58: =iSummary!#REF! ->  | BU58: =iSummary!#REF! ->  | BV58: =iSummary!#REF! -> 
B59: =iSummary!Q52 -> 1 | C59: =IF(B59=0,0,IF(G59<=uxb_works!$B$122,1,IF(G59<=uxb_works!$B$121,2,IF(G59<=uxb_works!$B$120,3,4)))) -> 3 | E59: =iSummary!R52 -> 44 | F59: =iSummary!S52 -> Quito | G59: =IF(ISNUMBER(iSummary!T52),ROUND(iSummary!T52,1),"") -> 58.8 | H59: =iSummary!W52 -> = | I59: =iSummary!X52 ->  | J59: =IF(iSummary!Y52=0,"",iSummary!Y52) ->  | K59: =iSummary!Z52 -> 1 | M59: =iSummary!AK52 -> 1 | N59: =IF(M59=0,0,IF(R59<=uxb_works!$B$122,1,IF(R59<=uxb_works!$B$121,2,IF(R59<=uxb_works!$B$120,3,4)))) -> 3 | P59: =iSummary!AL52 -> 44 | Q59: =iSummary!AM52 -> Bangkok | R59: =iSummary!AN52 -> 52.7 | S59: =iSummary!AQ52 -> = | T59: =iSummary!AR52 ->  | U59: =iSummary!AS52 -> 0 | V59: =iSummary!AT52 -> 1 | X59: =iSummary!BE52 -> 1 | Y59: =IF(X59=0,0,IF(AC59<=uxb_works!$B$122,1,IF(AC59<=uxb_works!$B$121,2,IF(AC59<=uxb_works!$B$120,3,4)))) -> 3 | AA59: =iSummary!BF52 -> 44 | AB59: =iSummary!BG52 -> Mumbai | AC59: =iSummary!BH52 -> 60.8 | AD59: =iSummary!BK52 -> = | AE59: =iSummary!BL52 ->  | AF59: =iSummary!BM52 -> 0 | AG59: =iSummary!BN52 -> 1 | AI59: =iSummary!BY52 -> 1 | AJ59: =IF(AI59=0,0,IF(AN59<=uxb_works!$B$122,1,IF(AN59<=uxb_works!$B$121,2,IF(AN59<=uxb_works!$B$120,3,4)))) -> 3 | AL59: =iSummary!BZ52 -> 44 | AM59: =iSummary!CA52 -> New Delhi | AN59: =iSummary!CB52 -> 59.8 | AO59: =iSummary!CE52 -> = | AP59: =iSummary!CF52 ->  | AQ59: =iSummary!CG52 -> 0 | AR59: =iSummary!CH52 -> 1 | AT59: =iSummary!CS52 -> 1 | AU59: =IF(AT59=0,0,IF(AY59<=uxb_works!$B$122,1,IF(AY59<=uxb_works!$B$121,2,IF(AY59<=uxb_works!$B$120,3,4)))) -> 3 | AW59: =iSummary!CT52 -> 44 | AX59: =iSummary!CU52 -> Johannesburg | AY59: =iSummary!CV52 -> 51.7 | AZ59: =iSummary!CY52 -> = | BA59: =iSummary!CZ52 ->  | BB59: =iSummary!DA52 -> 0 | BC59: =iSummary!DB52 -> 1 | BD59: =iSummary!#REF! ->  | BE59: =iSummary!#REF! ->  | BF59: =iSummary!#REF! ->  | BG59: =iSummary!#REF! ->  | BI59: =iSummary!DM52 -> 1 | BJ59: =IF(BI59=0,0,IF(BN59<=uxb_works!$B$122,1,IF(BN59<=uxb_works!$B$121,2,IF(BN59<=uxb_works!$B$120,3,4)))) -> 3 | BL59: =iSummary!DN52 -> 44 | BM59: =iSummary!DO52 -> Istanbul | BN59: =iSummary!DP52 -> 62.8 | BO59: =iSummary!DN52 -> 44 | BP59: =iSummary!DO52 -> Istanbul | BQ59: =iSummary!DP52 -> 62.8 | BR59: =iSummary!DQ52 -> 62.8 | BS59: =iSummary!#REF! ->  | BT59: =iSummary!#REF! ->  | BU59: =iSummary!#REF! ->  | BV59: =iSummary!#REF! -> 
B60: =iSummary!Q53 -> 1 | C60: =IF(B60=0,0,IF(G60<=uxb_works!$B$122,1,IF(G60<=uxb_works!$B$121,2,IF(G60<=uxb_works!$B$120,3,4)))) -> 3 | E60: =iSummary!R53 -> 45 | F60: =iSummary!S53 -> Ho Chi Minh City | G60: =IF(ISNUMBER(iSummary!T53),ROUND(iSummary!T53,1),"") -> 58.5 | H60: =iSummary!W53 -> = | I60: =iSummary!X53 ->  | J60: =IF(iSummary!Y53=0,"",iSummary!Y53) ->  | K60: =iSummary!Z53 -> 1 | M60: =iSummary!AK53 -> 1 | N60: =IF(M60=0,0,IF(R60<=uxb_works!$B$122,1,IF(R60<=uxb_works!$B$121,2,IF(R60<=uxb_works!$B$120,3,4)))) -> 3 | P60: =iSummary!AL53 -> 45 | Q60: =iSummary!AM53 -> Beijing | R60: =iSummary!AN53 -> 52.2 | S60: =iSummary!AQ53 -> = | T60: =iSummary!AR53 ->  | U60: =iSummary!AS53 -> 0 | V60: =iSummary!AT53 -> 1 | X60: =iSummary!BE53 -> 1 | Y60: =IF(X60=0,0,IF(AC60<=uxb_works!$B$122,1,IF(AC60<=uxb_works!$B$121,2,IF(AC60<=uxb_works!$B$120,3,4)))) -> 3 | AA60: =iSummary!BF53 -> 45 | AB60: =iSummary!BG53 -> Bogota | AC60: =iSummary!BH53 -> 59 | AD60: =iSummary!BK53 -> = | AE60: =iSummary!BL53 ->  | AF60: =iSummary!BM53 -> 0 | AG60: =iSummary!BN53 -> 1 | AI60: =iSummary!BY53 -> 1 | AJ60: =IF(AI60=0,0,IF(AN60<=uxb_works!$B$122,1,IF(AN60<=uxb_works!$B$121,2,IF(AN60<=uxb_works!$B$120,3,4)))) -> 3 | AL60: =iSummary!BZ53 -> 45 | AM60: =iSummary!CA53 -> Ho Chi Minh City | AN60: =iSummary!CB53 -> 59.5 | AO60: =iSummary!CE53 -> = | AP60: =iSummary!CF53 ->  | AQ60: =iSummary!CG53 -> 0 | AR60: =iSummary!CH53 -> 1 | AT60: =iSummary!CS53 -> 1 | AU60: =IF(AT60=0,0,IF(AY60<=uxb_works!$B$122,1,IF(AY60<=uxb_works!$B$121,2,IF(AY60<=uxb_works!$B$120,3,4)))) -> 3 | AW60: =iSummary!CT53 -> =45 | AX60: =iSummary!CU53 -> Bogota | AY60: =iSummary!CV53 -> 50.9 | AZ60: =iSummary!CY53 -> = | BA60: =iSummary!CZ53 ->  | BB60: =iSummary!DA53 -> 0 | BC60: =iSummary!DB53 -> 1 | BD60: =iSummary!#REF! ->  | BE60: =iSummary!#REF! ->  | BF60: =iSummary!#REF! ->  | BG60: =iSummary!#REF! ->  | BI60: =iSummary!DM53 -> 1 | BJ60: =IF(BI60=0,0,IF(BN60<=uxb_works!$B$122,1,IF(BN60<=uxb_works!$B$121,2,IF(BN60<=uxb_works!$B$120,3,4)))) -> 3 | BL60: =iSummary!DN53 -> 45 | BM60: =iSummary!DO53 -> Moscow | BN60: =iSummary!DP53 -> 60.5 | BO60: =iSummary!DN53 -> 45 | BP60: =iSummary!DO53 -> Moscow | BQ60: =iSummary!DP53 -> 60.5 | BR60: =iSummary!DQ53 -> 60.5 | BS60: =iSummary!#REF! ->  | BT60: =iSummary!#REF! ->  | BU60: =iSummary!#REF! ->  | BV60: =iSummary!#REF! -> 
B61: =iSummary!Q54 -> 1 | C61: =IF(B61=0,0,IF(G61<=uxb_works!$B$122,1,IF(G61<=uxb_works!$B$121,2,IF(G61<=uxb_works!$B$120,3,4)))) -> 3 | E61: =iSummary!R54 -> 46 | F61: =iSummary!S54 -> Jakarta | G61: =IF(ISNUMBER(iSummary!T54),ROUND(iSummary!T54,1),"") -> 56.4 | H61: =iSummary!W54 -> = | I61: =iSummary!X54 ->  | J61: =IF(iSummary!Y54=0,"",iSummary!Y54) ->  | K61: =iSummary!Z54 -> 1 | M61: =iSummary!AK54 -> 1 | N61: =IF(M61=0,0,IF(R61<=uxb_works!$B$122,1,IF(R61<=uxb_works!$B$121,2,IF(R61<=uxb_works!$B$120,3,4)))) -> 3 | P61: =iSummary!AL54 -> 46 | Q61: =iSummary!AM54 -> Bogota | R61: =iSummary!AN54 -> 51.6 | S61: =iSummary!AQ54 -> = | T61: =iSummary!AR54 ->  | U61: =iSummary!AS54 -> 0 | V61: =iSummary!AT54 -> 1 | X61: =iSummary!BE54 -> 1 | Y61: =IF(X61=0,0,IF(AC61<=uxb_works!$B$122,1,IF(AC61<=uxb_works!$B$121,2,IF(AC61<=uxb_works!$B$120,3,4)))) -> 3 | AA61: =iSummary!BF54 -> 46 | AB61: =iSummary!BG54 -> Jakarta | AC61: =iSummary!BH54 -> 58.9 | AD61: =iSummary!BK54 -> = | AE61: =iSummary!BL54 ->  | AF61: =iSummary!BM54 -> 0 | AG61: =iSummary!BN54 -> 1 | AI61: =iSummary!BY54 -> 1 | AJ61: =IF(AI61=0,0,IF(AN61<=uxb_works!$B$122,1,IF(AN61<=uxb_works!$B$121,2,IF(AN61<=uxb_works!$B$120,3,4)))) -> 3 | AL61: =iSummary!BZ54 -> 46 | AM61: =iSummary!CA54 -> Quito | AN61: =iSummary!CB54 -> 59.1 | AO61: =iSummary!CE54 -> = | AP61: =iSummary!CF54 ->  | AQ61: =iSummary!CG54 -> 0 | AR61: =iSummary!CH54 -> 1 | AT61: =iSummary!CS54 -> 1 | AU61: =IF(AT61=0,0,IF(AY61<=uxb_works!$B$122,1,IF(AY61<=uxb_works!$B$121,2,IF(AY61<=uxb_works!$B$120,3,4)))) -> 3 | AW61: =iSummary!CT54 -> =45 | AX61: =iSummary!CU54 -> Quito | AY61: =iSummary!CV54 -> 50.9 | AZ61: =iSummary!CY54 -> = | BA61: =iSummary!CZ54 ->  | BB61: =iSummary!DA54 -> 0 | BC61: =iSummary!DB54 -> 1 | BD61: =iSummary!#REF! ->  | BE61: =iSummary!#REF! ->  | BF61: =iSummary!#REF! ->  | BG61: =iSummary!#REF! ->  | BI61: =iSummary!DM54 -> 1 | BJ61: =IF(BI61=0,0,IF(BN61<=uxb_works!$B$122,1,IF(BN61<=uxb_works!$B$121,2,IF(BN61<=uxb_works!$B$120,3,4)))) -> 3 | BL61: =iSummary!DN54 -> 46 | BM61: =iSummary!DO54 -> Mumbai | BN61: =iSummary!DP54 -> 60.1 | BO61: =iSummary!DN54 -> 46 | BP61: =iSummary!DO54 -> Mumbai | BQ61: =iSummary!DP54 -> 60.1 | BR61: =iSummary!DQ54 -> 60.1 | BS61: =iSummary!#REF! ->  | BT61: =iSummary!#REF! ->  | BU61: =iSummary!#REF! ->  | BV61: =iSummary!#REF! -> 
B62: =iSummary!Q55 -> 1 | C62: =IF(B62=0,0,IF(G62<=uxb_works!$B$122,1,IF(G62<=uxb_works!$B$121,2,IF(G62<=uxb_works!$B$120,3,4)))) -> 3 | E62: =iSummary!R55 -> 47 | F62: =iSummary!S55 -> Johannesburg | G62: =IF(ISNUMBER(iSummary!T55),ROUND(iSummary!T55,1),"") -> 56.2 | H62: =iSummary!W55 -> = | I62: =iSummary!X55 ->  | J62: =IF(iSummary!Y55=0,"",iSummary!Y55) ->  | K62: =iSummary!Z55 -> 1 | M62: =iSummary!AK55 -> 1 | N62: =IF(M62=0,0,IF(R62<=uxb_works!$B$122,1,IF(R62<=uxb_works!$B$121,2,IF(R62<=uxb_works!$B$120,3,4)))) -> 2 | P62: =iSummary!AL55 -> 47 | Q62: =iSummary!AM55 -> Baku | R62: =iSummary!AN55 -> 48.9 | S62: =iSummary!AQ55 -> = | T62: =iSummary!AR55 ->  | U62: =iSummary!AS55 -> 0 | V62: =iSummary!AT55 -> 1 | X62: =iSummary!BE55 -> 1 | Y62: =IF(X62=0,0,IF(AC62<=uxb_works!$B$122,1,IF(AC62<=uxb_works!$B$121,2,IF(AC62<=uxb_works!$B$120,3,4)))) -> 3 | AA62: =iSummary!BF55 -> 47 | AB62: =iSummary!BG55 -> Quito | AC62: =iSummary!BH55 -> 58.3 | AD62: =iSummary!BK55 -> = | AE62: =iSummary!BL55 ->  | AF62: =iSummary!BM55 -> 0 | AG62: =iSummary!BN55 -> 1 | AI62: =iSummary!BY55 -> 1 | AJ62: =IF(AI62=0,0,IF(AN62<=uxb_works!$B$122,1,IF(AN62<=uxb_works!$B$121,2,IF(AN62<=uxb_works!$B$120,3,4)))) -> 3 | AL62: =iSummary!BZ55 -> 47 | AM62: =iSummary!CA55 -> Baku | AN62: =iSummary!CB55 -> 58.6 | AO62: =iSummary!CE55 -> = | AP62: =iSummary!CF55 ->  | AQ62: =iSummary!CG55 -> 0 | AR62: =iSummary!CH55 -> 1 | AT62: =iSummary!CS55 -> 1 | AU62: =IF(AT62=0,0,IF(AY62<=uxb_works!$B$122,1,IF(AY62<=uxb_works!$B$121,2,IF(AY62<=uxb_works!$B$120,3,4)))) -> 2 | AW62: =iSummary!CT55 -> 47 | AX62: =iSummary!CU55 -> Moscow | AY62: =iSummary!CV55 -> 49.9 | AZ62: =iSummary!CY55 -> = | BA62: =iSummary!CZ55 ->  | BB62: =iSummary!DA55 -> 0 | BC62: =iSummary!DB55 -> 1 | BD62: =iSummary!#REF! ->  | BE62: =iSummary!#REF! ->  | BF62: =iSummary!#REF! ->  | BG62: =iSummary!#REF! ->  | BI62: =iSummary!DM55 -> 1 | BJ62: =IF(BI62=0,0,IF(BN62<=uxb_works!$B$122,1,IF(BN62<=uxb_works!$B$121,2,IF(BN62<=uxb_works!$B$120,3,4)))) -> 3 | BL62: =iSummary!DN55 -> 47 | BM62: =iSummary!DO55 -> Dhaka | BN62: =iSummary!DP55 -> 58.2 | BO62: =iSummary!DN55 -> 47 | BP62: =iSummary!DO55 -> Dhaka | BQ62: =iSummary!DP55 -> 58.2 | BR62: =iSummary!DQ55 -> 58.2 | BS62: =iSummary!#REF! ->  | BT62: =iSummary!#REF! ->  | BU62: =iSummary!#REF! ->  | BV62: =iSummary!#REF! -> 
B63: =iSummary!Q56 -> 1 | C63: =IF(B63=0,0,IF(G63<=uxb_works!$B$122,1,IF(G63<=uxb_works!$B$121,2,IF(G63<=uxb_works!$B$120,3,4)))) -> 3 | E63: =iSummary!R56 -> 48 | F63: =iSummary!S56 -> New Delhi | G63: =IF(ISNUMBER(iSummary!T56),ROUND(iSummary!T56,1),"") -> 56.1 | H63: =iSummary!W56 -> = | I63: =iSummary!X56 ->  | J63: =IF(iSummary!Y56=0,"",iSummary!Y56) ->  | K63: =iSummary!Z56 -> 1 | M63: =iSummary!AK56 -> 1 | N63: =IF(M63=0,0,IF(R63<=uxb_works!$B$122,1,IF(R63<=uxb_works!$B$121,2,IF(R63<=uxb_works!$B$120,3,4)))) -> 2 | P63: =iSummary!AL56 -> 48 | Q63: =iSummary!AM56 -> New Delhi | R63: =iSummary!AN56 -> 47.5 | S63: =iSummary!AQ56 -> = | T63: =iSummary!AR56 ->  | U63: =iSummary!AS56 -> 0 | V63: =iSummary!AT56 -> 1 | X63: =iSummary!BE56 -> 1 | Y63: =IF(X63=0,0,IF(AC63<=uxb_works!$B$122,1,IF(AC63<=uxb_works!$B$121,2,IF(AC63<=uxb_works!$B$120,3,4)))) -> 3 | AA63: =iSummary!BF56 -> 48 | AB63: =iSummary!BG56 -> Sao Paulo | AC63: =iSummary!BH56 -> 57.7 | AD63: =iSummary!BK56 -> = | AE63: =iSummary!BL56 ->  | AF63: =iSummary!BM56 -> 0 | AG63: =iSummary!BN56 -> 1 | AI63: =iSummary!BY56 -> 1 | AJ63: =IF(AI63=0,0,IF(AN63<=uxb_works!$B$122,1,IF(AN63<=uxb_works!$B$121,2,IF(AN63<=uxb_works!$B$120,3,4)))) -> 3 | AL63: =iSummary!BZ56 -> 48 | AM63: =iSummary!CA56 -> Mumbai | AN63: =iSummary!CB56 -> 57.3 | AO63: =iSummary!CE56 -> = | AP63: =iSummary!CF56 ->  | AQ63: =iSummary!CG56 -> 0 | AR63: =iSummary!CH56 -> 1 | AT63: =iSummary!CS56 -> 1 | AU63: =IF(AT63=0,0,IF(AY63<=uxb_works!$B$122,1,IF(AY63<=uxb_works!$B$121,2,IF(AY63<=uxb_works!$B$120,3,4)))) -> 2 | AW63: =iSummary!CT56 -> 48 | AX63: =iSummary!CU56 -> Istanbul | AY63: =iSummary!CV56 -> 48.8 | AZ63: =iSummary!CY56 -> = | BA63: =iSummary!CZ56 ->  | BB63: =iSummary!DA56 -> 0 | BC63: =iSummary!DB56 -> 1 | BD63: =iSummary!#REF! ->  | BE63: =iSummary!#REF! ->  | BF63: =iSummary!#REF! ->  | BG63: =iSummary!#REF! ->  | BI63: =iSummary!DM56 -> 1 | BJ63: =IF(BI63=0,0,IF(BN63<=uxb_works!$B$122,1,IF(BN63<=uxb_works!$B$121,2,IF(BN63<=uxb_works!$B$120,3,4)))) -> 3 | BL63: =iSummary!DN56 -> 48 | BM63: =iSummary!DO56 -> Beijing | BN63: =iSummary!DP56 -> 57 | BO63: =iSummary!DN56 -> 48 | BP63: =iSummary!DO56 -> Beijing | BQ63: =iSummary!DP56 -> 57 | BR63: =iSummary!DQ56 -> 57 | BS63: =iSummary!#REF! ->  | BT63: =iSummary!#REF! ->  | BU63: =iSummary!#REF! ->  | BV63: =iSummary!#REF! -> 
B64: =iSummary!Q57 -> 1 | C64: =IF(B64=0,0,IF(G64<=uxb_works!$B$122,1,IF(G64<=uxb_works!$B$121,2,IF(G64<=uxb_works!$B$120,3,4)))) -> 3 | E64: =iSummary!R57 -> 49 | F64: =iSummary!S57 -> Riyadh | G64: =IF(ISNUMBER(iSummary!T57),ROUND(iSummary!T57,1),"") -> 55.1 | H64: =iSummary!W57 -> = | I64: =iSummary!X57 ->  | J64: =IF(iSummary!Y57=0,"",iSummary!Y57) ->  | K64: =iSummary!Z57 -> 1 | M64: =iSummary!AK57 -> 1 | N64: =IF(M64=0,0,IF(R64<=uxb_works!$B$122,1,IF(R64<=uxb_works!$B$121,2,IF(R64<=uxb_works!$B$120,3,4)))) -> 2 | P64: =iSummary!AL57 -> 49 | Q64: =iSummary!AM57 -> Manila | R64: =iSummary!AN57 -> 47.4 | S64: =iSummary!AQ57 -> = | T64: =iSummary!AR57 ->  | U64: =iSummary!AS57 -> 0 | V64: =iSummary!AT57 -> 1 | X64: =iSummary!BE57 -> 1 | Y64: =IF(X64=0,0,IF(AC64<=uxb_works!$B$122,1,IF(AC64<=uxb_works!$B$121,2,IF(AC64<=uxb_works!$B$120,3,4)))) -> 3 | AA64: =iSummary!BF57 -> 49 | AB64: =iSummary!BG57 -> Lisbon | AC64: =iSummary!BH57 -> 57.5 | AD64: =iSummary!BK57 -> = | AE64: =iSummary!BL57 ->  | AF64: =iSummary!BM57 -> 0 | AG64: =iSummary!BN57 -> 1 | AI64: =iSummary!BY57 -> 1 | AJ64: =IF(AI64=0,0,IF(AN64<=uxb_works!$B$122,1,IF(AN64<=uxb_works!$B$121,2,IF(AN64<=uxb_works!$B$120,3,4)))) -> 3 | AL64: =iSummary!BZ57 -> 49 | AM64: =iSummary!CA57 -> Bogota | AN64: =iSummary!CB57 -> 57 | AO64: =iSummary!CE57 -> = | AP64: =iSummary!CF57 ->  | AQ64: =iSummary!CG57 -> 0 | AR64: =iSummary!CH57 -> 1 | AT64: =iSummary!CS57 -> 1 | AU64: =IF(AT64=0,0,IF(AY64<=uxb_works!$B$122,1,IF(AY64<=uxb_works!$B$121,2,IF(AY64<=uxb_works!$B$120,3,4)))) -> 2 | AW64: =iSummary!CT57 -> 49 | AX64: =iSummary!CU57 -> Casablanca | AY64: =iSummary!CV57 -> 48.5 | AZ64: =iSummary!CY57 -> = | BA64: =iSummary!CZ57 ->  | BB64: =iSummary!DA57 -> 0 | BC64: =iSummary!DB57 -> 1 | BD64: =iSummary!#REF! ->  | BE64: =iSummary!#REF! ->  | BF64: =iSummary!#REF! ->  | BG64: =iSummary!#REF! ->  | BI64: =iSummary!DM57 -> 1 | BJ64: =IF(BI64=0,0,IF(BN64<=uxb_works!$B$122,1,IF(BN64<=uxb_works!$B$121,2,IF(BN64<=uxb_works!$B$120,3,4)))) -> 3 | BL64: =iSummary!DN57 -> 49 | BM64: =iSummary!DO57 -> New Delhi | BN64: =iSummary!DP57 -> 56.8 | BO64: =iSummary!DN57 -> 49 | BP64: =iSummary!DO57 -> New Delhi | BQ64: =iSummary!DP57 -> 56.8 | BR64: =iSummary!DQ57 -> 56.8 | BS64: =iSummary!#REF! ->  | BT64: =iSummary!#REF! ->  | BU64: =iSummary!#REF! ->  | BV64: =iSummary!#REF! -> 
B65: =iSummary!Q58 -> 1 | C65: =IF(B65=0,0,IF(G65<=uxb_works!$B$122,1,IF(G65<=uxb_works!$B$121,2,IF(G65<=uxb_works!$B$120,3,4)))) -> 3 | E65: =iSummary!R58 -> 50 | F65: =iSummary!S58 -> Mumbai | G65: =IF(ISNUMBER(iSummary!T58),ROUND(iSummary!T58,1),"") -> 54.4 | H65: =iSummary!W58 -> = | I65: =iSummary!X58 ->  | J65: =IF(iSummary!Y58=0,"",iSummary!Y58) ->  | K65: =iSummary!Z58 -> 1 | M65: =iSummary!AK58 -> 1 | N65: =IF(M65=0,0,IF(R65<=uxb_works!$B$122,1,IF(R65<=uxb_works!$B$121,2,IF(R65<=uxb_works!$B$120,3,4)))) -> 2 | P65: =iSummary!AL58 -> 50 | Q65: =iSummary!AM58 -> Lagos | R65: =iSummary!AN58 -> 46.4 | S65: =iSummary!AQ58 -> = | T65: =iSummary!AR58 ->  | U65: =iSummary!AS58 -> 0 | V65: =iSummary!AT58 -> 1 | X65: =iSummary!BE58 -> 1 | Y65: =IF(X65=0,0,IF(AC65<=uxb_works!$B$122,1,IF(AC65<=uxb_works!$B$121,2,IF(AC65<=uxb_works!$B$120,3,4)))) -> 3 | AA65: =iSummary!BF58 -> 50 | AB65: =iSummary!BG58 -> Mexico City | AC65: =iSummary!BH58 -> 57.4 | AD65: =iSummary!BK58 -> = | AE65: =iSummary!BL58 ->  | AF65: =iSummary!BM58 -> 0 | AG65: =iSummary!BN58 -> 1 | AI65: =iSummary!BY58 -> 1 | AJ65: =IF(AI65=0,0,IF(AN65<=uxb_works!$B$122,1,IF(AN65<=uxb_works!$B$121,2,IF(AN65<=uxb_works!$B$120,3,4)))) -> 3 | AL65: =iSummary!BZ58 -> 50 | AM65: =iSummary!CA58 -> Riyadh | AN65: =iSummary!CB58 -> 55.2 | AO65: =iSummary!CE58 -> = | AP65: =iSummary!CF58 ->  | AQ65: =iSummary!CG58 -> 0 | AR65: =iSummary!CH58 -> 1 | AT65: =iSummary!CS58 -> 1 | AU65: =IF(AT65=0,0,IF(AY65<=uxb_works!$B$122,1,IF(AY65<=uxb_works!$B$121,2,IF(AY65<=uxb_works!$B$120,3,4)))) -> 2 | AW65: =iSummary!CT58 -> 50 | AX65: =iSummary!CU58 -> Mumbai | AY65: =iSummary!CV58 -> 48.2 | AZ65: =iSummary!CY58 -> = | BA65: =iSummary!CZ58 ->  | BB65: =iSummary!DA58 -> 0 | BC65: =iSummary!DB58 -> 1 | BD65: =iSummary!#REF! ->  | BE65: =iSummary!#REF! ->  | BF65: =iSummary!#REF! ->  | BG65: =iSummary!#REF! ->  | BI65: =iSummary!DM58 -> 1 | BJ65: =IF(BI65=0,0,IF(BN65<=uxb_works!$B$122,1,IF(BN65<=uxb_works!$B$121,2,IF(BN65<=uxb_works!$B$120,3,4)))) -> 3 | BL65: =iSummary!DN58 -> 50 | BM65: =iSummary!DO58 -> Santiago | BN65: =iSummary!DP58 -> 54.3 | BO65: =iSummary!DN58 -> 50 | BP65: =iSummary!DO58 -> Santiago | BQ65: =iSummary!DP58 -> 54.3 | BR65: =iSummary!DQ58 -> 54.3 | BS65: =iSummary!#REF! ->  | BT65: =iSummary!#REF! ->  | BU65: =iSummary!#REF! ->  | BV65: =iSummary!#REF! -> 
B66: =iSummary!Q59 -> 1 | C66: =IF(B66=0,0,IF(G66<=uxb_works!$B$122,1,IF(G66<=uxb_works!$B$121,2,IF(G66<=uxb_works!$B$120,3,4)))) -> 3 | E66: =iSummary!R59 -> 51 | F66: =iSummary!S59 -> Manila | G66: =IF(ISNUMBER(iSummary!T59),ROUND(iSummary!T59,1),"") -> 52.5 | H66: =iSummary!W59 -> = | I66: =iSummary!X59 ->  | J66: =IF(iSummary!Y59=0,"",iSummary!Y59) ->  | K66: =iSummary!Z59 -> 1 | M66: =iSummary!AK59 -> 1 | N66: =IF(M66=0,0,IF(R66<=uxb_works!$B$122,1,IF(R66<=uxb_works!$B$121,2,IF(R66<=uxb_works!$B$120,3,4)))) -> 2 | P66: =iSummary!AL59 -> 51 | Q66: =iSummary!AM59 -> Ho Chi Minh City | R66: =iSummary!AN59 -> 46.2 | S66: =iSummary!AQ59 -> = | T66: =iSummary!AR59 ->  | U66: =iSummary!AS59 -> 0 | V66: =iSummary!AT59 -> 1 | X66: =iSummary!BE59 -> 1 | Y66: =IF(X66=0,0,IF(AC66<=uxb_works!$B$122,1,IF(AC66<=uxb_works!$B$121,2,IF(AC66<=uxb_works!$B$120,3,4)))) -> 3 | AA66: =iSummary!BF59 -> 51 | AB66: =iSummary!BG59 -> Casablanca | AC66: =iSummary!BH59 -> 51.4 | AD66: =iSummary!BK59 -> = | AE66: =iSummary!BL59 ->  | AF66: =iSummary!BM59 -> 0 | AG66: =iSummary!BN59 -> 1 | AI66: =iSummary!BY59 -> 1 | AJ66: =IF(AI66=0,0,IF(AN66<=uxb_works!$B$122,1,IF(AN66<=uxb_works!$B$121,2,IF(AN66<=uxb_works!$B$120,3,4)))) -> 3 | AL66: =iSummary!BZ59 -> 51 | AM66: =iSummary!CA59 -> Kuwait city | AN66: =iSummary!CB59 -> 53.4 | AO66: =iSummary!CE59 -> = | AP66: =iSummary!CF59 ->  | AQ66: =iSummary!CG59 -> 0 | AR66: =iSummary!CH59 -> 1 | AT66: =iSummary!CS59 -> 1 | AU66: =IF(AT66=0,0,IF(AY66<=uxb_works!$B$122,1,IF(AY66<=uxb_works!$B$121,2,IF(AY66<=uxb_works!$B$120,3,4)))) -> 2 | AW66: =iSummary!CT59 -> 51 | AX66: =iSummary!CU59 -> Cairo | AY66: =iSummary!CV59 -> 48.1 | AZ66: =iSummary!CY59 -> = | BA66: =iSummary!CZ59 ->  | BB66: =iSummary!DA59 -> 0 | BC66: =iSummary!DB59 -> 1 | BD66: =iSummary!#REF! ->  | BE66: =iSummary!#REF! ->  | BF66: =iSummary!#REF! ->  | BG66: =iSummary!#REF! ->  | BI66: =iSummary!DM59 -> 1 | BJ66: =IF(BI66=0,0,IF(BN66<=uxb_works!$B$122,1,IF(BN66<=uxb_works!$B$121,2,IF(BN66<=uxb_works!$B$120,3,4)))) -> 2 | BL66: =iSummary!DN59 -> =51 | BM66: =iSummary!DO59 -> Abu Dhabi | BN66: =iSummary!DP59 -> 46.7 | BO66: =iSummary!DN59 -> =51 | BP66: =iSummary!DO59 -> Abu Dhabi | BQ66: =iSummary!DP59 -> 46.7 | BR66: =iSummary!DQ59 -> 46.7 | BS66: =iSummary!#REF! ->  | BT66: =iSummary!#REF! ->  | BU66: =iSummary!#REF! ->  | BV66: =iSummary!#REF! -> 
B67: =iSummary!Q60 -> 1 | C67: =IF(B67=0,0,IF(G67<=uxb_works!$B$122,1,IF(G67<=uxb_works!$B$121,2,IF(G67<=uxb_works!$B$120,3,4)))) -> 2 | E67: =iSummary!R60 -> 52 | F67: =iSummary!S60 -> Baku | G67: =IF(ISNUMBER(iSummary!T60),ROUND(iSummary!T60,1),"") -> 49.8 | H67: =iSummary!W60 -> = | I67: =iSummary!X60 ->  | J67: =IF(iSummary!Y60=0,"",iSummary!Y60) ->  | K67: =iSummary!Z60 -> 1 | M67: =iSummary!AK60 -> 1 | N67: =IF(M67=0,0,IF(R67<=uxb_works!$B$122,1,IF(R67<=uxb_works!$B$121,2,IF(R67<=uxb_works!$B$120,3,4)))) -> 2 | P67: =iSummary!AL60 -> 52 | Q67: =iSummary!AM60 -> Quito | R67: =iSummary!AN60 -> 45.7 | S67: =iSummary!AQ60 -> = | T67: =iSummary!AR60 ->  | U67: =iSummary!AS60 -> 0 | V67: =iSummary!AT60 -> 1 | X67: =iSummary!BE60 -> 1 | Y67: =IF(X67=0,0,IF(AC67<=uxb_works!$B$122,1,IF(AC67<=uxb_works!$B$121,2,IF(AC67<=uxb_works!$B$120,3,4)))) -> 3 | AA67: =iSummary!BF60 -> 52 | AB67: =iSummary!BG60 -> Dhaka | AC67: =iSummary!BH60 -> 50.9 | AD67: =iSummary!BK60 -> = | AE67: =iSummary!BL60 ->  | AF67: =iSummary!BM60 -> 0 | AG67: =iSummary!BN60 -> 1 | AI67: =iSummary!BY60 -> 1 | AJ67: =IF(AI67=0,0,IF(AN67<=uxb_works!$B$122,1,IF(AN67<=uxb_works!$B$121,2,IF(AN67<=uxb_works!$B$120,3,4)))) -> 3 | AL67: =iSummary!BZ60 -> 52 | AM67: =iSummary!CA60 -> Manila | AN67: =iSummary!CB60 -> 52.9 | AO67: =iSummary!CE60 -> = | AP67: =iSummary!CF60 ->  | AQ67: =iSummary!CG60 -> 0 | AR67: =iSummary!CH60 -> 1 | AT67: =iSummary!CS60 -> 1 | AU67: =IF(AT67=0,0,IF(AY67<=uxb_works!$B$122,1,IF(AY67<=uxb_works!$B$121,2,IF(AY67<=uxb_works!$B$120,3,4)))) -> 2 | AW67: =iSummary!CT60 -> 52 | AX67: =iSummary!CU60 -> Jakarta | AY67: =iSummary!CV60 -> 47.6 | AZ67: =iSummary!CY60 -> = | BA67: =iSummary!CZ60 ->  | BB67: =iSummary!DA60 -> 0 | BC67: =iSummary!DB60 -> 1 | BD67: =iSummary!#REF! ->  | BE67: =iSummary!#REF! ->  | BF67: =iSummary!#REF! ->  | BG67: =iSummary!#REF! ->  | BI67: =iSummary!DM60 -> 1 | BJ67: =IF(BI67=0,0,IF(BN67<=uxb_works!$B$122,1,IF(BN67<=uxb_works!$B$121,2,IF(BN67<=uxb_works!$B$120,3,4)))) -> 2 | BL67: =iSummary!DN60 -> =51 | BM67: =iSummary!DO60 -> Baku | BN67: =iSummary!DP60 -> 46.7 | BO67: =iSummary!DN60 -> =51 | BP67: =iSummary!DO60 -> Baku | BQ67: =iSummary!DP60 -> 46.7 | BR67: =iSummary!DQ60 -> 46.7 | BS67: =iSummary!#REF! ->  | BT67: =iSummary!#REF! ->  | BU67: =iSummary!#REF! ->  | BV67: =iSummary!#REF! -> 
B68: =iSummary!Q61 -> 1 | C68: =IF(B68=0,0,IF(G68<=uxb_works!$B$122,1,IF(G68<=uxb_works!$B$121,2,IF(G68<=uxb_works!$B$120,3,4)))) -> 2 | E68: =iSummary!R61 -> 53 | F68: =iSummary!S61 -> Kuwait city | G68: =IF(ISNUMBER(iSummary!T61),ROUND(iSummary!T61,1),"") -> 49.4 | H68: =iSummary!W61 -> = | I68: =iSummary!X61 ->  | J68: =IF(iSummary!Y61=0,"",iSummary!Y61) ->  | K68: =iSummary!Z61 -> 1 | M68: =iSummary!AK61 -> 1 | N68: =IF(M68=0,0,IF(R68<=uxb_works!$B$122,1,IF(R68<=uxb_works!$B$121,2,IF(R68<=uxb_works!$B$120,3,4)))) -> 2 | P68: =iSummary!AL61 -> 53 | Q68: =iSummary!AM61 -> Mumbai | R68: =iSummary!AN61 -> 45.4 | S68: =iSummary!AQ61 -> = | T68: =iSummary!AR61 ->  | U68: =iSummary!AS61 -> 0 | V68: =iSummary!AT61 -> 1 | X68: =iSummary!BE61 -> 1 | Y68: =IF(X68=0,0,IF(AC68<=uxb_works!$B$122,1,IF(AC68<=uxb_works!$B$121,2,IF(AC68<=uxb_works!$B$120,3,4)))) -> 3 | AA68: =iSummary!BF61 -> 53 | AB68: =iSummary!BG61 -> Rio de Janeiro | AC68: =iSummary!BH61 -> 50.7 | AD68: =iSummary!BK61 -> = | AE68: =iSummary!BL61 ->  | AF68: =iSummary!BM61 -> 0 | AG68: =iSummary!BN61 -> 1 | AI68: =iSummary!BY61 -> 1 | AJ68: =IF(AI68=0,0,IF(AN68<=uxb_works!$B$122,1,IF(AN68<=uxb_works!$B$121,2,IF(AN68<=uxb_works!$B$120,3,4)))) -> 3 | AL68: =iSummary!BZ61 -> 53 | AM68: =iSummary!CA61 -> Casablanca | AN68: =iSummary!CB61 -> 52.2 | AO68: =iSummary!CE61 -> = | AP68: =iSummary!CF61 ->  | AQ68: =iSummary!CG61 -> 0 | AR68: =iSummary!CH61 -> 1 | AT68: =iSummary!CS61 -> 1 | AU68: =IF(AT68=0,0,IF(AY68<=uxb_works!$B$122,1,IF(AY68<=uxb_works!$B$121,2,IF(AY68<=uxb_works!$B$120,3,4)))) -> 2 | AW68: =iSummary!CT61 -> 53 | AX68: =iSummary!CU61 -> Baku | AY68: =iSummary!CV61 -> 47.3 | AZ68: =iSummary!CY61 -> = | BA68: =iSummary!CZ61 ->  | BB68: =iSummary!DA61 -> 0 | BC68: =iSummary!DB61 -> 1 | BD68: =iSummary!#REF! ->  | BE68: =iSummary!#REF! ->  | BF68: =iSummary!#REF! ->  | BG68: =iSummary!#REF! ->  | BI68: =iSummary!DM61 -> 1 | BJ68: =IF(BI68=0,0,IF(BN68<=uxb_works!$B$122,1,IF(BN68<=uxb_works!$B$121,2,IF(BN68<=uxb_works!$B$120,3,4)))) -> 2 | BL68: =iSummary!DN61 -> =51 | BM68: =iSummary!DO61 -> Riyadh | BN68: =iSummary!DP61 -> 46.7 | BO68: =iSummary!DN61 -> =51 | BP68: =iSummary!DO61 -> Riyadh | BQ68: =iSummary!DP61 -> 46.7 | BR68: =iSummary!DQ61 -> 46.7 | BS68: =iSummary!#REF! ->  | BT68: =iSummary!#REF! ->  | BU68: =iSummary!#REF! ->  | BV68: =iSummary!#REF! -> 
B69: =iSummary!Q62 -> 1 | C69: =IF(B69=0,0,IF(G69<=uxb_works!$B$122,1,IF(G69<=uxb_works!$B$121,2,IF(G69<=uxb_works!$B$120,3,4)))) -> 2 | E69: =iSummary!R62 -> 54 | F69: =iSummary!S62 -> Dhaka | G69: =IF(ISNUMBER(iSummary!T62),ROUND(iSummary!T62,1),"") -> 48.9 | H69: =iSummary!W62 -> = | I69: =iSummary!X62 ->  | J69: =IF(iSummary!Y62=0,"",iSummary!Y62) ->  | K69: =iSummary!Z62 -> 1 | M69: =iSummary!AK62 -> 1 | N69: =IF(M69=0,0,IF(R69<=uxb_works!$B$122,1,IF(R69<=uxb_works!$B$121,2,IF(R69<=uxb_works!$B$120,3,4)))) -> 2 | P69: =iSummary!AL62 -> =54 | Q69: =iSummary!AM62 -> Cairo | R69: =iSummary!AN62 -> 43.6 | S69: =iSummary!AQ62 -> = | T69: =iSummary!AR62 ->  | U69: =iSummary!AS62 -> 0 | V69: =iSummary!AT62 -> 1 | X69: =iSummary!BE62 -> 1 | Y69: =IF(X69=0,0,IF(AC69<=uxb_works!$B$122,1,IF(AC69<=uxb_works!$B$121,2,IF(AC69<=uxb_works!$B$120,3,4)))) -> 2 | AA69: =iSummary!BF62 -> 54 | AB69: =iSummary!BG62 -> Manila | AC69: =iSummary!BH62 -> 49.9 | AD69: =iSummary!BK62 -> = | AE69: =iSummary!BL62 ->  | AF69: =iSummary!BM62 -> 0 | AG69: =iSummary!BN62 -> 1 | AI69: =iSummary!BY62 -> 1 | AJ69: =IF(AI69=0,0,IF(AN69<=uxb_works!$B$122,1,IF(AN69<=uxb_works!$B$121,2,IF(AN69<=uxb_works!$B$120,3,4)))) -> 2 | AL69: =iSummary!BZ62 -> 54 | AM69: =iSummary!CA62 -> Johannesburg | AN69: =iSummary!CB62 -> 49.8 | AO69: =iSummary!CE62 -> = | AP69: =iSummary!CF62 ->  | AQ69: =iSummary!CG62 -> 0 | AR69: =iSummary!CH62 -> 1 | AT69: =iSummary!CS62 -> 1 | AU69: =IF(AT69=0,0,IF(AY69<=uxb_works!$B$122,1,IF(AY69<=uxb_works!$B$121,2,IF(AY69<=uxb_works!$B$120,3,4)))) -> 2 | AW69: =iSummary!CT62 -> 54 | AX69: =iSummary!CU62 -> Dhaka | AY69: =iSummary!CV62 -> 46.6 | AZ69: =iSummary!CY62 -> = | BA69: =iSummary!CZ62 ->  | BB69: =iSummary!DA62 -> 0 | BC69: =iSummary!DB62 -> 1 | BD69: =iSummary!#REF! ->  | BE69: =iSummary!#REF! ->  | BF69: =iSummary!#REF! ->  | BG69: =iSummary!#REF! ->  | BI69: =iSummary!DM62 -> 1 | BJ69: =IF(BI69=0,0,IF(BN69<=uxb_works!$B$122,1,IF(BN69<=uxb_works!$B$121,2,IF(BN69<=uxb_works!$B$120,3,4)))) -> 2 | BL69: =iSummary!DN62 -> 54 | BM69: =iSummary!DO62 -> Yangon | BN69: =iSummary!DP62 -> 45.3 | BO69: =iSummary!DN62 -> 54 | BP69: =iSummary!DO62 -> Yangon | BQ69: =iSummary!DP62 -> 45.3 | BR69: =iSummary!DQ62 -> 45.3 | BS69: =iSummary!#REF! ->  | BT69: =iSummary!#REF! ->  | BU69: =iSummary!#REF! ->  | BV69: =iSummary!#REF! -> 
B70: =iSummary!Q63 -> 1 | C70: =IF(B70=0,0,IF(G70<=uxb_works!$B$122,1,IF(G70<=uxb_works!$B$121,2,IF(G70<=uxb_works!$B$120,3,4)))) -> 2 | E70: =iSummary!R63 -> 55 | F70: =iSummary!S63 -> Casablanca | G70: =IF(ISNUMBER(iSummary!T63),ROUND(iSummary!T63,1),"") -> 48.2 | H70: =iSummary!W63 -> = | I70: =iSummary!X63 ->  | J70: =IF(iSummary!Y63=0,"",iSummary!Y63) ->  | K70: =iSummary!Z63 -> 1 | M70: =iSummary!AK63 -> 1 | N70: =IF(M70=0,0,IF(R70<=uxb_works!$B$122,1,IF(R70<=uxb_works!$B$121,2,IF(R70<=uxb_works!$B$120,3,4)))) -> 2 | P70: =iSummary!AL63 -> =54 | Q70: =iSummary!AM63 -> Kuwait city | R70: =iSummary!AN63 -> 43.6 | S70: =iSummary!AQ63 -> = | T70: =iSummary!AR63 ->  | U70: =iSummary!AS63 -> 0 | V70: =iSummary!AT63 -> 1 | X70: =iSummary!BE63 -> 1 | Y70: =IF(X70=0,0,IF(AC70<=uxb_works!$B$122,1,IF(AC70<=uxb_works!$B$121,2,IF(AC70<=uxb_works!$B$120,3,4)))) -> 2 | AA70: =iSummary!BF63 -> 55 | AB70: =iSummary!BG63 -> Karachi | AC70: =iSummary!BH63 -> 48.4 | AD70: =iSummary!BK63 -> = | AE70: =iSummary!BL63 ->  | AF70: =iSummary!BM63 -> 0 | AG70: =iSummary!BN63 -> 1 | AI70: =iSummary!BY63 -> 1 | AJ70: =IF(AI70=0,0,IF(AN70<=uxb_works!$B$122,1,IF(AN70<=uxb_works!$B$121,2,IF(AN70<=uxb_works!$B$120,3,4)))) -> 2 | AL70: =iSummary!BZ63 -> 55 | AM70: =iSummary!CA63 -> Dhaka | AN70: =iSummary!CB63 -> 49.6 | AO70: =iSummary!CE63 -> = | AP70: =iSummary!CF63 ->  | AQ70: =iSummary!CG63 -> 0 | AR70: =iSummary!CH63 -> 1 | AT70: =iSummary!CS63 -> 1 | AU70: =IF(AT70=0,0,IF(AY70<=uxb_works!$B$122,1,IF(AY70<=uxb_works!$B$121,2,IF(AY70<=uxb_works!$B$120,3,4)))) -> 2 | AW70: =iSummary!CT63 -> =55 | AX70: =iSummary!CU63 -> Bangkok | AY70: =iSummary!CV63 -> 46.4 | AZ70: =iSummary!CY63 -> = | BA70: =iSummary!CZ63 ->  | BB70: =iSummary!DA63 -> 0 | BC70: =iSummary!DB63 -> 1 | BD70: =iSummary!#REF! ->  | BE70: =iSummary!#REF! ->  | BF70: =iSummary!#REF! ->  | BG70: =iSummary!#REF! ->  | BI70: =iSummary!DM63 -> 1 | BJ70: =IF(BI70=0,0,IF(BN70<=uxb_works!$B$122,1,IF(BN70<=uxb_works!$B$121,2,IF(BN70<=uxb_works!$B$120,3,4)))) -> 2 | BL70: =iSummary!DN63 -> 55 | BM70: =iSummary!DO63 -> Caracas | BN70: =iSummary!DP63 -> 41.9 | BO70: =iSummary!DN63 -> 55 | BP70: =iSummary!DO63 -> Caracas | BQ70: =iSummary!DP63 -> 41.9 | BR70: =iSummary!DQ63 -> 41.9 | BS70: =iSummary!#REF! ->  | BT70: =iSummary!#REF! ->  | BU70: =iSummary!#REF! ->  | BV70: =iSummary!#REF! -> 
B71: =iSummary!Q64 -> 1 | C71: =IF(B71=0,0,IF(G71<=uxb_works!$B$122,1,IF(G71<=uxb_works!$B$121,2,IF(G71<=uxb_works!$B$120,3,4)))) -> 2 | E71: =iSummary!R64 -> 56 | F71: =iSummary!S64 -> Lagos | G71: =IF(ISNUMBER(iSummary!T64),ROUND(iSummary!T64,1),"") -> 45 | H71: =iSummary!W64 -> = | I71: =iSummary!X64 ->  | J71: =IF(iSummary!Y64=0,"",iSummary!Y64) ->  | K71: =iSummary!Z64 -> 1 | M71: =iSummary!AK64 -> 1 | N71: =IF(M71=0,0,IF(R71<=uxb_works!$B$122,1,IF(R71<=uxb_works!$B$121,2,IF(R71<=uxb_works!$B$120,3,4)))) -> 2 | P71: =iSummary!AL64 -> 56 | Q71: =iSummary!AM64 -> Dhaka | R71: =iSummary!AN64 -> 39 | S71: =iSummary!AQ64 -> = | T71: =iSummary!AR64 ->  | U71: =iSummary!AS64 -> 0 | V71: =iSummary!AT64 -> 1 | X71: =iSummary!BE64 -> 1 | Y71: =IF(X71=0,0,IF(AC71<=uxb_works!$B$122,1,IF(AC71<=uxb_works!$B$121,2,IF(AC71<=uxb_works!$B$120,3,4)))) -> 2 | AA71: =iSummary!BF64 -> 56 | AB71: =iSummary!BG64 -> Baku | AC71: =iSummary!BH64 -> 47.3 | AD71: =iSummary!BK64 -> = | AE71: =iSummary!BL64 ->  | AF71: =iSummary!BM64 -> 0 | AG71: =iSummary!BN64 -> 1 | AI71: =iSummary!BY64 -> 1 | AJ71: =IF(AI71=0,0,IF(AN71<=uxb_works!$B$122,1,IF(AN71<=uxb_works!$B$121,2,IF(AN71<=uxb_works!$B$120,3,4)))) -> 2 | AL71: =iSummary!BZ64 -> 56 | AM71: =iSummary!CA64 -> Cairo | AN71: =iSummary!CB64 -> 47.2 | AO71: =iSummary!CE64 -> = | AP71: =iSummary!CF64 ->  | AQ71: =iSummary!CG64 -> 0 | AR71: =iSummary!CH64 -> 1 | AT71: =iSummary!CS64 -> 1 | AU71: =IF(AT71=0,0,IF(AY71<=uxb_works!$B$122,1,IF(AY71<=uxb_works!$B$121,2,IF(AY71<=uxb_works!$B$120,3,4)))) -> 2 | AW71: =iSummary!CT64 -> =55 | AX71: =iSummary!CU64 -> Manila | AY71: =iSummary!CV64 -> 46.4 | AZ71: =iSummary!CY64 -> = | BA71: =iSummary!CZ64 ->  | BB71: =iSummary!DA64 -> 0 | BC71: =iSummary!DB64 -> 1 | BD71: =iSummary!#REF! ->  | BE71: =iSummary!#REF! ->  | BF71: =iSummary!#REF! ->  | BG71: =iSummary!#REF! ->  | BI71: =iSummary!DM64 -> 1 | BJ71: =IF(BI71=0,0,IF(BN71<=uxb_works!$B$122,1,IF(BN71<=uxb_works!$B$121,2,IF(BN71<=uxb_works!$B$120,3,4)))) -> 2 | BL71: =iSummary!DN64 -> 56 | BM71: =iSummary!DO64 -> Dubai | BN71: =iSummary!DP64 -> 37.7 | BO71: =iSummary!DN64 -> 56 | BP71: =iSummary!DO64 -> Dubai | BQ71: =iSummary!DP64 -> 37.7 | BR71: =iSummary!DQ64 -> 37.7 | BS71: =iSummary!#REF! ->  | BT71: =iSummary!#REF! ->  | BU71: =iSummary!#REF! ->  | BV71: =iSummary!#REF! -> 
B72: =iSummary!Q65 -> 1 | C72: =IF(B72=0,0,IF(G72<=uxb_works!$B$122,1,IF(G72<=uxb_works!$B$121,2,IF(G72<=uxb_works!$B$120,3,4)))) -> 2 | E72: =iSummary!R65 -> 57 | F72: =iSummary!S65 -> Cairo | G72: =IF(ISNUMBER(iSummary!T65),ROUND(iSummary!T65,1),"") -> 43.7 | H72: =iSummary!W65 -> = | I72: =iSummary!X65 ->  | J72: =IF(iSummary!Y65=0,"",iSummary!Y65) ->  | K72: =iSummary!Z65 -> 1 | M72: =iSummary!AK65 -> 1 | N72: =IF(M72=0,0,IF(R72<=uxb_works!$B$122,1,IF(R72<=uxb_works!$B$121,2,IF(R72<=uxb_works!$B$120,3,4)))) -> 2 | P72: =iSummary!AL65 -> 57 | Q72: =iSummary!AM65 -> Karachi | R72: =iSummary!AN65 -> 38.5 | S72: =iSummary!AQ65 -> = | T72: =iSummary!AR65 ->  | U72: =iSummary!AS65 -> 0 | V72: =iSummary!AT65 -> 1 | X72: =iSummary!BE65 -> 1 | Y72: =IF(X72=0,0,IF(AC72<=uxb_works!$B$122,1,IF(AC72<=uxb_works!$B$121,2,IF(AC72<=uxb_works!$B$120,3,4)))) -> 2 | AA72: =iSummary!BF65 -> 57 | AB72: =iSummary!BG65 -> Cairo | AC72: =iSummary!BH65 -> 45.6 | AD72: =iSummary!BK65 -> = | AE72: =iSummary!BL65 ->  | AF72: =iSummary!BM65 -> 0 | AG72: =iSummary!BN65 -> 1 | AI72: =iSummary!BY65 -> 1 | AJ72: =IF(AI72=0,0,IF(AN72<=uxb_works!$B$122,1,IF(AN72<=uxb_works!$B$121,2,IF(AN72<=uxb_works!$B$120,3,4)))) -> 2 | AL72: =iSummary!BZ65 -> 57 | AM72: =iSummary!CA65 -> Karachi | AN72: =iSummary!CB65 -> 43 | AO72: =iSummary!CE65 -> = | AP72: =iSummary!CF65 ->  | AQ72: =iSummary!CG65 -> 0 | AR72: =iSummary!CH65 -> 1 | AT72: =iSummary!CS65 -> 1 | AU72: =IF(AT72=0,0,IF(AY72<=uxb_works!$B$122,1,IF(AY72<=uxb_works!$B$121,2,IF(AY72<=uxb_works!$B$120,3,4)))) -> 2 | AW72: =iSummary!CT65 -> 57 | AX72: =iSummary!CU65 -> Caracas | AY72: =iSummary!CV65 -> 46.1 | AZ72: =iSummary!CY65 -> = | BA72: =iSummary!CZ65 ->  | BB72: =iSummary!DA65 -> 0 | BC72: =iSummary!DB65 -> 1 | BD72: =iSummary!#REF! ->  | BE72: =iSummary!#REF! ->  | BF72: =iSummary!#REF! ->  | BG72: =iSummary!#REF! ->  | BI72: =iSummary!DM65 -> 1 | BJ72: =IF(BI72=0,0,IF(BN72<=uxb_works!$B$122,1,IF(BN72<=uxb_works!$B$121,2,IF(BN72<=uxb_works!$B$120,3,4)))) -> 2 | BL72: =iSummary!DN65 -> 57 | BM72: =iSummary!DO65 -> Karachi | BN72: =iSummary!DP65 -> 35.4 | BO72: =iSummary!DN65 -> 57 | BP72: =iSummary!DO65 -> Karachi | BQ72: =iSummary!DP65 -> 35.4 | BR72: =iSummary!DQ65 -> 35.4 | BS72: =iSummary!#REF! ->  | BT72: =iSummary!#REF! ->  | BU72: =iSummary!#REF! ->  | BV72: =iSummary!#REF! -> 
B73: =iSummary!Q66 -> 1 | C73: =IF(B73=0,0,IF(G73<=uxb_works!$B$122,1,IF(G73<=uxb_works!$B$121,2,IF(G73<=uxb_works!$B$120,3,4)))) -> 2 | E73: =iSummary!R66 -> 58 | F73: =iSummary!S66 -> Caracas | G73: =IF(ISNUMBER(iSummary!T66),ROUND(iSummary!T66,1),"") -> 40.5 | H73: =iSummary!W66 -> = | I73: =iSummary!X66 ->  | J73: =IF(iSummary!Y66=0,"",iSummary!Y66) ->  | K73: =iSummary!Z66 -> 1 | M73: =iSummary!AK66 -> 1 | N73: =IF(M73=0,0,IF(R73<=uxb_works!$B$122,1,IF(R73<=uxb_works!$B$121,2,IF(R73<=uxb_works!$B$120,3,4)))) -> 2 | P73: =iSummary!AL66 -> 58 | Q73: =iSummary!AM66 -> Jakarta | R73: =iSummary!AN66 -> 38 | S73: =iSummary!AQ66 -> = | T73: =iSummary!AR66 ->  | U73: =iSummary!AS66 -> 0 | V73: =iSummary!AT66 -> 1 | X73: =iSummary!BE66 -> 1 | Y73: =IF(X73=0,0,IF(AC73<=uxb_works!$B$122,1,IF(AC73<=uxb_works!$B$121,2,IF(AC73<=uxb_works!$B$120,3,4)))) -> 2 | AA73: =iSummary!BF66 -> 58 | AB73: =iSummary!BG66 -> Yangon | AC73: =iSummary!BH66 -> 44.6 | AD73: =iSummary!BK66 -> = | AE73: =iSummary!BL66 ->  | AF73: =iSummary!BM66 -> 0 | AG73: =iSummary!BN66 -> 1 | AI73: =iSummary!BY66 -> 1 | AJ73: =IF(AI73=0,0,IF(AN73<=uxb_works!$B$122,1,IF(AN73<=uxb_works!$B$121,2,IF(AN73<=uxb_works!$B$120,3,4)))) -> 2 | AL73: =iSummary!BZ66 -> 58 | AM73: =iSummary!CA66 -> Yangon | AN73: =iSummary!CB66 -> 40.5 | AO73: =iSummary!CE66 -> = | AP73: =iSummary!CF66 ->  | AQ73: =iSummary!CG66 -> 0 | AR73: =iSummary!CH66 -> 1 | AT73: =iSummary!CS66 -> 1 | AU73: =IF(AT73=0,0,IF(AY73<=uxb_works!$B$122,1,IF(AY73<=uxb_works!$B$121,2,IF(AY73<=uxb_works!$B$120,3,4)))) -> 2 | AW73: =iSummary!CT66 -> 58 | AX73: =iSummary!CU66 -> Yangon | AY73: =iSummary!CV66 -> 39.2 | AZ73: =iSummary!CY66 -> = | BA73: =iSummary!CZ66 ->  | BB73: =iSummary!DA66 -> 0 | BC73: =iSummary!DB66 -> 1 | BD73: =iSummary!#REF! ->  | BE73: =iSummary!#REF! ->  | BF73: =iSummary!#REF! ->  | BG73: =iSummary!#REF! ->  | BI73: =iSummary!DM66 -> 1 | BJ73: =IF(BI73=0,0,IF(BN73<=uxb_works!$B$122,1,IF(BN73<=uxb_works!$B$121,2,IF(BN73<=uxb_works!$B$120,3,4)))) -> 2 | BL73: =iSummary!DN66 -> 58 | BM73: =iSummary!DO66 -> Casablanca | BN73: =iSummary!DP66 -> 35.1 | BO73: =iSummary!DN66 -> 58 | BP73: =iSummary!DO66 -> Casablanca | BQ73: =iSummary!DP66 -> 35.1 | BR73: =iSummary!DQ66 -> 35.1 | BS73: =iSummary!#REF! ->  | BT73: =iSummary!#REF! ->  | BU73: =iSummary!#REF! ->  | BV73: =iSummary!#REF! -> 
B74: =iSummary!Q67 -> 1 | C74: =IF(B74=0,0,IF(G74<=uxb_works!$B$122,1,IF(G74<=uxb_works!$B$121,2,IF(G74<=uxb_works!$B$120,3,4)))) -> 2 | E74: =iSummary!R67 -> 59 | F74: =iSummary!S67 -> Karachi | G74: =IF(ISNUMBER(iSummary!T67),ROUND(iSummary!T67,1),"") -> 39.7 | H74: =iSummary!W67 -> = | I74: =iSummary!X67 ->  | J74: =IF(iSummary!Y67=0,"",iSummary!Y67) ->  | K74: =iSummary!Z67 -> 1 | M74: =iSummary!AK67 -> 1 | N74: =IF(M74=0,0,IF(R74<=uxb_works!$B$122,1,IF(R74<=uxb_works!$B$121,2,IF(R74<=uxb_works!$B$120,3,4)))) -> 2 | P74: =iSummary!AL67 -> 59 | Q74: =iSummary!AM67 -> Caracas | R74: =iSummary!AN67 -> 37.4 | S74: =iSummary!AQ67 -> = | T74: =iSummary!AR67 ->  | U74: =iSummary!AS67 -> 0 | V74: =iSummary!AT67 -> 1 | X74: =iSummary!BE67 -> 1 | Y74: =IF(X74=0,0,IF(AC74<=uxb_works!$B$122,1,IF(AC74<=uxb_works!$B$121,2,IF(AC74<=uxb_works!$B$120,3,4)))) -> 2 | AA74: =iSummary!BF67 -> 59 | AB74: =iSummary!BG67 -> Lagos | AC74: =iSummary!BH67 -> 43.7 | AD74: =iSummary!BK67 -> = | AE74: =iSummary!BL67 ->  | AF74: =iSummary!BM67 -> 0 | AG74: =iSummary!BN67 -> 1 | AI74: =iSummary!BY67 -> 1 | AJ74: =IF(AI74=0,0,IF(AN74<=uxb_works!$B$122,1,IF(AN74<=uxb_works!$B$121,2,IF(AN74<=uxb_works!$B$120,3,4)))) -> 2 | AL74: =iSummary!BZ67 -> 59 | AM74: =iSummary!CA67 -> Caracas | AN74: =iSummary!CB67 -> 38 | AO74: =iSummary!CE67 -> = | AP74: =iSummary!CF67 ->  | AQ74: =iSummary!CG67 -> 0 | AR74: =iSummary!CH67 -> 1 | AT74: =iSummary!CS67 -> 1 | AU74: =IF(AT74=0,0,IF(AY74<=uxb_works!$B$122,1,IF(AY74<=uxb_works!$B$121,2,IF(AY74<=uxb_works!$B$120,3,4)))) -> 2 | AW74: =iSummary!CT67 -> 59 | AX74: =iSummary!CU67 -> Lagos | AY74: =iSummary!CV67 -> 33.7 | AZ74: =iSummary!CY67 -> = | BA74: =iSummary!CZ67 ->  | BB74: =iSummary!DA67 -> 0 | BC74: =iSummary!DB67 -> 1 | BD74: =iSummary!#REF! ->  | BE74: =iSummary!#REF! ->  | BF74: =iSummary!#REF! ->  | BG74: =iSummary!#REF! ->  | BI74: =iSummary!DM67 -> 1 | BJ74: =IF(BI74=0,0,IF(BN74<=uxb_works!$B$122,1,IF(BN74<=uxb_works!$B$121,2,IF(BN74<=uxb_works!$B$120,3,4)))) -> 2 | BL74: =iSummary!DN67 -> 59 | BM74: =iSummary!DO67 -> Cairo | BN74: =iSummary!DP67 -> 33.8 | BO74: =iSummary!DN67 -> 59 | BP74: =iSummary!DO67 -> Cairo | BQ74: =iSummary!DP67 -> 33.8 | BR74: =iSummary!DQ67 -> 33.8 | BS74: =iSummary!#REF! ->  | BT74: =iSummary!#REF! ->  | BU74: =iSummary!#REF! ->  | BV74: =iSummary!#REF! -> 
B75: =iSummary!Q68 -> 1 | C75: =IF(B75=0,0,IF(G75<=uxb_works!$B$122,1,IF(G75<=uxb_works!$B$121,2,IF(G75<=uxb_works!$B$120,3,4)))) -> 2 | E75: =iSummary!R68 -> 60 | F75: =iSummary!S68 -> Yangon | G75: =IF(ISNUMBER(iSummary!T68),ROUND(iSummary!T68,1),"") -> 39.5 | H75: =iSummary!W68 -> = | I75: =iSummary!X68 ->  | J75: =IF(iSummary!Y68=0,"",iSummary!Y68) ->  | K75: =iSummary!Z68 -> 1 | M75: =iSummary!AK68 -> 1 | N75: =IF(M75=0,0,IF(R75<=uxb_works!$B$122,1,IF(R75<=uxb_works!$B$121,2,IF(R75<=uxb_works!$B$120,3,4)))) -> 2 | P75: =iSummary!AL68 -> 60 | Q75: =iSummary!AM68 -> Yangon | R75: =iSummary!AN68 -> 28.1 | S75: =iSummary!AQ68 -> = | T75: =iSummary!AR68 ->  | U75: =iSummary!AS68 -> 0 | V75: =iSummary!AT68 -> 1 | X75: =iSummary!BE68 -> 1 | Y75: =IF(X75=0,0,IF(AC75<=uxb_works!$B$122,1,IF(AC75<=uxb_works!$B$121,2,IF(AC75<=uxb_works!$B$120,3,4)))) -> 2 | AA75: =iSummary!BF68 -> 60 | AB75: =iSummary!BG68 -> Caracas | AC75: =iSummary!BH68 -> 39 | AD75: =iSummary!BK68 -> = | AE75: =iSummary!BL68 ->  | AF75: =iSummary!BM68 -> 0 | AG75: =iSummary!BN68 -> 1 | AI75: =iSummary!BY68 -> 1 | AJ75: =IF(AI75=0,0,IF(AN75<=uxb_works!$B$122,1,IF(AN75<=uxb_works!$B$121,2,IF(AN75<=uxb_works!$B$120,3,4)))) -> 2 | AL75: =iSummary!BZ68 -> 60 | AM75: =iSummary!CA68 -> Lagos | AN75: =iSummary!CB68 -> 32.4 | AO75: =iSummary!CE68 -> = | AP75: =iSummary!CF68 ->  | AQ75: =iSummary!CG68 -> 0 | AR75: =iSummary!CH68 -> 1 | AT75: =iSummary!CS68 -> 1 | AU75: =IF(AT75=0,0,IF(AY75<=uxb_works!$B$122,1,IF(AY75<=uxb_works!$B$121,2,IF(AY75<=uxb_works!$B$120,3,4)))) -> 2 | AW75: =iSummary!CT68 -> 60 | AX75: =iSummary!CU68 -> Karachi | AY75: =iSummary!CV68 -> 33.3 | AZ75: =iSummary!CY68 -> = | BA75: =iSummary!CZ68 ->  | BB75: =iSummary!DA68 -> 0 | BC75: =iSummary!DB68 -> 1 | BD75: =iSummary!#REF! ->  | BE75: =iSummary!#REF! ->  | BF75: =iSummary!#REF! ->  | BG75: =iSummary!#REF! ->  | BI75: =iSummary!DM68 -> 1 | BJ75: =IF(BI75=0,0,IF(BN75<=uxb_works!$B$122,1,IF(BN75<=uxb_works!$B$121,2,IF(BN75<=uxb_works!$B$120,3,4)))) -> 1 | BL75: =iSummary!DN68 -> 60 | BM75: =iSummary!DO68 -> Kuwait city | BN75: =iSummary!DP68 -> 22 | BO75: =iSummary!DN68 -> 60 | BP75: =iSummary!DO68 -> Kuwait city | BQ75: =iSummary!DP68 -> 22 | BR75: =iSummary!DQ68 -> 22 | BS75: =iSummary!#REF! ->  | BT75: =iSummary!#REF! ->  | BU75: =iSummary!#REF! ->  | BV75: =iSummary!#REF! -> 

Sheet Indicator_Ranking
A1: =uxb_works!$B$92 -> SAFE CITIES INDEX: 2021 | Z1: $W$24 | AN1: 1600 | AO1: =INDEX(Indicator_Ranking!AN1:AN10,uxb_works!$J$21) -> 1600 | AP1: =2.2*AO1 -> 3520 | BA1: 1 | BB1: 1
AN2: 1600 | AR2: =iIndiRank!U2 -> 0 | AT2: =iIndiRank!V2 -> -
A4: =uxb_works!B111 -> 1 | AN4: 1600
C6: =uxb_works!$C$5 -> The active weight profile has been changed from its default setting | AN6: 1000
C8: =uxb_works!D67 -> Active filter group: All regions in all income levels with all population sizes
C10: =iIndiRank!$G$2 -> OVERALL SCORE | AN10: 1000
C11: =iIndiRank!$F$2 -> OVERALL SCORE | BO11: =C11 -> OVERALL SCORE
C14: Forecast spend on defense equipment Source: Jane's Year: 2025-2027 Scoring Guidance: US$ million | E14: =iIndiRank!AO2 -> 0 | K14: =COUNT(J17:J76) -> 60 | V14: =IF(COUNTIF(V17:V76,"<>0")=0,1,COUNTIF(V17:V76,"<>0")) -> 1 | W14: =iIndiRank!AU1 -> 0 | Y14: =IF(COUNTIF(Y17:Y76,"<>0")=0,1,COUNTIF(Y17:Y76,"<>0")) -> 1 | Z14: =iIndiRank!AX1 -> 0 | AB14: =IF(COUNTIF(AB17:AB76,"<>0")=0,1,COUNTIF(AB17:AB76,"<>0")) -> 1 | AC14: =iIndiRank!BA1 -> 0 | AE14: =IF(COUNTIF(AE17:AE76,"<>0")=0,1,COUNTIF(AE17:AE76,"<>0")) -> 1 | AF14: =iIndiRank!BD1 -> 0 | AH14: =IF(COUNTIF(AH17:AH76,"<>0")=0,1,COUNTIF(AH17:AH76,"<>0")) -> 1 | AI14: =iIndiRank!BG1 -> 0
B15: =COUNTIF(B16:B76,"<>0") -> 61 | W15: =IF(W14<>0,iIndiRank!AU3,"") ->  | Z15: =IF(Z14<>0,iIndiRank!AX3,"") ->  | AC15: =IF(AC14<>0,iIndiRank!BA3,"") ->  | AF15: =IF(AF14<>0,iIndiRank!BD3,"") ->  | AI15: =IF(AI14<>0,iIndiRank!BG3,"") -> 
B16: =iIndiRank!T2 -> 1 | C16: Description: The overall score is the weighted sum of the following domain scores: 1) DIGITAL SECURITY (20.0%) 2) HEALTH SECURITY (20.0%) 3) INFRASTRUCTURE SECURITY (20.0%) 4) PERSONAL SECURITY (20.0%) 5) ENVIRONMENTAL SECURITY (20.0%) | J16: =IF(uxb_works!$J$21=1,COUNTIF(J17:J76,">0"),MAX(V16,Indicator_Ranking!Y16,Indicator_Ranking!AB16,Indicator_Ranking!AE16,Indicator_Ranking!AH16)) -> 60 | L16: Rank | N16: City | O16: Score / 100 | P16: =IF(iIndiRank!$G$3=1,"","Score / 100") -> Score / 100 | Q16: =IF(iIndiRank!$G$3=1,"","Visualisation") -> Visualisation | R16: =iIndiRank!S5 ->  | V16: =COUNTIF(V17:V76,">0") -> 0 | Y16: =COUNTIF(Y17:Y76,">0") -> 0 | AB16: =COUNTIF(AB17:AB76,">0") -> 0 | AE16: =COUNTIF(AE17:AE76,">0") -> 0 | AH16: =COUNTIF(AH17:AH76,">0") -> 0 | AK16: =J16 -> 60 | BA16: =W15 ->  | BD16: =Z15 ->  | BG16: =AC15 ->  | BJ16: =AF15 ->  | BM16: =AI15 -> 
B17: =IF(uxb_works!$J$21=1,1,IF(OR(V17>0,Y17>0,AB17>0,AE17>0,AH17>0),1,0)) -> 1 | J17: =iIndiRank!L6 -> 1 | K17: =IF(J17=0,4,IF(P17<=uxb_works!$B$122,0,IF(P17<=uxb_works!$B$121,1,IF(P17<=uxb_works!$B$120,2,3)))) -> 3 | M17: =iIndiRank!P6 -> 1 | N17: =iIndiRank!Q6 -> Copenhagen | O17: =iIndiRank!R6 -> 82.4 | P17: =iIndiRank!T6 -> 82.4 | Q17: =IF(ISNUMBER(O17),REPT("|",O17/3),"") -> ||||||||||||||||||||||||||| | R17: =TEXT(iIndiRank!S6,iIndiRank!$E$2) ->  | V17: =iIndiRank!AT6 -> 0 | W17: =iIndiRank!AU6 -> Copenhagen | Y17: =iIndiRank!AW6 -> 0 | Z17: =iIndiRank!AX6 ->  | AB17: =iIndiRank!AZ6 -> 0 | AC17: =iIndiRank!BA6 ->  | AE17: =iIndiRank!BC6 -> 0 | AF17: =iIndiRank!BD6 ->  | AH17: =iIndiRank!BF6 -> 0 | AI17: =iIndiRank!BG6 ->  | AK17: 1
B18: =IF(uxb_works!$J$21=1,1,IF(OR(V18>0,Y18>0,AB18>0,AE18>0,AH18>0),1,0)) -> 1 | J18: =iIndiRank!L7 -> 1 | K18: =IF(J18=0,4,IF(P18<=uxb_works!$B$122,0,IF(P18<=uxb_works!$B$121,1,IF(P18<=uxb_works!$B$120,2,3)))) -> 3 | M18: =iIndiRank!P7 -> 2 | N18: =iIndiRank!Q7 -> Toronto | O18: =iIndiRank!R7 -> 82.2 | P18: =iIndiRank!T7 -> 82.2 | Q18: =IF(ISNUMBER(O18),REPT("|",O18/3),"") -> ||||||||||||||||||||||||||| | R18: =TEXT(iIndiRank!S7,iIndiRank!$E$2) ->  | V18: =iIndiRank!AT7 -> 0 | W18: =iIndiRank!AU7 -> Toronto | Y18: =iIndiRank!AW7 -> 0 | Z18: =iIndiRank!AX7 ->  | AB18: =iIndiRank!AZ7 -> 0 | AC18: =iIndiRank!BA7 ->  | AE18: =iIndiRank!BC7 -> 0 | AF18: =iIndiRank!BD7 ->  | AH18: =iIndiRank!BF7 -> 0 | AI18: =iIndiRank!BG7 ->  | AK18: =AK17+1 -> 2
B19: =IF(uxb_works!$J$21=1,1,IF(OR(V19>0,Y19>0,AB19>0,AE19>0,AH19>0),1,0)) -> 1 | J19: =iIndiRank!L8 -> 1 | K19: =IF(J19=0,4,IF(P19<=uxb_works!$B$122,0,IF(P19<=uxb_works!$B$121,1,IF(P19<=uxb_works!$B$120,2,3)))) -> 3 | M19: =iIndiRank!P8 -> 3 | N19: =iIndiRank!Q8 -> Singapore | O19: =iIndiRank!R8 -> 80.7 | P19: =iIndiRank!T8 -> 80.7 | Q19: =IF(ISNUMBER(O19),REPT("|",O19/3),"") -> |||||||||||||||||||||||||| | R19: =TEXT(iIndiRank!S8,iIndiRank!$E$2) ->  | V19: =iIndiRank!AT8 -> 0 | W19: =iIndiRank!AU8 -> Singapore | Y19: =iIndiRank!AW8 -> 0 | Z19: =iIndiRank!AX8 ->  | AB19: =iIndiRank!AZ8 -> 0 | AC19: =iIndiRank!BA8 ->  | AE19: =iIndiRank!BC8 -> 0 | AF19: =iIndiRank!BD8 ->  | AH19: =iIndiRank!BF8 -> 0 | AI19: =iIndiRank!BG8 ->  | AK19: =AK18+1 -> 3
B20: =IF(uxb_works!$J$21=1,1,IF(OR(V20>0,Y20>0,AB20>0,AE20>0,AH20>0),1,0)) -> 1 | J20: =iIndiRank!L9 -> 1 | K20: =IF(J20=0,4,IF(P20<=uxb_works!$B$122,0,IF(P20<=uxb_works!$B$121,1,IF(P20<=uxb_works!$B$120,2,3)))) -> 3 | M20: =iIndiRank!P9 -> 4 | N20: =iIndiRank!Q9 -> Sydney | O20: =iIndiRank!R9 -> 80.1 | P20: =iIndiRank!T9 -> 80.1 | Q20: |||||||||||||||||||||||||| | R20: =TEXT(iIndiRank!S9,iIndiRank!$E$2) ->  | V20: =iIndiRank!AT9 -> 0 | W20: =iIndiRank!AU9 -> Sydney | Y20: =iIndiRank!AW9 -> 0 | Z20: =iIndiRank!AX9 ->  | AB20: =iIndiRank!AZ9 -> 0 | AC20: =iIndiRank!BA9 ->  | AE20: =iIndiRank!BC9 -> 0 | AF20: =iIndiRank!BD9 ->  | AH20: =iIndiRank!BF9 -> 0 | AI20: =iIndiRank!BG9 ->  | AK20: 4
B21: =IF(uxb_works!$J$21=1,1,IF(OR(V21>0,Y21>0,AB21>0,AE21>0,AH21>0),1,0)) -> 1 | J21: =iIndiRank!L10 -> 1 | K21: =IF(J21=0,4,IF(P21<=uxb_works!$B$122,0,IF(P21<=uxb_works!$B$121,1,IF(P21<=uxb_works!$B$120,2,3)))) -> 3 | M21: =iIndiRank!P10 -> 5 | N21: =iIndiRank!Q10 -> Tokyo | O21: =iIndiRank!R10 -> 80 | P21: =iIndiRank!T10 -> 80 | Q21: |||||||||||||||||||||||||| | R21: =TEXT(iIndiRank!S10,iIndiRank!$E$2) ->  | V21: =iIndiRank!AT10 -> 0 | W21: =iIndiRank!AU10 -> Tokyo | Y21: =iIndiRank!AW10 -> 0 | Z21: =iIndiRank!AX10 ->  | AB21: =iIndiRank!AZ10 -> 0 | AC21: =iIndiRank!BA10 ->  | AE21: =iIndiRank!BC10 -> 0 | AF21: =iIndiRank!BD10 ->  | AH21: =iIndiRank!BF10 -> 0 | AI21: =iIndiRank!BG10 ->  | AK21: 5
B22: =IF(uxb_works!$J$21=1,1,IF(OR(V22>0,Y22>0,AB22>0,AE22>0,AH22>0),1,0)) -> 1 | J22: =iIndiRank!L11 -> 1 | K22: =IF(J22=0,4,IF(P22<=uxb_works!$B$122,0,IF(P22<=uxb_works!$B$121,1,IF(P22<=uxb_works!$B$120,2,3)))) -> 3 | M22: =iIndiRank!P11 -> 6 | N22: =iIndiRank!Q11 -> Amsterdam | O22: =iIndiRank!R11 -> 79.3 | P22: =iIndiRank!T11 -> 79.3 | Q22: |||||||||||||||||||||||||| | R22: =TEXT(iIndiRank!S11,iIndiRank!$E$2) ->  | V22: =iIndiRank!AT11 -> 0 | W22: =iIndiRank!AU11 -> Amsterdam | Y22: =iIndiRank!AW11 -> 0 | Z22: =iIndiRank!AX11 ->  | AB22: =iIndiRank!AZ11 -> 0 | AC22: =iIndiRank!BA11 ->  | AE22: =iIndiRank!BC11 -> 0 | AF22: =iIndiRank!BD11 ->  | AH22: =iIndiRank!BF11 -> 0 | AI22: =iIndiRank!BG11 ->  | AK22: 6
B23: =IF(uxb_works!$J$21=1,1,IF(OR(V23>0,Y23>0,AB23>0,AE23>0,AH23>0),1,0)) -> 1 | J23: =iIndiRank!L12 -> 1 | K23: =IF(J23=0,4,IF(P23<=uxb_works!$B$122,0,IF(P23<=uxb_works!$B$121,1,IF(P23<=uxb_works!$B$120,2,3)))) -> 3 | M23: =iIndiRank!P12 -> 7 | N23: =iIndiRank!Q12 -> Wellington | O23: =iIndiRank!R12 -> 79 | P23: =iIndiRank!T12 -> 79 | Q23: |||||||||||||||||||||||||| | R23: =TEXT(iIndiRank!S12,iIndiRank!$E$2) ->  | V23: =iIndiRank!AT12 -> 0 | W23: =iIndiRank!AU12 -> Wellington | Y23: =iIndiRank!AW12 -> 0 | Z23: =iIndiRank!AX12 ->  | AB23: =iIndiRank!AZ12 -> 0 | AC23: =iIndiRank!BA12 ->  | AE23: =iIndiRank!BC12 -> 0 | AF23: =iIndiRank!BD12 ->  | AH23: =iIndiRank!BF12 -> 0 | AI23: =iIndiRank!BG12 ->  | AK23: 7
B24: =IF(uxb_works!$J$21=1,1,IF(OR(V24>0,Y24>0,AB24>0,AE24>0,AH24>0),1,0)) -> 1 | J24: =iIndiRank!L13 -> 1 | K24: =IF(J24=0,4,IF(P24<=uxb_works!$B$122,0,IF(P24<=uxb_works!$B$121,1,IF(P24<=uxb_works!$B$120,2,3)))) -> 3 | M24: =iIndiRank!P13 -> =8 | N24: =iIndiRank!Q13 -> Hong Kong | O24: =iIndiRank!R13 -> 78.6 | P24: =iIndiRank!T13 -> 78.6 | Q24: |||||||||||||||||||||||||| | R24: =TEXT(iIndiRank!S13,iIndiRank!$E$2) ->  | V24: =iIndiRank!AT13 -> 0 | W24: =iIndiRank!AU13 -> Hong Kong | Y24: =iIndiRank!AW13 -> 0 | Z24: =iIndiRank!AX13 ->  | AB24: =iIndiRank!AZ13 -> 0 | AC24: =iIndiRank!BA13 ->  | AE24: =iIndiRank!BC13 -> 0 | AF24: =iIndiRank!BD13 ->  | AH24: =iIndiRank!BF13 -> 0 | AI24: =iIndiRank!BG13 ->  | AK24: 8
B25: =IF(uxb_works!$J$21=1,1,IF(OR(V25>0,Y25>0,AB25>0,AE25>0,AH25>0),1,0)) -> 1 | J25: =iIndiRank!L14 -> 1 | K25: =IF(J25=0,4,IF(P25<=uxb_works!$B$122,0,IF(P25<=uxb_works!$B$121,1,IF(P25<=uxb_works!$B$120,2,3)))) -> 3 | M25: =iIndiRank!P14 -> =8 | N25: =iIndiRank!Q14 -> Melbourne | O25: =iIndiRank!R14 -> 78.6 | P25: =iIndiRank!T14 -> 78.6 | Q25: |||||||||||||||||||||||||| | R25: =TEXT(iIndiRank!S14,iIndiRank!$E$2) ->  | V25: =iIndiRank!AT14 -> 0 | W25: =iIndiRank!AU14 -> Melbourne | Y25: =iIndiRank!AW14 -> 0 | Z25: =iIndiRank!AX14 ->  | AB25: =iIndiRank!AZ14 -> 0 | AC25: =iIndiRank!BA14 ->  | AE25: =iIndiRank!BC14 -> 0 | AF25: =iIndiRank!BD14 ->  | AH25: =iIndiRank!BF14 -> 0 | AI25: =iIndiRank!BG14 ->  | AK25: 9
B26: =IF(uxb_works!$J$21=1,1,IF(OR(V26>0,Y26>0,AB26>0,AE26>0,AH26>0),1,0)) -> 1 | J26: =iIndiRank!L15 -> 1 | K26: =IF(J26=0,4,IF(P26<=uxb_works!$B$122,0,IF(P26<=uxb_works!$B$121,1,IF(P26<=uxb_works!$B$120,2,3)))) -> 3 | M26: =iIndiRank!P15 -> 10 | N26: =iIndiRank!Q15 -> Stockholm | O26: =iIndiRank!R15 -> 78 | P26: =iIndiRank!T15 -> 78 | Q26: |||||||||||||||||||||||||| | R26: =TEXT(iIndiRank!S15,iIndiRank!$E$2) ->  | V26: =iIndiRank!AT15 -> 0 | W26: =iIndiRank!AU15 -> Stockholm | Y26: =iIndiRank!AW15 -> 0 | Z26: =iIndiRank!AX15 ->  | AB26: =iIndiRank!AZ15 -> 0 | AC26: =iIndiRank!BA15 ->  | AE26: =iIndiRank!BC15 -> 0 | AF26: =iIndiRank!BD15 ->  | AH26: =iIndiRank!BF15 -> 0 | AI26: =iIndiRank!BG15 ->  | AK26: 10
B27: =IF(uxb_works!$J$21=1,1,IF(OR(V27>0,Y27>0,AB27>0,AE27>0,AH27>0),1,0)) -> 1 | J27: =iIndiRank!L16 -> 1 | K27: =IF(J27=0,4,IF(P27<=uxb_works!$B$122,0,IF(P27<=uxb_works!$B$121,1,IF(P27<=uxb_works!$B$120,2,3)))) -> 3 | M27: =iIndiRank!P16 -> =11 | N27: =iIndiRank!Q16 -> Barcelona | O27: =iIndiRank!R16 -> 77.8 | P27: =iIndiRank!T16 -> 77.8 | Q27: ||||||||||||||||||||||||| | R27: =TEXT(iIndiRank!S16,iIndiRank!$E$2) ->  | V27: =iIndiRank!AT16 -> 0 | W27: =iIndiRank!AU16 -> Barcelona | Y27: =iIndiRank!AW16 -> 0 | Z27: =iIndiRank!AX16 ->  | AB27: =iIndiRank!AZ16 -> 0 | AC27: =iIndiRank!BA16 ->  | AE27: =iIndiRank!BC16 -> 0 | AF27: =iIndiRank!BD16 ->  | AH27: =iIndiRank!BF16 -> 0 | AI27: =iIndiRank!BG16 ->  | AK27: 11
B28: =IF(uxb_works!$J$21=1,1,IF(OR(V28>0,Y28>0,AB28>0,AE28>0,AH28>0),1,0)) -> 1 | J28: =iIndiRank!L17 -> 1 | K28: =IF(J28=0,4,IF(P28<=uxb_works!$B$122,0,IF(P28<=uxb_works!$B$121,1,IF(P28<=uxb_works!$B$120,2,3)))) -> 3 | M28: =iIndiRank!P17 -> =11 | N28: =iIndiRank!Q17 -> New York | O28: =iIndiRank!R17 -> 77.8 | P28: =iIndiRank!T17 -> 77.8 | Q28: ||||||||||||||||||||||||| | R28: =TEXT(iIndiRank!S17,iIndiRank!$E$2) ->  | V28: =iIndiRank!AT17 -> 0 | W28: =iIndiRank!AU17 -> New York | Y28: =iIndiRank!AW17 -> 0 | Z28: =iIndiRank!AX17 ->  | AB28: =iIndiRank!AZ17 -> 0 | AC28: =iIndiRank!BA17 ->  | AE28: =iIndiRank!BC17 -> 0 | AF28: =iIndiRank!BD17 ->  | AH28: =iIndiRank!BF17 -> 0 | AI28: =iIndiRank!BG17 ->  | AK28: 12
B29: =IF(uxb_works!$J$21=1,1,IF(OR(V29>0,Y29>0,AB29>0,AE29>0,AH29>0),1,0)) -> 1 | J29: =iIndiRank!L18 -> 1 | K29: =IF(J29=0,4,IF(P29<=uxb_works!$B$122,0,IF(P29<=uxb_works!$B$121,1,IF(P29<=uxb_works!$B$120,2,3)))) -> 3 | M29: =iIndiRank!P18 -> 13 | N29: =iIndiRank!Q18 -> Frankfurt | O29: =iIndiRank!R18 -> 77.7 | P29: =iIndiRank!T18 -> 77.7 | Q29: ||||||||||||||||||||||||| | R29: =TEXT(iIndiRank!S18,iIndiRank!$E$2) ->  | V29: =iIndiRank!AT18 -> 0 | W29: =iIndiRank!AU18 -> Frankfurt | Y29: =iIndiRank!AW18 -> 0 | Z29: =iIndiRank!AX18 ->  | AB29: =iIndiRank!AZ18 -> 0 | AC29: =iIndiRank!BA18 ->  | AE29: =iIndiRank!BC18 -> 0 | AF29: =iIndiRank!BD18 ->  | AH29: =iIndiRank!BF18 -> 0 | AI29: =iIndiRank!BG18 ->  | AK29: 13
B30: =IF(uxb_works!$J$21=1,1,IF(OR(V30>0,Y30>0,AB30>0,AE30>0,AH30>0),1,0)) -> 1 | J30: =iIndiRank!L19 -> 1 | K30: =IF(J30=0,4,IF(P30<=uxb_works!$B$122,0,IF(P30<=uxb_works!$B$121,1,IF(P30<=uxb_works!$B$120,2,3)))) -> 3 | M30: =iIndiRank!P19 -> 14 | N30: =iIndiRank!Q19 -> Washington DC | O30: =iIndiRank!R19 -> 77.4 | P30: =iIndiRank!T19 -> 77.4 | Q30: ||||||||||||||||||||||||| | R30: =TEXT(iIndiRank!S19,iIndiRank!$E$2) ->  | V30: =iIndiRank!AT19 -> 0 | W30: =iIndiRank!AU19 -> Washington DC | Y30: =iIndiRank!AW19 -> 0 | Z30: =iIndiRank!AX19 ->  | AB30: =iIndiRank!AZ19 -> 0 | AC30: =iIndiRank!BA19 ->  | AE30: =iIndiRank!BC19 -> 0 | AF30: =iIndiRank!BD19 ->  | AH30: =iIndiRank!BF19 -> 0 | AI30: =iIndiRank!BG19 ->  | AK30: 14
B31: =IF(uxb_works!$J$21=1,1,IF(OR(V31>0,Y31>0,AB31>0,AE31>0,AH31>0),1,0)) -> 1 | J31: =iIndiRank!L20 -> 1 | K31: =IF(J31=0,4,IF(P31<=uxb_works!$B$122,0,IF(P31<=uxb_works!$B$121,1,IF(P31<=uxb_works!$B$120,2,3)))) -> 3 | M31: =iIndiRank!P20 -> =15 | N31: =iIndiRank!Q20 -> London | O31: =iIndiRank!R20 -> 77.2 | P31: =iIndiRank!T20 -> 77.2 | Q31: ||||||||||||||||||||||||| | R31: =TEXT(iIndiRank!S20,iIndiRank!$E$2) ->  | V31: =iIndiRank!AT20 -> 0 | W31: =iIndiRank!AU20 -> London | Y31: =iIndiRank!AW20 -> 0 | Z31: =iIndiRank!AX20 ->  | AB31: =iIndiRank!AZ20 -> 0 | AC31: =iIndiRank!BA20 ->  | AE31: =iIndiRank!BC20 -> 0 | AF31: =iIndiRank!BD20 ->  | AH31: =iIndiRank!BF20 -> 0 | AI31: =iIndiRank!BG20 ->  | AK31: 15
B32: =IF(uxb_works!$J$21=1,1,IF(OR(V32>0,Y32>0,AB32>0,AE32>0,AH32>0),1,0)) -> 1 | J32: =iIndiRank!L21 -> 1 | K32: =IF(J32=0,4,IF(P32<=uxb_works!$B$122,0,IF(P32<=uxb_works!$B$121,1,IF(P32<=uxb_works!$B$120,2,3)))) -> 3 | M32: =iIndiRank!P21 -> =15 | N32: =iIndiRank!Q21 -> San Francisco | O32: =iIndiRank!R21 -> 77.2 | P32: =iIndiRank!T21 -> 77.2 | Q32: ||||||||||||||||||||||||| | R32: =TEXT(iIndiRank!S21,iIndiRank!$E$2) ->  | V32: =iIndiRank!AT21 -> 0 | W32: =iIndiRank!AU21 -> San Francisco | Y32: =iIndiRank!AW21 -> 0 | Z32: =iIndiRank!AX21 ->  | AB32: =iIndiRank!AZ21 -> 0 | AC32: =iIndiRank!BA21 ->  | AE32: =iIndiRank!BC21 -> 0 | AF32: =iIndiRank!BD21 ->  | AH32: =iIndiRank!BF21 -> 0 | AI32: =iIndiRank!BG21 ->  | AK32: 16
B33: =IF(uxb_works!$J$21=1,1,IF(OR(V33>0,Y33>0,AB33>0,AE33>0,AH33>0),1,0)) -> 1 | J33: =iIndiRank!L22 -> 1 | K33: =IF(J33=0,4,IF(P33<=uxb_works!$B$122,0,IF(P33<=uxb_works!$B$121,1,IF(P33<=uxb_works!$B$120,2,3)))) -> 3 | M33: =iIndiRank!P22 -> 17 | N33: =iIndiRank!Q22 -> Osaka | O33: =iIndiRank!R22 -> 76.7 | P33: =iIndiRank!T22 -> 76.7 | Q33: ||||||||||||||||||||||||| | R33: =TEXT(iIndiRank!S22,iIndiRank!$E$2) ->  | V33: =iIndiRank!AT22 -> 0 | W33: =iIndiRank!AU22 -> Osaka | Y33: =iIndiRank!AW22 -> 0 | Z33: =iIndiRank!AX22 ->  | AB33: =iIndiRank!AZ22 -> 0 | AC33: =iIndiRank!BA22 ->  | AE33: =iIndiRank!BC22 -> 0 | AF33: =iIndiRank!BD22 ->  | AH33: =iIndiRank!BF22 -> 0 | AI33: =iIndiRank!BG22 ->  | AK33: 17
B34: =IF(uxb_works!$J$21=1,1,IF(OR(V34>0,Y34>0,AB34>0,AE34>0,AH34>0),1,0)) -> 1 | J34: =iIndiRank!L23 -> 1 | K34: =IF(J34=0,4,IF(P34<=uxb_works!$B$122,0,IF(P34<=uxb_works!$B$121,1,IF(P34<=uxb_works!$B$120,2,3)))) -> 3 | M34: =iIndiRank!P23 -> 18 | N34: =iIndiRank!Q23 -> Los Angeles | O34: =iIndiRank!R23 -> 76.5 | P34: =iIndiRank!T23 -> 76.5 | Q34: ||||||||||||||||||||||||| | R34: =TEXT(iIndiRank!S23,iIndiRank!$E$2) ->  | V34: =iIndiRank!AT23 -> 0 | W34: =iIndiRank!AU23 -> Los Angeles | Y34: =iIndiRank!AW23 -> 0 | Z34: =iIndiRank!AX23 ->  | AB34: =iIndiRank!AZ23 -> 0 | AC34: =iIndiRank!BA23 ->  | AE34: =iIndiRank!BC23 -> 0 | AF34: =iIndiRank!BD23 ->  | AH34: =iIndiRank!BF23 -> 0 | AI34: =iIndiRank!BG23 ->  | AK34: 18
B35: =IF(uxb_works!$J$21=1,1,IF(OR(V35>0,Y35>0,AB35>0,AE35>0,AH35>0),1,0)) -> 1 | J35: =iIndiRank!L24 -> 1 | K35: =IF(J35=0,4,IF(P35<=uxb_works!$B$122,0,IF(P35<=uxb_works!$B$121,1,IF(P35<=uxb_works!$B$120,2,3)))) -> 3 | M35: =iIndiRank!P24 -> 19 | N35: =iIndiRank!Q24 -> Zurich | O35: =iIndiRank!R24 -> 76.3 | P35: =iIndiRank!T24 -> 76.3 | Q35: ||||||||||||||||||||||||| | R35: =TEXT(iIndiRank!S24,iIndiRank!$E$2) ->  | V35: =iIndiRank!AT24 -> 0 | W35: =iIndiRank!AU24 -> Zurich | Y35: =iIndiRank!AW24 -> 0 | Z35: =iIndiRank!AX24 ->  | AB35: =iIndiRank!AZ24 -> 0 | AC35: =iIndiRank!BA24 ->  | AE35: =iIndiRank!BC24 -> 0 | AF35: =iIndiRank!BD24 ->  | AH35: =iIndiRank!BF24 -> 0 | AI35: =iIndiRank!BG24 ->  | AK35: 19
B36: =IF(uxb_works!$J$21=1,1,IF(OR(V36>0,Y36>0,AB36>0,AE36>0,AH36>0),1,0)) -> 1 | J36: =iIndiRank!L25 -> 1 | K36: =IF(J36=0,4,IF(P36<=uxb_works!$B$122,0,IF(P36<=uxb_works!$B$121,1,IF(P36<=uxb_works!$B$120,2,3)))) -> 2 | M36: =iIndiRank!P25 -> 20 | N36: =iIndiRank!Q25 -> Chicago | O36: =iIndiRank!R25 -> 75 | P36: =iIndiRank!T25 -> 75 | Q36: ||||||||||||||||||||||||| | R36: =TEXT(iIndiRank!S25,iIndiRank!$E$2) ->  | V36: =iIndiRank!AT25 -> 0 | W36: =iIndiRank!AU25 -> Chicago | Y36: =iIndiRank!AW25 -> 0 | Z36: =iIndiRank!AX25 ->  | AB36: =iIndiRank!AZ25 -> 0 | AC36: =iIndiRank!BA25 ->  | AE36: =iIndiRank!BC25 -> 0 | AF36: =iIndiRank!BD25 ->  | AH36: =iIndiRank!BF25 -> 0 | AI36: =iIndiRank!BG25 ->  | AK36: 20
B37: =IF(uxb_works!$J$21=1,1,IF(OR(V37>0,Y37>0,AB37>0,AE37>0,AH37>0),1,0)) -> 1 | J37: =iIndiRank!L26 -> 1 | K37: =IF(J37=0,4,IF(P37<=uxb_works!$B$122,0,IF(P37<=uxb_works!$B$121,1,IF(P37<=uxb_works!$B$120,2,3)))) -> 2 | M37: =iIndiRank!P26 -> 21 | N37: =iIndiRank!Q26 -> Madrid | O37: =iIndiRank!R26 -> 74.7 | P37: =iIndiRank!T26 -> 74.7 | Q37: |||||||||||||||||||||||| | R37: =TEXT(iIndiRank!S26,iIndiRank!$E$2) ->  | V37: =iIndiRank!AT26 -> 0 | W37: =iIndiRank!AU26 -> Madrid | Y37: =iIndiRank!AW26 -> 0 | Z37: =iIndiRank!AX26 ->  | AB37: =iIndiRank!AZ26 -> 0 | AC37: =iIndiRank!BA26 ->  | AE37: =iIndiRank!BC26 -> 0 | AF37: =iIndiRank!BD26 ->  | AH37: =iIndiRank!BF26 -> 0 | AI37: =iIndiRank!BG26 ->  | AK37: 21
B38: =IF(uxb_works!$J$21=1,1,IF(OR(V38>0,Y38>0,AB38>0,AE38>0,AH38>0),1,0)) -> 1 | J38: =iIndiRank!L27 -> 1 | K38: =IF(J38=0,4,IF(P38<=uxb_works!$B$122,0,IF(P38<=uxb_works!$B$121,1,IF(P38<=uxb_works!$B$120,2,3)))) -> 2 | M38: =iIndiRank!P27 -> 22 | N38: =iIndiRank!Q27 -> Dallas | O38: =iIndiRank!R27 -> 74.5 | P38: =iIndiRank!T27 -> 74.5 | Q38: |||||||||||||||||||||||| | R38: =TEXT(iIndiRank!S27,iIndiRank!$E$2) ->  | V38: =iIndiRank!AT27 -> 0 | W38: =iIndiRank!AU27 -> Dallas | Y38: =iIndiRank!AW27 -> 0 | Z38: =iIndiRank!AX27 ->  | AB38: =iIndiRank!AZ27 -> 0 | AC38: =iIndiRank!BA27 ->  | AE38: =iIndiRank!BC27 -> 0 | AF38: =iIndiRank!BD27 ->  | AH38: =iIndiRank!BF27 -> 0 | AI38: =iIndiRank!BG27 ->  | AK38: 22
B39: =IF(uxb_works!$J$21=1,1,IF(OR(V39>0,Y39>0,AB39>0,AE39>0,AH39>0),1,0)) -> 1 | J39: =iIndiRank!L28 -> 1 | K39: =IF(J39=0,4,IF(P39<=uxb_works!$B$122,0,IF(P39<=uxb_works!$B$121,1,IF(P39<=uxb_works!$B$120,2,3)))) -> 2 | M39: =iIndiRank!P28 -> 23 | N39: =iIndiRank!Q28 -> Paris | O39: =iIndiRank!R28 -> 74.3 | P39: =iIndiRank!T28 -> 74.3 | Q39: |||||||||||||||||||||||| | R39: =TEXT(iIndiRank!S28,iIndiRank!$E$2) ->  | V39: =iIndiRank!AT28 -> 0 | W39: =iIndiRank!AU28 -> Paris | Y39: =iIndiRank!AW28 -> 0 | Z39: =iIndiRank!AX28 ->  | AB39: =iIndiRank!AZ28 -> 0 | AC39: =iIndiRank!BA28 ->  | AE39: =iIndiRank!BC28 -> 0 | AF39: =iIndiRank!BD28 ->  | AH39: =iIndiRank!BF28 -> 0 | AI39: =iIndiRank!BG28 ->  | AK39: 23
B40: =IF(uxb_works!$J$21=1,1,IF(OR(V40>0,Y40>0,AB40>0,AE40>0,AH40>0),1,0)) -> 1 | J40: =iIndiRank!L29 -> 1 | K40: =IF(J40=0,4,IF(P40<=uxb_works!$B$122,0,IF(P40<=uxb_works!$B$121,1,IF(P40<=uxb_works!$B$120,2,3)))) -> 2 | M40: =iIndiRank!P29 -> 24 | N40: =iIndiRank!Q29 -> Taipei | O40: =iIndiRank!R29 -> 74 | P40: =iIndiRank!T29 -> 74 | Q40: |||||||||||||||||||||||| | R40: =TEXT(iIndiRank!S29,iIndiRank!$E$2) ->  | V40: =iIndiRank!AT29 -> 0 | W40: =iIndiRank!AU29 -> Taipei | Y40: =iIndiRank!AW29 -> 0 | Z40: =iIndiRank!AX29 ->  | AB40: =iIndiRank!AZ29 -> 0 | AC40: =iIndiRank!BA29 ->  | AE40: =iIndiRank!BC29 -> 0 | AF40: =iIndiRank!BD29 ->  | AH40: =iIndiRank!BF29 -> 0 | AI40: =iIndiRank!BG29 ->  | AK40: 24
B41: =IF(uxb_works!$J$21=1,1,IF(OR(V41>0,Y41>0,AB41>0,AE41>0,AH41>0),1,0)) -> 1 | J41: =iIndiRank!L30 -> 1 | K41: =IF(J41=0,4,IF(P41<=uxb_works!$B$122,0,IF(P41<=uxb_works!$B$121,1,IF(P41<=uxb_works!$B$120,2,3)))) -> 2 | M41: =iIndiRank!P30 -> 25 | N41: =iIndiRank!Q30 -> Seoul | O41: =iIndiRank!R30 -> 73.8 | P41: =iIndiRank!T30 -> 73.8 | Q41: |||||||||||||||||||||||| | R41: =TEXT(iIndiRank!S30,iIndiRank!$E$2) ->  | V41: =iIndiRank!AT30 -> 0 | W41: =iIndiRank!AU30 -> Seoul | Y41: =iIndiRank!AW30 -> 0 | Z41: =iIndiRank!AX30 ->  | AB41: =iIndiRank!AZ30 -> 0 | AC41: =iIndiRank!BA30 ->  | AE41: =iIndiRank!BC30 -> 0 | AF41: =iIndiRank!BD30 ->  | AH41: =iIndiRank!BF30 -> 0 | AI41: =iIndiRank!BG30 ->  | AK41: 25
B42: =IF(uxb_works!$J$21=1,1,IF(OR(V42>0,Y42>0,AB42>0,AE42>0,AH42>0),1,0)) -> 1 | J42: =iIndiRank!L31 -> 1 | K42: =IF(J42=0,4,IF(P42<=uxb_works!$B$122,0,IF(P42<=uxb_works!$B$121,1,IF(P42<=uxb_works!$B$120,2,3)))) -> 2 | M42: =iIndiRank!P31 -> 26 | N42: =iIndiRank!Q31 -> Brussels | O42: =iIndiRank!R31 -> 73.6 | P42: =iIndiRank!T31 -> 73.6 | Q42: |||||||||||||||||||||||| | R42: =TEXT(iIndiRank!S31,iIndiRank!$E$2) ->  | V42: =iIndiRank!AT31 -> 0 | W42: =iIndiRank!AU31 -> Brussels | Y42: =iIndiRank!AW31 -> 0 | Z42: =iIndiRank!AX31 ->  | AB42: =iIndiRank!AZ31 -> 0 | AC42: =iIndiRank!BA31 ->  | AE42: =iIndiRank!BC31 -> 0 | AF42: =iIndiRank!BD31 ->  | AH42: =iIndiRank!BF31 -> 0 | AI42: =iIndiRank!BG31 ->  | AK42: 26
B43: =IF(uxb_works!$J$21=1,1,IF(OR(V43>0,Y43>0,AB43>0,AE43>0,AH43>0),1,0)) -> 1 | J43: =iIndiRank!L32 -> 1 | K43: =IF(J43=0,4,IF(P43<=uxb_works!$B$122,0,IF(P43<=uxb_works!$B$121,1,IF(P43<=uxb_works!$B$120,2,3)))) -> 2 | M43: =iIndiRank!P32 -> 27 | N43: =iIndiRank!Q32 -> Milan | O43: =iIndiRank!R32 -> 71.3 | P43: =iIndiRank!T32 -> 71.3 | Q43: ||||||||||||||||||||||| | R43: =TEXT(iIndiRank!S32,iIndiRank!$E$2) ->  | V43: =iIndiRank!AT32 -> 0 | W43: =iIndiRank!AU32 -> Milan | Y43: =iIndiRank!AW32 -> 0 | Z43: =iIndiRank!AX32 ->  | AB43: =iIndiRank!AZ32 -> 0 | AC43: =iIndiRank!BA32 ->  | AE43: =iIndiRank!BC32 -> 0 | AF43: =iIndiRank!BD32 ->  | AH43: =iIndiRank!BF32 -> 0 | AI43: =iIndiRank!BG32 ->  | AK43: 27
B44: =IF(uxb_works!$J$21=1,1,IF(OR(V44>0,Y44>0,AB44>0,AE44>0,AH44>0),1,0)) -> 1 | J44: =iIndiRank!L33 -> 1 | K44: =IF(J44=0,4,IF(P44<=uxb_works!$B$122,0,IF(P44<=uxb_works!$B$121,1,IF(P44<=uxb_works!$B$120,2,3)))) -> 2 | M44: =iIndiRank!P33 -> 28 | N44: =iIndiRank!Q33 -> Lisbon | O44: =iIndiRank!R33 -> 70.1 | P44: =iIndiRank!T33 -> 70.1 | Q44: ||||||||||||||||||||||| | R44: =TEXT(iIndiRank!S33,iIndiRank!$E$2) ->  | V44: =iIndiRank!AT33 -> 0 | W44: =iIndiRank!AU33 -> Lisbon | Y44: =iIndiRank!AW33 -> 0 | Z44: =iIndiRank!AX33 ->  | AB44: =iIndiRank!AZ33 -> 0 | AC44: =iIndiRank!BA33 ->  | AE44: =iIndiRank!BC33 -> 0 | AF44: =iIndiRank!BD33 ->  | AH44: =iIndiRank!BF33 -> 0 | AI44: =iIndiRank!BG33 ->  | AK44: 28
B45: =IF(uxb_works!$J$21=1,1,IF(OR(V45>0,Y45>0,AB45>0,AE45>0,AH45>0),1,0)) -> 1 | J45: =iIndiRank!L34 -> 1 | K45: =IF(J45=0,4,IF(P45<=uxb_works!$B$122,0,IF(P45<=uxb_works!$B$121,1,IF(P45<=uxb_works!$B$120,2,3)))) -> 2 | M45: =iIndiRank!P34 -> 29 | N45: =iIndiRank!Q34 -> Rome | O45: =iIndiRank!R34 -> 69.4 | P45: =iIndiRank!T34 -> 69.4 | Q45: ||||||||||||||||||||||| | R45: =TEXT(iIndiRank!S34,iIndiRank!$E$2) ->  | V45: =iIndiRank!AT34 -> 0 | W45: =iIndiRank!AU34 -> Rome | Y45: =iIndiRank!AW34 -> 0 | Z45: =iIndiRank!AX34 ->  | AB45: =iIndiRank!AZ34 -> 0 | AC45: =iIndiRank!BA34 ->  | AE45: =iIndiRank!BC34 -> 0 | AF45: =iIndiRank!BD34 ->  | AH45: =iIndiRank!BF34 -> 0 | AI45: =iIndiRank!BG34 ->  | AK45: 29
B46: =IF(uxb_works!$J$21=1,1,IF(OR(V46>0,Y46>0,AB46>0,AE46>0,AH46>0),1,0)) -> 1 | J46: =iIndiRank!L35 -> 1 | K46: =IF(J46=0,4,IF(P46<=uxb_works!$B$122,0,IF(P46<=uxb_works!$B$121,1,IF(P46<=uxb_works!$B$120,2,3)))) -> 2 | M46: =iIndiRank!P35 -> 30 | N46: =iIndiRank!Q35 -> Shanghai | O46: =iIndiRank!R35 -> 67.9 | P46: =iIndiRank!T35 -> 67.9 | Q46: |||||||||||||||||||||| | R46: =TEXT(iIndiRank!S35,iIndiRank!$E$2) ->  | V46: =iIndiRank!AT35 -> 0 | W46: =iIndiRank!AU35 -> Shanghai | Y46: =iIndiRank!AW35 -> 0 | Z46: =iIndiRank!AX35 ->  | AB46: =iIndiRank!AZ35 -> 0 | AC46: =iIndiRank!BA35 ->  | AE46: =iIndiRank!BC35 -> 0 | AF46: =iIndiRank!BD35 ->  | AH46: =iIndiRank!BF35 -> 0 | AI46: =iIndiRank!BG35 ->  | AK46: 30
B47: =IF(uxb_works!$J$21=1,1,IF(OR(V47>0,Y47>0,AB47>0,AE47>0,AH47>0),1,0)) -> 1 | J47: =iIndiRank!L36 -> 1 | K47: =IF(J47=0,4,IF(P47<=uxb_works!$B$122,0,IF(P47<=uxb_works!$B$121,1,IF(P47<=uxb_works!$B$120,2,3)))) -> 2 | M47: =iIndiRank!P36 -> 31 | N47: =iIndiRank!Q36 -> Abu Dhabi | O47: =iIndiRank!R36 -> 66.9 | P47: =iIndiRank!T36 -> 66.9 | Q47: |||||||||||||||||||||| | R47: =TEXT(iIndiRank!S36,iIndiRank!$E$2) ->  | V47: =iIndiRank!AT36 -> 0 | W47: =iIndiRank!AU36 -> Abu Dhabi | Y47: =iIndiRank!AW36 -> 0 | Z47: =iIndiRank!AX36 ->  | AB47: =iIndiRank!AZ36 -> 0 | AC47: =iIndiRank!BA36 ->  | AE47: =iIndiRank!BC36 -> 0 | AF47: =iIndiRank!BD36 ->  | AH47: =iIndiRank!BF36 -> 0 | AI47: =iIndiRank!BG36 ->  | AK47: 31
B48: =IF(uxb_works!$J$21=1,1,IF(OR(V48>0,Y48>0,AB48>0,AE48>0,AH48>0),1,0)) -> 1 | J48: =iIndiRank!L37 -> 1 | K48: =IF(J48=0,4,IF(P48<=uxb_works!$B$122,0,IF(P48<=uxb_works!$B$121,1,IF(P48<=uxb_works!$B$120,2,3)))) -> 2 | M48: =iIndiRank!P37 -> 32 | N48: =iIndiRank!Q37 -> Kuala Lumpur | O48: =iIndiRank!R37 -> 66.6 | P48: =iIndiRank!T37 -> 66.6 | Q48: |||||||||||||||||||||| | R48: =TEXT(iIndiRank!S37,iIndiRank!$E$2) ->  | V48: =iIndiRank!AT37 -> 0 | W48: =iIndiRank!AU37 -> Kuala Lumpur | Y48: =iIndiRank!AW37 -> 0 | Z48: =iIndiRank!AX37 ->  | AB48: =iIndiRank!AZ37 -> 0 | AC48: =iIndiRank!BA37 ->  | AE48: =iIndiRank!BC37 -> 0 | AF48: =iIndiRank!BD37 ->  | AH48: =iIndiRank!BF37 -> 0 | AI48: =iIndiRank!BG37 ->  | AK48: 32
B49: =IF(uxb_works!$J$21=1,1,IF(OR(V49>0,Y49>0,AB49>0,AE49>0,AH49>0),1,0)) -> 1 | J49: =iIndiRank!L38 -> 1 | K49: =IF(J49=0,4,IF(P49<=uxb_works!$B$122,0,IF(P49<=uxb_works!$B$121,1,IF(P49<=uxb_works!$B$120,2,3)))) -> 2 | M49: =iIndiRank!P38 -> 33 | N49: =iIndiRank!Q38 -> Santiago | O49: =iIndiRank!R38 -> 65.3 | P49: =iIndiRank!T38 -> 65.3 | Q49: ||||||||||||||||||||| | R49: =TEXT(iIndiRank!S38,iIndiRank!$E$2) ->  | V49: =iIndiRank!AT38 -> 0 | W49: =iIndiRank!AU38 -> Santiago | Y49: =iIndiRank!AW38 -> 0 | Z49: =iIndiRank!AX38 ->  | AB49: =iIndiRank!AZ38 -> 0 | AC49: =iIndiRank!BA38 ->  | AE49: =iIndiRank!BC38 -> 0 | AF49: =iIndiRank!BD38 ->  | AH49: =iIndiRank!BF38 -> 0 | AI49: =iIndiRank!BG38 ->  | AK49: 33
B50: =IF(uxb_works!$J$21=1,1,IF(OR(V50>0,Y50>0,AB50>0,AE50>0,AH50>0),1,0)) -> 1 | J50: =iIndiRank!L39 -> 1 | K50: =IF(J50=0,4,IF(P50<=uxb_works!$B$122,0,IF(P50<=uxb_works!$B$121,1,IF(P50<=uxb_works!$B$120,2,3)))) -> 2 | M50: =iIndiRank!P39 -> 34 | N50: =iIndiRank!Q39 -> Buenos Aires | O50: =iIndiRank!R39 -> 64.9 | P50: =iIndiRank!T39 -> 64.9 | Q50: ||||||||||||||||||||| | R50: =TEXT(iIndiRank!S39,iIndiRank!$E$2) ->  | V50: =iIndiRank!AT39 -> 0 | W50: =iIndiRank!AU39 -> Buenos Aires | Y50: =iIndiRank!AW39 -> 0 | Z50: =iIndiRank!AX39 ->  | AB50: =iIndiRank!AZ39 -> 0 | AC50: =iIndiRank!BA39 ->  | AE50: =iIndiRank!BC39 -> 0 | AF50: =iIndiRank!BD39 ->  | AH50: =iIndiRank!BF39 -> 0 | AI50: =iIndiRank!BG39 ->  | AK50: 34
B51: =IF(uxb_works!$J$21=1,1,IF(OR(V51>0,Y51>0,AB51>0,AE51>0,AH51>0),1,0)) -> 1 | J51: =iIndiRank!L40 -> 1 | K51: =IF(J51=0,4,IF(P51<=uxb_works!$B$122,0,IF(P51<=uxb_works!$B$121,1,IF(P51<=uxb_works!$B$120,2,3)))) -> 2 | M51: =iIndiRank!P40 -> 35 | N51: =iIndiRank!Q40 -> Dubai | O51: =iIndiRank!R40 -> 64.6 | P51: =iIndiRank!T40 -> 64.6 | Q51: ||||||||||||||||||||| | R51: =TEXT(iIndiRank!S40,iIndiRank!$E$2) ->  | V51: =iIndiRank!AT40 -> 0 | W51: =iIndiRank!AU40 -> Dubai | Y51: =iIndiRank!AW40 -> 0 | Z51: =iIndiRank!AX40 ->  | AB51: =iIndiRank!AZ40 -> 0 | AC51: =iIndiRank!BA40 ->  | AE51: =iIndiRank!BC40 -> 0 | AF51: =iIndiRank!BD40 ->  | AH51: =iIndiRank!BF40 -> 0 | AI51: =iIndiRank!BG40 ->  | AK51: 35
B52: =IF(uxb_works!$J$21=1,1,IF(OR(V52>0,Y52>0,AB52>0,AE52>0,AH52>0),1,0)) -> 1 | J52: =iIndiRank!L41 -> 1 | K52: =IF(J52=0,4,IF(P52<=uxb_works!$B$122,0,IF(P52<=uxb_works!$B$121,1,IF(P52<=uxb_works!$B$120,2,3)))) -> 2 | M52: =iIndiRank!P41 -> 36 | N52: =iIndiRank!Q41 -> Beijing | O52: =iIndiRank!R41 -> 63.8 | P52: =iIndiRank!T41 -> 63.8 | Q52: ||||||||||||||||||||| | R52: =TEXT(iIndiRank!S41,iIndiRank!$E$2) ->  | V52: =iIndiRank!AT41 -> 0 | W52: =iIndiRank!AU41 -> Beijing | Y52: =iIndiRank!AW41 -> 0 | Z52: =iIndiRank!AX41 ->  | AB52: =iIndiRank!AZ41 -> 0 | AC52: =iIndiRank!BA41 ->  | AE52: =iIndiRank!BC41 -> 0 | AF52: =iIndiRank!BD41 ->  | AH52: =iIndiRank!BF41 -> 0 | AI52: =iIndiRank!BG41 ->  | AK52: 36
B53: =IF(uxb_works!$J$21=1,1,IF(OR(V53>0,Y53>0,AB53>0,AE53>0,AH53>0),1,0)) -> 1 | J53: =iIndiRank!L42 -> 1 | K53: =IF(J53=0,4,IF(P53<=uxb_works!$B$122,0,IF(P53<=uxb_works!$B$121,1,IF(P53<=uxb_works!$B$120,2,3)))) -> 2 | M53: =iIndiRank!P42 -> 37 | N53: =iIndiRank!Q42 -> Istanbul | O53: =iIndiRank!R42 -> 62.9 | P53: =iIndiRank!T42 -> 62.9 | Q53: |||||||||||||||||||| | R53: =TEXT(iIndiRank!S42,iIndiRank!$E$2) ->  | V53: =iIndiRank!AT42 -> 0 | W53: =iIndiRank!AU42 -> Istanbul | Y53: =iIndiRank!AW42 -> 0 | Z53: =iIndiRank!AX42 ->  | AB53: =iIndiRank!AZ42 -> 0 | AC53: =iIndiRank!BA42 ->  | AE53: =iIndiRank!BC42 -> 0 | AF53: =iIndiRank!BD42 ->  | AH53: =iIndiRank!BF42 -> 0 | AI53: =iIndiRank!BG42 ->  | AK53: 37
B54: =IF(uxb_works!$J$21=1,1,IF(OR(V54>0,Y54>0,AB54>0,AE54>0,AH54>0),1,0)) -> 1 | J54: =iIndiRank!L43 -> 1 | K54: =IF(J54=0,4,IF(P54<=uxb_works!$B$122,0,IF(P54<=uxb_works!$B$121,1,IF(P54<=uxb_works!$B$120,2,3)))) -> 2 | M54: =iIndiRank!P43 -> 38 | N54: =iIndiRank!Q43 -> Moscow | O54: =iIndiRank!R43 -> 62.5 | P54: =iIndiRank!T43 -> 62.5 | Q54: |||||||||||||||||||| | R54: =TEXT(iIndiRank!S43,iIndiRank!$E$2) ->  | V54: =iIndiRank!AT43 -> 0 | W54: =iIndiRank!AU43 -> Moscow | Y54: =iIndiRank!AW43 -> 0 | Z54: =iIndiRank!AX43 ->  | AB54: =iIndiRank!AZ43 -> 0 | AC54: =iIndiRank!BA43 ->  | AE54: =iIndiRank!BC43 -> 0 | AF54: =iIndiRank!BD43 ->  | AH54: =iIndiRank!BF43 -> 0 | AI54: =iIndiRank!BG43 ->  | AK54: 38
B55: =IF(uxb_works!$J$21=1,1,IF(OR(V55>0,Y55>0,AB55>0,AE55>0,AH55>0),1,0)) -> 1 | J55: =iIndiRank!L44 -> 1 | K55: =IF(J55=0,4,IF(P55<=uxb_works!$B$122,0,IF(P55<=uxb_works!$B$121,1,IF(P55<=uxb_works!$B$120,2,3)))) -> 2 | M55: =iIndiRank!P44 -> 39 | N55: =iIndiRank!Q44 -> Rio de Janeiro | O55: =iIndiRank!R44 -> 61.8 | P55: =iIndiRank!T44 -> 61.8 | Q55: |||||||||||||||||||| | R55: =TEXT(iIndiRank!S44,iIndiRank!$E$2) ->  | V55: =iIndiRank!AT44 -> 0 | W55: =iIndiRank!AU44 -> Rio de Janeiro | Y55: =iIndiRank!AW44 -> 0 | Z55: =iIndiRank!AX44 ->  | AB55: =iIndiRank!AZ44 -> 0 | AC55: =iIndiRank!BA44 ->  | AE55: =iIndiRank!BC44 -> 0 | AF55: =iIndiRank!BD44 ->  | AH55: =iIndiRank!BF44 -> 0 | AI55: =iIndiRank!BG44 ->  | AK55: 39
B56: =IF(uxb_works!$J$21=1,1,IF(OR(V56>0,Y56>0,AB56>0,AE56>0,AH56>0),1,0)) -> 1 | J56: =iIndiRank!L45 -> 1 | K56: =IF(J56=0,4,IF(P56<=uxb_works!$B$122,0,IF(P56<=uxb_works!$B$121,1,IF(P56<=uxb_works!$B$120,2,3)))) -> 2 | M56: =iIndiRank!P45 -> 40 | N56: =iIndiRank!Q45 -> Sao Paulo | O56: =iIndiRank!R45 -> 61.7 | P56: =iIndiRank!T45 -> 61.7 | Q56: |||||||||||||||||||| | R56: =TEXT(iIndiRank!S45,iIndiRank!$E$2) ->  | V56: =iIndiRank!AT45 -> 0 | W56: =iIndiRank!AU45 -> Sao Paulo | Y56: =iIndiRank!AW45 -> 0 | Z56: =iIndiRank!AX45 ->  | AB56: =iIndiRank!AZ45 -> 0 | AC56: =iIndiRank!BA45 ->  | AE56: =iIndiRank!BC45 -> 0 | AF56: =iIndiRank!BD45 ->  | AH56: =iIndiRank!BF45 -> 0 | AI56: =iIndiRank!BG45 ->  | AK56: 40
B57: =IF(uxb_works!$J$21=1,1,IF(OR(V57>0,Y57>0,AB57>0,AE57>0,AH57>0),1,0)) -> 1 | J57: =iIndiRank!L46 -> 1 | K57: =IF(J57=0,4,IF(P57<=uxb_works!$B$122,0,IF(P57<=uxb_works!$B$121,1,IF(P57<=uxb_works!$B$120,2,3)))) -> 2 | M57: =iIndiRank!P46 -> 41 | N57: =iIndiRank!Q46 -> Bogota | O57: =iIndiRank!R46 -> 60.8 | P57: =iIndiRank!T46 -> 60.8 | Q57: |||||||||||||||||||| | R57: =TEXT(iIndiRank!S46,iIndiRank!$E$2) ->  | V57: =iIndiRank!AT46 -> 0 | W57: =iIndiRank!AU46 -> Bogota | Y57: =iIndiRank!AW46 -> 0 | Z57: =iIndiRank!AX46 ->  | AB57: =iIndiRank!AZ46 -> 0 | AC57: =iIndiRank!BA46 ->  | AE57: =iIndiRank!BC46 -> 0 | AF57: =iIndiRank!BD46 ->  | AH57: =iIndiRank!BF46 -> 0 | AI57: =iIndiRank!BG46 ->  | AK57: 41
B58: =IF(uxb_works!$J$21=1,1,IF(OR(V58>0,Y58>0,AB58>0,AE58>0,AH58>0),1,0)) -> 1 | J58: =iIndiRank!L47 -> 1 | K58: =IF(J58=0,4,IF(P58<=uxb_works!$B$122,0,IF(P58<=uxb_works!$B$121,1,IF(P58<=uxb_works!$B$120,2,3)))) -> 2 | M58: =iIndiRank!P47 -> 42 | N58: =iIndiRank!Q47 -> Mexico City | O58: =iIndiRank!R47 -> 60.3 | P58: =iIndiRank!T47 -> 60.3 | Q58: |||||||||||||||||||| | R58: =TEXT(iIndiRank!S47,iIndiRank!$E$2) ->  | V58: =iIndiRank!AT47 -> 0 | W58: =iIndiRank!AU47 -> Mexico City | Y58: =iIndiRank!AW47 -> 0 | Z58: =iIndiRank!AX47 ->  | AB58: =iIndiRank!AZ47 -> 0 | AC58: =iIndiRank!BA47 ->  | AE58: =iIndiRank!BC47 -> 0 | AF58: =iIndiRank!BD47 ->  | AH58: =iIndiRank!BF47 -> 0 | AI58: =iIndiRank!BG47 ->  | AK58: 42
B59: =IF(uxb_works!$J$21=1,1,IF(OR(V59>0,Y59>0,AB59>0,AE59>0,AH59>0),1,0)) -> 1 | J59: =iIndiRank!L48 -> 1 | K59: =IF(J59=0,4,IF(P59<=uxb_works!$B$122,0,IF(P59<=uxb_works!$B$121,1,IF(P59<=uxb_works!$B$120,2,3)))) -> 2 | M59: =iIndiRank!P48 -> 43 | N59: =iIndiRank!Q48 -> Bangkok | O59: =iIndiRank!R48 -> 60.2 | P59: =iIndiRank!T48 -> 60.2 | Q59: |||||||||||||||||||| | R59: =TEXT(iIndiRank!S48,iIndiRank!$E$2) ->  | V59: =iIndiRank!AT48 -> 0 | W59: =iIndiRank!AU48 -> Bangkok | Y59: =iIndiRank!AW48 -> 0 | Z59: =iIndiRank!AX48 ->  | AB59: =iIndiRank!AZ48 -> 0 | AC59: =iIndiRank!BA48 ->  | AE59: =iIndiRank!BC48 -> 0 | AF59: =iIndiRank!BD48 ->  | AH59: =iIndiRank!BF48 -> 0 | AI59: =iIndiRank!BG48 ->  | AK59: 43
B60: =IF(uxb_works!$J$21=1,1,IF(OR(V60>0,Y60>0,AB60>0,AE60>0,AH60>0),1,0)) -> 1 | J60: =iIndiRank!L49 -> 1 | K60: =IF(J60=0,4,IF(P60<=uxb_works!$B$122,0,IF(P60<=uxb_works!$B$121,1,IF(P60<=uxb_works!$B$120,2,3)))) -> 2 | M60: =iIndiRank!P49 -> 44 | N60: =iIndiRank!Q49 -> Quito | O60: =iIndiRank!R49 -> 58.8 | P60: =iIndiRank!T49 -> 58.8 | Q60: ||||||||||||||||||| | R60: =TEXT(iIndiRank!S49,iIndiRank!$E$2) ->  | V60: =iIndiRank!AT49 -> 0 | W60: =iIndiRank!AU49 -> Quito | Y60: =iIndiRank!AW49 -> 0 | Z60: =iIndiRank!AX49 ->  | AB60: =iIndiRank!AZ49 -> 0 | AC60: =iIndiRank!BA49 ->  | AE60: =iIndiRank!BC49 -> 0 | AF60: =iIndiRank!BD49 ->  | AH60: =iIndiRank!BF49 -> 0 | AI60: =iIndiRank!BG49 ->  | AK60: 44
B61: =IF(uxb_works!$J$21=1,1,IF(OR(V61>0,Y61>0,AB61>0,AE61>0,AH61>0),1,0)) -> 1 | J61: =iIndiRank!L50 -> 1 | K61: =IF(J61=0,4,IF(P61<=uxb_works!$B$122,0,IF(P61<=uxb_works!$B$121,1,IF(P61<=uxb_works!$B$120,2,3)))) -> 2 | M61: =iIndiRank!P50 -> 45 | N61: =iIndiRank!Q50 -> Ho Chi Minh City | O61: =iIndiRank!R50 -> 58.5 | P61: =iIndiRank!T50 -> 58.5 | Q61: ||||||||||||||||||| | R61: =TEXT(iIndiRank!S50,iIndiRank!$E$2) ->  | V61: =iIndiRank!AT50 -> 0 | W61: =iIndiRank!AU50 -> Ho Chi Minh City | Y61: =iIndiRank!AW50 -> 0 | Z61: =iIndiRank!AX50 ->  | AB61: =iIndiRank!AZ50 -> 0 | AC61: =iIndiRank!BA50 ->  | AE61: =iIndiRank!BC50 -> 0 | AF61: =iIndiRank!BD50 ->  | AH61: =iIndiRank!BF50 -> 0 | AI61: =iIndiRank!BG50 ->  | AK61: 45
B62: =IF(uxb_works!$J$21=1,1,IF(OR(V62>0,Y62>0,AB62>0,AE62>0,AH62>0),1,0)) -> 1 | J62: =iIndiRank!L51 -> 1 | K62: =IF(J62=0,4,IF(P62<=uxb_works!$B$122,0,IF(P62<=uxb_works!$B$121,1,IF(P62<=uxb_works!$B$120,2,3)))) -> 2 | M62: =iIndiRank!P51 -> 46 | N62: =iIndiRank!Q51 -> Jakarta | O62: =iIndiRank!R51 -> 56.4 | P62: =iIndiRank!T51 -> 56.4 | Q62: |||||||||||||||||| | R62: =TEXT(iIndiRank!S51,iIndiRank!$E$2) ->  | V62: =iIndiRank!AT51 -> 0 | W62: =iIndiRank!AU51 -> Jakarta | Y62: =iIndiRank!AW51 -> 0 | Z62: =iIndiRank!AX51 ->  | AB62: =iIndiRank!AZ51 -> 0 | AC62: =iIndiRank!BA51 ->  | AE62: =iIndiRank!BC51 -> 0 | AF62: =iIndiRank!BD51 ->  | AH62: =iIndiRank!BF51 -> 0 | AI62: =iIndiRank!BG51 ->  | AK62: 46
B63: =IF(uxb_works!$J$21=1,1,IF(OR(V63>0,Y63>0,AB63>0,AE63>0,AH63>0),1,0)) -> 1 | J63: =iIndiRank!L52 -> 1 | K63: =IF(J63=0,4,IF(P63<=uxb_works!$B$122,0,IF(P63<=uxb_works!$B$121,1,IF(P63<=uxb_works!$B$120,2,3)))) -> 2 | M63: =iIndiRank!P52 -> 47 | N63: =iIndiRank!Q52 -> Johannesburg | O63: =iIndiRank!R52 -> 56.2 | P63: =iIndiRank!T52 -> 56.2 | Q63: |||||||||||||||||| | R63: =TEXT(iIndiRank!S52,iIndiRank!$E$2) ->  | V63: =iIndiRank!AT52 -> 0 | W63: =iIndiRank!AU52 -> Johannesburg | Y63: =iIndiRank!AW52 -> 0 | Z63: =iIndiRank!AX52 ->  | AB63: =iIndiRank!AZ52 -> 0 | AC63: =iIndiRank!BA52 ->  | AE63: =iIndiRank!BC52 -> 0 | AF63: =iIndiRank!BD52 ->  | AH63: =iIndiRank!BF52 -> 0 | AI63: =iIndiRank!BG52 ->  | AK63: 47
B64: =IF(uxb_works!$J$21=1,1,IF(OR(V64>0,Y64>0,AB64>0,AE64>0,AH64>0),1,0)) -> 1 | J64: =iIndiRank!L53 -> 1 | K64: =IF(J64=0,4,IF(P64<=uxb_works!$B$122,0,IF(P64<=uxb_works!$B$121,1,IF(P64<=uxb_works!$B$120,2,3)))) -> 2 | M64: =iIndiRank!P53 -> 48 | N64: =iIndiRank!Q53 -> New Delhi | O64: =iIndiRank!R53 -> 56.1 | P64: =iIndiRank!T53 -> 56.1 | Q64: |||||||||||||||||| | R64: =TEXT(iIndiRank!S53,iIndiRank!$E$2) ->  | V64: =iIndiRank!AT53 -> 0 | W64: =iIndiRank!AU53 -> New Delhi | Y64: =iIndiRank!AW53 -> 0 | Z64: =iIndiRank!AX53 ->  | AB64: =iIndiRank!AZ53 -> 0 | AC64: =iIndiRank!BA53 ->  | AE64: =iIndiRank!BC53 -> 0 | AF64: =iIndiRank!BD53 ->  | AH64: =iIndiRank!BF53 -> 0 | AI64: =iIndiRank!BG53 ->  | AK64: 48
B65: =IF(uxb_works!$J$21=1,1,IF(OR(V65>0,Y65>0,AB65>0,AE65>0,AH65>0),1,0)) -> 1 | J65: =iIndiRank!L54 -> 1 | K65: =IF(J65=0,4,IF(P65<=uxb_works!$B$122,0,IF(P65<=uxb_works!$B$121,1,IF(P65<=uxb_works!$B$120,2,3)))) -> 2 | M65: =iIndiRank!P54 -> 49 | N65: =iIndiRank!Q54 -> Riyadh | O65: =iIndiRank!R54 -> 55.1 | P65: =iIndiRank!T54 -> 55.1 | Q65: |||||||||||||||||| | R65: =TEXT(iIndiRank!S54,iIndiRank!$E$2) ->  | V65: =iIndiRank!AT54 -> 0 | W65: =iIndiRank!AU54 -> Riyadh | Y65: =iIndiRank!AW54 -> 0 | Z65: =iIndiRank!AX54 ->  | AB65: =iIndiRank!AZ54 -> 0 | AC65: =iIndiRank!BA54 ->  | AE65: =iIndiRank!BC54 -> 0 | AF65: =iIndiRank!BD54 ->  | AH65: =iIndiRank!BF54 -> 0 | AI65: =iIndiRank!BG54 ->  | AK65: 49
B66: =IF(uxb_works!$J$21=1,1,IF(OR(V66>0,Y66>0,AB66>0,AE66>0,AH66>0),1,0)) -> 1 | J66: =iIndiRank!L55 -> 1 | K66: =IF(J66=0,4,IF(P66<=uxb_works!$B$122,0,IF(P66<=uxb_works!$B$121,1,IF(P66<=uxb_works!$B$120,2,3)))) -> 2 | M66: =iIndiRank!P55 -> 50 | N66: =iIndiRank!Q55 -> Mumbai | O66: =iIndiRank!R55 -> 54.4 | P66: =iIndiRank!T55 -> 54.4 | Q66: |||||||||||||||||| | R66: =TEXT(iIndiRank!S55,iIndiRank!$E$2) ->  | V66: =iIndiRank!AT55 -> 0 | W66: =iIndiRank!AU55 -> Mumbai | Y66: =iIndiRank!AW55 -> 0 | Z66: =iIndiRank!AX55 ->  | AB66: =iIndiRank!AZ55 -> 0 | AC66: =iIndiRank!BA55 ->  | AE66: =iIndiRank!BC55 -> 0 | AF66: =iIndiRank!BD55 ->  | AH66: =iIndiRank!BF55 -> 0 | AI66: =iIndiRank!BG55 ->  | AK66: 50
B67: =IF(uxb_works!$J$21=1,1,IF(OR(V67>0,Y67>0,AB67>0,AE67>0,AH67>0),1,0)) -> 1 | J67: =iIndiRank!L56 -> 1 | K67: =IF(J67=0,4,IF(P67<=uxb_works!$B$122,0,IF(P67<=uxb_works!$B$121,1,IF(P67<=uxb_works!$B$120,2,3)))) -> 2 | M67: =iIndiRank!P56 -> 51 | N67: =iIndiRank!Q56 -> Manila | O67: =iIndiRank!R56 -> 52.5 | P67: =iIndiRank!T56 -> 52.5 | Q67: ||||||||||||||||| | R67: =TEXT(iIndiRank!S56,iIndiRank!$E$2) ->  | V67: =iIndiRank!AT56 -> 0 | W67: =iIndiRank!AU56 -> Manila | Y67: =iIndiRank!AW56 -> 0 | Z67: =iIndiRank!AX56 ->  | AB67: =iIndiRank!AZ56 -> 0 | AC67: =iIndiRank!BA56 ->  | AE67: =iIndiRank!BC56 -> 0 | AF67: =iIndiRank!BD56 ->  | AH67: =iIndiRank!BF56 -> 0 | AI67: =iIndiRank!BG56 ->  | AK67: 51
B68: =IF(uxb_works!$J$21=1,1,IF(OR(V68>0,Y68>0,AB68>0,AE68>0,AH68>0),1,0)) -> 1 | J68: =iIndiRank!L57 -> 1 | K68: =IF(J68=0,4,IF(P68<=uxb_works!$B$122,0,IF(P68<=uxb_works!$B$121,1,IF(P68<=uxb_works!$B$120,2,3)))) -> 1 | M68: =iIndiRank!P57 -> 52 | N68: =iIndiRank!Q57 -> Baku | O68: =iIndiRank!R57 -> 49.8 | P68: =iIndiRank!T57 -> 49.8 | Q68: |||||||||||||||| | R68: =TEXT(iIndiRank!S57,iIndiRank!$E$2) ->  | V68: =iIndiRank!AT57 -> 0 | W68: =iIndiRank!AU57 -> Baku | Y68: =iIndiRank!AW57 -> 0 | Z68: =iIndiRank!AX57 ->  | AB68: =iIndiRank!AZ57 -> 0 | AC68: =iIndiRank!BA57 ->  | AE68: =iIndiRank!BC57 -> 0 | AF68: =iIndiRank!BD57 ->  | AH68: =iIndiRank!BF57 -> 0 | AI68: =iIndiRank!BG57 ->  | AK68: 52
B69: =IF(uxb_works!$J$21=1,1,IF(OR(V69>0,Y69>0,AB69>0,AE69>0,AH69>0),1,0)) -> 1 | J69: =iIndiRank!L58 -> 1 | K69: =IF(J69=0,4,IF(P69<=uxb_works!$B$122,0,IF(P69<=uxb_works!$B$121,1,IF(P69<=uxb_works!$B$120,2,3)))) -> 1 | M69: =iIndiRank!P58 -> 53 | N69: =iIndiRank!Q58 -> Kuwait city | O69: =iIndiRank!R58 -> 49.4 | P69: =iIndiRank!T58 -> 49.4 | Q69: |||||||||||||||| | R69: =TEXT(iIndiRank!S58,iIndiRank!$E$2) ->  | V69: =iIndiRank!AT58 -> 0 | W69: =iIndiRank!AU58 -> Kuwait city | Y69: =iIndiRank!AW58 -> 0 | Z69: =iIndiRank!AX58 ->  | AB69: =iIndiRank!AZ58 -> 0 | AC69: =iIndiRank!BA58 ->  | AE69: =iIndiRank!BC58 -> 0 | AF69: =iIndiRank!BD58 ->  | AH69: =iIndiRank!BF58 -> 0 | AI69: =iIndiRank!BG58 ->  | AK69: 53
B70: =IF(uxb_works!$J$21=1,1,IF(OR(V70>0,Y70>0,AB70>0,AE70>0,AH70>0),1,0)) -> 1 | J70: =iIndiRank!L59 -> 1 | K70: =IF(J70=0,4,IF(P70<=uxb_works!$B$122,0,IF(P70<=uxb_works!$B$121,1,IF(P70<=uxb_works!$B$120,2,3)))) -> 1 | M70: =iIndiRank!P59 -> 54 | N70: =iIndiRank!Q59 -> Dhaka | O70: =iIndiRank!R59 -> 48.9 | P70: =iIndiRank!T59 -> 48.9 | Q70: |||||||||||||||| | R70: =TEXT(iIndiRank!S59,iIndiRank!$E$2) ->  | V70: =iIndiRank!AT59 -> 0 | W70: =iIndiRank!AU59 -> Dhaka | Y70: =iIndiRank!AW59 -> 0 | Z70: =iIndiRank!AX59 ->  | AB70: =iIndiRank!AZ59 -> 0 | AC70: =iIndiRank!BA59 ->  | AE70: =iIndiRank!BC59 -> 0 | AF70: =iIndiRank!BD59 ->  | AH70: =iIndiRank!BF59 -> 0 | AI70: =iIndiRank!BG59 ->  | AK70: 54
B71: =IF(uxb_works!$J$21=1,1,IF(OR(V71>0,Y71>0,AB71>0,AE71>0,AH71>0),1,0)) -> 1 | J71: =iIndiRank!L60 -> 1 | K71: =IF(J71=0,4,IF(P71<=uxb_works!$B$122,0,IF(P71<=uxb_works!$B$121,1,IF(P71<=uxb_works!$B$120,2,3)))) -> 1 | M71: =iIndiRank!P60 -> 55 | N71: =iIndiRank!Q60 -> Casablanca | O71: =iIndiRank!R60 -> 48.2 | P71: =iIndiRank!T60 -> 48.2 | Q71: |||||||||||||||| | R71: =TEXT(iIndiRank!S60,iIndiRank!$E$2) ->  | V71: =iIndiRank!AT60 -> 0 | W71: =iIndiRank!AU60 -> Casablanca | Y71: =iIndiRank!AW60 -> 0 | Z71: =iIndiRank!AX60 ->  | AB71: =iIndiRank!AZ60 -> 0 | AC71: =iIndiRank!BA60 ->  | AE71: =iIndiRank!BC60 -> 0 | AF71: =iIndiRank!BD60 ->  | AH71: =iIndiRank!BF60 -> 0 | AI71: =iIndiRank!BG60 ->  | AK71: 55
B72: =IF(uxb_works!$J$21=1,1,IF(OR(V72>0,Y72>0,AB72>0,AE72>0,AH72>0),1,0)) -> 1 | J72: =iIndiRank!L61 -> 1 | K72: =IF(J72=0,4,IF(P72<=uxb_works!$B$122,0,IF(P72<=uxb_works!$B$121,1,IF(P72<=uxb_works!$B$120,2,3)))) -> 1 | M72: =iIndiRank!P61 -> 56 | N72: =iIndiRank!Q61 -> Lagos | O72: =iIndiRank!R61 -> 45 | P72: =iIndiRank!T61 -> 45 | Q72: ||||||||||||||| | R72: =TEXT(iIndiRank!S61,iIndiRank!$E$2) ->  | V72: =iIndiRank!AT61 -> 0 | W72: =iIndiRank!AU61 -> Lagos | Y72: =iIndiRank!AW61 -> 0 | Z72: =iIndiRank!AX61 ->  | AB72: =iIndiRank!AZ61 -> 0 | AC72: =iIndiRank!BA61 ->  | AE72: =iIndiRank!BC61 -> 0 | AF72: =iIndiRank!BD61 ->  | AH72: =iIndiRank!BF61 -> 0 | AI72: =iIndiRank!BG61 ->  | AK72: 56
B73: =IF(uxb_works!$J$21=1,1,IF(OR(V73>0,Y73>0,AB73>0,AE73>0,AH73>0),1,0)) -> 1 | J73: =iIndiRank!L62 -> 1 | K73: =IF(J73=0,4,IF(P73<=uxb_works!$B$122,0,IF(P73<=uxb_works!$B$121,1,IF(P73<=uxb_works!$B$120,2,3)))) -> 1 | M73: =iIndiRank!P62 -> 57 | N73: =iIndiRank!Q62 -> Cairo | O73: =iIndiRank!R62 -> 43.7 | P73: =iIndiRank!T62 -> 43.7 | Q73: |||||||||||||| | R73: =TEXT(iIndiRank!S62,iIndiRank!$E$2) ->  | V73: =iIndiRank!AT62 -> 0 | W73: =iIndiRank!AU62 -> Cairo | Y73: =iIndiRank!AW62 -> 0 | Z73: =iIndiRank!AX62 ->  | AB73: =iIndiRank!AZ62 -> 0 | AC73: =iIndiRank!BA62 ->  | AE73: =iIndiRank!BC62 -> 0 | AF73: =iIndiRank!BD62 ->  | AH73: =iIndiRank!BF62 -> 0 | AI73: =iIndiRank!BG62 ->  | AK73: 57
B74: =IF(uxb_works!$J$21=1,1,IF(OR(V74>0,Y74>0,AB74>0,AE74>0,AH74>0),1,0)) -> 1 | J74: =iIndiRank!L63 -> 1 | K74: =IF(J74=0,4,IF(P74<=uxb_works!$B$122,0,IF(P74<=uxb_works!$B$121,1,IF(P74<=uxb_works!$B$120,2,3)))) -> 1 | M74: =iIndiRank!P63 -> 58 | N74: =iIndiRank!Q63 -> Caracas | O74: =iIndiRank!R63 -> 40.5 | P74: =iIndiRank!T63 -> 40.5 | Q74: ||||||||||||| | R74: =TEXT(iIndiRank!S63,iIndiRank!$E$2) ->  | V74: =iIndiRank!AT63 -> 0 | W74: =iIndiRank!AU63 -> Caracas | Y74: =iIndiRank!AW63 -> 0 | Z74: =iIndiRank!AX63 ->  | AB74: =iIndiRank!AZ63 -> 0 | AC74: =iIndiRank!BA63 ->  | AE74: =iIndiRank!BC63 -> 0 | AF74: =iIndiRank!BD63 ->  | AH74: =iIndiRank!BF63 -> 0 | AI74: =iIndiRank!BG63 ->  | AK74: 58
B75: =IF(uxb_works!$J$21=1,1,IF(OR(V75>0,Y75>0,AB75>0,AE75>0,AH75>0),1,0)) -> 1 | J75: =iIndiRank!L64 -> 1 | K75: =IF(J75=0,4,IF(P75<=uxb_works!$B$122,0,IF(P75<=uxb_works!$B$121,1,IF(P75<=uxb_works!$B$120,2,3)))) -> 1 | M75: =iIndiRank!P64 -> 59 | N75: =iIndiRank!Q64 -> Karachi | O75: =iIndiRank!R64 -> 39.7 | P75: =iIndiRank!T64 -> 39.7 | Q75: ||||||||||||| | R75: =TEXT(iIndiRank!S64,iIndiRank!$E$2) ->  | V75: =iIndiRank!AT64 -> 0 | W75: =iIndiRank!AU64 -> Karachi | Y75: =iIndiRank!AW64 -> 0 | Z75: =iIndiRank!AX64 ->  | AB75: =iIndiRank!AZ64 -> 0 | AC75: =iIndiRank!BA64 ->  | AE75: =iIndiRank!BC64 -> 0 | AF75: =iIndiRank!BD64 ->  | AH75: =iIndiRank!BF64 -> 0 | AI75: =iIndiRank!BG64 ->  | AK75: 59
B76: =IF(uxb_works!$J$21=1,1,IF(OR(V76>0,Y76>0,AB76>0,AE76>0,AH76>0),1,0)) -> 1 | J76: =iIndiRank!L65 -> 1 | K76: =IF(J76=0,4,IF(P76<=uxb_works!$B$122,0,IF(P76<=uxb_works!$B$121,1,IF(P76<=uxb_works!$B$120,2,3)))) -> 1 | M76: =iIndiRank!P65 -> 60 | N76: =iIndiRank!Q65 -> Yangon | O76: =iIndiRank!R65 -> 39.5 | P76: =iIndiRank!T65 -> 39.5 | Q76: ||||||||||||| | R76: =TEXT(iIndiRank!S65,iIndiRank!$E$2) ->  | V76: =iIndiRank!AT65 -> 0 | W76: =iIndiRank!AU65 -> Yangon | Y76: =iIndiRank!AW65 -> 0 | Z76: =iIndiRank!AX65 ->  | AB76: =iIndiRank!AZ65 -> 0 | AC76: =iIndiRank!BA65 ->  | AE76: =iIndiRank!BC65 -> 0 | AF76: =iIndiRank!BD65 ->  | AH76: =iIndiRank!BF65 -> 0 | AI76: =iIndiRank!BG65 ->  | AK76: 60

Sheet CountryScoreCard
A1: =uxb_works!$B$92 -> SAFE CITIES INDEX: 2021 | AC1: $C$30 | BA1: 1 | BB1: 2 | BC1: 1 | BD1: 2 | BF1: 1 | BG1: 2
BC2: 2 | BD2: 0
A4: =uxb_works!B111 -> 1
A6: =uxb_works!$C$5 -> The active weight profile has been changed from its default setting
C8: =uxb_works!D67 -> Active filter group: All regions in all income levels with all population sizes
C13: =uxb_works!C26 -> Abu Dhabi | I13: Score | J13: ="Rank/"&uxb_works!$B$1 -> Rank/60 | K13: =iCntyScoreCard!C68 -> All city average
B14: 1 | C14: =iCSCtbl!C3 -> OVERVIEW | I14: =iCSCtbl!D3 -> 66.9 | J14: =iCSCtbl!E3 -> 31 | K14: =iCSCtbl!G3 -> 66.1
B15: =iCSCtbl!F4 -> 1 | C15: =TRIM(UPPER(iCSCtbl!C4)) -> 1) DIGITAL SECURITY | I15: =iCSCtbl!D4 -> 66.8 | J15: =iCSCtbl!E4 -> =24 | K15: =iCSCtbl!G4 -> 61.7
B16: =iCSCtbl!F5 -> 2 | C16: =TRIM(iCSCtbl!C5) -> 1.1) Digital security (input) | I16: =iCSCtbl!D5 -> 80 | J16: =iCSCtbl!E5 -> =8 | K16: =iCSCtbl!G5 -> 66.2
B17: =iCSCtbl!F6 -> 2 | C17: =TRIM(iCSCtbl!C6) -> 1.2) Digital security (output) | I17: =iCSCtbl!D6 -> 53.6 | J17: =iCSCtbl!E6 -> =34 | K17: =iCSCtbl!G6 -> 57.3
B18: =iCSCtbl!F7 -> 1 | C18: =TRIM(iCSCtbl!C7) -> 2) HEALTH SECURITY | I18: =iCSCtbl!D7 -> 76.5 | J18: =iCSCtbl!E7 -> 12 | K18: =iCSCtbl!G7 -> 66.7
B19: =iCSCtbl!F8 -> 2 | C19: =TRIM(iCSCtbl!C8) -> 2.1) Health security (input) | I19: =iCSCtbl!D8 -> 72.4 | J19: =iCSCtbl!E8 -> 11 | K19: =iCSCtbl!G8 -> 59.3
B20: =iCSCtbl!F9 -> 2 | C20: =TRIM(iCSCtbl!C9) -> 2.2) Health security (output) | I20: =iCSCtbl!D9 -> 80.7 | J20: =iCSCtbl!E9 -> 12 | K20: =iCSCtbl!G9 -> 74
B21: =iCSCtbl!F10 -> 1 | C21: =TRIM(iCSCtbl!C10) -> 3) INFRASTRUCTURE SECURITY | I21: =iCSCtbl!D10 -> 77.3 | J21: =iCSCtbl!E10 -> 29 | K21: =iCSCtbl!G10 -> 71.5
B22: =iCSCtbl!F11 -> 2 | C22: =TRIM(iCSCtbl!C11) -> 3.1) Infrastructure security (input) | I22: =iCSCtbl!D11 -> 74.9 | J22: =iCSCtbl!E11 -> 33 | K22: =iCSCtbl!G11 -> 73.3
B23: =iCSCtbl!F12 -> 2 | C23: =TRIM(iCSCtbl!C12) -> 3.2) Infrastructure security (output) | I23: =iCSCtbl!D12 -> 79.7 | J23: =iCSCtbl!E12 -> =19 | K23: =iCSCtbl!G12 -> 69.7
B24: =iCSCtbl!F13 -> 1 | C24: =TRIM(iCSCtbl!C13) -> 4) PERSONAL SECURITY | I24: =iCSCtbl!D13 -> 67 | J24: =iCSCtbl!E13 -> =25 | K24: =iCSCtbl!G13 -> 62.3
B25: =iCSCtbl!F14 -> 2 | C25: =TRIM(iCSCtbl!C14) -> 4.1) Personal security (input) | I25: =iCSCtbl!D14 -> 51.4 | J25: =iCSCtbl!E14 -> 41 | K25: =iCSCtbl!G14 -> 57.3
B26: =iCSCtbl!F15 -> 2 | C26: =TRIM(iCSCtbl!C15) -> 4.2) Personal security (output) | I26: =iCSCtbl!D15 -> 82.6 | J26: =iCSCtbl!E15 -> =17 | K26: =iCSCtbl!G15 -> 67.2
B27: =iCSCtbl!F16 -> 1 | C27: =TRIM(iCSCtbl!C16) -> 5) ENVIRONMENTAL SECURITY | I27: =iCSCtbl!D16 -> 46.7 | J27: =iCSCtbl!E16 -> =51 | K27: =iCSCtbl!G16 -> 68.5
B28: =iCSCtbl!F17 -> 2 | C28: =TRIM(iCSCtbl!C17) -> 5.1) Environmental security (input) | I28: =iCSCtbl!D17 -> 75 | J28: =iCSCtbl!E17 -> =44 | K28: =iCSCtbl!G17 -> 86.5
B29: =iCSCtbl!F18 -> 2 | C29: =TRIM(iCSCtbl!C18) -> 5.2) Environmental security (output) | I29: =iCSCtbl!D18 -> 18.5 | J29: =iCSCtbl!E18 -> =58 | K29: =iCSCtbl!G18 -> 50.5
C33: Score > 75 | G33: Score < 25
B34: =MAX(SUM(B35:B76),1) -> 4 | F34: =MAX(SUM(F35:F76),1) -> 1
B35: =IF(C35="",0,1) -> 1 | C35: =TRIM(iCountryP!V22) -> 1.1) Digital security (input) | D35: =iCountryP!W22 -> 80 | F35: =IF(G35="",0,1) -> 1 | G35: =TRIM(iCountryP!Z22) -> 5.2) Environmental security (output) | H35: =iCountryP!AA22 -> 18.5 | I35: =iCountryP!AA22 -> 18.5 | W35: =C35 -> 1.1) Digital security (input) | X35: =G35 -> 5.2) Environmental security (output)
B36: =IF(C36="",0,1) -> 1 | C36: =TRIM(iCountryP!V23) -> 2.2) Health security (output) | D36: =iCountryP!W23 -> 80.7 | F36: =IF(G36="",0,1) -> 0 | G36: =TRIM(iCountryP!Z23) ->  | H36: =iCountryP!AA23 ->  | I36: =iCountryP!AA23 ->  | W36: =C36 -> 2.2) Health security (output) | X36: =G36 -> 
B37: 1 | C37: =TRIM(iCountryP!V24) -> 3.2) Infrastructure security (output) | D37: =iCountryP!W24 -> 79.7 | F37: 0 | G37: =TRIM(iCountryP!Z24) ->  | H37: =iCountryP!AA24 ->  | I37: =iCountryP!AA24 ->  | W37: 3.2) Infrastructure security (output)
B38: 1 | C38: =TRIM(iCountryP!V25) -> 4.2) Personal security (output) | D38: =iCountryP!W25 -> 82.6 | F38: 0 | G38: =TRIM(iCountryP!Z25) ->  | H38: =iCountryP!AA25 ->  | I38: =iCountryP!AA25 ->  | W38: 4.2) Personal security (output)
B39: 0 | C39: =TRIM(iCountryP!V26) ->  | D39: =iCountryP!W26 ->  | F39: 0 | G39: =TRIM(iCountryP!Z26) ->  | H39: =iCountryP!AA26 ->  | I39: =iCountryP!AA26 -> 
B40: 0 | C40: =TRIM(iCountryP!V27) ->  | D40: =iCountryP!W27 ->  | F40: 0 | G40: =TRIM(iCountryP!Z27) ->  | H40: =iCountryP!AA27 ->  | I40: =iCountryP!AA27 -> 
B41: =IF(C41="",0,1) -> 0 | C41: =TRIM(iCountryP!V28) ->  | D41: =iCountryP!W28 ->  | F41: =IF(G41="",0,1) -> 0 | G41: =TRIM(iCountryP!Z28) ->  | H41: =iCountryP!AA28 ->  | I41: =iCountryP!AA28 ->  | W41: =C41 ->  | X41: =G41 -> 
B42: 0 | C42: =TRIM(iCountryP!V29) ->  | D42: =iCountryP!W29 ->  | F42: 0 | G42: =TRIM(iCountryP!Z29) ->  | H42: =iCountryP!AA29 ->  | I42: =iCountryP!AA29 -> 
B43: 0 | C43: =TRIM(iCountryP!V30) ->  | D43: =iCountryP!W30 ->  | F43: 0 | G43: =TRIM(iCountryP!Z30) ->  | H43: =iCountryP!AA30 ->  | I43: =iCountryP!AA30 -> 
B44: 0 | C44: =TRIM(iCountryP!V31) ->  | D44: =iCountryP!W31 ->  | F44: 0 | G44: =TRIM(iCountryP!Z31) ->  | H44: =iCountryP!AA31 ->  | I44: =iCountryP!AA31 -> 
B45: 0 | C45: =TRIM(iCountryP!V32) ->  | D45: =iCountryP!W32 ->  | F45: 0 | G45: =TRIM(iCountryP!Z32) ->  | H45: =iCountryP!AA32 ->  | I45: =iCountryP!AA32 -> 
B46: 0 | C46: =TRIM(iCountryP!V33) ->  | D46: =iCountryP!W33 ->  | F46: 0 | G46: =TRIM(iCountryP!Z33) ->  | H46: =iCountryP!AA33 ->  | I46: =iCountryP!AA33 -> 
B47: 0 | C47: =TRIM(iCountryP!V34) ->  | D47: =iCountryP!W34 ->  | F47: 0 | G47: =TRIM(iCountryP!Z34) ->  | H47: =iCountryP!AA34 ->  | I47: =iCountryP!AA34 -> 
B48: 0 | C48: =TRIM(iCountryP!V35) ->  | D48: =iCountryP!W35 ->  | F48: 0 | G48: =TRIM(iCountryP!Z35) ->  | H48: =iCountryP!AA35 ->  | I48: =iCountryP!AA35 -> 
B49: 0 | C49: =TRIM(iCountryP!V36) ->  | D49: =iCountryP!W36 ->  | F49: 0 | G49: =TRIM(iCountryP!Z36) ->  | H49: =iCountryP!AA36 ->  | I49: =iCountryP!AA36 -> 
B50: 0 | C50: =TRIM(iCountryP!V37) ->  | D50: =iCountryP!W37 ->  | F50: 0 | G50: =TRIM(iCountryP!Z37) ->  | H50: =iCountryP!AA37 ->  | I50: =iCountryP!AA37 -> 
B51: 0 | C51: =TRIM(iCountryP!V38) ->  | D51: =iCountryP!W38 ->  | F51: 0 | G51: =TRIM(iCountryP!Z38) ->  | H51: =iCountryP!AA38 ->  | I51: =iCountryP!AA38 -> 
B52: 0 | C52: =TRIM(iCountryP!V39) ->  | D52: =iCountryP!W39 ->  | F52: 0 | G52: =TRIM(iCountryP!Z39) ->  | H52: =iCountryP!AA39 ->  | I52: =iCountryP!AA39 -> 
B53: 0 | C53: =TRIM(iCountryP!V40) ->  | D53: =iCountryP!W40 ->  | F53: 0 | G53: =TRIM(iCountryP!Z40) ->  | H53: =iCountryP!AA40 ->  | I53: =iCountryP!AA40 -> 
B54: 0 | C54: =TRIM(iCountryP!V41) ->  | D54: =iCountryP!W41 ->  | F54: 0 | G54: =TRIM(iCountryP!Z41) ->  | H54: =iCountryP!AA41 ->  | I54: =iCountryP!AA41 -> 
B55: 0 | C55: =TRIM(iCountryP!V42) ->  | D55: =iCountryP!W42 ->  | F55: 0 | G55: =TRIM(iCountryP!Z42) ->  | H55: =iCountryP!AA42 ->  | I55: =iCountryP!AA42 -> 
B56: 0 | C56: =TRIM(iCountryP!V43) ->  | D56: =iCountryP!W43 ->  | F56: 0 | G56: =TRIM(iCountryP!Z43) ->  | H56: =iCountryP!AA43 ->  | I56: =iCountryP!AA43 -> 
B57: 0 | C57: =TRIM(iCountryP!V44) ->  | D57: =iCountryP!W44 ->  | F57: 0 | G57: =TRIM(iCountryP!Z44) ->  | H57: =iCountryP!AA44 ->  | I57: =iCountryP!AA44 -> 
B58: 0 | C58: =TRIM(iCountryP!V45) ->  | D58: =iCountryP!W45 ->  | F58: 0 | G58: =TRIM(iCountryP!Z45) ->  | H58: =iCountryP!AA45 ->  | I58: =iCountryP!AA45 -> 
B59: 0 | C59: =TRIM(iCountryP!V46) ->  | D59: =iCountryP!W46 ->  | F59: 0 | G59: =TRIM(iCountryP!Z46) ->  | H59: =iCountryP!AA46 ->  | I59: =iCountryP!AA46 -> 
B60: 0 | C60: =TRIM(iCountryP!V47) ->  | D60: =iCountryP!W47 ->  | F60: 0 | G60: =TRIM(iCountryP!Z47) ->  | H60: =iCountryP!AA47 ->  | I60: =iCountryP!AA47 -> 
B61: 0 | C61: =TRIM(iCountryP!V48) ->  | D61: =iCountryP!W48 ->  | F61: 0 | G61: =TRIM(iCountryP!Z48) ->  | H61: =iCountryP!AA48 ->  | I61: =iCountryP!AA48 -> 
B62: 0 | C62: =TRIM(iCountryP!V49) ->  | D62: =iCountryP!W49 ->  | F62: 0 | G62: =TRIM(iCountryP!Z49) ->  | H62: =iCountryP!AA49 ->  | I62: =iCountryP!AA49 -> 
B63: 0 | C63: =TRIM(iCountryP!V50) ->  | D63: =iCountryP!W50 ->  | F63: 0 | G63: =TRIM(iCountryP!Z50) ->  | H63: =iCountryP!AA50 ->  | I63: =iCountryP!AA50 -> 
B64: 0 | C64: =TRIM(iCountryP!V51) ->  | D64: =iCountryP!W51 ->  | F64: 0 | G64: =TRIM(iCountryP!Z51) ->  | H64: =iCountryP!AA51 ->  | I64: =iCountryP!AA51 -> 
B65: 0 | C65: =TRIM(iCountryP!V52) ->  | D65: =iCountryP!W52 ->  | F65: 0 | G65: =TRIM(iCountryP!Z52) ->  | H65: =iCountryP!AA52 ->  | I65: =iCountryP!AA52 -> 
B66: 0 | C66: =TRIM(iCountryP!V53) ->  | D66: =iCountryP!W53 ->  | F66: 0 | G66: =TRIM(iCountryP!Z53) ->  | H66: =iCountryP!AA53 ->  | I66: =iCountryP!AA53 -> 
B67: 0 | C67: =TRIM(iCountryP!V54) ->  | D67: =iCountryP!W54 ->  | F67: 0 | G67: =TRIM(iCountryP!Z54) ->  | H67: =iCountryP!AA54 ->  | I67: =iCountryP!AA54 -> 
B68: 0 | C68: =TRIM(iCountryP!V55) ->  | D68: =iCountryP!W55 ->  | F68: 0 | G68: =TRIM(iCountryP!Z55) ->  | H68: =iCountryP!AA55 ->  | I68: =iCountryP!AA55 -> 
B69: 0 | C69: =TRIM(iCountryP!V56) ->  | D69: =iCountryP!W56 ->  | F69: 0 | G69: =TRIM(iCountryP!Z56) ->  | H69: =iCountryP!AA56 ->  | I69: =iCountryP!AA56 -> 
B70: 0 | C70: =TRIM(iCountryP!V57) ->  | D70: =iCountryP!W57 ->  | F70: 0 | G70: =TRIM(iCountryP!Z57) ->  | H70: =iCountryP!AA57 ->  | I70: =iCountryP!AA57 -> 
B71: 0 | C71: =TRIM(iCountryP!V58) ->  | D71: =iCountryP!W58 ->  | F71: 0 | G71: =TRIM(iCountryP!Z58) ->  | H71: =iCountryP!AA58 ->  | I71: =iCountryP!AA58 -> 
B72: 0 | C72: =TRIM(iCountryP!V59) ->  | D72: =iCountryP!W59 ->  | F72: 0 | G72: =TRIM(iCountryP!Z59) ->  | H72: =iCountryP!AA59 ->  | I72: =iCountryP!AA59 -> 
B73: 0 | C73: =TRIM(iCountryP!V60) ->  | D73: =iCountryP!W60 ->  | F73: 0 | G73: =TRIM(iCountryP!Z60) ->  | H73: =iCountryP!AA60 ->  | I73: =iCountryP!AA60 -> 
B74: 0 | C74: =TRIM(iCountryP!V61) ->  | D74: =iCountryP!W61 ->  | F74: 0 | G74: =TRIM(iCountryP!Z61) ->  | H74: =iCountryP!AA61 ->  | I74: =iCountryP!AA61 -> 
B75: 0 | C75: =TRIM(iCountryP!V62) ->  | D75: =iCountryP!W62 ->  | F75: 0 | G75: =TRIM(iCountryP!Z62) ->  | H75: =iCountryP!AA62 ->  | I75: =iCountryP!AA62 -> 
B76: 0 | C76: =TRIM(iCountryP!V63) ->  | D76: =iCountryP!W63 ->  | F76: 0 | G76: =TRIM(iCountryP!Z63) ->  | H76: =iCountryP!AA63 ->  | I76: =iCountryP!AA63 -> 
B77: 0 | C77: =TRIM(iCountryP!V64) ->  | D77: =iCountryP!W64 ->  | F77: 0 | G77: =TRIM(iCountryP!Z64) ->  | H77: =iCountryP!AA64 ->  | I77: =iCountryP!AA64 -> 
B78: =IF(C78="",0,1) -> 0 | C78: =TRIM(iCountryP!V65) ->  | D78: =iCountryP!W65 ->  | F78: =IF(G78="",0,1) -> 0 | G78: =TRIM(iCountryP!Z65) ->  | H78: =iCountryP!AA65 ->  | I78: =iCountryP!AA65 ->  | W78: =C78 ->  | X78: =G78 -> 
B79: 0 | C79: =TRIM(iCountryP!V66) ->  | D79: =iCountryP!W66 ->  | F79: 0 | G79: =TRIM(iCountryP!Z66) ->  | H79: =iCountryP!AA66 ->  | I79: =iCountryP!AA66 -> 
B80: 0 | C80: =TRIM(iCountryP!V67) ->  | D80: =iCountryP!W67 ->  | F80: 0 | G80: =TRIM(iCountryP!Z67) ->  | H80: =iCountryP!AA67 ->  | I80: =iCountryP!AA67 -> 
B81: 0 | C81: =TRIM(iCountryP!V68) ->  | D81: =iCountryP!W68 ->  | F81: 0 | G81: =TRIM(iCountryP!Z68) ->  | H81: =iCountryP!AA68 ->  | I81: =iCountryP!AA68 -> 
B82: 0 | C82: =TRIM(iCountryP!V69) ->  | D82: =iCountryP!W69 ->  | F82: 0 | G82: =TRIM(iCountryP!Z69) ->  | H82: =iCountryP!AA69 ->  | I82: =iCountryP!AA69 -> 
B83: 0 | C83: =TRIM(iCountryP!V70) ->  | D83: =iCountryP!W70 ->  | F83: 0 | G83: =TRIM(iCountryP!Z70) ->  | H83: =iCountryP!AA70 ->  | I83: =iCountryP!AA70 -> 
B84: 0 | C84: =TRIM(iCountryP!V71) ->  | D84: =iCountryP!W71 ->  | F84: 0 | G84: =TRIM(iCountryP!Z71) ->  | H84: =iCountryP!AA71 ->  | I84: =iCountryP!AA71 -> 
B85: 0 | C85: =TRIM(iCountryP!V72) ->  | D85: =iCountryP!W72 ->  | F85: 0 | G85: =TRIM(iCountryP!Z72) ->  | H85: =iCountryP!AA72 ->  | I85: =iCountryP!AA72 -> 
B86: 0 | C86: =TRIM(iCountryP!V73) ->  | D86: =iCountryP!W73 ->  | F86: 0 | G86: =TRIM(iCountryP!Z73) ->  | H86: =iCountryP!AA73 ->  | I86: =iCountryP!AA73 -> 
B87: 0 | C87: =TRIM(iCountryP!V74) ->  | D87: =iCountryP!W74 ->  | F87: 0 | G87: =TRIM(iCountryP!Z74) ->  | H87: =iCountryP!AA74 ->  | I87: =iCountryP!AA74 -> 
B88: 0 | C88: =TRIM(iCountryP!V75) ->  | D88: =iCountryP!W75 ->  | F88: 0 | G88: =TRIM(iCountryP!Z75) ->  | H88: =iCountryP!AA75 ->  | I88: =iCountryP!AA75 -> 
B89: 0 | C89: =TRIM(iCountryP!V76) ->  | D89: =iCountryP!W76 ->  | F89: 0 | G89: =TRIM(iCountryP!Z76) ->  | H89: =iCountryP!AA76 ->  | I89: =iCountryP!AA76 -> 
B90: 0 | C90: =TRIM(iCountryP!V77) ->  | D90: =iCountryP!W77 ->  | F90: 0 | G90: =TRIM(iCountryP!Z77) ->  | H90: =iCountryP!AA77 ->  | I90: =iCountryP!AA77 -> 
B91: 0 | C91: =TRIM(iCountryP!V78) ->  | D91: =iCountryP!W78 ->  | F91: 0 | G91: =TRIM(iCountryP!Z78) ->  | H91: =iCountryP!AA78 ->  | I91: =iCountryP!AA78 -> 
B92: 0 | C92: =TRIM(iCountryP!V79) ->  | D92: =iCountryP!W79 ->  | F92: 0 | G92: =TRIM(iCountryP!Z79) ->  | H92: =iCountryP!AA79 ->  | I92: =iCountryP!AA79 -> 
B93: 0 | C93: =TRIM(iCountryP!V80) ->  | D93: =iCountryP!W80 ->  | F93: 0 | G93: =TRIM(iCountryP!Z80) ->  | H93: =iCountryP!AA80 ->  | I93: =iCountryP!AA80 -> 
B94: 0 | C94: =TRIM(iCountryP!V81) ->  | D94: =iCountryP!W81 ->  | F94: 0 | G94: =TRIM(iCountryP!Z81) ->  | H94: =iCountryP!AA81 ->  | I94: =iCountryP!AA81 -> 
B95: 0 | C95: =TRIM(iCountryP!V82) ->  | D95: =iCountryP!W82 ->  | F95: 0 | G95: =TRIM(iCountryP!Z82) ->  | H95: =iCountryP!AA82 ->  | I95: =iCountryP!AA82 -> 
B96: 0 | C96: =TRIM(iCountryP!V83) ->  | D96: =iCountryP!W83 ->  | F96: 0 | G96: =TRIM(iCountryP!Z83) ->  | H96: =iCountryP!AA83 ->  | I96: =iCountryP!AA83 -> 
B97: 0 | C97: =TRIM(iCountryP!V84) ->  | D97: =iCountryP!W84 ->  | F97: 0 | G97: =TRIM(iCountryP!Z84) ->  | H97: =iCountryP!AA84 ->  | I97: =iCountryP!AA84 -> 
B98: 0 | C98: =TRIM(iCountryP!V85) ->  | D98: =iCountryP!W85 ->  | F98: 0 | G98: =TRIM(iCountryP!Z85) ->  | H98: =iCountryP!AA85 ->  | I98: =iCountryP!AA85 -> 
B99: 0 | C99: =TRIM(iCountryP!V86) ->  | D99: =iCountryP!W86 ->  | F99: 0 | G99: =TRIM(iCountryP!Z86) ->  | H99: =iCountryP!AA86 ->  | I99: =iCountryP!AA86 -> 
B100: 0 | C100: =TRIM(iCountryP!V87) ->  | D100: =iCountryP!W87 ->  | F100: 0 | G100: =TRIM(iCountryP!Z87) ->  | H100: =iCountryP!AA87 ->  | I100: =iCountryP!AA87 -> 
B101: 0 | C101: =TRIM(iCountryP!V88) ->  | D101: =iCountryP!W88 ->  | F101: 0 | G101: =TRIM(iCountryP!Z88) ->  | H101: =iCountryP!AA88 ->  | I101: =iCountryP!AA88 -> 
B102: 0 | C102: =TRIM(iCountryP!V89) ->  | D102: =iCountryP!W89 ->  | F102: 0 | G102: =TRIM(iCountryP!Z89) ->  | H102: =iCountryP!AA89 ->  | I102: =iCountryP!AA89 -> 
B103: 0 | C103: =TRIM(iCountryP!V90) ->  | D103: =iCountryP!W90 ->  | F103: 0 | G103: =TRIM(iCountryP!Z90) ->  | H103: =iCountryP!AA90 ->  | I103: =iCountryP!AA90 -> 
B104: =IF(C104="",0,1) -> 0 | C104: =TRIM(iCountryP!V91) ->  | D104: =iCountryP!W91 ->  | F104: =IF(G104="",0,1) -> 0 | G104: =TRIM(iCountryP!Z91) ->  | H104: =iCountryP!AA91 ->  | I104: =iCountryP!AA91 ->  | W104: =C104 ->  | X104: =G104 -> 
B105: 0 | C105: =TRIM(iCountryP!V92) ->  | D105: =iCountryP!W92 ->  | F105: 0 | G105: =TRIM(iCountryP!Z92) ->  | H105: =iCountryP!AA92 ->  | I105: =iCountryP!AA92 -> 
B106: 0 | C106: =TRIM(iCountryP!V93) ->  | D106: =iCountryP!W93 ->  | F106: 0 | G106: =TRIM(iCountryP!Z93) ->  | H106: =iCountryP!AA93 ->  | I106: =iCountryP!AA93 -> 
B107: 0 | C107: =TRIM(iCountryP!V94) ->  | D107: =iCountryP!W94 ->  | F107: 0 | G107: =TRIM(iCountryP!Z94) ->  | H107: =iCountryP!AA94 ->  | I107: =iCountryP!AA94 -> 
B108: 0 | C108: =TRIM(iCountryP!V95) ->  | D108: =iCountryP!W95 ->  | F108: 0 | G108: =TRIM(iCountryP!Z95) ->  | H108: =iCountryP!AA95 ->  | I108: =iCountryP!AA95 -> 
B109: 0 | C109: =TRIM(iCountryP!V96) ->  | D109: =iCountryP!W96 ->  | F109: 0 | G109: =TRIM(iCountryP!Z96) ->  | H109: =iCountryP!AA96 ->  | I109: =iCountryP!AA96 -> 
B110: 0 | C110: =TRIM(iCountryP!V97) ->  | D110: =iCountryP!W97 ->  | F110: 0 | G110: =TRIM(iCountryP!Z97) ->  | H110: =iCountryP!AA97 ->  | I110: =iCountryP!AA97 -> 
B111: 0 | C111: =TRIM(iCountryP!V98) ->  | D111: =iCountryP!W98 ->  | F111: 0 | G111: =TRIM(iCountryP!Z98) ->  | H111: =iCountryP!AA98 ->  | I111: =iCountryP!AA98 -> 
B112: 0 | C112: =TRIM(iCountryP!V99) ->  | D112: =iCountryP!W99 ->  | F112: 0 | G112: =TRIM(iCountryP!Z99) ->  | H112: =iCountryP!AA99 ->  | I112: =iCountryP!AA99 -> 
B113: 0 | C113: =TRIM(iCountryP!V100) ->  | D113: =iCountryP!W100 ->  | F113: 0 | G113: =TRIM(iCountryP!Z100) ->  | H113: =iCountryP!AA100 ->  | I113: =iCountryP!AA100 -> 
B114: 0 | C114: =TRIM(iCountryP!V101) ->  | D114: =iCountryP!W101 ->  | F114: 0 | G114: =TRIM(iCountryP!Z101) ->  | H114: =iCountryP!AA101 ->  | I114: =iCountryP!AA101 -> 
B115: 0 | C115: =TRIM(iCountryP!V102) ->  | D115: =iCountryP!W102 ->  | F115: 0 | G115: =TRIM(iCountryP!Z102) ->  | H115: =iCountryP!AA102 ->  | I115: =iCountryP!AA102 -> 
B116: 0 | C116: =TRIM(iCountryP!V103) ->  | D116: =iCountryP!W103 ->  | F116: 0 | G116: =TRIM(iCountryP!Z103) ->  | H116: =iCountryP!AA103 ->  | I116: =iCountryP!AA103 -> 
B117: 0 | C117: =TRIM(iCountryP!V104) ->  | D117: =iCountryP!W104 ->  | F117: 0 | G117: =TRIM(iCountryP!Z104) ->  | H117: =iCountryP!AA104 ->  | I117: =iCountryP!AA104 -> 
B118: 0 | C118: =TRIM(iCountryP!V105) ->  | D118: =iCountryP!W105 ->  | F118: 0 | G118: =TRIM(iCountryP!Z105) ->  | H118: =iCountryP!AA105 ->  | I118: =iCountryP!AA105 -> 
B119: 0 | C119: =TRIM(iCountryP!V106) ->  | D119: =iCountryP!W106 ->  | F119: 0 | G119: =TRIM(iCountryP!Z106) ->  | H119: =iCountryP!AA106 ->  | I119: =iCountryP!AA106 -> 
B120: 0 | C120: =TRIM(iCountryP!V107) ->  | D120: =iCountryP!W107 ->  | F120: 0 | G120: =TRIM(iCountryP!Z107) ->  | H120: =iCountryP!AA107 ->  | I120: =iCountryP!AA107 -> 
B121: 0 | C121: =TRIM(iCountryP!V108) ->  | D121: =iCountryP!W108 ->  | F121: 0 | G121: =TRIM(iCountryP!Z108) ->  | H121: =iCountryP!AA108 ->  | I121: =iCountryP!AA108 -> 
B122: 0 | C122: =TRIM(iCountryP!V109) ->  | D122: =iCountryP!W109 ->  | F122: 0 | G122: =TRIM(iCountryP!Z109) ->  | H122: =iCountryP!AA109 ->  | I122: =iCountryP!AA109 -> 
B123: 0 | C123: =TRIM(iCountryP!V110) ->  | D123: =iCountryP!W110 ->  | F123: 0 | G123: =TRIM(iCountryP!Z110) ->  | H123: =iCountryP!AA110 ->  | I123: =iCountryP!AA110 -> 
B124: 0 | C124: =TRIM(iCountryP!V111) ->  | D124: =iCountryP!W111 ->  | F124: 0 | G124: =TRIM(iCountryP!Z111) ->  | H124: =iCountryP!AA111 ->  | I124: =iCountryP!AA111 -> 
B125: 0 | C125: =TRIM(iCountryP!V112) ->  | D125: =iCountryP!W112 ->  | F125: 0 | G125: =TRIM(iCountryP!Z112) ->  | H125: =iCountryP!AA112 ->  | I125: =iCountryP!AA112 -> 
B126: 0 | C126: =TRIM(iCountryP!V113) ->  | D126: =iCountryP!W113 ->  | F126: 0 | G126: =TRIM(iCountryP!Z113) ->  | H126: =iCountryP!AA113 ->  | I126: =iCountryP!AA113 -> 
B127: 0 | C127: =TRIM(iCountryP!V114) ->  | D127: =iCountryP!W114 ->  | F127: 0 | G127: =TRIM(iCountryP!Z114) ->  | H127: =iCountryP!AA114 ->  | I127: =iCountryP!AA114 -> 
B128: 0 | C128: =TRIM(iCountryP!V115) ->  | D128: =iCountryP!W115 ->  | F128: 0 | G128: =TRIM(iCountryP!Z115) ->  | H128: =iCountryP!AA115 ->  | I128: =iCountryP!AA115 -> 
B129: 0 | C129: =TRIM(iCountryP!V116) ->  | D129: =iCountryP!W116 ->  | F129: 0 | G129: =TRIM(iCountryP!Z116) ->  | H129: =iCountryP!AA116 ->  | I129: =iCountryP!AA116 -> 
B130: 0 | C130: =TRIM(iCountryP!V117) ->  | D130: =iCountryP!W117 ->  | F130: 0 | G130: =TRIM(iCountryP!Z117) ->  | H130: =iCountryP!AA117 ->  | I130: =iCountryP!AA117 -> 
B131: =IF(C131="",0,1) -> 0 | C131: =TRIM(iCountryP!V118) ->  | D131: =iCountryP!W118 ->  | F131: =IF(G131="",0,1) -> 0 | G131: =TRIM(iCountryP!Z118) ->  | H131: =iCountryP!AA118 ->  | I131: =iCountryP!AA118 ->  | W131: =C131 ->  | X131: =G131 -> 
B132: 0 | C132: =TRIM(iCountryP!V119) ->  | D132: =iCountryP!W119 ->  | F132: 0 | G132: =TRIM(iCountryP!Z119) ->  | H132: =iCountryP!AA119 ->  | I132: =iCountryP!AA119 -> 
B133: 0 | C133: =TRIM(iCountryP!V120) ->  | D133: =iCountryP!W120 ->  | F133: 0 | G133: =TRIM(iCountryP!Z120) ->  | H133: =iCountryP!AA120 ->  | I133: =iCountryP!AA120 -> 
B134: 0 | C134: =TRIM(iCountryP!V121) ->  | D134: =iCountryP!W121 ->  | F134: 0 | G134: =TRIM(iCountryP!Z121) ->  | H134: =iCountryP!AA121 ->  | I134: =iCountryP!AA121 -> 
B135: 0 | C135: =TRIM(iCountryP!V122) ->  | D135: =iCountryP!W122 ->  | F135: 0 | G135: =TRIM(iCountryP!Z122) ->  | H135: =iCountryP!AA122 ->  | I135: =iCountryP!AA122 -> 
B136: 0 | C136: =TRIM(iCountryP!V123) ->  | D136: =iCountryP!W123 ->  | F136: 0 | G136: =TRIM(iCountryP!Z123) ->  | H136: =iCountryP!AA123 ->  | I136: =iCountryP!AA123 -> 
B137: 0 | C137: =TRIM(iCountryP!V124) ->  | D137: =iCountryP!W124 ->  | F137: 0 | G137: =TRIM(iCountryP!Z124) ->  | H137: =iCountryP!AA124 ->  | I137: =iCountryP!AA124 -> 
B138: =IF(C138="",0,1) ->  | C138: =TRIM(iCountryP!#REF!) ->  | D138: =iCountryP!#REF! ->  | F138: =IF(G138="",0,1) ->  | G138: =TRIM(iCountryP!#REF!) ->  | H138: =iCountryP!#REF! ->  | I138: =iCountryP!#REF! ->  | W138: =C138 ->  | X138: =G138 -> 

Sheet CountryCompare
B1: s | C1: =uxb_works!$B$92 -> SAFE CITIES INDEX: 2021 | Z1: 1 | AX1: $V$16 | AY1: =INDEX(tblIndicators!$AL$2:$AL$104,MATCH($AX$2,tblIndiSets!$F$14:$F$116,0)) -> OVERALL SCORE | BA1: 1 | BB1: 3
AX2: =TRIM(INDIRECT(AX1)) -> OVERALL SCORE | AY2: =INDEX(tblIndicators!$O$2:$O$104,MATCH($AX$2,tblIndiSets!$F$14:$F$116,0)) -> The overall score is the weighted sum of the following domain scores: 1) DIGITAL SECURITY (20.0%) 2) HEALTH SECURITY (20.0%) 3) INFRASTRUCTURE SECURITY (20.0%) 4) PERSONAL SECURITY (20.0%) 5) ENVIRONMENTAL SECURITY (20.0%)
A4: =uxb_works!B111 -> 1 | B4: =uxb_works!C111 -> Show filter options | C4: =uxb_works!D111 -> Hide filter options | D4: =uxb_works!E111 -> Show filter options | E4: =uxb_works!F111 -> 0 | F4: =uxb_works!G111 -> 0 | G4: =uxb_works!H111 -> 0 | H4: =uxb_works!I111 -> 0 | I4: =uxb_works!J111 -> 0 | J4: =uxb_works!K111 -> 0 | K4: =uxb_works!L111 -> 0 | L4: =uxb_works!M111 -> 0 | M4: =uxb_works!N111 -> 0 | N4: =uxb_works!O111 -> 0 | O4: =uxb_works!P111 -> 0 | P4: =uxb_works!Q111 -> 0 | Q4: =uxb_works!R111 -> 0 | R4: =uxb_works!S111 -> 0 | S4: =uxb_works!T111 -> 0 | T4: =uxb_works!U111 -> 0 | U4: =uxb_works!V111 -> 0 | V4: =uxb_works!W111 -> 0 | W4: =uxb_works!X111 -> 0 | X4: =uxb_works!Y111 -> 0 | Y4: =uxb_works!Z111 -> 0 | Z4: =uxb_works!AA111 -> 0 | AA4: =uxb_works!AB111 -> 0 | AB4: =uxb_works!AC111 -> 0 | AC4: =uxb_works!AD111 -> 0 | AD4: =uxb_works!AE111 -> 0 | AE4: =uxb_works!AF111 -> 0 | AF4: =uxb_works!AG111 -> 0 | AG4: =uxb_works!AH111 -> 0 | AH4: =uxb_works!AI111 -> 0 | AI4: =uxb_works!AJ111 -> 0
C6: =uxb_works!$C$5 -> The active weight profile has been changed from its default setting
C8: =uxb_works!D67 -> Active filter group: All regions in all income levels with all population sizes
C10: =TRIM(uxb_works!D32) -> OVERALL SCORE
C12: City Comparison Overview | X12: 1 | Y12: 2 | Z12: 3 | AA12: 1 | AB12: 2 | AC12: =iCountryComp!AH17 -> 3 | AD12: =iCountryComp!AI17 -> 1 | AE12: =iCountryComp!AJ17 -> 2 | AF12: =iCountryComp!AK17 -> 3 | AG12: =iCountryComp!AL17 -> 0 | AH12: =iCountryComp!AM17 -> 0
B14: =MAX(COUNTIF(S16:S57,"<>0"),11) -> 16 | S14: =COUNTIF(S16:S57,"<>0") -> 16 | T14: =uxb_works!E32 -> 0 | V14: Indicator | X14: =iCountryComp!C2 -> Abu Dhabi | AA14: =iCountryComp!C3 -> Amsterdam | AD14: =iCountryComp!C4 -> Baku | AG14: =iCountryComp!C5 -> <none>
X15: Score | Y15: Rank | AA15: Score | AB15: Rank | AD15: Score | AE15: Rank | AG15: Score | AH15: Rank
S16: =iCountryComp!AB22 -> 2 | T16: =iCountryComp!AC22 -> 2 | V16: =iCountryComp!AD22 -> OVERALL SCORE | X16: =iCountryComp!AE22 -> 66.9 | Y16: =iCountryComp!AF22 -> 31 | AA16: =iCountryComp!AG22 -> 79.3 | AB16: =iCountryComp!AH22 -> 6 | AD16: =iCountryComp!AI22 -> 49.8 | AE16: =iCountryComp!AJ22 -> 52 | AG16: =iCountryComp!AL22 ->  | AH16: =iCountryComp!AM22 ->  | AK16: =MIN(X16,AA16,AD16,AG16) -> 49.8 | AL16: =MAX(X16,AA16,AD16,AG16) -> 79.3 | AN16: =V16 -> OVERALL SCORE
S17: =iCountryComp!AB23 -> 1 | T17: =iCountryComp!AC23 -> 1 | V17: =iCountryComp!AD23 -> 1) DIGITAL SECURITY | X17: =iCountryComp!AE23 -> 66.8 | Y17: =iCountryComp!AF23 -> =24 | AA17: =iCountryComp!AG23 -> 79.3 | AB17: =iCountryComp!AH23 -> 7 | AD17: =iCountryComp!AI23 -> 48.9 | AE17: =iCountryComp!AJ23 -> 47 | AG17: =iCountryComp!AL23 ->  | AH17: =iCountryComp!AM23 ->  | AK17: =MIN(X17,AA17,AD17,AG17) -> 48.9 | AL17: =MAX(X17,AA17,AD17,AG17) -> 79.3 | AN17: =V17 -> 1) DIGITAL SECURITY
S18: =iCountryComp!AB24 -> 1 | T18: =iCountryComp!AC24 -> 1 | V18: =iCountryComp!AD24 -> 1.1) Digital security (input) | X18: =iCountryComp!AE24 -> 80 | Y18: =iCountryComp!AF24 -> =8 | AA18: =iCountryComp!AG24 -> 75 | AB18: =iCountryComp!AH24 -> =15 | AD18: =iCountryComp!AI24 -> 50 | AE18: =iCountryComp!AJ24 -> =48 | AG18: =iCountryComp!AL24 ->  | AH18: =iCountryComp!AM24 ->  | AK18: =MIN(X18,AA18,AD18,AG18) -> 50 | AL18: =MAX(X18,AA18,AD18,AG18) -> 80 | AN18: 1.1) Digital security (input)
S19: =iCountryComp!AB25 -> 1 | T19: =iCountryComp!AC25 -> 1 | V19: =iCountryComp!AD25 -> 1.2) Digital security (output) | X19: =iCountryComp!AE25 -> 53.6 | Y19: =iCountryComp!AF25 -> =34 | AA19: =iCountryComp!AG25 -> 83.6 | AB19: =iCountryComp!AH25 -> 2 | AD19: =iCountryComp!AI25 -> 47.9 | AE19: =iCountryComp!AJ25 -> 42 | AG19: =iCountryComp!AL25 ->  | AH19: =iCountryComp!AM25 ->  | AK19: 47.9 | AL19: 83.6 | AN19: 1.2) Digital security (output)
S20: =iCountryComp!AB26 -> 2 | T20: =iCountryComp!AC26 -> 1 | V20: =iCountryComp!AD26 -> 2) HEALTH SECURITY | X20: =iCountryComp!AE26 -> 76.5 | Y20: =iCountryComp!AF26 -> 12 | AA20: =iCountryComp!AG26 -> 72.5 | AB20: =iCountryComp!AH26 -> 23 | AD20: =iCountryComp!AI26 -> 47.3 | AE20: =iCountryComp!AJ26 -> 56 | AG20: =iCountryComp!AL26 ->  | AH20: =iCountryComp!AM26 ->  | AK20: 47.3 | AL20: 76.5 | AN20: 2) HEALTH SECURITY
S21: =iCountryComp!AB27 -> 2 | T21: =iCountryComp!AC27 -> 1 | V21: =iCountryComp!AD27 -> 2.1) Health security (input) | X21: =iCountryComp!AE27 -> 72.4 | Y21: =iCountryComp!AF27 -> 11 | AA21: =iCountryComp!AG27 -> 71.9 | AB21: =iCountryComp!AH27 -> 12 | AD21: =iCountryComp!AI27 -> 37.4 | AE21: =iCountryComp!AJ27 -> 53 | AG21: =iCountryComp!AL27 ->  | AH21: =iCountryComp!AM27 ->  | AK21: 37.4 | AL21: 72.4 | AN21: 2.1) Health security (input)
S22: =iCountryComp!AB28 -> 2 | T22: =iCountryComp!AC28 -> 1 | V22: =iCountryComp!AD28 -> 2.2) Health security (output) | X22: =iCountryComp!AE28 -> 80.7 | Y22: =iCountryComp!AF28 -> 12 | AA22: =iCountryComp!AG28 -> 73.1 | AB22: =iCountryComp!AH28 -> =37 | AD22: =iCountryComp!AI28 -> 57.2 | AE22: =iCountryComp!AJ28 -> =54 | AG22: =iCountryComp!AL28 ->  | AH22: =iCountryComp!AM28 ->  | AK22: 57.2 | AL22: 80.7 | AN22: 2.2) Health security (output)
S23: =iCountryComp!AB29 -> 1 | T23: =iCountryComp!AC29 -> 1 | V23: =iCountryComp!AD29 -> 3) INFRASTRUCTURE SECURITY | X23: =iCountryComp!AE29 -> 77.3 | Y23: =iCountryComp!AF29 -> 29 | AA23: =iCountryComp!AG29 -> 83.5 | AB23: =iCountryComp!AH29 -> 19 | AD23: =iCountryComp!AI29 -> 58.6 | AE23: =iCountryComp!AJ29 -> 47 | AG23: =iCountryComp!AL29 ->  | AH23: =iCountryComp!AM29 ->  | AK23: 58.6 | AL23: 83.5 | AN23: 3) INFRASTRUCTURE SECURITY
S24: =iCountryComp!AB30 -> 1 | T24: =iCountryComp!AC30 -> 1 | V24: =iCountryComp!AD30 -> 3.1) Infrastructure security (input) | X24: =iCountryComp!AE30 -> 74.9 | Y24: =iCountryComp!AF30 -> 33 | AA24: =iCountryComp!AG30 -> 87.6 | AB24: =iCountryComp!AH30 -> 13 | AD24: =iCountryComp!AI30 -> 61.1 | AE24: =iCountryComp!AJ30 -> 44 | AG24: =iCountryComp!AL30 ->  | AH24: =iCountryComp!AM30 ->  | AK24: 61.1 | AL24: 87.6 | AN24: 3.1) Infrastructure security (input)
S25: =iCountryComp!AB31 -> 1 | T25: =iCountryComp!AC31 -> 1 | V25: =iCountryComp!AD31 -> 3.2) Infrastructure security (output) | X25: =iCountryComp!AE31 -> 79.7 | Y25: =iCountryComp!AF31 -> =19 | AA25: =iCountryComp!AG31 -> 79.4 | AB25: =iCountryComp!AH31 -> 21 | AD25: =iCountryComp!AI31 -> 56 | AE25: =iCountryComp!AJ31 -> 47 | AG25: =iCountryComp!AL31 ->  | AH25: =iCountryComp!AM31 ->  | AK25: =MIN(X25,AA25,AD25,AG25) -> 56 | AL25: =MAX(X25,AA25,AD25,AG25) -> 79.7 | AN25: 3.2) Infrastructure security (output)
S26: =iCountryComp!AB32 -> 2 | T26: =iCountryComp!AC32 -> 1 | V26: =iCountryComp!AD32 -> 4) PERSONAL SECURITY | X26: =iCountryComp!AE32 -> 67 | Y26: =iCountryComp!AF32 -> =25 | AA26: =iCountryComp!AG32 -> 80.5 | AB26: =iCountryComp!AH32 -> 2 | AD26: =iCountryComp!AI32 -> 47.3 | AE26: =iCountryComp!AJ32 -> 53 | AG26: =iCountryComp!AL32 ->  | AH26: =iCountryComp!AM32 ->  | AK26: 47.3 | AL26: 80.5 | AN26: 4) PERSONAL SECURITY
S27: =iCountryComp!AB33 -> 2 | T27: =iCountryComp!AC33 -> 1 | V27: =iCountryComp!AD33 -> 4.1) Personal security (input) | X27: =iCountryComp!AE33 -> 51.4 | Y27: =iCountryComp!AF33 -> 41 | AA27: =iCountryComp!AG33 -> 69.6 | AB27: =iCountryComp!AH33 -> 10 | AD27: =iCountryComp!AI33 -> 44 | AE27: =iCountryComp!AJ33 -> 50 | AG27: =iCountryComp!AL33 ->  | AH27: =iCountryComp!AM33 ->  | AK27: 44 | AL27: 69.6 | AN27: 4.1) Personal security (input)
S28: =iCountryComp!AB34 -> 2 | T28: =iCountryComp!AC34 -> 1 | V28: =iCountryComp!AD34 -> 4.2) Personal security (output) | X28: =iCountryComp!AE34 -> 82.6 | Y28: =iCountryComp!AF34 -> =17 | AA28: =iCountryComp!AG34 -> 91.4 | AB28: =iCountryComp!AH34 -> 3 | AD28: =iCountryComp!AI34 -> 50.6 | AE28: =iCountryComp!AJ34 -> 47 | AG28: =iCountryComp!AL34 ->  | AH28: =iCountryComp!AM34 ->  | AK28: =MIN(X28,AA28,AD28,AG28) -> 50.6 | AL28: =MAX(X28,AA28,AD28,AG28) -> 91.4 | AN28: =V28 -> 4.2) Personal security (output)
S29: =iCountryComp!AB35 -> 1 | T29: =iCountryComp!AC35 -> 1 | V29: =iCountryComp!AD35 -> 5) ENVIRONMENTAL SECURITY | X29: =iCountryComp!AE35 -> 46.7 | Y29: =iCountryComp!AF35 -> =51 | AA29: =iCountryComp!AG35 -> 80.9 | AB29: =iCountryComp!AH35 -> =11 | AD29: =iCountryComp!AI35 -> 46.7 | AE29: =iCountryComp!AJ35 -> =51 | AG29: =iCountryComp!AL35 ->  | AH29: =iCountryComp!AM35 ->  | AK29: 46.7 | AL29: 80.9 | AN29: 5) ENVIRONMENTAL SECURITY
S30: =iCountryComp!AB36 -> 1 | T30: =iCountryComp!AC36 -> 1 | V30: =iCountryComp!AD36 -> 5.1) Environmental security (input) | X30: =iCountryComp!AE36 -> 75 | Y30: =iCountryComp!AF36 -> =44 | AA30: =iCountryComp!AG36 -> 100 | AB30: =iCountryComp!AH36 -> =1 | AD30: =iCountryComp!AI36 -> 75 | AE30: =iCountryComp!AJ36 -> =44 | AG30: =iCountryComp!AL36 ->  | AH30: =iCountryComp!AM36 ->  | AK30: 75 | AL30: 100 | AN30: 5.1) Environmental security (input)
S31: =iCountryComp!AB37 -> 1 | T31: =iCountryComp!AC37 -> 1 | V31: =iCountryComp!AD37 -> 5.2) Environmental security (output) | X31: =iCountryComp!AE37 -> 18.5 | Y31: =iCountryComp!AF37 -> =58 | AA31: =iCountryComp!AG37 -> 61.7 | AB31: =iCountryComp!AH37 -> 16 | AD31: =iCountryComp!AI37 -> 18.5 | AE31: =iCountryComp!AJ37 -> =58 | AG31: =iCountryComp!AL37 ->  | AH31: =iCountryComp!AM37 ->  | AK31: 18.5 | AL31: 61.7 | AN31: 5.2) Environmental security (output)
S32: =iCountryComp!AB38 -> 0 | T32: =iCountryComp!AC38 -> 0 | V32: =iCountryComp!AD38 ->  | X32: =iCountryComp!AE38 ->  | Y32: =iCountryComp!AF38 ->  | AA32: =iCountryComp!AG38 ->  | AB32: =iCountryComp!AH38 ->  | AD32: =iCountryComp!AI38 ->  | AE32: =iCountryComp!AJ38 ->  | AG32: =iCountryComp!AL38 ->  | AH32: =iCountryComp!AM38 ->  | AK32: 0 | AL32: 0
S33: =iCountryComp!AB39 -> 0 | T33: =iCountryComp!AC39 -> 0 | V33: =iCountryComp!AD39 ->  | X33: =iCountryComp!AE39 ->  | Y33: =iCountryComp!AF39 ->  | AA33: =iCountryComp!AG39 ->  | AB33: =iCountryComp!AH39 ->  | AD33: =iCountryComp!AI39 ->  | AE33: =iCountryComp!AJ39 ->  | AG33: =iCountryComp!AL39 ->  | AH33: =iCountryComp!AM39 ->  | AK33: 0 | AL33: 0
S34: =iCountryComp!AB40 -> 0 | T34: =iCountryComp!AC40 -> 0 | V34: =iCountryComp!AD40 ->  | X34: =iCountryComp!AE40 ->  | Y34: =iCountryComp!AF40 ->  | AA34: =iCountryComp!AG40 ->  | AB34: =iCountryComp!AH40 ->  | AD34: =iCountryComp!AI40 ->  | AE34: =iCountryComp!AJ40 ->  | AG34: =iCountryComp!AL40 ->  | AH34: =iCountryComp!AM40 ->  | AK34: 0 | AL34: 0
S35: =iCountryComp!AB41 -> 0 | T35: =iCountryComp!AC41 -> 0 | V35: =iCountryComp!AD41 ->  | X35: =iCountryComp!AE41 ->  | Y35: =iCountryComp!AF41 ->  | AA35: =iCountryComp!AG41 ->  | AB35: =iCountryComp!AH41 ->  | AD35: =iCountryComp!AI41 ->  | AE35: =iCountryComp!AJ41 ->  | AG35: =iCountryComp!AL41 ->  | AH35: =iCountryComp!AM41 ->  | AK35: 0 | AL35: 0
S36: =iCountryComp!AB42 -> 0 | T36: =iCountryComp!AC42 -> 0 | V36: =iCountryComp!AD42 ->  | X36: =iCountryComp!AE42 ->  | Y36: =iCountryComp!AF42 ->  | AA36: =iCountryComp!AG42 ->  | AB36: =iCountryComp!AH42 ->  | AD36: =iCountryComp!AI42 ->  | AE36: =iCountryComp!AJ42 ->  | AG36: =iCountryComp!AL42 ->  | AH36: =iCountryComp!AM42 ->  | AK36: 0 | AL36: 0
S37: =iCountryComp!AB43 -> 0 | T37: =iCountryComp!AC43 -> 0 | V37: =iCountryComp!AD43 ->  | X37: =iCountryComp!AE43 ->  | Y37: =iCountryComp!AF43 ->  | AA37: =iCountryComp!AG43 ->  | AB37: =iCountryComp!AH43 ->  | AD37: =iCountryComp!AI43 ->  | AE37: =iCountryComp!AJ43 ->  | AG37: =iCountryComp!AL43 ->  | AH37: =iCountryComp!AM43 ->  | AK37: 0 | AL37: 0
S38: =iCountryComp!AB44 -> 0 | T38: =iCountryComp!AC44 -> 0 | V38: =iCountryComp!AD44 ->  | X38: =iCountryComp!AE44 ->  | Y38: =iCountryComp!AF44 ->  | AA38: =iCountryComp!AG44 ->  | AB38: =iCountryComp!AH44 ->  | AD38: =iCountryComp!AI44 ->  | AE38: =iCountryComp!AJ44 ->  | AG38: =iCountryComp!AL44 ->  | AH38: =iCountryComp!AM44 ->  | AK38: 0 | AL38: 0
S39: =iCountryComp!AB45 -> 0 | T39: =iCountryComp!AC45 -> 0 | V39: =iCountryComp!AD45 ->  | X39: =iCountryComp!AE45 ->  | Y39: =iCountryComp!AF45 ->  | AA39: =iCountryComp!AG45 ->  | AB39: =iCountryComp!AH45 ->  | AD39: =iCountryComp!AI45 ->  | AE39: =iCountryComp!AJ45 ->  | AG39: =iCountryComp!AL45 ->  | AH39: =iCountryComp!AM45 ->  | AK39: 0 | AL39: 0
S40: =iCountryComp!AB46 -> 0 | T40: =iCountryComp!AC46 -> 0 | V40: =iCountryComp!AD46 ->  | X40: =iCountryComp!AE46 ->  | Y40: =iCountryComp!AF46 ->  | AA40: =iCountryComp!AG46 ->  | AB40: =iCountryComp!AH46 ->  | AD40: =iCountryComp!AI46 ->  | AE40: =iCountryComp!AJ46 ->  | AG40: =iCountryComp!AL46 ->  | AH40: =iCountryComp!AM46 ->  | AK40: 0 | AL40: 0
S41: =iCountryComp!AB47 -> 0 | T41: =iCountryComp!AC47 -> 0 | V41: =iCountryComp!AD47 ->  | X41: =iCountryComp!AE47 ->  | Y41: =iCountryComp!AF47 ->  | AA41: =iCountryComp!AG47 ->  | AB41: =iCountryComp!AH47 ->  | AD41: =iCountryComp!AI47 ->  | AE41: =iCountryComp!AJ47 ->  | AG41: =iCountryComp!AL47 ->  | AH41: =iCountryComp!AM47 ->  | AK41: 0 | AL41: 0
S42: =iCountryComp!AB48 -> 0 | T42: =iCountryComp!AC48 -> 0 | V42: =iCountryComp!AD48 ->  | X42: =iCountryComp!AE48 ->  | Y42: =iCountryComp!AF48 ->  | AA42: =iCountryComp!AG48 ->  | AB42: =iCountryComp!AH48 ->  | AD42: =iCountryComp!AI48 ->  | AE42: =iCountryComp!AJ48 ->  | AG42: =iCountryComp!AL48 ->  | AH42: =iCountryComp!AM48 ->  | AK42: 0 | AL42: 0
S43: =iCountryComp!AB49 -> 0 | T43: =iCountryComp!AC49 -> 0 | V43: =iCountryComp!AD49 ->  | X43: =iCountryComp!AE49 ->  | Y43: =iCountryComp!AF49 ->  | AA43: =iCountryComp!AG49 ->  | AB43: =iCountryComp!AH49 ->  | AD43: =iCountryComp!AI49 ->  | AE43: =iCountryComp!AJ49 ->  | AG43: =iCountryComp!AL49 ->  | AH43: =iCountryComp!AM49 ->  | AK43: 0 | AL43: 0
S44: =iCountryComp!AB50 -> 0 | T44: =iCountryComp!AC50 -> 0 | V44: =iCountryComp!AD50 ->  | X44: =iCountryComp!AE50 ->  | Y44: =iCountryComp!AF50 ->  | AA44: =iCountryComp!AG50 ->  | AB44: =iCountryComp!AH50 ->  | AD44: =iCountryComp!AI50 ->  | AE44: =iCountryComp!AJ50 ->  | AG44: =iCountryComp!AL50 ->  | AH44: =iCountryComp!AM50 ->  | AK44: 0 | AL44: 0
S45: =iCountryComp!AB51 -> 0 | T45: =iCountryComp!AC51 -> 0 | V45: =iCountryComp!AD51 ->  | X45: =iCountryComp!AE51 ->  | Y45: =iCountryComp!AF51 ->  | AA45: =iCountryComp!AG51 ->  | AB45: =iCountryComp!AH51 ->  | AD45: =iCountryComp!AI51 ->  | AE45: =iCountryComp!AJ51 ->  | AG45: =iCountryComp!AL51 ->  | AH45: =iCountryComp!AM51 ->  | AK45: 0 | AL45: 0
S46: =iCountryComp!AB52 -> 0 | T46: =iCountryComp!AC52 -> 0 | V46: =iCountryComp!AD52 ->  | X46: =iCountryComp!AE52 ->  | Y46: =iCountryComp!AF52 ->  | AA46: =iCountryComp!AG52 ->  | AB46: =iCountryComp!AH52 ->  | AD46: =iCountryComp!AI52 ->  | AE46: =iCountryComp!AJ52 ->  | AG46: =iCountryComp!AL52 ->  | AH46: =iCountryComp!AM52 ->  | AK46: 0 | AL46: 0
S47: =iCountryComp!AB53 -> 0 | T47: =iCountryComp!AC53 -> 0 | V47: =iCountryComp!AD53 ->  | X47: =iCountryComp!AE53 ->  | Y47: =iCountryComp!AF53 ->  | AA47: =iCountryComp!AG53 ->  | AB47: =iCountryComp!AH53 ->  | AD47: =iCountryComp!AI53 ->  | AE47: =iCountryComp!AJ53 ->  | AG47: =iCountryComp!AL53 ->  | AH47: =iCountryComp!AM53 ->  | AK47: =MIN(X47,AA47,AD47,AG47) -> 0 | AL47: =MAX(X47,AA47,AD47,AG47) -> 0 | AN47: =V47 -> 
S48: =iCountryComp!AB54 -> 0 | T48: =iCountryComp!AC54 -> 0 | V48: =iCountryComp!AD54 ->  | X48: =iCountryComp!AE54 ->  | Y48: =iCountryComp!AF54 ->  | AA48: =iCountryComp!AG54 ->  | AB48: =iCountryComp!AH54 ->  | AD48: =iCountryComp!AI54 ->  | AE48: =iCountryComp!AJ54 ->  | AG48: =iCountryComp!AL54 ->  | AH48: =iCountryComp!AM54 ->  | AK48: 0 | AL48: 0
S49: =iCountryComp!AB55 -> 0 | T49: =iCountryComp!AC55 -> 0 | V49: =iCountryComp!AD55 ->  | X49: =iCountryComp!AE55 ->  | Y49: =iCountryComp!AF55 ->  | AA49: =iCountryComp!AG55 ->  | AB49: =iCountryComp!AH55 ->  | AD49: =iCountryComp!AI55 ->  | AE49: =iCountryComp!AJ55 ->  | AG49: =iCountryComp!AL55 ->  | AH49: =iCountryComp!AM55 ->  | AK49: 0 | AL49: 0
S50: =iCountryComp!AB56 -> 0 | T50: =iCountryComp!AC56 -> 0 | V50: =iCountryComp!AD56 ->  | X50: =iCountryComp!AE56 ->  | Y50: =iCountryComp!AF56 ->  | AA50: =iCountryComp!AG56 ->  | AB50: =iCountryComp!AH56 ->  | AD50: =iCountryComp!AI56 ->  | AE50: =iCountryComp!AJ56 ->  | AG50: =iCountryComp!AL56 ->  | AH50: =iCountryComp!AM56 ->  | AK50: 0 | AL50: 0
S51: =iCountryComp!AB57 -> 0 | T51: =iCountryComp!AC57 -> 0 | V51: =iCountryComp!AD57 ->  | X51: =iCountryComp!AE57 ->  | Y51: =iCountryComp!AF57 ->  | AA51: =iCountryComp!AG57 ->  | AB51: =iCountryComp!AH57 ->  | AD51: =iCountryComp!AI57 ->  | AE51: =iCountryComp!AJ57 ->  | AG51: =iCountryComp!AL57 ->  | AH51: =iCountryComp!AM57 ->  | AK51: 0 | AL51: 0
S52: =iCountryComp!AB58 -> 0 | T52: =iCountryComp!AC58 -> 0 | V52: =iCountryComp!AD58 ->  | X52: =iCountryComp!AE58 ->  | Y52: =iCountryComp!AF58 ->  | AA52: =iCountryComp!AG58 ->  | AB52: =iCountryComp!AH58 ->  | AD52: =iCountryComp!AI58 ->  | AE52: =iCountryComp!AJ58 ->  | AG52: =iCountryComp!AL58 ->  | AH52: =iCountryComp!AM58 ->  | AK52: 0 | AL52: 0
S53: =iCountryComp!AB59 -> 0 | T53: =iCountryComp!AC59 -> 0 | V53: =iCountryComp!AD59 ->  | X53: =iCountryComp!AE59 ->  | Y53: =iCountryComp!AF59 ->  | AA53: =iCountryComp!AG59 ->  | AB53: =iCountryComp!AH59 ->  | AD53: =iCountryComp!AI59 ->  | AE53: =iCountryComp!AJ59 ->  | AG53: =iCountryComp!AL59 ->  | AH53: =iCountryComp!AM59 ->  | AK53: 0 | AL53: 0
S54: =iCountryComp!AB60 -> 0 | T54: =iCountryComp!AC60 -> 0 | V54: =iCountryComp!AD60 ->  | X54: =iCountryComp!AE60 ->  | Y54: =iCountryComp!AF60 ->  | AA54: =iCountryComp!AG60 ->  | AB54: =iCountryComp!AH60 ->  | AD54: =iCountryComp!AI60 ->  | AE54: =iCountryComp!AJ60 ->  | AG54: =iCountryComp!AL60 ->  | AH54: =iCountryComp!AM60 ->  | AK54: 0 | AL54: 0
S55: =iCountryComp!AB61 -> 0 | T55: =iCountryComp!AC61 -> 0 | V55: =iCountryComp!AD61 ->  | X55: =iCountryComp!AE61 ->  | Y55: =iCountryComp!AF61 ->  | AA55: =iCountryComp!AG61 ->  | AB55: =iCountryComp!AH61 ->  | AD55: =iCountryComp!AI61 ->  | AE55: =iCountryComp!AJ61 ->  | AG55: =iCountryComp!AL61 ->  | AH55: =iCountryComp!AM61 ->  | AK55: 0 | AL55: 0
S56: =iCountryComp!AB62 -> 0 | T56: =iCountryComp!AC62 -> 0 | V56: =iCountryComp!AD62 ->  | X56: =iCountryComp!AE62 ->  | Y56: =iCountryComp!AF62 ->  | AA56: =iCountryComp!AG62 ->  | AB56: =iCountryComp!AH62 ->  | AD56: =iCountryComp!AI62 ->  | AE56: =iCountryComp!AJ62 ->  | AG56: =iCountryComp!AL62 ->  | AH56: =iCountryComp!AM62 ->  | AK56: 0 | AL56: 0
S57: =iCountryComp!AB63 -> 0 | T57: =iCountryComp!AC63 -> 0 | V57: =iCountryComp!AD63 ->  | X57: =iCountryComp!AE63 ->  | Y57: =iCountryComp!AF63 ->  | AA57: =iCountryComp!AG63 ->  | AB57: =iCountryComp!AH63 ->  | AD57: =iCountryComp!AI63 ->  | AE57: =iCountryComp!AJ63 ->  | AG57: =iCountryComp!AL63 ->  | AH57: =iCountryComp!AM63 ->  | AK57: 0 | AL57: 0
S58: =iCountryComp!AB64 -> 0 | T58: =iCountryComp!AC64 -> 0 | V58: =iCountryComp!AD64 ->  | X58: =iCountryComp!AE64 ->  | Y58: =iCountryComp!AF64 ->  | AA58: =iCountryComp!AG64 ->  | AB58: =iCountryComp!AH64 ->  | AD58: =iCountryComp!AI64 ->  | AE58: =iCountryComp!AJ64 ->  | AG58: =iCountryComp!AL64 ->  | AH58: =iCountryComp!AM64 ->  | AK58: 0 | AL58: 0

Sheet RegionCompare
A1: =uxb_works!$B$92 -> SAFE CITIES INDEX: 2021 | AN1: =uxb_works!L16 -> 1 | BA1: 1 | BB1: 4 | BH1: 1 | BI1: 5 | BJ1: 1 | BK1: 6
A4: =uxb_works!B111 -> 1 | AP4: 1600
C6: =uxb_works!$C$5 -> The active weight profile has been changed from its default setting
D8: =uxb_works!D67 -> Active filter group: All regions in all income levels with all population sizes
D10: =" "&iRegionComp!$E$2 -> OVERALL SCORE
D11: CATEGORIES | R11: =iRegionComp!AD7 -> All | T11: See filter selection above | V11: =iRegionComp!AF7 -> Asia Pacific | W11: =iRegionComp!AG7 -> Europe | X11: =iRegionComp!AH7 -> Latin America | Y11: =iRegionComp!AI7 -> Middle East and Africa | Z11: =iRegionComp!AJ7 -> North America | AB11: =iRegionComp!AK7 -> Lower middle income | AC11: =iRegionComp!AL7 -> Upper middle income | AD11: =iRegionComp!AM7 -> High Income | AF11: =iRegionComp!AN7 -> Population < 5m | AG11: =iRegionComp!AO7 -> Population 5-10m | AH11: =iRegionComp!AP7 -> Population 10-15m | AI11: =iRegionComp!AQ7 -> Population 15m +
C14: =iRegionComp!D8 -> 1 | D14: =iRegionComp!E8 -> OVERALL SCORE | R14: =iRegionComp!G8 -> 66.1 | T14: =iRegionComp!H8 -> 66.1 | V14: =iRegionComp!I8 -> 65 | W14: =iRegionComp!J8 -> 73.8 | X14: =iRegionComp!K8 -> 59.3 | Y14: =iRegionComp!L8 -> 53.2 | Z14: =iRegionComp!M8 -> 77.2 | AB14: =iRegionComp!N8 -> 48.7 | AC14: =iRegionComp!O8 -> 59.7 | AD14: =iRegionComp!P8 -> 74.3 | AF14: =iRegionComp!Q8 -> 68.6 | AG14: =iRegionComp!R8 -> 69.8 | AH14: =iRegionComp!S8 -> 65.8 | AI14: =iRegionComp!T8 -> 60 | AN14: =CHOOSE($AN$1,MIN(R14:Y14,AC14:AI14),MIN(R14:AI14),MIN(R14:Y14,AC14:AI14),MIN(R14:AB14,AC14:AI14)) -> 53.2 | AO14: =CHOOSE($AN$1,MAX(R14:Y14,AC14:AI14),MAX(R14:AI14),MAX(R14:Y14,AC14:AI14),MAX(R14:AB14,AC14:AI14)) -> 74.3
C15: =iRegionComp!D9 -> 0 | D15: =iRegionComp!E9 -> 1) DIGITAL SECURITY | R15: =iRegionComp!G9 -> 61.7 | T15: =iRegionComp!H9 -> 61.7 | V15: =iRegionComp!I9 -> 57.3 | W15: =iRegionComp!J9 -> 70.2 | X15: =iRegionComp!K9 -> 53 | Y15: =iRegionComp!L9 -> 52.9 | Z15: =iRegionComp!M9 -> 78 | AB15: =iRegionComp!N9 -> 43.6 | AC15: =iRegionComp!O9 -> 52.4 | AD15: =iRegionComp!P9 -> 71.4 | AF15: =iRegionComp!Q9 -> 66.4 | AG15: =iRegionComp!R9 -> 65.7 | AH15: =iRegionComp!S9 -> 61.5 | AI15: =iRegionComp!T9 -> 52.5 | AN15: 52.4 | AO15: 71.4
C16: =iRegionComp!D10 -> 0 | D16: =iRegionComp!E10 -> 2) HEALTH SECURITY | R16: =iRegionComp!G10 -> 66.7 | T16: =iRegionComp!H10 -> 66.7 | V16: =iRegionComp!I10 -> 68.6 | W16: =iRegionComp!J10 -> 68.8 | X16: =iRegionComp!K10 -> 57 | Y16: =iRegionComp!L10 -> 59.9 | Z16: =iRegionComp!M10 -> 75.8 | AB16: =iRegionComp!N10 -> 52.3 | AC16: =iRegionComp!O10 -> 61.3 | AD16: =iRegionComp!P10 -> 73.4 | AF16: =iRegionComp!Q10 -> 65.9 | AG16: =iRegionComp!R10 -> 71.1 | AH16: =iRegionComp!S10 -> 67.1 | AI16: =iRegionComp!T10 -> 63.5 | AN16: 57 | AO16: 73.4
C17: =iRegionComp!D11 -> 0 | D17: =iRegionComp!E11 -> 3) INFRASTRUCTURE SECURITY | R17: =iRegionComp!G11 -> 71.5 | T17: =iRegionComp!H11 -> 71.5 | V17: =iRegionComp!I11 -> 71.2 | W17: =iRegionComp!J11 -> 81.2 | X17: =iRegionComp!K11 -> 59.9 | Y17: =iRegionComp!L11 -> 55.8 | Z17: =iRegionComp!M11 -> 84.8 | AB17: =iRegionComp!N11 -> 49.4 | AC17: =iRegionComp!O11 -> 63.6 | AD17: =iRegionComp!P11 -> 81.6 | AF17: =iRegionComp!Q11 -> 74.5 | AG17: =iRegionComp!R11 -> 76 | AH17: =iRegionComp!S11 -> 69.9 | AI17: =iRegionComp!T11 -> 64.8 | AN17: 55.8 | AO17: 81.6
C18: =iRegionComp!D12 -> 0 | D18: =iRegionComp!E12 -> 4) PERSONAL SECURITY | R18: =iRegionComp!G12 -> 62.3 | T18: =iRegionComp!H12 -> 62.3 | V18: =iRegionComp!I12 -> 59.8 | W18: =iRegionComp!J12 -> 73.3 | X18: =iRegionComp!K12 -> 54.9 | Y18: =iRegionComp!L12 -> 52.6 | Z18: =iRegionComp!M12 -> 67 | AB18: =iRegionComp!N12 -> 45.3 | AC18: =iRegionComp!O12 -> 52.4 | AD18: =iRegionComp!P12 -> 71.9 | AF18: =iRegionComp!Q12 -> 68.6 | AG18: =iRegionComp!R12 -> 65.1 | AH18: =iRegionComp!S12 -> 58.1 | AI18: =iRegionComp!T12 -> 54.4 | AN18: 52.4 | AO18: 73.3
C19: =iRegionComp!D13 -> 0 | D19: =iRegionComp!E13 -> 5) ENVIRONMENTAL SECURITY | R19: =iRegionComp!G13 -> 68.5 | T19: =iRegionComp!H13 -> 68.5 | V19: =iRegionComp!I13 -> 68.3 | W19: =iRegionComp!J13 -> 75.6 | X19: =iRegionComp!K13 -> 71.6 | Y19: =iRegionComp!L13 -> 44.8 | Z19: =iRegionComp!M13 -> 80.7 | AB19: =iRegionComp!N13 -> 52.6 | AC19: =iRegionComp!O13 -> 68.6 | AD19: =iRegionComp!P13 -> 73.1 | AF19: =iRegionComp!Q13 -> 67.5 | AG19: =iRegionComp!R13 -> 71.3 | AH19: =iRegionComp!S13 -> 72.3 | AI19: =iRegionComp!T13 -> 64.9 | AN19: 44.8 | AO19: 75.6
Q24: =iRegionComp!F17 -> 1 | R24: =iRegionComp!G17 -> 0 | T24: =iRegionComp!H17 -> 0 | V24: =iRegionComp!I17 -> 0 | W24: =iRegionComp!J17 -> 0 | X24: =iRegionComp!K17 -> 0 | Y24: =iRegionComp!L17 -> 0 | Z24: =iRegionComp!M17 -> 0 | AB24: =iRegionComp!N17 -> 0 | AC24: =iRegionComp!O17 -> 0 | AD24: =iRegionComp!P17 -> 0 | AF24: =iRegionComp!Q17 -> 0 | AG24: =iRegionComp!R17 -> 0 | AH24: =iRegionComp!S17 -> 0 | AI24: =iRegionComp!T17 -> 0
E26: Sub-category | R26: =iRegionComp!AD7 -> All | T26: =T11 -> See filter selection above | V26: =iRegionComp!AF7 -> Asia Pacific | W26: =iRegionComp!AG7 -> Europe | X26: =iRegionComp!AH7 -> Latin America | Y26: =iRegionComp!AI7 -> Middle East and Africa | Z26: =iRegionComp!AJ7 -> North America | AB26: =iRegionComp!AK7 -> Lower middle income | AC26: =iRegionComp!AL7 -> Upper middle income | AD26: =iRegionComp!AM7 -> High Income | AF26: =iRegionComp!AN7 -> Population < 5m | AG26: =iRegionComp!AO7 -> Population 5-10m | AH26: =iRegionComp!AP7 -> Population 10-15m | AI26: =iRegionComp!AQ7 -> Population 15m +
B27: =COUNTIF(B28:B99,"<>0") -> 10
B28: =IF(iRegionComp!AA22="",0,iRegionComp!AA22) -> 3 | C28: =iRegionComp!AB22 -> 0 | E28: =TRIM(iRegionComp!AC22) -> 1.1) Digital security (input) | R28: =iRegionComp!AD22 -> 66.2 | T28: =iRegionComp!AE22 -> 66.2 | V28: =iRegionComp!AF22 -> 63.8 | W28: =iRegionComp!AG22 -> 71.7 | X28: =iRegionComp!AH22 -> 54.4 | Y28: =iRegionComp!AI22 -> 56.7 | Z28: =iRegionComp!AJ22 -> 87.1 | AB28: =iRegionComp!AK22 -> 50 | AC28: =iRegionComp!AL22 -> 56.3 | AD28: =iRegionComp!AM22 -> 75.6 | AF28: =iRegionComp!AN22 -> 68.3 | AG28: =iRegionComp!AO22 -> 70 | AH28: =iRegionComp!AP22 -> 66.5 | AI28: =iRegionComp!AQ22 -> 60 | AN28: =CHOOSE($AN$1,MIN(R28:Y28,AC28:AI28),MIN(R28:AI28),MIN(R28:Y28,AC28:AI28),MIN(R28:AB28,AC28:AI28)) -> 54.4 | AO28: =CHOOSE($AN$1,MAX(R28:Y28,AC28:AI28),MAX(R28:AI28),MAX(R28:Y28,AC28:AI28),MAX(R28:AB28,AC28:AI28)) -> 75.6
B29: =IF(iRegionComp!AA23="",0,iRegionComp!AA23) -> 9 | C29: =iRegionComp!AB23 -> 0 | E29: =TRIM(iRegionComp!AC23) -> 1.2) Digital security (output) | R29: =iRegionComp!AD23 -> 57.3 | T29: =iRegionComp!AE23 -> 57.3 | V29: =iRegionComp!AF23 -> 50.9 | W29: =iRegionComp!AG23 -> 68.8 | X29: =iRegionComp!AH23 -> 51.5 | Y29: =iRegionComp!AI23 -> 49.1 | Z29: =iRegionComp!AJ23 -> 68.8 | AB29: =iRegionComp!AK23 -> 37.2 | AC29: =iRegionComp!AL23 -> 48.6 | AD29: =iRegionComp!AM23 -> 67.2 | AF29: =iRegionComp!AN23 -> 64.5 | AG29: =iRegionComp!AO23 -> 61.4 | AH29: =iRegionComp!AP23 -> 56.6 | AI29: =iRegionComp!AQ23 -> 45.1 | AN29: 45.1 | AO29: 68.8
B30: =IF(iRegionComp!AA24="",0,iRegionComp!AA24) -> 16 | C30: =iRegionComp!AB24 -> 0 | E30: =TRIM(iRegionComp!AC24) -> 2.1) Health security (input) | R30: =iRegionComp!AD24 -> 59.3 | T30: =iRegionComp!AE24 -> 59.3 | V30: =iRegionComp!AF24 -> 59.4 | W30: =iRegionComp!AG24 -> 62.8 | X30: =iRegionComp!AH24 -> 45.7 | Y30: =iRegionComp!AI24 -> 54.2 | Z30: =iRegionComp!AJ24 -> 73.9 | AB30: =iRegionComp!AK24 -> 40.4 | AC30: =iRegionComp!AL24 -> 53.2 | AD30: =iRegionComp!AM24 -> 67.8 | AF30: =iRegionComp!AN24 -> 57.8 | AG30: =iRegionComp!AO24 -> 66.8 | AH30: =iRegionComp!AP24 -> 60.7 | AI30: =iRegionComp!AQ24 -> 53.8 | AN30: =CHOOSE($AN$1,MIN(R30:Y30,AC30:AI30),MIN(R30:AI30),MIN(R30:Y30,AC30:AI30),MIN(R30:AB30,AC30:AI30)) -> 45.7 | AO30: =CHOOSE($AN$1,MAX(R30:Y30,AC30:AI30),MAX(R30:AI30),MAX(R30:Y30,AC30:AI30),MAX(R30:AB30,AC30:AI30)) -> 67.8
B31: =IF(iRegionComp!AA25="",0,iRegionComp!AA25) -> 32 | C31: =iRegionComp!AB25 -> 0 | E31: =TRIM(iRegionComp!AC25) -> 2.2) Health security (output) | R31: =iRegionComp!AD25 -> 74 | T31: =iRegionComp!AE25 -> 74 | V31: =iRegionComp!AF25 -> 77.8 | W31: =iRegionComp!AG25 -> 74.9 | X31: =iRegionComp!AH25 -> 68.4 | Y31: =iRegionComp!AI25 -> 65.7 | Z31: =iRegionComp!AJ25 -> 77.7 | AB31: =iRegionComp!AK25 -> 64.2 | AC31: =iRegionComp!AL25 -> 69.5 | AD31: =iRegionComp!AM25 -> 79 | AF31: =iRegionComp!AN25 -> 74 | AG31: =iRegionComp!AO25 -> 75.3 | AH31: =iRegionComp!AP25 -> 73.5 | AI31: =iRegionComp!AQ25 -> 73.2 | AN31: 65.7 | AO31: 79
B32: =IF(iRegionComp!AA26="",0,iRegionComp!AA26) -> 41 | C32: =iRegionComp!AB26 -> 0 | E32: =TRIM(iRegionComp!AC26) -> 3.1) Infrastructure security (input) | R32: =iRegionComp!AD26 -> 73.3 | T32: =iRegionComp!AE26 -> 73.3 | V32: =iRegionComp!AF26 -> 71.8 | W32: =iRegionComp!AG26 -> 88.8 | X32: =iRegionComp!AH26 -> 61.3 | Y32: =iRegionComp!AI26 -> 56.1 | Z32: =iRegionComp!AJ26 -> 80.2 | AB32: =iRegionComp!AK26 -> 51.8 | AC32: =iRegionComp!AL26 -> 64.8 | AD32: =iRegionComp!AM26 -> 83.6 | AF32: =iRegionComp!AN26 -> 78.5 | AG32: =iRegionComp!AO26 -> 76.3 | AH32: =iRegionComp!AP26 -> 73 | AI32: =iRegionComp!AQ26 -> 64.2 | AN32: 56.1 | AO32: 88.8
B33: =IF(iRegionComp!AA27="",0,iRegionComp!AA27) -> 47 | C33: =iRegionComp!AB27 -> 0 | E33: =TRIM(iRegionComp!AC27) -> 3.2) Infrastructure security (output) | R33: =iRegionComp!AD27 -> 69.7 | T33: =iRegionComp!AE27 -> 69.7 | V33: =iRegionComp!AF27 -> 70.7 | W33: =iRegionComp!AG27 -> 73.6 | X33: =iRegionComp!AH27 -> 58.5 | Y33: =iRegionComp!AI27 -> 55.5 | Z33: =iRegionComp!AJ27 -> 89.3 | AB33: =iRegionComp!AK27 -> 47.2 | AC33: =iRegionComp!AL27 -> 62.5 | AD33: =iRegionComp!AM27 -> 79.7 | AF33: =iRegionComp!AN27 -> 70.5 | AG33: =iRegionComp!AO27 -> 75.6 | AH33: =iRegionComp!AP27 -> 66.9 | AI33: =iRegionComp!AQ27 -> 65.3 | AN33: 55.5 | AO33: 79.7
B34: =IF(iRegionComp!AA28="",0,iRegionComp!AA28) -> 62 | C34: =iRegionComp!AB28 -> 0 | E34: =TRIM(iRegionComp!AC28) -> 4.1) Personal security (input) | R34: =iRegionComp!AD28 -> 57.3 | T34: =iRegionComp!AE28 -> 57.3 | V34: =iRegionComp!AF28 -> 52 | W34: =iRegionComp!AG28 -> 69.4 | X34: =iRegionComp!AH28 -> 57.4 | Y34: =iRegionComp!AI28 -> 43.4 | Z34: =iRegionComp!AJ28 -> 65.4 | AB34: =iRegionComp!AK28 -> 40.2 | AC34: =iRegionComp!AL28 -> 51.8 | AD34: =iRegionComp!AM28 -> 65 | AF34: =iRegionComp!AN28 -> 62.8 | AG34: =iRegionComp!AO28 -> 57.5 | AH34: =iRegionComp!AP28 -> 56.7 | AI34: =iRegionComp!AQ28 -> 50.9 | AN34: =CHOOSE($AN$1,MIN(R34:Y34,AC34:AI34),MIN(R34:AI34),MIN(R34:Y34,AC34:AI34),MIN(R34:AB34,AC34:AI34)) -> 43.4 | AO34: =CHOOSE($AN$1,MAX(R34:Y34,AC34:AI34),MAX(R34:AI34),MAX(R34:Y34,AC34:AI34),MAX(R34:AB34,AC34:AI34)) -> 69.4
B35: =IF(iRegionComp!AA29="",0,iRegionComp!AA29) -> 77 | C35: =iRegionComp!AB29 -> 0 | E35: =TRIM(iRegionComp!AC29) -> 4.2) Personal security (output) | R35: =iRegionComp!AD29 -> 67.2 | T35: =iRegionComp!AE29 -> 67.2 | V35: =iRegionComp!AF29 -> 67.6 | W35: =iRegionComp!AG29 -> 77.1 | X35: =iRegionComp!AH29 -> 52.4 | Y35: =iRegionComp!AI29 -> 61.7 | Z35: =iRegionComp!AJ29 -> 68.5 | AB35: =iRegionComp!AK29 -> 50.5 | AC35: =iRegionComp!AL29 -> 53.1 | AD35: =iRegionComp!AM29 -> 78.7 | AF35: =iRegionComp!AN29 -> 74.4 | AG35: =iRegionComp!AO29 -> 72.8 | AH35: =iRegionComp!AP29 -> 59.6 | AI35: =iRegionComp!AQ29 -> 57.9 | AN35: 52.4 | AO35: 78.7
B36: =IF(iRegionComp!AA30="",0,iRegionComp!AA30) -> 93 | C36: =iRegionComp!AB30 -> 0 | E36: =TRIM(iRegionComp!AC30) -> 5.1) Environmental security (input) | R36: =iRegionComp!AD30 -> 86.5 | T36: =iRegionComp!AE30 -> 86.5 | V36: =iRegionComp!AF30 -> 88.1 | W36: =iRegionComp!AG30 -> 96.7 | X36: =iRegionComp!AH30 -> 81.3 | Y36: =iRegionComp!AI30 -> 59.7 | Z36: =iRegionComp!AJ30 -> 100 | AB36: =iRegionComp!AK30 -> 65 | AC36: =iRegionComp!AL30 -> 85.9 | AD36: =iRegionComp!AM30 -> 93 | AF36: =iRegionComp!AN30 -> 83.8 | AG36: =iRegionComp!AO30 -> 89.3 | AH36: =iRegionComp!AP30 -> 88.8 | AI36: =iRegionComp!AQ30 -> 85.9 | AN36: 59.7 | AO36: 96.7
B37: =IF(iRegionComp!AA31="",0,iRegionComp!AA31) -> 98 | C37: =iRegionComp!AB31 -> 0 | E37: =TRIM(iRegionComp!AC31) -> 5.2) Environmental security (output) | R37: =iRegionComp!AD31 -> 50.5 | T37: =iRegionComp!AE31 -> 50.5 | V37: =iRegionComp!AF31 -> 48.5 | W37: =iRegionComp!AG31 -> 54.6 | X37: =iRegionComp!AH31 -> 62 | Y37: =iRegionComp!AI31 -> 29.9 | Z37: =iRegionComp!AJ31 -> 61.3 | AB37: =iRegionComp!AK31 -> 40.2 | AC37: =iRegionComp!AL31 -> 51.4 | AD37: =iRegionComp!AM31 -> 53.2 | AF37: =iRegionComp!AN31 -> 51.2 | AG37: =iRegionComp!AO31 -> 53.4 | AH37: =iRegionComp!AP31 -> 55.8 | AI37: =iRegionComp!AQ31 -> 43.9 | AN37: 29.9 | AO37: 62
B38: =IF(iRegionComp!AA32="",0,iRegionComp!AA32) -> 0 | C38: =iRegionComp!AB32 -> 0 | E38: =TRIM(iRegionComp!AC32) ->  | R38: =iRegionComp!AD32 ->  | T38: =iRegionComp!AE32 ->  | V38: =iRegionComp!AF32 ->  | W38: =iRegionComp!AG32 ->  | X38: =iRegionComp!AH32 ->  | Y38: =iRegionComp!AI32 ->  | Z38: =iRegionComp!AJ32 ->  | AB38: =iRegionComp!AK32 ->  | AC38: =iRegionComp!AL32 ->  | AD38: =iRegionComp!AM32 ->  | AF38: =iRegionComp!AN32 ->  | AG38: =iRegionComp!AO32 ->  | AH38: =iRegionComp!AP32 ->  | AI38: =iRegionComp!AQ32 ->  | AN38: 0 | AO38: 0
B39: =IF(iRegionComp!AA33="",0,iRegionComp!AA33) -> 0 | C39: =iRegionComp!AB33 -> 0 | E39: =TRIM(iRegionComp!AC33) ->  | R39: =iRegionComp!AD33 ->  | T39: =iRegionComp!AE33 ->  | V39: =iRegionComp!AF33 ->  | W39: =iRegionComp!AG33 ->  | X39: =iRegionComp!AH33 ->  | Y39: =iRegionComp!AI33 ->  | Z39: =iRegionComp!AJ33 ->  | AB39: =iRegionComp!AK33 ->  | AC39: =iRegionComp!AL33 ->  | AD39: =iRegionComp!AM33 ->  | AF39: =iRegionComp!AN33 ->  | AG39: =iRegionComp!AO33 ->  | AH39: =iRegionComp!AP33 ->  | AI39: =iRegionComp!AQ33 ->  | AN39: 0 | AO39: 0
B40: =IF(iRegionComp!AA34="",0,iRegionComp!AA34) -> 0 | C40: =iRegionComp!AB34 -> 0 | E40: =TRIM(iRegionComp!AC34) ->  | R40: =iRegionComp!AD34 ->  | T40: =iRegionComp!AE34 ->  | V40: =iRegionComp!AF34 ->  | W40: =iRegionComp!AG34 ->  | X40: =iRegionComp!AH34 ->  | Y40: =iRegionComp!AI34 ->  | Z40: =iRegionComp!AJ34 ->  | AB40: =iRegionComp!AK34 ->  | AC40: =iRegionComp!AL34 ->  | AD40: =iRegionComp!AM34 ->  | AF40: =iRegionComp!AN34 ->  | AG40: =iRegionComp!AO34 ->  | AH40: =iRegionComp!AP34 ->  | AI40: =iRegionComp!AQ34 ->  | AN40: 0 | AO40: 0
B41: =IF(iRegionComp!AA35="",0,iRegionComp!AA35) -> 0 | C41: =iRegionComp!AB35 -> 0 | E41: =TRIM(iRegionComp!AC35) ->  | R41: =iRegionComp!AD35 ->  | T41: =iRegionComp!AE35 ->  | V41: =iRegionComp!AF35 ->  | W41: =iRegionComp!AG35 ->  | X41: =iRegionComp!AH35 ->  | Y41: =iRegionComp!AI35 ->  | Z41: =iRegionComp!AJ35 ->  | AB41: =iRegionComp!AK35 ->  | AC41: =iRegionComp!AL35 ->  | AD41: =iRegionComp!AM35 ->  | AF41: =iRegionComp!AN35 ->  | AG41: =iRegionComp!AO35 ->  | AH41: =iRegionComp!AP35 ->  | AI41: =iRegionComp!AQ35 ->  | AN41: 0 | AO41: 0
B42: =IF(iRegionComp!AA36="",0,iRegionComp!AA36) -> 0 | C42: =iRegionComp!AB36 -> 0 | E42: =TRIM(iRegionComp!AC36) ->  | R42: =iRegionComp!AD36 ->  | T42: =iRegionComp!AE36 ->  | V42: =iRegionComp!AF36 ->  | W42: =iRegionComp!AG36 ->  | X42: =iRegionComp!AH36 ->  | Y42: =iRegionComp!AI36 ->  | Z42: =iRegionComp!AJ36 ->  | AB42: =iRegionComp!AK36 ->  | AC42: =iRegionComp!AL36 ->  | AD42: =iRegionComp!AM36 ->  | AF42: =iRegionComp!AN36 ->  | AG42: =iRegionComp!AO36 ->  | AH42: =iRegionComp!AP36 ->  | AI42: =iRegionComp!AQ36 ->  | AN42: 0 | AO42: 0
B43: =IF(iRegionComp!AA37="",0,iRegionComp!AA37) -> 0 | C43: =iRegionComp!AB37 -> 0 | E43: =TRIM(iRegionComp!AC37) ->  | R43: =iRegionComp!AD37 ->  | T43: =iRegionComp!AE37 ->  | V43: =iRegionComp!AF37 ->  | W43: =iRegionComp!AG37 ->  | X43: =iRegionComp!AH37 ->  | Y43: =iRegionComp!AI37 ->  | Z43: =iRegionComp!AJ37 ->  | AB43: =iRegionComp!AK37 ->  | AC43: =iRegionComp!AL37 ->  | AD43: =iRegionComp!AM37 ->  | AF43: =iRegionComp!AN37 ->  | AG43: =iRegionComp!AO37 ->  | AH43: =iRegionComp!AP37 ->  | AI43: =iRegionComp!AQ37 ->  | AN43: 0 | AO43: 0
B44: =IF(iRegionComp!AA38="",0,iRegionComp!AA38) -> 0 | C44: =iRegionComp!AB38 -> 0 | E44: =TRIM(iRegionComp!AC38) ->  | R44: =iRegionComp!AD38 ->  | T44: =iRegionComp!AE38 ->  | V44: =iRegionComp!AF38 ->  | W44: =iRegionComp!AG38 ->  | X44: =iRegionComp!AH38 ->  | Y44: =iRegionComp!AI38 ->  | Z44: =iRegionComp!AJ38 ->  | AB44: =iRegionComp!AK38 ->  | AC44: =iRegionComp!AL38 ->  | AD44: =iRegionComp!AM38 ->  | AF44: =iRegionComp!AN38 ->  | AG44: =iRegionComp!AO38 ->  | AH44: =iRegionComp!AP38 ->  | AI44: =iRegionComp!AQ38 ->  | AN44: 0 | AO44: 0
B45: =IF(iRegionComp!AA39="",0,iRegionComp!AA39) -> 0 | C45: =iRegionComp!AB39 -> 0 | E45: =TRIM(iRegionComp!AC39) ->  | R45: =iRegionComp!AD39 ->  | T45: =iRegionComp!AE39 ->  | V45: =iRegionComp!AF39 ->  | W45: =iRegionComp!AG39 ->  | X45: =iRegionComp!AH39 ->  | Y45: =iRegionComp!AI39 ->  | Z45: =iRegionComp!AJ39 ->  | AB45: =iRegionComp!AK39 ->  | AC45: =iRegionComp!AL39 ->  | AD45: =iRegionComp!AM39 ->  | AF45: =iRegionComp!AN39 ->  | AG45: =iRegionComp!AO39 ->  | AH45: =iRegionComp!AP39 ->  | AI45: =iRegionComp!AQ39 ->  | AN45: 0 | AO45: 0
B46: =IF(iRegionComp!AA40="",0,iRegionComp!AA40) -> 0 | C46: =iRegionComp!AB40 -> 0 | E46: =TRIM(iRegionComp!AC40) ->  | R46: =iRegionComp!AD40 ->  | T46: =iRegionComp!AE40 ->  | V46: =iRegionComp!AF40 ->  | W46: =iRegionComp!AG40 ->  | X46: =iRegionComp!AH40 ->  | Y46: =iRegionComp!AI40 ->  | Z46: =iRegionComp!AJ40 ->  | AB46: =iRegionComp!AK40 ->  | AC46: =iRegionComp!AL40 ->  | AD46: =iRegionComp!AM40 ->  | AF46: =iRegionComp!AN40 ->  | AG46: =iRegionComp!AO40 ->  | AH46: =iRegionComp!AP40 ->  | AI46: =iRegionComp!AQ40 ->  | AN46: 0 | AO46: 0
B47: =IF(iRegionComp!AA41="",0,iRegionComp!AA41) -> 0 | C47: =iRegionComp!AB41 -> 0 | E47: =TRIM(iRegionComp!AC41) ->  | R47: =iRegionComp!AD41 ->  | T47: =iRegionComp!AE41 ->  | V47: =iRegionComp!AF41 ->  | W47: =iRegionComp!AG41 ->  | X47: =iRegionComp!AH41 ->  | Y47: =iRegionComp!AI41 ->  | Z47: =iRegionComp!AJ41 ->  | AB47: =iRegionComp!AK41 ->  | AC47: =iRegionComp!AL41 ->  | AD47: =iRegionComp!AM41 ->  | AF47: =iRegionComp!AN41 ->  | AG47: =iRegionComp!AO41 ->  | AH47: =iRegionComp!AP41 ->  | AI47: =iRegionComp!AQ41 ->  | AN47: 0 | AO47: 0
B48: =IF(iRegionComp!AA42="",0,iRegionComp!AA42) -> 0 | C48: =iRegionComp!AB42 -> 0 | E48: =TRIM(iRegionComp!AC42) ->  | R48: =iRegionComp!AD42 ->  | T48: =iRegionComp!AE42 ->  | V48: =iRegionComp!AF42 ->  | W48: =iRegionComp!AG42 ->  | X48: =iRegionComp!AH42 ->  | Y48: =iRegionComp!AI42 ->  | Z48: =iRegionComp!AJ42 ->  | AB48: =iRegionComp!AK42 ->  | AC48: =iRegionComp!AL42 ->  | AD48: =iRegionComp!AM42 ->  | AF48: =iRegionComp!AN42 ->  | AG48: =iRegionComp!AO42 ->  | AH48: =iRegionComp!AP42 ->  | AI48: =iRegionComp!AQ42 ->  | AN48: 0 | AO48: 0
B49: =IF(iRegionComp!AA43="",0,iRegionComp!AA43) -> 0 | C49: =iRegionComp!AB43 -> 0 | E49: =TRIM(iRegionComp!AC43) ->  | R49: =iRegionComp!AD43 ->  | T49: =iRegionComp!AE43 ->  | V49: =iRegionComp!AF43 ->  | W49: =iRegionComp!AG43 ->  | X49: =iRegionComp!AH43 ->  | Y49: =iRegionComp!AI43 ->  | Z49: =iRegionComp!AJ43 ->  | AB49: =iRegionComp!AK43 ->  | AC49: =iRegionComp!AL43 ->  | AD49: =iRegionComp!AM43 ->  | AF49: =iRegionComp!AN43 ->  | AG49: =iRegionComp!AO43 ->  | AH49: =iRegionComp!AP43 ->  | AI49: =iRegionComp!AQ43 ->  | AN49: 0 | AO49: 0
B50: =IF(iRegionComp!AA44="",0,iRegionComp!AA44) -> 0 | C50: =iRegionComp!AB44 -> 0 | E50: =TRIM(iRegionComp!AC44) ->  | R50: =iRegionComp!AD44 ->  | T50: =iRegionComp!AE44 ->  | V50: =iRegionComp!AF44 ->  | W50: =iRegionComp!AG44 ->  | X50: =iRegionComp!AH44 ->  | Y50: =iRegionComp!AI44 ->  | Z50: =iRegionComp!AJ44 ->  | AB50: =iRegionComp!AK44 ->  | AC50: =iRegionComp!AL44 ->  | AD50: =iRegionComp!AM44 ->  | AF50: =iRegionComp!AN44 ->  | AG50: =iRegionComp!AO44 ->  | AH50: =iRegionComp!AP44 ->  | AI50: =iRegionComp!AQ44 ->  | AN50: 0 | AO50: 0
B51: =IF(iRegionComp!AA45="",0,iRegionComp!AA45) -> 0 | C51: =iRegionComp!AB45 -> 0 | E51: =TRIM(iRegionComp!AC45) ->  | R51: =iRegionComp!AD45 ->  | T51: =iRegionComp!AE45 ->  | V51: =iRegionComp!AF45 ->  | W51: =iRegionComp!AG45 ->  | X51: =iRegionComp!AH45 ->  | Y51: =iRegionComp!AI45 ->  | Z51: =iRegionComp!AJ45 ->  | AB51: =iRegionComp!AK45 ->  | AC51: =iRegionComp!AL45 ->  | AD51: =iRegionComp!AM45 ->  | AF51: =iRegionComp!AN45 ->  | AG51: =iRegionComp!AO45 ->  | AH51: =iRegionComp!AP45 ->  | AI51: =iRegionComp!AQ45 ->  | AN51: 0 | AO51: 0
B52: =IF(iRegionComp!AA46="",0,iRegionComp!AA46) -> 0 | C52: =iRegionComp!AB46 -> 0 | E52: =TRIM(iRegionComp!AC46) ->  | R52: =iRegionComp!AD46 ->  | T52: =iRegionComp!AE46 ->  | V52: =iRegionComp!AF46 ->  | W52: =iRegionComp!AG46 ->  | X52: =iRegionComp!AH46 ->  | Y52: =iRegionComp!AI46 ->  | Z52: =iRegionComp!AJ46 ->  | AB52: =iRegionComp!AK46 ->  | AC52: =iRegionComp!AL46 ->  | AD52: =iRegionComp!AM46 ->  | AF52: =iRegionComp!AN46 ->  | AG52: =iRegionComp!AO46 ->  | AH52: =iRegionComp!AP46 ->  | AI52: =iRegionComp!AQ46 ->  | AN52: 0 | AO52: 0
B53: =IF(iRegionComp!AA47="",0,iRegionComp!AA47) -> 0 | C53: =iRegionComp!AB47 -> 0 | E53: =TRIM(iRegionComp!AC47) ->  | R53: =iRegionComp!AD47 ->  | T53: =iRegionComp!AE47 ->  | V53: =iRegionComp!AF47 ->  | W53: =iRegionComp!AG47 ->  | X53: =iRegionComp!AH47 ->  | Y53: =iRegionComp!AI47 ->  | Z53: =iRegionComp!AJ47 ->  | AB53: =iRegionComp!AK47 ->  | AC53: =iRegionComp!AL47 ->  | AD53: =iRegionComp!AM47 ->  | AF53: =iRegionComp!AN47 ->  | AG53: =iRegionComp!AO47 ->  | AH53: =iRegionComp!AP47 ->  | AI53: =iRegionComp!AQ47 ->  | AN53: 0 | AO53: 0
B54: =IF(iRegionComp!AA48="",0,iRegionComp!AA48) -> 0 | C54: =iRegionComp!AB48 -> 0 | E54: =TRIM(iRegionComp!AC48) ->  | R54: =iRegionComp!AD48 ->  | T54: =iRegionComp!AE48 ->  | V54: =iRegionComp!AF48 ->  | W54: =iRegionComp!AG48 ->  | X54: =iRegionComp!AH48 ->  | Y54: =iRegionComp!AI48 ->  | Z54: =iRegionComp!AJ48 ->  | AB54: =iRegionComp!AK48 ->  | AC54: =iRegionComp!AL48 ->  | AD54: =iRegionComp!AM48 ->  | AF54: =iRegionComp!AN48 ->  | AG54: =iRegionComp!AO48 ->  | AH54: =iRegionComp!AP48 ->  | AI54: =iRegionComp!AQ48 ->  | AN54: 0 | AO54: 0
B55: =IF(iRegionComp!AA49="",0,iRegionComp!AA49) -> 0 | C55: =iRegionComp!AB49 -> 0 | E55: =TRIM(iRegionComp!AC49) ->  | R55: =iRegionComp!AD49 ->  | T55: =iRegionComp!AE49 ->  | V55: =iRegionComp!AF49 ->  | W55: =iRegionComp!AG49 ->  | X55: =iRegionComp!AH49 ->  | Y55: =iRegionComp!AI49 ->  | Z55: =iRegionComp!AJ49 ->  | AB55: =iRegionComp!AK49 ->  | AC55: =iRegionComp!AL49 ->  | AD55: =iRegionComp!AM49 ->  | AF55: =iRegionComp!AN49 ->  | AG55: =iRegionComp!AO49 ->  | AH55: =iRegionComp!AP49 ->  | AI55: =iRegionComp!AQ49 ->  | AN55: 0 | AO55: 0
B56: =IF(iRegionComp!AA50="",0,iRegionComp!AA50) -> 0 | C56: =iRegionComp!AB50 -> 0 | E56: =TRIM(iRegionComp!AC50) ->  | R56: =iRegionComp!AD50 ->  | T56: =iRegionComp!AE50 ->  | V56: =iRegionComp!AF50 ->  | W56: =iRegionComp!AG50 ->  | X56: =iRegionComp!AH50 ->  | Y56: =iRegionComp!AI50 ->  | Z56: =iRegionComp!AJ50 ->  | AB56: =iRegionComp!AK50 ->  | AC56: =iRegionComp!AL50 ->  | AD56: =iRegionComp!AM50 ->  | AF56: =iRegionComp!AN50 ->  | AG56: =iRegionComp!AO50 ->  | AH56: =iRegionComp!AP50 ->  | AI56: =iRegionComp!AQ50 ->  | AN56: 0 | AO56: 0
B57: =IF(iRegionComp!AA51="",0,iRegionComp!AA51) -> 0 | C57: =iRegionComp!AB51 -> 0 | E57: =TRIM(iRegionComp!AC51) ->  | R57: =iRegionComp!AD51 ->  | T57: =iRegionComp!AE51 ->  | V57: =iRegionComp!AF51 ->  | W57: =iRegionComp!AG51 ->  | X57: =iRegionComp!AH51 ->  | Y57: =iRegionComp!AI51 ->  | Z57: =iRegionComp!AJ51 ->  | AB57: =iRegionComp!AK51 ->  | AC57: =iRegionComp!AL51 ->  | AD57: =iRegionComp!AM51 ->  | AF57: =iRegionComp!AN51 ->  | AG57: =iRegionComp!AO51 ->  | AH57: =iRegionComp!AP51 ->  | AI57: =iRegionComp!AQ51 ->  | AN57: 0 | AO57: 0
B58: =IF(iRegionComp!AA52="",0,iRegionComp!AA52) -> 0 | C58: =iRegionComp!AB52 -> 0 | E58: =TRIM(iRegionComp!AC52) ->  | R58: =iRegionComp!AD52 ->  | T58: =iRegionComp!AE52 ->  | V58: =iRegionComp!AF52 ->  | W58: =iRegionComp!AG52 ->  | X58: =iRegionComp!AH52 ->  | Y58: =iRegionComp!AI52 ->  | Z58: =iRegionComp!AJ52 ->  | AB58: =iRegionComp!AK52 ->  | AC58: =iRegionComp!AL52 ->  | AD58: =iRegionComp!AM52 ->  | AF58: =iRegionComp!AN52 ->  | AG58: =iRegionComp!AO52 ->  | AH58: =iRegionComp!AP52 ->  | AI58: =iRegionComp!AQ52 ->  | AN58: 0 | AO58: 0
B59: =IF(iRegionComp!AA53="",0,iRegionComp!AA53) -> 0 | C59: =iRegionComp!AB53 -> 0 | E59: =TRIM(iRegionComp!AC53) ->  | R59: =iRegionComp!AD53 ->  | T59: =iRegionComp!AE53 ->  | V59: =iRegionComp!AF53 ->  | W59: =iRegionComp!AG53 ->  | X59: =iRegionComp!AH53 ->  | Y59: =iRegionComp!AI53 ->  | Z59: =iRegionComp!AJ53 ->  | AB59: =iRegionComp!AK53 ->  | AC59: =iRegionComp!AL53 ->  | AD59: =iRegionComp!AM53 ->  | AF59: =iRegionComp!AN53 ->  | AG59: =iRegionComp!AO53 ->  | AH59: =iRegionComp!AP53 ->  | AI59: =iRegionComp!AQ53 ->  | AN59: 0 | AO59: 0
B60: =IF(iRegionComp!AA54="",0,iRegionComp!AA54) -> 0 | C60: =iRegionComp!AB54 -> 0 | E60: =TRIM(iRegionComp!AC54) ->  | R60: =iRegionComp!AD54 ->  | T60: =iRegionComp!AE54 ->  | V60: =iRegionComp!AF54 ->  | W60: =iRegionComp!AG54 ->  | X60: =iRegionComp!AH54 ->  | Y60: =iRegionComp!AI54 ->  | Z60: =iRegionComp!AJ54 ->  | AB60: =iRegionComp!AK54 ->  | AC60: =iRegionComp!AL54 ->  | AD60: =iRegionComp!AM54 ->  | AF60: =iRegionComp!AN54 ->  | AG60: =iRegionComp!AO54 ->  | AH60: =iRegionComp!AP54 ->  | AI60: =iRegionComp!AQ54 ->  | AN60: 0 | AO60: 0
B61: =IF(iRegionComp!AA55="",0,iRegionComp!AA55) -> 0 | C61: =iRegionComp!AB55 -> 0 | E61: =TRIM(iRegionComp!AC55) ->  | R61: =iRegionComp!AD55 ->  | T61: =iRegionComp!AE55 ->  | V61: =iRegionComp!AF55 ->  | W61: =iRegionComp!AG55 ->  | X61: =iRegionComp!AH55 ->  | Y61: =iRegionComp!AI55 ->  | Z61: =iRegionComp!AJ55 ->  | AB61: =iRegionComp!AK55 ->  | AC61: =iRegionComp!AL55 ->  | AD61: =iRegionComp!AM55 ->  | AF61: =iRegionComp!AN55 ->  | AG61: =iRegionComp!AO55 ->  | AH61: =iRegionComp!AP55 ->  | AI61: =iRegionComp!AQ55 ->  | AN61: 0 | AO61: 0
B62: =IF(iRegionComp!AA56="",0,iRegionComp!AA56) -> 0 | C62: =iRegionComp!AB56 -> 0 | E62: =TRIM(iRegionComp!AC56) ->  | R62: =iRegionComp!AD56 ->  | T62: =iRegionComp!AE56 ->  | V62: =iRegionComp!AF56 ->  | W62: =iRegionComp!AG56 ->  | X62: =iRegionComp!AH56 ->  | Y62: =iRegionComp!AI56 ->  | Z62: =iRegionComp!AJ56 ->  | AB62: =iRegionComp!AK56 ->  | AC62: =iRegionComp!AL56 ->  | AD62: =iRegionComp!AM56 ->  | AF62: =iRegionComp!AN56 ->  | AG62: =iRegionComp!AO56 ->  | AH62: =iRegionComp!AP56 ->  | AI62: =iRegionComp!AQ56 ->  | AN62: 0 | AO62: 0
B63: =IF(iRegionComp!AA57="",0,iRegionComp!AA57) -> 0 | C63: =iRegionComp!AB57 -> 0 | E63: =TRIM(iRegionComp!AC57) ->  | R63: =iRegionComp!AD57 ->  | T63: =iRegionComp!AE57 ->  | V63: =iRegionComp!AF57 ->  | W63: =iRegionComp!AG57 ->  | X63: =iRegionComp!AH57 ->  | Y63: =iRegionComp!AI57 ->  | Z63: =iRegionComp!AJ57 ->  | AB63: =iRegionComp!AK57 ->  | AC63: =iRegionComp!AL57 ->  | AD63: =iRegionComp!AM57 ->  | AF63: =iRegionComp!AN57 ->  | AG63: =iRegionComp!AO57 ->  | AH63: =iRegionComp!AP57 ->  | AI63: =iRegionComp!AQ57 ->  | AN63: 0 | AO63: 0
B64: =IF(iRegionComp!AA58="",0,iRegionComp!AA58) -> 0 | C64: =iRegionComp!AB58 -> 0 | E64: =TRIM(iRegionComp!AC58) ->  | R64: =iRegionComp!AD58 ->  | T64: =iRegionComp!AE58 ->  | V64: =iRegionComp!AF58 ->  | W64: =iRegionComp!AG58 ->  | X64: =iRegionComp!AH58 ->  | Y64: =iRegionComp!AI58 ->  | Z64: =iRegionComp!AJ58 ->  | AB64: =iRegionComp!AK58 ->  | AC64: =iRegionComp!AL58 ->  | AD64: =iRegionComp!AM58 ->  | AF64: =iRegionComp!AN58 ->  | AG64: =iRegionComp!AO58 ->  | AH64: =iRegionComp!AP58 ->  | AI64: =iRegionComp!AQ58 ->  | AN64: 0 | AO64: 0
B65: =IF(iRegionComp!AA59="",0,iRegionComp!AA59) -> 0 | C65: =iRegionComp!AB59 -> 0 | E65: =TRIM(iRegionComp!AC59) ->  | R65: =iRegionComp!AD59 ->  | T65: =iRegionComp!AE59 ->  | V65: =iRegionComp!AF59 ->  | W65: =iRegionComp!AG59 ->  | X65: =iRegionComp!AH59 ->  | Y65: =iRegionComp!AI59 ->  | Z65: =iRegionComp!AJ59 ->  | AB65: =iRegionComp!AK59 ->  | AC65: =iRegionComp!AL59 ->  | AD65: =iRegionComp!AM59 ->  | AF65: =iRegionComp!AN59 ->  | AG65: =iRegionComp!AO59 ->  | AH65: =iRegionComp!AP59 ->  | AI65: =iRegionComp!AQ59 ->  | AN65: 0 | AO65: 0
B66: =IF(iRegionComp!AA60="",0,iRegionComp!AA60) -> 0 | C66: =iRegionComp!AB60 -> 0 | E66: =TRIM(iRegionComp!AC60) ->  | R66: =iRegionComp!AD60 ->  | T66: =iRegionComp!AE60 ->  | V66: =iRegionComp!AF60 ->  | W66: =iRegionComp!AG60 ->  | X66: =iRegionComp!AH60 ->  | Y66: =iRegionComp!AI60 ->  | Z66: =iRegionComp!AJ60 ->  | AB66: =iRegionComp!AK60 ->  | AC66: =iRegionComp!AL60 ->  | AD66: =iRegionComp!AM60 ->  | AF66: =iRegionComp!AN60 ->  | AG66: =iRegionComp!AO60 ->  | AH66: =iRegionComp!AP60 ->  | AI66: =iRegionComp!AQ60 ->  | AN66: 0 | AO66: 0
B67: =IF(iRegionComp!AA61="",0,iRegionComp!AA61) -> 0 | C67: =iRegionComp!AB61 -> 0 | E67: =TRIM(iRegionComp!AC61) ->  | R67: =iRegionComp!AD61 ->  | T67: =iRegionComp!AE61 ->  | V67: =iRegionComp!AF61 ->  | W67: =iRegionComp!AG61 ->  | X67: =iRegionComp!AH61 ->  | Y67: =iRegionComp!AI61 ->  | Z67: =iRegionComp!AJ61 ->  | AB67: =iRegionComp!AK61 ->  | AC67: =iRegionComp!AL61 ->  | AD67: =iRegionComp!AM61 ->  | AF67: =iRegionComp!AN61 ->  | AG67: =iRegionComp!AO61 ->  | AH67: =iRegionComp!AP61 ->  | AI67: =iRegionComp!AQ61 ->  | AN67: 0 | AO67: 0
B68: =IF(iRegionComp!AA62="",0,iRegionComp!AA62) -> 0 | C68: =iRegionComp!AB62 -> 0 | E68: =TRIM(iRegionComp!AC62) ->  | R68: =iRegionComp!AD62 ->  | T68: =iRegionComp!AE62 ->  | V68: =iRegionComp!AF62 ->  | W68: =iRegionComp!AG62 ->  | X68: =iRegionComp!AH62 ->  | Y68: =iRegionComp!AI62 ->  | Z68: =iRegionComp!AJ62 ->  | AB68: =iRegionComp!AK62 ->  | AC68: =iRegionComp!AL62 ->  | AD68: =iRegionComp!AM62 ->  | AF68: =iRegionComp!AN62 ->  | AG68: =iRegionComp!AO62 ->  | AH68: =iRegionComp!AP62 ->  | AI68: =iRegionComp!AQ62 ->  | AN68: 0 | AO68: 0
B69: =IF(iRegionComp!AA63="",0,iRegionComp!AA63) -> 0 | C69: =iRegionComp!AB63 -> 0 | E69: =TRIM(iRegionComp!AC63) ->  | R69: =iRegionComp!AD63 ->  | T69: =iRegionComp!AE63 ->  | V69: =iRegionComp!AF63 ->  | W69: =iRegionComp!AG63 ->  | X69: =iRegionComp!AH63 ->  | Y69: =iRegionComp!AI63 ->  | Z69: =iRegionComp!AJ63 ->  | AB69: =iRegionComp!AK63 ->  | AC69: =iRegionComp!AL63 ->  | AD69: =iRegionComp!AM63 ->  | AF69: =iRegionComp!AN63 ->  | AG69: =iRegionComp!AO63 ->  | AH69: =iRegionComp!AP63 ->  | AI69: =iRegionComp!AQ63 ->  | AN69: 0 | AO69: 0
B70: =IF(iRegionComp!AA64="",0,iRegionComp!AA64) -> 0 | C70: =iRegionComp!AB64 -> 0 | E70: =TRIM(iRegionComp!AC64) ->  | R70: =iRegionComp!AD64 ->  | T70: =iRegionComp!AE64 ->  | V70: =iRegionComp!AF64 ->  | W70: =iRegionComp!AG64 ->  | X70: =iRegionComp!AH64 ->  | Y70: =iRegionComp!AI64 ->  | Z70: =iRegionComp!AJ64 ->  | AB70: =iRegionComp!AK64 ->  | AC70: =iRegionComp!AL64 ->  | AD70: =iRegionComp!AM64 ->  | AF70: =iRegionComp!AN64 ->  | AG70: =iRegionComp!AO64 ->  | AH70: =iRegionComp!AP64 ->  | AI70: =iRegionComp!AQ64 ->  | AN70: 0 | AO70: 0
B71: =IF(iRegionComp!AA65="",0,iRegionComp!AA65) -> 0 | C71: =iRegionComp!AB65 -> 0 | E71: =TRIM(iRegionComp!AC65) ->  | R71: =iRegionComp!AD65 ->  | T71: =iRegionComp!AE65 ->  | V71: =iRegionComp!AF65 ->  | W71: =iRegionComp!AG65 ->  | X71: =iRegionComp!AH65 ->  | Y71: =iRegionComp!AI65 ->  | Z71: =iRegionComp!AJ65 ->  | AB71: =iRegionComp!AK65 ->  | AC71: =iRegionComp!AL65 ->  | AD71: =iRegionComp!AM65 ->  | AF71: =iRegionComp!AN65 ->  | AG71: =iRegionComp!AO65 ->  | AH71: =iRegionComp!AP65 ->  | AI71: =iRegionComp!AQ65 ->  | AN71: 0 | AO71: 0
B72: =IF(iRegionComp!AA66="",0,iRegionComp!AA66) -> 0 | C72: =iRegionComp!AB66 -> 0 | E72: =TRIM(iRegionComp!AC66) ->  | R72: =iRegionComp!AD66 ->  | T72: =iRegionComp!AE66 ->  | V72: =iRegionComp!AF66 ->  | W72: =iRegionComp!AG66 ->  | X72: =iRegionComp!AH66 ->  | Y72: =iRegionComp!AI66 ->  | Z72: =iRegionComp!AJ66 ->  | AB72: =iRegionComp!AK66 ->  | AC72: =iRegionComp!AL66 ->  | AD72: =iRegionComp!AM66 ->  | AF72: =iRegionComp!AN66 ->  | AG72: =iRegionComp!AO66 ->  | AH72: =iRegionComp!AP66 ->  | AI72: =iRegionComp!AQ66 ->  | AN72: 0 | AO72: 0
B73: =IF(iRegionComp!AA67="",0,iRegionComp!AA67) -> 0 | C73: =iRegionComp!AB67 -> 0 | E73: =TRIM(iRegionComp!AC67) ->  | R73: =iRegionComp!AD67 ->  | T73: =iRegionComp!AE67 ->  | V73: =iRegionComp!AF67 ->  | W73: =iRegionComp!AG67 ->  | X73: =iRegionComp!AH67 ->  | Y73: =iRegionComp!AI67 ->  | Z73: =iRegionComp!AJ67 ->  | AB73: =iRegionComp!AK67 ->  | AC73: =iRegionComp!AL67 ->  | AD73: =iRegionComp!AM67 ->  | AF73: =iRegionComp!AN67 ->  | AG73: =iRegionComp!AO67 ->  | AH73: =iRegionComp!AP67 ->  | AI73: =iRegionComp!AQ67 ->  | AN73: 0 | AO73: 0
B74: =IF(iRegionComp!AA68="",0,iRegionComp!AA68) -> 0 | C74: =iRegionComp!AB68 -> 0 | E74: =TRIM(iRegionComp!AC68) ->  | R74: =iRegionComp!AD68 ->  | T74: =iRegionComp!AE68 ->  | V74: =iRegionComp!AF68 ->  | W74: =iRegionComp!AG68 ->  | X74: =iRegionComp!AH68 ->  | Y74: =iRegionComp!AI68 ->  | Z74: =iRegionComp!AJ68 ->  | AB74: =iRegionComp!AK68 ->  | AC74: =iRegionComp!AL68 ->  | AD74: =iRegionComp!AM68 ->  | AF74: =iRegionComp!AN68 ->  | AG74: =iRegionComp!AO68 ->  | AH74: =iRegionComp!AP68 ->  | AI74: =iRegionComp!AQ68 ->  | AN74: 0 | AO74: 0
B75: =IF(iRegionComp!AA69="",0,iRegionComp!AA69) -> 0 | C75: =iRegionComp!AB69 -> 0 | E75: =TRIM(iRegionComp!AC69) ->  | R75: =iRegionComp!AD69 ->  | T75: =iRegionComp!AE69 ->  | V75: =iRegionComp!AF69 ->  | W75: =iRegionComp!AG69 ->  | X75: =iRegionComp!AH69 ->  | Y75: =iRegionComp!AI69 ->  | Z75: =iRegionComp!AJ69 ->  | AB75: =iRegionComp!AK69 ->  | AC75: =iRegionComp!AL69 ->  | AD75: =iRegionComp!AM69 ->  | AF75: =iRegionComp!AN69 ->  | AG75: =iRegionComp!AO69 ->  | AH75: =iRegionComp!AP69 ->  | AI75: =iRegionComp!AQ69 ->  | AN75: 0 | AO75: 0
B76: =IF(iRegionComp!AA70="",0,iRegionComp!AA70) -> 0 | C76: =iRegionComp!AB70 -> 0 | E76: =TRIM(iRegionComp!AC70) ->  | R76: =iRegionComp!AD70 ->  | T76: =iRegionComp!AE70 ->  | V76: =iRegionComp!AF70 ->  | W76: =iRegionComp!AG70 ->  | X76: =iRegionComp!AH70 ->  | Y76: =iRegionComp!AI70 ->  | Z76: =iRegionComp!AJ70 ->  | AB76: =iRegionComp!AK70 ->  | AC76: =iRegionComp!AL70 ->  | AD76: =iRegionComp!AM70 ->  | AF76: =iRegionComp!AN70 ->  | AG76: =iRegionComp!AO70 ->  | AH76: =iRegionComp!AP70 ->  | AI76: =iRegionComp!AQ70 ->  | AN76: 0 | AO76: 0
B77: =IF(iRegionComp!AA71="",0,iRegionComp!AA71) -> 0 | C77: =iRegionComp!AB71 -> 0 | E77: =TRIM(iRegionComp!AC71) ->  | R77: =iRegionComp!AD71 ->  | T77: =iRegionComp!AE71 ->  | V77: =iRegionComp!AF71 ->  | W77: =iRegionComp!AG71 ->  | X77: =iRegionComp!AH71 ->  | Y77: =iRegionComp!AI71 ->  | Z77: =iRegionComp!AJ71 ->  | AB77: =iRegionComp!AK71 ->  | AC77: =iRegionComp!AL71 ->  | AD77: =iRegionComp!AM71 ->  | AF77: =iRegionComp!AN71 ->  | AG77: =iRegionComp!AO71 ->  | AH77: =iRegionComp!AP71 ->  | AI77: =iRegionComp!AQ71 ->  | AN77: 0 | AO77: 0
B78: =IF(iRegionComp!AA72="",0,iRegionComp!AA72) -> 0 | C78: =iRegionComp!AB72 -> 0 | E78: =TRIM(iRegionComp!AC72) ->  | R78: =iRegionComp!AD72 ->  | T78: =iRegionComp!AE72 ->  | V78: =iRegionComp!AF72 ->  | W78: =iRegionComp!AG72 ->  | X78: =iRegionComp!AH72 ->  | Y78: =iRegionComp!AI72 ->  | Z78: =iRegionComp!AJ72 ->  | AB78: =iRegionComp!AK72 ->  | AC78: =iRegionComp!AL72 ->  | AD78: =iRegionComp!AM72 ->  | AF78: =iRegionComp!AN72 ->  | AG78: =iRegionComp!AO72 ->  | AH78: =iRegionComp!AP72 ->  | AI78: =iRegionComp!AQ72 ->  | AN78: 0 | AO78: 0
B79: =IF(iRegionComp!AA73="",0,iRegionComp!AA73) -> 0 | C79: =iRegionComp!AB73 -> 0 | E79: =TRIM(iRegionComp!AC73) ->  | R79: =iRegionComp!AD73 ->  | T79: =iRegionComp!AE73 ->  | V79: =iRegionComp!AF73 ->  | W79: =iRegionComp!AG73 ->  | X79: =iRegionComp!AH73 ->  | Y79: =iRegionComp!AI73 ->  | Z79: =iRegionComp!AJ73 ->  | AB79: =iRegionComp!AK73 ->  | AC79: =iRegionComp!AL73 ->  | AD79: =iRegionComp!AM73 ->  | AF79: =iRegionComp!AN73 ->  | AG79: =iRegionComp!AO73 ->  | AH79: =iRegionComp!AP73 ->  | AI79: =iRegionComp!AQ73 ->  | AN79: 0 | AO79: 0
B80: =IF(iRegionComp!AA74="",0,iRegionComp!AA74) -> 0 | C80: =iRegionComp!AB74 -> 0 | E80: =TRIM(iRegionComp!AC74) ->  | R80: =iRegionComp!AD74 ->  | T80: =iRegionComp!AE74 ->  | V80: =iRegionComp!AF74 ->  | W80: =iRegionComp!AG74 ->  | X80: =iRegionComp!AH74 ->  | Y80: =iRegionComp!AI74 ->  | Z80: =iRegionComp!AJ74 ->  | AB80: =iRegionComp!AK74 ->  | AC80: =iRegionComp!AL74 ->  | AD80: =iRegionComp!AM74 ->  | AF80: =iRegionComp!AN74 ->  | AG80: =iRegionComp!AO74 ->  | AH80: =iRegionComp!AP74 ->  | AI80: =iRegionComp!AQ74 ->  | AN80: 0 | AO80: 0
B81: =IF(iRegionComp!AA75="",0,iRegionComp!AA75) -> 0 | C81: =iRegionComp!AB75 -> 0 | E81: =TRIM(iRegionComp!AC75) ->  | R81: =iRegionComp!AD75 ->  | T81: =iRegionComp!AE75 ->  | V81: =iRegionComp!AF75 ->  | W81: =iRegionComp!AG75 ->  | X81: =iRegionComp!AH75 ->  | Y81: =iRegionComp!AI75 ->  | Z81: =iRegionComp!AJ75 ->  | AB81: =iRegionComp!AK75 ->  | AC81: =iRegionComp!AL75 ->  | AD81: =iRegionComp!AM75 ->  | AF81: =iRegionComp!AN75 ->  | AG81: =iRegionComp!AO75 ->  | AH81: =iRegionComp!AP75 ->  | AI81: =iRegionComp!AQ75 ->  | AN81: 0 | AO81: 0
B82: =IF(iRegionComp!AA76="",0,iRegionComp!AA76) -> 0 | C82: =iRegionComp!AB76 -> 0 | E82: =TRIM(iRegionComp!AC76) ->  | R82: =iRegionComp!AD76 ->  | T82: =iRegionComp!AE76 ->  | V82: =iRegionComp!AF76 ->  | W82: =iRegionComp!AG76 ->  | X82: =iRegionComp!AH76 ->  | Y82: =iRegionComp!AI76 ->  | Z82: =iRegionComp!AJ76 ->  | AB82: =iRegionComp!AK76 ->  | AC82: =iRegionComp!AL76 ->  | AD82: =iRegionComp!AM76 ->  | AF82: =iRegionComp!AN76 ->  | AG82: =iRegionComp!AO76 ->  | AH82: =iRegionComp!AP76 ->  | AI82: =iRegionComp!AQ76 ->  | AN82: 0 | AO82: 0
B83: =IF(iRegionComp!AA77="",0,iRegionComp!AA77) -> 0 | C83: =iRegionComp!AB77 -> 0 | E83: =TRIM(iRegionComp!AC77) ->  | R83: =iRegionComp!AD77 ->  | T83: =iRegionComp!AE77 ->  | V83: =iRegionComp!AF77 ->  | W83: =iRegionComp!AG77 ->  | X83: =iRegionComp!AH77 ->  | Y83: =iRegionComp!AI77 ->  | Z83: =iRegionComp!AJ77 ->  | AB83: =iRegionComp!AK77 ->  | AC83: =iRegionComp!AL77 ->  | AD83: =iRegionComp!AM77 ->  | AF83: =iRegionComp!AN77 ->  | AG83: =iRegionComp!AO77 ->  | AH83: =iRegionComp!AP77 ->  | AI83: =iRegionComp!AQ77 ->  | AN83: 0 | AO83: 0
B84: =IF(iRegionComp!AA78="",0,iRegionComp!AA78) -> 0 | C84: =iRegionComp!AB78 -> 0 | E84: =TRIM(iRegionComp!AC78) ->  | R84: =iRegionComp!AD78 ->  | T84: =iRegionComp!AE78 ->  | V84: =iRegionComp!AF78 ->  | W84: =iRegionComp!AG78 ->  | X84: =iRegionComp!AH78 ->  | Y84: =iRegionComp!AI78 ->  | Z84: =iRegionComp!AJ78 ->  | AB84: =iRegionComp!AK78 ->  | AC84: =iRegionComp!AL78 ->  | AD84: =iRegionComp!AM78 ->  | AF84: =iRegionComp!AN78 ->  | AG84: =iRegionComp!AO78 ->  | AH84: =iRegionComp!AP78 ->  | AI84: =iRegionComp!AQ78 ->  | AN84: 0 | AO84: 0
B85: =IF(iRegionComp!AA79="",0,iRegionComp!AA79) -> 0 | C85: =iRegionComp!AB79 -> 0 | E85: =TRIM(iRegionComp!AC79) ->  | R85: =iRegionComp!AD79 ->  | T85: =iRegionComp!AE79 ->  | V85: =iRegionComp!AF79 ->  | W85: =iRegionComp!AG79 ->  | X85: =iRegionComp!AH79 ->  | Y85: =iRegionComp!AI79 ->  | Z85: =iRegionComp!AJ79 ->  | AB85: =iRegionComp!AK79 ->  | AC85: =iRegionComp!AL79 ->  | AD85: =iRegionComp!AM79 ->  | AF85: =iRegionComp!AN79 ->  | AG85: =iRegionComp!AO79 ->  | AH85: =iRegionComp!AP79 ->  | AI85: =iRegionComp!AQ79 ->  | AN85: 0 | AO85: 0
B86: =IF(iRegionComp!AA80="",0,iRegionComp!AA80) -> 0 | C86: =iRegionComp!AB80 -> 0 | E86: =TRIM(iRegionComp!AC80) ->  | R86: =iRegionComp!AD80 ->  | T86: =iRegionComp!AE80 ->  | V86: =iRegionComp!AF80 ->  | W86: =iRegionComp!AG80 ->  | X86: =iRegionComp!AH80 ->  | Y86: =iRegionComp!AI80 ->  | Z86: =iRegionComp!AJ80 ->  | AB86: =iRegionComp!AK80 ->  | AC86: =iRegionComp!AL80 ->  | AD86: =iRegionComp!AM80 ->  | AF86: =iRegionComp!AN80 ->  | AG86: =iRegionComp!AO80 ->  | AH86: =iRegionComp!AP80 ->  | AI86: =iRegionComp!AQ80 ->  | AN86: 0 | AO86: 0
B87: =IF(iRegionComp!AA81="",0,iRegionComp!AA81) -> 0 | C87: =iRegionComp!AB81 -> 0 | E87: =TRIM(iRegionComp!AC81) ->  | R87: =iRegionComp!AD81 ->  | T87: =iRegionComp!AE81 ->  | V87: =iRegionComp!AF81 ->  | W87: =iRegionComp!AG81 ->  | X87: =iRegionComp!AH81 ->  | Y87: =iRegionComp!AI81 ->  | Z87: =iRegionComp!AJ81 ->  | AB87: =iRegionComp!AK81 ->  | AC87: =iRegionComp!AL81 ->  | AD87: =iRegionComp!AM81 ->  | AF87: =iRegionComp!AN81 ->  | AG87: =iRegionComp!AO81 ->  | AH87: =iRegionComp!AP81 ->  | AI87: =iRegionComp!AQ81 ->  | AN87: 0 | AO87: 0
B88: =IF(iRegionComp!AA82="",0,iRegionComp!AA82) -> 0 | C88: =iRegionComp!AB82 -> 0 | E88: =TRIM(iRegionComp!AC82) ->  | R88: =iRegionComp!AD82 ->  | T88: =iRegionComp!AE82 ->  | V88: =iRegionComp!AF82 ->  | W88: =iRegionComp!AG82 ->  | X88: =iRegionComp!AH82 ->  | Y88: =iRegionComp!AI82 ->  | Z88: =iRegionComp!AJ82 ->  | AB88: =iRegionComp!AK82 ->  | AC88: =iRegionComp!AL82 ->  | AD88: =iRegionComp!AM82 ->  | AF88: =iRegionComp!AN82 ->  | AG88: =iRegionComp!AO82 ->  | AH88: =iRegionComp!AP82 ->  | AI88: =iRegionComp!AQ82 ->  | AN88: 0 | AO88: 0
B89: =IF(iRegionComp!AA83="",0,iRegionComp!AA83) -> 0 | C89: =iRegionComp!AB83 -> 0 | E89: =TRIM(iRegionComp!AC83) ->  | R89: =iRegionComp!AD83 ->  | T89: =iRegionComp!AE83 ->  | V89: =iRegionComp!AF83 ->  | W89: =iRegionComp!AG83 ->  | X89: =iRegionComp!AH83 ->  | Y89: =iRegionComp!AI83 ->  | Z89: =iRegionComp!AJ83 ->  | AB89: =iRegionComp!AK83 ->  | AC89: =iRegionComp!AL83 ->  | AD89: =iRegionComp!AM83 ->  | AF89: =iRegionComp!AN83 ->  | AG89: =iRegionComp!AO83 ->  | AH89: =iRegionComp!AP83 ->  | AI89: =iRegionComp!AQ83 ->  | AN89: 0 | AO89: 0
B90: =IF(iRegionComp!AA84="",0,iRegionComp!AA84) -> 0 | C90: =iRegionComp!AB84 -> 0 | E90: =TRIM(iRegionComp!AC84) ->  | R90: =iRegionComp!AD84 ->  | T90: =iRegionComp!AE84 ->  | V90: =iRegionComp!AF84 ->  | W90: =iRegionComp!AG84 ->  | X90: =iRegionComp!AH84 ->  | Y90: =iRegionComp!AI84 ->  | Z90: =iRegionComp!AJ84 ->  | AB90: =iRegionComp!AK84 ->  | AC90: =iRegionComp!AL84 ->  | AD90: =iRegionComp!AM84 ->  | AF90: =iRegionComp!AN84 ->  | AG90: =iRegionComp!AO84 ->  | AH90: =iRegionComp!AP84 ->  | AI90: =iRegionComp!AQ84 ->  | AN90: 0 | AO90: 0
B91: =IF(iRegionComp!AA85="",0,iRegionComp!AA85) -> 0 | C91: =iRegionComp!AB85 -> 0 | E91: =TRIM(iRegionComp!AC85) ->  | R91: =iRegionComp!AD85 ->  | T91: =iRegionComp!AE85 ->  | V91: =iRegionComp!AF85 ->  | W91: =iRegionComp!AG85 ->  | X91: =iRegionComp!AH85 ->  | Y91: =iRegionComp!AI85 ->  | Z91: =iRegionComp!AJ85 ->  | AB91: =iRegionComp!AK85 ->  | AC91: =iRegionComp!AL85 ->  | AD91: =iRegionComp!AM85 ->  | AF91: =iRegionComp!AN85 ->  | AG91: =iRegionComp!AO85 ->  | AH91: =iRegionComp!AP85 ->  | AI91: =iRegionComp!AQ85 ->  | AN91: 0 | AO91: 0
B92: =IF(iRegionComp!AA86="",0,iRegionComp!AA86) -> 0 | C92: =iRegionComp!AB86 -> 0 | E92: =TRIM(iRegionComp!AC86) ->  | R92: =iRegionComp!AD86 ->  | T92: =iRegionComp!AE86 ->  | V92: =iRegionComp!AF86 ->  | W92: =iRegionComp!AG86 ->  | X92: =iRegionComp!AH86 ->  | Y92: =iRegionComp!AI86 ->  | Z92: =iRegionComp!AJ86 ->  | AB92: =iRegionComp!AK86 ->  | AC92: =iRegionComp!AL86 ->  | AD92: =iRegionComp!AM86 ->  | AF92: =iRegionComp!AN86 ->  | AG92: =iRegionComp!AO86 ->  | AH92: =iRegionComp!AP86 ->  | AI92: =iRegionComp!AQ86 ->  | AN92: 0 | AO92: 0
B93: =IF(iRegionComp!AA87="",0,iRegionComp!AA87) -> 0 | C93: =iRegionComp!AB87 -> 0 | E93: =TRIM(iRegionComp!AC87) ->  | R93: =iRegionComp!AD87 ->  | T93: =iRegionComp!AE87 ->  | V93: =iRegionComp!AF87 ->  | W93: =iRegionComp!AG87 ->  | X93: =iRegionComp!AH87 ->  | Y93: =iRegionComp!AI87 ->  | Z93: =iRegionComp!AJ87 ->  | AB93: =iRegionComp!AK87 ->  | AC93: =iRegionComp!AL87 ->  | AD93: =iRegionComp!AM87 ->  | AF93: =iRegionComp!AN87 ->  | AG93: =iRegionComp!AO87 ->  | AH93: =iRegionComp!AP87 ->  | AI93: =iRegionComp!AQ87 ->  | AN93: 0 | AO93: 0
B94: =IF(iRegionComp!AA88="",0,iRegionComp!AA88) -> 0 | C94: =iRegionComp!AB88 -> 0 | E94: =TRIM(iRegionComp!AC88) ->  | R94: =iRegionComp!AD88 ->  | T94: =iRegionComp!AE88 ->  | V94: =iRegionComp!AF88 ->  | W94: =iRegionComp!AG88 ->  | X94: =iRegionComp!AH88 ->  | Y94: =iRegionComp!AI88 ->  | Z94: =iRegionComp!AJ88 ->  | AB94: =iRegionComp!AK88 ->  | AC94: =iRegionComp!AL88 ->  | AD94: =iRegionComp!AM88 ->  | AF94: =iRegionComp!AN88 ->  | AG94: =iRegionComp!AO88 ->  | AH94: =iRegionComp!AP88 ->  | AI94: =iRegionComp!AQ88 ->  | AN94: 0 | AO94: 0
B95: =IF(iRegionComp!AA89="",0,iRegionComp!AA89) -> 0 | C95: =iRegionComp!AB89 -> 0 | E95: =TRIM(iRegionComp!AC89) ->  | R95: =iRegionComp!AD89 ->  | T95: =iRegionComp!AE89 ->  | V95: =iRegionComp!AF89 ->  | W95: =iRegionComp!AG89 ->  | X95: =iRegionComp!AH89 ->  | Y95: =iRegionComp!AI89 ->  | Z95: =iRegionComp!AJ89 ->  | AB95: =iRegionComp!AK89 ->  | AC95: =iRegionComp!AL89 ->  | AD95: =iRegionComp!AM89 ->  | AF95: =iRegionComp!AN89 ->  | AG95: =iRegionComp!AO89 ->  | AH95: =iRegionComp!AP89 ->  | AI95: =iRegionComp!AQ89 ->  | AN95: 0 | AO95: 0
B96: =IF(iRegionComp!AA90="",0,iRegionComp!AA90) -> 0 | C96: =iRegionComp!AB90 -> 0 | E96: =TRIM(iRegionComp!AC90) ->  | R96: =iRegionComp!AD90 ->  | T96: =iRegionComp!AE90 ->  | V96: =iRegionComp!AF90 ->  | W96: =iRegionComp!AG90 ->  | X96: =iRegionComp!AH90 ->  | Y96: =iRegionComp!AI90 ->  | Z96: =iRegionComp!AJ90 ->  | AB96: =iRegionComp!AK90 ->  | AC96: =iRegionComp!AL90 ->  | AD96: =iRegionComp!AM90 ->  | AF96: =iRegionComp!AN90 ->  | AG96: =iRegionComp!AO90 ->  | AH96: =iRegionComp!AP90 ->  | AI96: =iRegionComp!AQ90 ->  | AN96: 0 | AO96: 0
B97: =IF(iRegionComp!AA91="",0,iRegionComp!AA91) -> 0 | C97: =iRegionComp!AB91 -> 0 | E97: =TRIM(iRegionComp!AC91) ->  | R97: =iRegionComp!AD91 ->  | T97: =iRegionComp!AE91 ->  | V97: =iRegionComp!AF91 ->  | W97: =iRegionComp!AG91 ->  | X97: =iRegionComp!AH91 ->  | Y97: =iRegionComp!AI91 ->  | Z97: =iRegionComp!AJ91 ->  | AB97: =iRegionComp!AK91 ->  | AC97: =iRegionComp!AL91 ->  | AD97: =iRegionComp!AM91 ->  | AF97: =iRegionComp!AN91 ->  | AG97: =iRegionComp!AO91 ->  | AH97: =iRegionComp!AP91 ->  | AI97: =iRegionComp!AQ91 ->  | AN97: 0 | AO97: 0
B98: =IF(iRegionComp!AA92="",0,iRegionComp!AA92) -> 0 | C98: =iRegionComp!AB92 -> 0 | E98: =TRIM(iRegionComp!AC92) ->  | R98: =iRegionComp!AD92 ->  | T98: =iRegionComp!AE92 ->  | V98: =iRegionComp!AF92 ->  | W98: =iRegionComp!AG92 ->  | X98: =iRegionComp!AH92 ->  | Y98: =iRegionComp!AI92 ->  | Z98: =iRegionComp!AJ92 ->  | AB98: =iRegionComp!AK92 ->  | AC98: =iRegionComp!AL92 ->  | AD98: =iRegionComp!AM92 ->  | AF98: =iRegionComp!AN92 ->  | AG98: =iRegionComp!AO92 ->  | AH98: =iRegionComp!AP92 ->  | AI98: =iRegionComp!AQ92 ->  | AN98: =CHOOSE($AN$1,MIN(R98:Y98,AC98:AI98),MIN(R98:AI98),MIN(R98:Y98,AC98:AI98),MIN(R98:AB98,AC98:AI98)) -> 0 | AO98: =CHOOSE($AN$1,MAX(R98:Y98,AC98:AI98),MAX(R98:AI98),MAX(R98:Y98,AC98:AI98),MAX(R98:AB98,AC98:AI98)) -> 0
B99: =IF(iRegionComp!AA93="",0,iRegionComp!AA93) -> 0 | C99: =iRegionComp!AB93 -> 0 | E99: =TRIM(iRegionComp!AC93) ->  | R99: =iRegionComp!AD93 ->  | T99: =iRegionComp!AE93 ->  | V99: =iRegionComp!AF93 ->  | W99: =iRegionComp!AG93 ->  | X99: =iRegionComp!AH93 ->  | Y99: =iRegionComp!AI93 ->  | Z99: =iRegionComp!AJ93 ->  | AB99: =iRegionComp!AK93 ->  | AC99: =iRegionComp!AL93 ->  | AD99: =iRegionComp!AM93 ->  | AF99: =iRegionComp!AN93 ->  | AG99: =iRegionComp!AO93 ->  | AH99: =iRegionComp!AP93 ->  | AI99: =iRegionComp!AQ93 ->  | AN99: 0 | AO99: 0

Sheet Scatter
B1: =uxb_works!B92 -> SAFE CITIES INDEX: 2021 | BA1: 1 | BB1: 5
A4: =uxb_works!B111 -> 1
B6: =uxb_works!$C$5 -> The active weight profile has been changed from its default setting
B8: =uxb_works!D67 -> Active filter group: All regions in all income levels with all population sizes
B11: =iScatter!G1 -> OVERALL SCORE | H11: =iScatter!G2 -> OVERALL SCORE
B12: =IF(iScatter!B1=1,"",iScatter!F1) ->  | H12: =IF(iScatter!B2=1,"",iScatter!F2) -> 1) DIGITAL SECURITY
S26: CORRELATION(X,Y)
R27: =IF(ISERROR(iScatter!B14),"n/a",iScatter!B14) -> 0.9299000511

Sheet Correlations
A1: =uxb_works!B92 -> SAFE CITIES INDEX: 2021 | BA1: 1 | BB1: 6
A4: =uxb_works!B111 -> 1
D6: =uxb_works!$C$5 -> The active weight profile has been changed from its default setting
D8: =uxb_works!D67 -> Active filter group: All regions in all income levels with all population sizes
H22: Compare
H23: =UPPER(iCorrel1!C6) -> OVERALL SCORE
H24: with *
F25: Most postive correlations | K25: Most negative correlations
E26: =MAX(G26,L26) -> 97 | G26: =MAX(COUNT(G27:G132),1) -> 97 | L26: =MAX(COUNT(L27:L132),1) -> 7
E27: =iCorrel1!N8 -> 4 | F27: =TRIM(iCorrel1!O8) -> 3) INFRASTRUCTURE SECURITY | G27: =iCorrel1!P8 -> 0.96 | J27: =iCorrel1!T8 -> 1 | K27: =TRIM(iCorrel1!U8) -> 2.2.6) Mental health burden | L27: =iCorrel1!V8 -> -0.39
E28: =iCorrel1!N9 -> 4 | F28: =TRIM(iCorrel1!O9) -> 1) DIGITAL SECURITY | G28: =iCorrel1!P9 -> 0.93 | J28: =iCorrel1!T9 -> 1 | K28: =TRIM(iCorrel1!U9) -> 1.2.3) Risk of attacks | L28: =iCorrel1!V9 -> -0.35
E29: =iCorrel1!N10 -> 4 | F29: =TRIM(iCorrel1!O10) -> 3.1) Infrastructure security (input) | G29: =iCorrel1!P10 -> 0.91 | J29: =iCorrel1!T10 -> 1 | K29: =TRIM(iCorrel1!U10) -> 4.2.4) Deaths from substance use disorders | L29: =iCorrel1!V10 -> -0.35
E30: =iCorrel1!N11 -> 4 | F30: =TRIM(iCorrel1!O11) -> BG1) HDI score for city or region in which city located | G30: =iCorrel1!P11 -> 0.91 | J30: =iCorrel1!T11 -> 1 | K30: =TRIM(iCorrel1!U11) -> 2.2.4) Cancer mortality rate | L30: =iCorrel1!V11 -> -0.18
E31: =iCorrel1!N12 -> 4 | F31: =TRIM(iCorrel1!O12) -> 3.2) Infrastructure security (output) | G31: =iCorrel1!P12 -> 0.9 | J31: =iCorrel1!T12 -> 1 | K31: =TRIM(iCorrel1!U12) -> 2.2.7) COVID-19 mortality | L31: =iCorrel1!V12 -> -0.12
E32: =iCorrel1!N13 -> 4 | F32: =TRIM(iCorrel1!O13) -> 4) PERSONAL SECURITY | G32: =iCorrel1!P13 -> 0.9 | J32: =iCorrel1!T13 -> 1 | K32: =TRIM(iCorrel1!U13) -> 4.1.4.a) Police personnel per capita | L32: =iCorrel1!V13 -> -0.1
E33: =iCorrel1!N14 -> 4 | F33: =TRIM(iCorrel1!O14) -> 4.2.6) Enforceability of contracts | G33: =iCorrel1!P14 -> 0.9 | J33: =iCorrel1!T14 -> 1 | K33: =TRIM(iCorrel1!U14) -> 3.2.2) Deaths from climate-related disasters | L33: =iCorrel1!V14 -> -0.07
E34: =iCorrel1!N15 -> 3 | F34: =TRIM(iCorrel1!O15) -> 3.1.3) Disaster Management/Business Continuity Plan | G34: =iCorrel1!P15 -> 0.89 | J34: =iCorrel1!T15 -> 0 | K34: =TRIM(iCorrel1!U15) ->  | L34: =iCorrel1!V15 -> 
E35: =iCorrel1!N16 -> 3 | F35: =TRIM(iCorrel1!O16) -> 1.2) Digital security (output) | G35: =iCorrel1!P16 -> 0.87 | J35: =iCorrel1!T16 -> 0 | K35: =TRIM(iCorrel1!U16) ->  | L35: =iCorrel1!V16 -> 
E36: =iCorrel1!N17 -> 3 | F36: =TRIM(iCorrel1!O17) -> 3.2.3) Transport infrastructure | G36: =iCorrel1!P17 -> 0.86 | J36: =iCorrel1!T17 -> 0 | K36: =TRIM(iCorrel1!U17) ->  | L36: =iCorrel1!V17 -> 
E37: =iCorrel1!N18 -> 3 | F37: =TRIM(iCorrel1!O18) -> 1.1) Digital security (input) | G37: =iCorrel1!P18 -> 0.85 | J37: =iCorrel1!T18 -> 0 | K37: =TRIM(iCorrel1!U18) ->  | L37: =iCorrel1!V18 -> 
E38: =iCorrel1!N19 -> 3 | F38: =TRIM(iCorrel1!O19) -> 4.2.5) Level of corruption | G38: =iCorrel1!P19 -> 0.85 | J38: =iCorrel1!T19 -> 0 | K38: =TRIM(iCorrel1!U19) ->  | L38: =iCorrel1!V19 -> 
E39: =iCorrel1!N20 -> 3 | F39: =TRIM(iCorrel1!O20) -> BG2) Control of Corruption score for country in which city located | G39: =iCorrel1!P20 -> 0.84 | J39: =iCorrel1!T20 -> 0 | K39: =TRIM(iCorrel1!U20) ->  | L39: =iCorrel1!V20 -> 
E40: =iCorrel1!N21 -> 3 | F40: =TRIM(iCorrel1!O21) -> 1.2.4) IT infrastructure risk | G40: =iCorrel1!P21 -> 0.83 | J40: =iCorrel1!T21 -> 0 | K40: =TRIM(iCorrel1!U21) ->  | L40: =iCorrel1!V21 -> 
E41: =iCorrel1!N22 -> 3 | F41: =TRIM(iCorrel1!O22) -> 2.2.2) Life expectancy years | G41: =iCorrel1!P22 -> 0.83 | J41: =iCorrel1!T22 -> 0 | K41: =TRIM(iCorrel1!U22) ->  | L41: =iCorrel1!V22 -> 
E42: =iCorrel1!N23 -> 3 | F42: =TRIM(iCorrel1!O23) -> 1.2.2) Secure Internet servers | G42: =iCorrel1!P23 -> 0.82 | J42: =iCorrel1!T23 -> 0 | K42: =TRIM(iCorrel1!U23) ->  | L42: =iCorrel1!V23 -> 
E43: =iCorrel1!N24 -> 3 | F43: =TRIM(iCorrel1!O24) -> 2) HEALTH SECURITY | G43: =iCorrel1!P24 -> 0.82 | J43: =iCorrel1!T24 -> 0 | K43: =TRIM(iCorrel1!U24) ->  | L43: =iCorrel1!V24 -> 
E44: =iCorrel1!N25 -> 3 | F44: =TRIM(iCorrel1!O25) -> 3.2.3.c) Transport infrastructure: Rail network | G44: =iCorrel1!P25 -> 0.82 | J44: =iCorrel1!T25 -> 0 | K44: =TRIM(iCorrel1!U25) ->  | L44: =iCorrel1!V25 -> 
E45: =iCorrel1!N26 -> 3 | F45: =TRIM(iCorrel1!O26) -> 1.1.1) Privacy policy | G45: =iCorrel1!P26 -> 0.81 | J45: =iCorrel1!T26 -> 0 | K45: =TRIM(iCorrel1!U26) ->  | L45: =iCorrel1!V26 -> 
E46: =iCorrel1!N27 -> 3 | F46: =TRIM(iCorrel1!O27) -> 3.2.7) Disaster-risk informed development | G46: =iCorrel1!P27 -> 0.8 | J46: =iCorrel1!T27 -> 0 | K46: =TRIM(iCorrel1!U27) ->  | L46: =iCorrel1!V27 -> 
E47: =iCorrel1!N28 -> 3 | F47: =TRIM(iCorrel1!O28) -> 4.1) Personal security (input) | G47: =iCorrel1!P28 -> 0.8 | J47: =iCorrel1!T28 -> 0 | K47: =TRIM(iCorrel1!U28) ->  | L47: =iCorrel1!V28 -> 
E48: =iCorrel1!N29 -> 3 | F48: =TRIM(iCorrel1!O29) -> 4.2) Personal security (output) | G48: =iCorrel1!P29 -> 0.8 | J48: =iCorrel1!T29 -> 0 | K48: =TRIM(iCorrel1!U29) ->  | L48: =iCorrel1!V29 -> 
E49: =iCorrel1!N30 -> 2 | F49: =TRIM(iCorrel1!O30) -> 2.1.5) Access to safe and quality food | G49: =iCorrel1!P30 -> 0.78 | J49: =iCorrel1!T30 -> 0 | K49: =TRIM(iCorrel1!U30) ->  | L49: =iCorrel1!V30 -> 
E50: =iCorrel1!N31 -> 2 | F50: =TRIM(iCorrel1!O31) -> 3.2.8) Lack of basic housing | G50: =iCorrel1!P31 -> 0.78 | J50: =iCorrel1!T31 -> 0 | K50: =TRIM(iCorrel1!U31) ->  | L50: =iCorrel1!V31 -> 
E51: =iCorrel1!N32 -> 2 | F51: =TRIM(iCorrel1!O32) -> 3.2.8.a) Percentage living in slums | G51: =iCorrel1!P32 -> 0.78 | J51: =iCorrel1!T32 -> 0 | K51: =TRIM(iCorrel1!U32) ->  | L51: =iCorrel1!V32 -> 
E52: =iCorrel1!N33 -> 2 | F52: =TRIM(iCorrel1!O33) -> 4.1.3) Threat of violence | G52: =iCorrel1!P33 -> 0.78 | J52: =iCorrel1!T33 -> 0 | K52: =TRIM(iCorrel1!U33) ->  | L52: =iCorrel1!V33 -> 
E53: =iCorrel1!N34 -> 2 | F53: =TRIM(iCorrel1!O34) -> 5.1) Environmental security (input) | G53: =iCorrel1!P34 -> 0.78 | J53: =iCorrel1!T34 -> 0 | K53: =TRIM(iCorrel1!U34) ->  | L53: =iCorrel1!V34 -> 
E54: =iCorrel1!N35 -> 2 | F54: =TRIM(iCorrel1!O35) -> 2.1) Health security (input) | G54: =iCorrel1!P35 -> 0.77 | J54: =iCorrel1!T35 -> 0 | K54: =TRIM(iCorrel1!U35) ->  | L54: =iCorrel1!V35 -> 
E55: =iCorrel1!N36 -> 2 | F55: =TRIM(iCorrel1!O36) -> 2.2.5) Lifestyle related disease burden | G55: =iCorrel1!P36 -> 0.77 | J55: =iCorrel1!T36 -> 0 | K55: =TRIM(iCorrel1!U36) ->  | L55: =iCorrel1!V36 -> 
E56: =iCorrel1!N37 -> 2 | F56: =TRIM(iCorrel1!O37) -> 3.2.3.b) Transport infrastructure: Road network | G56: =iCorrel1!P37 -> 0.77 | J56: =iCorrel1!T37 -> 0 | K56: =TRIM(iCorrel1!U37) ->  | L56: =iCorrel1!V37 -> 
E57: =iCorrel1!N38 -> 2 | F57: =TRIM(iCorrel1!O38) -> 3.1.4) Water infrastructure | G57: =iCorrel1!P38 -> 0.76 | J57: =iCorrel1!T38 -> 0 | K57: =TRIM(iCorrel1!U38) ->  | L57: =iCorrel1!V38 -> 
E58: =iCorrel1!N39 -> 2 | F58: =TRIM(iCorrel1!O39) -> 2.2.3) Infant mortality | G58: =iCorrel1!P39 -> 0.74 | J58: =iCorrel1!T39 -> 0 | K58: =TRIM(iCorrel1!U39) ->  | L58: =iCorrel1!V39 -> 
E59: =iCorrel1!N40 -> 2 | F59: =TRIM(iCorrel1!O40) -> 5) ENVIRONMENTAL SECURITY | G59: =iCorrel1!P40 -> 0.74 | J59: =iCorrel1!T40 -> 0 | K59: =TRIM(iCorrel1!U40) ->  | L59: =iCorrel1!V40 -> 
E60: =iCorrel1!N41 -> 2 | F60: =TRIM(iCorrel1!O41) -> 4.1.5) Expenditure on social security | G60: =iCorrel1!P41 -> 0.71 | J60: =iCorrel1!T41 -> 0 | K60: =TRIM(iCorrel1!U41) ->  | L60: =iCorrel1!V41 -> 
E61: =iCorrel1!N42 -> 2 | F61: =TRIM(iCorrel1!O42) -> 4.2.7.b) Share of population in vulnerable employment | G61: =iCorrel1!P42 -> 0.71 | J61: =iCorrel1!T42 -> 0 | K61: =TRIM(iCorrel1!U42) ->  | L61: =iCorrel1!V42 -> 
E62: =iCorrel1!N43 -> 2 | F62: =TRIM(iCorrel1!O43) -> 5.1.1) Sustainability masterplan | G62: =iCorrel1!P43 -> 0.7 | J62: =iCorrel1!T43 -> 0 | K62: =TRIM(iCorrel1!U43) ->  | L62: =iCorrel1!V43 -> 
E63: =iCorrel1!N44 -> 1 | F63: =TRIM(iCorrel1!O44) -> 1.2.1) Percentage with Internet access | G63: =iCorrel1!P44 -> 0.69 | J63: =iCorrel1!T44 -> 0 | K63: =TRIM(iCorrel1!U44) ->  | L63: =iCorrel1!V44 -> 
E64: =iCorrel1!N45 -> 1 | F64: =TRIM(iCorrel1!O45) -> 3.2.3.a) Transport infrastructure: Air transport facilities | G64: =iCorrel1!P45 -> 0.69 | J64: =iCorrel1!T45 -> 0 | K64: =TRIM(iCorrel1!U45) ->  | L64: =iCorrel1!V45 -> 
E65: =iCorrel1!N46 -> 1 | F65: =TRIM(iCorrel1!O46) -> 2.2) Health security (output) | G65: =iCorrel1!P46 -> 0.68 | J65: =iCorrel1!T46 -> 0 | K65: =TRIM(iCorrel1!U46) ->  | L65: =iCorrel1!V46 -> 
E66: =iCorrel1!N47 -> 1 | F66: =TRIM(iCorrel1!O47) -> 4.2.7) Economic security | G66: =iCorrel1!P47 -> 0.68 | J66: =iCorrel1!T47 -> 0 | K66: =TRIM(iCorrel1!U47) ->  | L66: =iCorrel1!V47 -> 
E67: =iCorrel1!N48 -> 1 | F67: =TRIM(iCorrel1!O48) -> 3.1.2) Pedestrian friendliness | G67: =iCorrel1!P48 -> 0.67 | J67: =iCorrel1!T48 -> 0 | K67: =TRIM(iCorrel1!U48) ->  | L67: =iCorrel1!V48 -> 
E68: =iCorrel1!N49 -> 1 | F68: =TRIM(iCorrel1!O49) -> 3.2.4) Power network | G68: =iCorrel1!P49 -> 0.67 | J68: =iCorrel1!T49 -> 0 | K68: =TRIM(iCorrel1!U49) ->  | L68: =iCorrel1!V49 -> 
E69: =iCorrel1!N50 -> 1 | F69: =TRIM(iCorrel1!O50) -> 3.2.5) Institutional capacity and access to resources | G69: =iCorrel1!P50 -> 0.67 | J69: =iCorrel1!T50 -> 0 | K69: =TRIM(iCorrel1!U50) ->  | L69: =iCorrel1!V50 -> 
E70: =iCorrel1!N51 -> 1 | F70: =TRIM(iCorrel1!O51) -> 2.1.7) Pandemic preparedness | G70: =iCorrel1!P51 -> 0.66 | J70: =iCorrel1!T51 -> 0 | K70: =TRIM(iCorrel1!U51) ->  | L70: =iCorrel1!V51 -> 
E71: =iCorrel1!N52 -> 1 | F71: =TRIM(iCorrel1!O52) -> 2.1.4.b) No. of doctors per 1,000 | G71: =iCorrel1!P52 -> 0.65 | J71: =iCorrel1!T52 -> 0 | K71: =TRIM(iCorrel1!U52) ->  | L71: =iCorrel1!V52 -> 
E72: =iCorrel1!N53 -> 1 | F72: =TRIM(iCorrel1!O53) -> 4.2.2) Organised crime | G72: =iCorrel1!P53 -> 0.65 | J72: =iCorrel1!T53 -> 0 | K72: =TRIM(iCorrel1!U53) ->  | L72: =iCorrel1!V53 -> 
E73: =iCorrel1!N54 -> 1 | F73: =TRIM(iCorrel1!O54) -> 4.1.3.c) Threat of civil unrest | G73: =iCorrel1!P54 -> 0.64 | J73: =iCorrel1!T54 -> 0 | K73: =TRIM(iCorrel1!U54) ->  | L73: =iCorrel1!V54 -> 
E74: =iCorrel1!N55 -> 1 | F74: =TRIM(iCorrel1!O55) -> 4.2.1) Prevalence of crime | G74: =iCorrel1!P55 -> 0.64 | J74: =iCorrel1!T55 -> 0 | K74: =TRIM(iCorrel1!U55) ->  | L74: =iCorrel1!V55 -> 
E75: =iCorrel1!N56 -> 1 | F75: =TRIM(iCorrel1!O56) -> 1.1.4) Cyber security preparedness | G75: =iCorrel1!P56 -> 0.63 | J75: =iCorrel1!T56 -> 0 | K75: =TRIM(iCorrel1!U56) ->  | L75: =iCorrel1!V56 -> 
E76: =iCorrel1!N57 -> 1 | F76: =TRIM(iCorrel1!O57) -> 4.2.1.a) Prevalence of petty crime | G76: =iCorrel1!P57 -> 0.63 | J76: =iCorrel1!T57 -> 0 | K76: =TRIM(iCorrel1!U57) ->  | L76: =iCorrel1!V57 -> 
E77: =iCorrel1!N58 -> 1 | F77: =TRIM(iCorrel1!O58) -> 2.1.4) Health infrastructure | G77: =iCorrel1!P58 -> 0.62 | J77: =iCorrel1!T58 -> 0 | K77: =TRIM(iCorrel1!U58) ->  | L77: =iCorrel1!V58 -> 
E78: =iCorrel1!N59 -> 1 | F78: =TRIM(iCorrel1!O59) -> 3.2.8.b) Percentage of homeless population | G78: =iCorrel1!P59 -> 0.62 | J78: =iCorrel1!T59 -> 0 | K78: =TRIM(iCorrel1!U59) ->  | L78: =iCorrel1!V59 -> 
E79: =iCorrel1!N60 -> 1 | F79: =TRIM(iCorrel1!O60) -> 4.1.3.a) Threat of terrorism | G79: =iCorrel1!P60 -> 0.62 | J79: =iCorrel1!T60 -> 0 | K79: =TRIM(iCorrel1!U60) ->  | L79: =iCorrel1!V60 -> 
E80: =iCorrel1!N61 -> 1 | F80: =TRIM(iCorrel1!O61) -> 4.1.3.b) Threat of military conflict | G80: =iCorrel1!P61 -> 0.62 | J80: =iCorrel1!T61 -> 0 | K80: =TRIM(iCorrel1!U61) ->  | L80: =iCorrel1!V61 -> 
E81: =iCorrel1!N62 -> 1 | F81: =TRIM(iCorrel1!O62) -> 2.1.2) Access to healthcare | G81: =iCorrel1!P62 -> 0.61 | J81: =iCorrel1!T62 -> 0 | K81: =TRIM(iCorrel1!U62) ->  | L81: =iCorrel1!V62 -> 
E82: =iCorrel1!N63 -> 1 | F82: =TRIM(iCorrel1!O63) -> 2.1.2.a) Availability of public healthcare | G82: =iCorrel1!P63 -> 0.61 | J82: =iCorrel1!T63 -> 0 | K82: =TRIM(iCorrel1!U63) ->  | L82: =iCorrel1!V63 -> 
E83: =iCorrel1!N64 -> 1 | F83: =TRIM(iCorrel1!O64) -> 2.1.3.b) Quality of public healthcare provision | G83: =iCorrel1!P64 -> 0.61 | J83: =iCorrel1!T64 -> 0 | K83: =TRIM(iCorrel1!U64) ->  | L83: =iCorrel1!V64 -> 
E84: =iCorrel1!N65 -> 1 | F84: =TRIM(iCorrel1!O65) -> 4.2.1.b) Prevalence of violent crime | G84: =iCorrel1!P65 -> 0.6 | J84: =iCorrel1!T65 -> 0 | K84: =TRIM(iCorrel1!U65) ->  | L84: =iCorrel1!V65 -> 
E85: =iCorrel1!N66 -> 1 | F85: =TRIM(iCorrel1!O66) -> 2.1.3) Quality of health services | G85: =iCorrel1!P66 -> 0.58 | J85: =iCorrel1!T66 -> 0 | K85: =TRIM(iCorrel1!U66) ->  | L85: =iCorrel1!V66 -> 
E86: =iCorrel1!N67 -> 1 | F86: =TRIM(iCorrel1!O67) -> 5.1.4) Waste management | G86: =iCorrel1!P67 -> 0.58 | J86: =iCorrel1!T67 -> 0 | K86: =TRIM(iCorrel1!U67) ->  | L86: =iCorrel1!V67 -> 
E87: =iCorrel1!N68 -> 1 | F87: =TRIM(iCorrel1!O68) -> 5.2.3) Air quality levels | G87: =iCorrel1!P68 -> 0.57 | J87: =iCorrel1!T68 -> 0 | K87: =TRIM(iCorrel1!U68) ->  | L87: =iCorrel1!V68 -> 
E88: =iCorrel1!N69 -> 1 | F88: =TRIM(iCorrel1!O69) -> 2.1.1) Universal healthcare coverage | G88: =iCorrel1!P69 -> 0.56 | J88: =iCorrel1!T69 -> 0 | K88: =TRIM(iCorrel1!U69) ->  | L88: =iCorrel1!V69 -> 
E89: =iCorrel1!N70 -> 1 | F89: =TRIM(iCorrel1!O70) -> 2.2.1) Emergency services in the city | G89: =iCorrel1!P70 -> 0.54 | J89: =iCorrel1!T70 -> 0 | K89: =TRIM(iCorrel1!U70) ->  | L89: =iCorrel1!V70 -> 
E90: =iCorrel1!N71 -> 1 | F90: =TRIM(iCorrel1!O71) -> 3.1.1) Enforcement of transport safety | G90: =iCorrel1!P71 -> 0.54 | J90: =iCorrel1!T71 -> 0 | K90: =TRIM(iCorrel1!U71) ->  | L90: =iCorrel1!V71 -> 
E91: =iCorrel1!N72 -> 1 | F91: =TRIM(iCorrel1!O72) -> 3.2.1) Road traffic deaths | G91: =iCorrel1!P72 -> 0.54 | J91: =iCorrel1!T72 -> 0 | K91: =TRIM(iCorrel1!U72) ->  | L91: =iCorrel1!V72 -> 
E92: =iCorrel1!N73 -> 1 | F92: =TRIM(iCorrel1!O73) -> 4.2.8) Women's safety | G92: =iCorrel1!P73 -> 0.54 | J92: =iCorrel1!T73 -> 0 | K92: =TRIM(iCorrel1!U73) ->  | L92: =iCorrel1!V73 -> 
E93: =iCorrel1!N74 -> 1 | F93: =TRIM(iCorrel1!O74) -> 1.1.5) Public-private partnerships | G93: =iCorrel1!P74 -> 0.52 | J93: =iCorrel1!T74 -> 0 | K93: =TRIM(iCorrel1!U74) ->  | L93: =iCorrel1!V74 -> 
E94: =iCorrel1!N75 -> 1 | F94: =TRIM(iCorrel1!O75) -> 5.1.3) Green economy initiatives | G94: =iCorrel1!P75 -> 0.52 | J94: =iCorrel1!T75 -> 0 | K94: =TRIM(iCorrel1!U75) ->  | L94: =iCorrel1!V75 -> 
E95: =iCorrel1!N76 -> 1 | F95: =TRIM(iCorrel1!O76) -> 3.1.5) Hazard monitoring | G95: =iCorrel1!P76 -> 0.51 | J95: =iCorrel1!T76 -> 0 | K95: =TRIM(iCorrel1!U76) ->  | L95: =iCorrel1!V76 -> 
E96: =iCorrel1!N77 -> 1 | F96: =TRIM(iCorrel1!O77) -> 2.1.2.c) Availability of OTC drugs | G96: =iCorrel1!P77 -> 0.5 | J96: =iCorrel1!T77 -> 0 | K96: =TRIM(iCorrel1!U77) ->  | L96: =iCorrel1!V77 -> 
E97: =iCorrel1!N78 -> 1 | F97: =TRIM(iCorrel1!O78) -> 4.2.8.a) Female homicide rates | G97: =iCorrel1!P78 -> 0.46 | J97: =iCorrel1!T78 -> 0 | K97: =TRIM(iCorrel1!U78) ->  | L97: =iCorrel1!V78 -> 
E98: =iCorrel1!N79 -> 1 | F98: =TRIM(iCorrel1!O79) -> 1.1.2) Citizen awareness of digital threats | G98: =iCorrel1!P79 -> 0.45 | J98: =iCorrel1!T79 -> 0 | K98: =TRIM(iCorrel1!U79) ->  | L98: =iCorrel1!V79 -> 
E99: =iCorrel1!N80 -> 1 | F99: =TRIM(iCorrel1!O80) -> 5.2) Environmental security (output) | G99: =iCorrel1!P80 -> 0.45 | J99: =iCorrel1!T80 -> 0 | K99: =TRIM(iCorrel1!U80) ->  | L99: =iCorrel1!V80 -> 
E100: =iCorrel1!N81 -> 1 | F100: =TRIM(iCorrel1!O81) -> 2.1.3.a) Quality of private healthcare provision | G100: =iCorrel1!P81 -> 0.44 | J100: =iCorrel1!T81 -> 0 | K100: =TRIM(iCorrel1!U81) ->  | L100: =iCorrel1!V81 -> 
E101: =iCorrel1!N82 -> 1 | F101: =TRIM(iCorrel1!O82) -> 2.1.4.a) No. of beds per 1,000 | G101: =iCorrel1!P82 -> 0.44 | J101: =iCorrel1!T82 -> 0 | K101: =TRIM(iCorrel1!U82) ->  | L101: =iCorrel1!V82 -> 
E102: =iCorrel1!N83 -> 1 | F102: =TRIM(iCorrel1!O83) -> 4.1.6.a) Laws on domestic violence | G102: =iCorrel1!P83 -> 0.43 | J102: =iCorrel1!T83 -> 0 | K102: =TRIM(iCorrel1!U83) ->  | L102: =iCorrel1!V83 -> 
E103: =iCorrel1!N84 -> 1 | F103: =TRIM(iCorrel1!O84) -> 5.2.4) Urban forest cover | G103: =iCorrel1!P84 -> 0.43 | J103: =iCorrel1!T84 -> 0 | K103: =TRIM(iCorrel1!U84) ->  | L103: =iCorrel1!V84 -> 
E104: =iCorrel1!N85 -> 1 | F104: =TRIM(iCorrel1!O85) -> 4.1.4.b) Prosecution personnel per capita | G104: =iCorrel1!P85 -> 0.4 | J104: =iCorrel1!T85 -> 0 | K104: =TRIM(iCorrel1!U85) ->  | L104: =iCorrel1!V85 -> 
E105: =iCorrel1!N86 -> 1 | F105: =TRIM(iCorrel1!O86) -> 5.1.2) Incentives for renewable energy | G105: =iCorrel1!P86 -> 0.38 | J105: =iCorrel1!T86 -> 0 | K105: =TRIM(iCorrel1!U86) ->  | L105: =iCorrel1!V86 -> 
E106: =iCorrel1!N87 -> 1 | F106: =TRIM(iCorrel1!O87) -> 1.1.3) Secure smart cities | G106: =iCorrel1!P87 -> 0.36 | J106: =iCorrel1!T87 -> 0 | K106: =TRIM(iCorrel1!U87) ->  | L106: =iCorrel1!V87 -> 
E107: =iCorrel1!N88 -> 1 | F107: =TRIM(iCorrel1!O88) -> 4.1.6) Laws ensuring women's safety | G107: =iCorrel1!P88 -> 0.36 | J107: =iCorrel1!T88 -> 0 | K107: =TRIM(iCorrel1!U88) ->  | L107: =iCorrel1!V88 -> 
E108: =iCorrel1!N89 -> 1 | F108: =TRIM(iCorrel1!O89) -> 4.2.3) Severity of terrorist attacks | G108: =iCorrel1!P89 -> 0.36 | J108: =iCorrel1!T89 -> 0 | K108: =TRIM(iCorrel1!U89) ->  | L108: =iCorrel1!V89 -> 
E109: =iCorrel1!N90 -> 1 | F109: =TRIM(iCorrel1!O90) -> 3.2.6) Catastrophe insurance | G109: =iCorrel1!P90 -> 0.35 | J109: =iCorrel1!T90 -> 0 | K109: =TRIM(iCorrel1!U90) ->  | L109: =iCorrel1!V90 -> 
E110: =iCorrel1!N91 -> 1 | F110: =TRIM(iCorrel1!O91) -> 4.2.8.b) Prevalence of domestic violence | G110: =iCorrel1!P91 -> 0.34 | J110: =iCorrel1!T91 -> 0 | K110: =TRIM(iCorrel1!U91) ->  | L110: =iCorrel1!V91 -> 
E111: =iCorrel1!N92 -> 1 | F111: =TRIM(iCorrel1!O92) -> 4.1.1) Use of data-driven techniques for crime | G111: =iCorrel1!P92 -> 0.31 | J111: =iCorrel1!T92 -> 0 | K111: =TRIM(iCorrel1!U92) ->  | L111: =iCorrel1!V92 -> 
E112: =iCorrel1!N93 -> 1 | F112: =TRIM(iCorrel1!O93) -> 2.1.2.b) Availability of private healthcare | G112: =iCorrel1!P93 -> 0.3 | J112: =iCorrel1!T93 -> 0 | K112: =TRIM(iCorrel1!U93) ->  | L112: =iCorrel1!V93 -> 
E113: =iCorrel1!N94 -> 1 | F113: =TRIM(iCorrel1!O94) -> 4.1.4) Capacity of the judicial system | G113: =iCorrel1!P94 -> 0.27 | J113: =iCorrel1!T94 -> 0 | K113: =TRIM(iCorrel1!U94) ->  | L113: =iCorrel1!V94 -> 
E114: =iCorrel1!N95 -> 1 | F114: =TRIM(iCorrel1!O95) -> 5.2.1) Sustainable energy | G114: =iCorrel1!P95 -> 0.22 | J114: =iCorrel1!T95 -> 0 | K114: =TRIM(iCorrel1!U95) ->  | L114: =iCorrel1!V95 -> 
E115: =iCorrel1!N96 -> 1 | F115: =TRIM(iCorrel1!O96) -> 4.2.7.a) Income inequality levels | G115: =iCorrel1!P96 -> 0.21 | J115: =iCorrel1!T96 -> 0 | K115: =TRIM(iCorrel1!U96) ->  | L115: =iCorrel1!V96 -> 
E116: =iCorrel1!N97 -> 1 | F116: =TRIM(iCorrel1!O97) -> 4.1.2) Gun regulation and enforcement | G116: =iCorrel1!P97 -> 0.2 | J116: =iCorrel1!T97 -> 0 | K116: =TRIM(iCorrel1!U97) ->  | L116: =iCorrel1!V97 -> 
E117: =iCorrel1!N98 -> 1 | F117: =TRIM(iCorrel1!O98) -> 4.1.4.c) Professional judges or magistrate personnel per capita | G117: =iCorrel1!P98 -> 0.2 | J117: =iCorrel1!T98 -> 0 | K117: =TRIM(iCorrel1!U98) ->  | L117: =iCorrel1!V98 -> 
E118: =iCorrel1!N99 -> 1 | F118: =TRIM(iCorrel1!O99) -> 4.1.6.b) Laws on sexual harassment | G118: =iCorrel1!P99 -> 0.14 | J118: =iCorrel1!T99 -> 0 | K118: =TRIM(iCorrel1!U99) ->  | L118: =iCorrel1!V99 -> 
E119: =iCorrel1!N100 -> 1 | F119: =TRIM(iCorrel1!O100) -> 5.2.2) Rate of water stress | G119: =iCorrel1!P100 -> 0.1 | J119: =iCorrel1!T100 -> 0 | K119: =TRIM(iCorrel1!U100) ->  | L119: =iCorrel1!V100 -> 
E120: =iCorrel1!N101 -> 1 | F120: =TRIM(iCorrel1!O101) -> 1.2.5) Percentage of computers infected from online attacks | G120: =iCorrel1!P101 -> 0.09 | J120: =iCorrel1!T101 -> 0 | K120: =TRIM(iCorrel1!U101) ->  | L120: =iCorrel1!V101 -> 
E121: =iCorrel1!N102 -> 1 | F121: =TRIM(iCorrel1!O102) -> 2.1.6) Policy on substance abuse / drug use | G121: =iCorrel1!P102 -> 0.08 | J121: =iCorrel1!T102 -> 0 | K121: =TRIM(iCorrel1!U102) ->  | L121: =iCorrel1!V102 -> 
E122: =iCorrel1!N103 -> 1 | F122: =TRIM(iCorrel1!O103) -> 2.1.8) Mental health | G122: =iCorrel1!P103 -> 0.07 | J122: =iCorrel1!T103 -> 0 | K122: =TRIM(iCorrel1!U103) ->  | L122: =iCorrel1!V103 -> 
E123: =iCorrel1!N104 -> 1 | F123: =TRIM(iCorrel1!O104) -> 5.2.5) Waste generation | G123: =iCorrel1!P104 -> 0.05 | J123: =iCorrel1!T104 -> 0 | K123: =TRIM(iCorrel1!U104) ->  | L123: =iCorrel1!V104 -> 
E124: =iCorrel1!N105 -> 0 | F124: =TRIM(iCorrel1!O105) ->  | G124: =iCorrel1!P105 ->  | J124: =iCorrel1!T105 -> 0 | K124: =TRIM(iCorrel1!U105) ->  | L124: =iCorrel1!V105 -> 
E125: =iCorrel1!N106 -> 0 | F125: =TRIM(iCorrel1!O106) ->  | G125: =iCorrel1!P106 ->  | J125: =iCorrel1!T106 -> 0 | K125: =TRIM(iCorrel1!U106) ->  | L125: =iCorrel1!V106 -> 
E126: =iCorrel1!N107 -> 0 | F126: =TRIM(iCorrel1!O107) ->  | G126: =iCorrel1!P107 ->  | J126: =iCorrel1!T107 -> 0 | K126: =TRIM(iCorrel1!U107) ->  | L126: =iCorrel1!V107 -> 
E127: =iCorrel1!N108 -> 0 | F127: =TRIM(iCorrel1!O108) ->  | G127: =iCorrel1!P108 ->  | J127: =iCorrel1!T108 -> 0 | K127: =TRIM(iCorrel1!U108) ->  | L127: =iCorrel1!V108 -> 
E128: =iCorrel1!N109 -> 0 | F128: =TRIM(iCorrel1!O109) ->  | G128: =iCorrel1!P109 ->  | J128: =iCorrel1!T109 -> 0 | K128: =TRIM(iCorrel1!U109) ->  | L128: =iCorrel1!V109 -> 
E129: =iCorrel1!N110 -> 0 | F129: =TRIM(iCorrel1!O110) ->  | G129: =iCorrel1!P110 ->  | J129: =iCorrel1!T110 -> 0 | K129: =TRIM(iCorrel1!U110) ->  | L129: =iCorrel1!V110 -> 
